{"text_format":"1","workbook":"xlsx","n_sheets":14,"sheets":["Stamminfo","Jan","Feb","Mar","Apr","Mai","Jun","Jul","Aug","Sep","Okt","Nov","Dez","Druckvorlage"],"not_rendered":{"charts":0,"images":1,"macros":1,"external_links":0,"defined_names":29,"comments":0,"pivot_tables":0},"unopened":[],"bounds":{"document_bytes":16777216,"sheet_cells":100000,"rows_first":2000,"rows_last":500,"rows_between":2000,"halvings":0,"cell_chars":16384,"cell_head_chars":4096},"cells_cut":0,"cells_raw":0,"read":"whole","date_system":"1900"}

{"sheet":"Stamminfo","index":0,"n_rows":22,"n_cols":7,"rows_kept":22,"cut":false,"hidden":false,"merged":[[0,1,0,7],[1,1,1,7],[2,1,2,7],[3,2,3,7],[9,2,9,6],[4,4,4,5],[4,6,4,7],[4,2,4,3],[8,1,8,7],[6,1,6,7],[5,1,5,7],[10,1,10,7],[12,1,12,7],[11,2,11,6],[24,1,24,7],[23,1,23,7],[21,2,21,6],[20,1,20,7],[13,2,13,6],[22,1,22,7],[15,2,15,6],[18,1,18,7],[19,2,19,6],[16,1,16,7],[14,1,14,7],[17,2,17,6]]}
[null,"KASSABUCH - STAMMINFORMATION"]
[null,"Letzte Aktualisierung: 07.01.2019"]
[null,"FIRMA"]
[null,"Name:"]
[null,"Jahr:",null,null,"Übertrag Vorjahr EUR:",null,0]
[]
[null,"BEDIENUNGSHINWEISE"]
[]
[null,"1. Eingabe der Stamminformationen:"]
[null,null,"Geben Sie hier den Namen der Firma und das Kalenderjahr ein. Diese Daten sind dann in den Tabellen der einzelnen Monate unterhalb der Überschrift \"Kassabuch\" ersichtlich. "]
[null,"2. Auswahl des Eingabemonats:"]
[null,null,"Wählen Sie den gewünschten Monat durch Anklicken des jeweiligen Tabellenblattes aus.\nBeispiel: Klicken Sie auf das Blatt \"Mar\" und Sie gelangen zur Eingabe des Kassabuchs für den Monat \"März\"."]
[null,"3. Eingabe von Daten:"]
[null,null,"Die Belegdaten müssen in die weißen Felder innerhalb der Tabelle eingegeben werden.\nDie Währungseinheit ist EURO. Tippen Sie vor der ersten Eingabe eines Belegs den Kassaanfangsbestand ein, so wissen Sie immer den aktuellen Kassastand.\nDas Ausfüllen des Datums kann folgendermaßen erfolgen: TT.MM.JJ oder TT.MM.JJJJ\nAlle Beträge müssen als Bruttobeträge eingegeben werden!"]
[null,"4. Berechnung des aktuellen Kassabestandes:"]
[null,null,"Für die automatische Berechnung des aktuellen Kassabestandes müssen Sie etwas in das Feld \"Beleg\" eingeben. Sie haben auch die Möglichkeit, in diesem Feld beliebige Zeichen wie z.B. ein Leerzeichen einzugeben."]
[null,"5. Drucken eines Tabellenblattes:"]
[null,null,"Zum Drucken des Kassabuches für den jeweiligen Monat klicken Sie auf den Button \"Drucken\" rechts neben der Überschrift \"Kassabuch\". Das Kassabuch wird automatisch formatiert und bis zum letzten eingegebenen Beleg in der Druckvoransicht angezeigt."]
[null,"6. Hinweis:"]
[null,null,"Die Führung eines Kassabuchs als Excel-Datei wird aufgrund gesetzlicher Verfahrensvorschriften nicht anerkannt. Bei der Führung eines Kassabuchs mittels Datenträger muss nämlich sichergestellt sein, dass Eintragungen nicht in einer Weise verändert werden können, dass der ursprüngliche Inhalt nicht mehr ersichtlich ist. Damit diese Excel-Vorlage steuerlich anerkannt wird, muss sie als Vorlage ausgedruckt (Tabellenblatt Druckvorlage) und händisch ausgefüllt werden. Die Eintragungen dürfen nicht mit leicht entfernbaren Schreibmitteln erfolgen."]
[null,"7. Sonstige Funktionshinweise:"]
[null,null,"Dieses Kassabuch benutzt Makros. Sie müssen daher Makros aktivieren/zulassen bzw. die Sicherheitsstufe für Makros auf \"Niedrig\" stellen, da sonst die volle Funktionsfähigkeit dieses Dokuments nicht gegeben ist."]

{"sheet":"Jan","index":1,"n_rows":501,"n_cols":14,"rows_kept":501,"cut":false,"hidden":false,"merged":[[0,1,0,10],[1,1,1,10],[2,1,2,6],[2,8,2,10],[4,1,4,9]]}
[null,"KASSABUCH"]
[null,null,null,null,null,null,null,null,null,null,null,null,{"$f":"DATE(Jahr,2,1)","v":"1900-02-01"},"Anfangsdatum"]
[null,{"$f":"IF(Name<>0,Name,\"\")","v":""},null,null,null,null,null,null,{"$f":"\"Januar \"&Jahr","v":"Januar "},null,null,null,{"$f":"DATE(Jahr,3,1)-1","v":60},"Enddatum"]
[null,"Datum","Beleg","Konto","Text","%","Einnahmen","USt","Ausgaben","Vorsteuer","Kassabestand",null,{"$f":"SUM(M5:M500)","v":0},{"$f":"I3 &\", \"&\"Endstand\"","v":"Januar , Endstand"}]
[null,"Übertrag Vormonat EUR:",null,null,null,null,null,null,null,null,{"$f":"Stamminfo!G5","v":0},null,{"$f":"IF(K6=\"\",K5,\"0\")","v":0}]
[null,null,null,null,null,null,null,null,null,{"$f":"IF(I6<>\"\",I6-I6/((100+F6)/100),\"\")","v":""},{"$f":"IF(C6<>0,IF(G6<>0,K5+G6,IF(I6<>0,K5-I6,\"\")),\"\")","v":""},null,{"$f":"IF(K7=\"\",K6,\"0\")","v":""}]
[null,null,null,null,null,null,null,null,null,{"$f":"IF(I7<>\"\",I7-I7/((100+F7)/100),\"\")","v":""},{"$f":"IF(C7<>0,IF(G7<>0,K6+G7,IF(I7<>0,K6-I7,\"\")),\"\")","v":""},null,{"$f":"IF(K8=\"\",K7,\"0\")","v":""}]
[null,null,null,null,null,null,null,null,null,"","",null,{"$f":"IF(K9=\"\",K8,\"0\")","v":""}]
[null,null,null,null,null,null,null,{"$f":"IF(G9<>\"\",G9-G9/((100+F9)/100),\"\")","v":""},null,"","",null,""]
[null,null,null,null,null,null,null,"",null,"","",null,""]
[null,null,null,null,null,null,null,"",null,"","",null,""]
[null,null,null,null,null,null,null,"",null,"","",null,""]
[null,null,null,null,null,null,null,"",null,"","",null,""]
[null,null,null,null,null,null,null,"",null,"","",null,""]
[null,null,null,null,null,null,null,"",null,"","",null,""]
[null,null,null,null,null,null,null,"",null,"","",null,""]
[null,null,null,null,null,null,null,"",null,"","",null,""]
[null,null,null,null,null,null,null,"",null,"","",null,""]
[null,null,null,null,null,null,null,"",null,"","",null,""]
[null,null,null,null,null,null,null,"",null,"","",null,""]
[null,null,null,null,null,null,null,"",null,"","",null,""]
[null,null,null,null,null,null,null,"",null,"","",null,""]
[null,null,null,null,null,null,null,"",null,"","",null,""]
[null,null,null,null,null,null,null,"",null,"","",null,""]
[null,null,null,null,null,null,null,"",null,"","",null,""]
[null,null,null,null,null,null,null,"",null,"","",null,""]
[null,null,null,null,null,null,null,"",null,"","",null,""]
[null,null,null,null,null,null,null,"",null,"","",null,""]
[null,null,null,null,null,null,null,"",null,"","",null,""]
[null,null,null,null,null,null,null,"",null,"","",null,""]
[null,null,null,null,null,null,null,"",null,"","",null,""]
[null,null,null,null,null,null,null,"",null,"","",null,""]
[null,null,null,null,null,null,null,"",null,"","",null,""]
[null,null,null,null,null,null,null,"",null,"","",null,""]
[null,null,null,null,null,null,null,"",null,"","",null,""]
[null,null,null,null,null,null,null,"",null,"","",null,""]
[null,null,null,null,null,null,null,"",null,"","",null,""]
[null,null,null,null,null,null,null,"",null,"","",null,""]
[null,null,null,null,null,null,null,"",null,"","",null,""]
[null,null,null,null,null,null,null,"",null,"","",null,""]
[null,null,null,null,null,null,null,"",null,"","",null,""]
[null,null,null,null,null,null,null,"",null,"","",null,""]
[null,null,null,null,null,null,null,"",null,"","",null,""]
[null,null,null,null,null,null,null,"",null,"","",null,""]
[null,null,null,null,null,null,null,"",null,"","",null,""]
[null,null,null,null,null,null,null,"",null,"","",null,""]
[null,null,null,null,null,null,null,"",null,"","",null,""]
[null,null,null,null,null,null,null,"",null,"","",null,""]
[null,null,null,null,null,null,null,"",null,"","",null,""]
[null,null,null,null,null,null,null,"",null,"","",null,""]
[null,null,null,null,null,null,null,"",null,"","",null,""]
[null,null,null,null,null,null,null,"",null,"","",null,""]
[null,null,null,null,null,null,null,"",null,"","",null,""]
[null,null,null,null,null,null,null,"",null,"","",null,""]
[null,null,null,null,null,null,null,"",null,"","",null,""]
[null,null,null,null,null,null,null,"",null,"","",null,""]
[null,null,null,null,null,null,null,"",null,"","",null,""]
[null,null,null,null,null,null,null,"",null,"","",null,""]
[null,null,null,null,null,null,null,"",null,"","",null,""]
[null,null,null,null,null,null,null,"",null,"","",null,""]
[null,null,null,null,null,null,null,"",null,"","",null,""]
[null,null,null,null,null,null,null,"",null,"","",null,""]
[null,null,null,null,null,null,null,"",null,"","",null,""]
[null,null,null,null,null,null,null,"",null,"","",null,""]
[null,null,null,null,null,null,null,"",null,"","",null,""]
[null,null,null,null,null,null,null,"",null,"","",null,""]
[null,null,null,null,null,null,null,"",null,"","",null,""]
[null,null,null,null,null,null,null,"",null,"","",null,""]
[null,null,null,null,null,null,null,"",null,"","",null,""]
[null,null,null,null,null,null,null,{"$f":"IF(G70<>\"\",G70-G70/((100+F70)/100),\"\")","v":""},null,{"$f":"IF(I70<>\"\",I70-I70/((100+F70)/100),\"\")","v":""},{"$f":"IF(C70<>0,IF(G70<>0,K69+G70,IF(I70<>0,K69-I70,\"\")),\"\")","v":""},null,""]
[null,null,null,null,null,null,null,"",null,"","",null,{"$f":"IF(K72=\"\",K71,\"0\")","v":""}]
[null,null,null,null,null,null,null,"",null,"","",null,""]
[null,null,null,null,null,null,null,"",null,"","",null,""]
[null,null,null,null,null,null,null,"",null,"","",null,""]
[null,null,null,null,null,null,null,"",null,"","",null,""]
[null,null,null,null,null,null,null,"",null,"","",null,""]
[null,null,null,null,null,null,null,"",null,"","",null,""]
[null,null,null,null,null,null,null,"",null,"","",null,""]
[null,null,null,null,null,null,null,"",null,"","",null,""]
[null,null,null,null,null,null,null,"",null,"","",null,""]
[null,null,null,null,null,null,null,"",null,"","",null,""]
[null,null,null,null,null,null,null,"",null,"","",null,""]
[null,null,null,null,null,null,null,"",null,"","",null,""]
[null,null,null,null,null,null,null,"",null,"","",null,""]
[null,null,null,null,null,null,null,"",null,"","",null,""]
[null,null,null,null,null,null,null,"",null,"","",null,""]
[null,null,null,null,null,null,null,"",null,"","",null,""]
[null,null,null,null,null,null,null,"",null,"","",null,""]
[null,null,null,null,null,null,null,"",null,"","",null,""]
[null,null,null,null,null,null,null,"",null,"","",null,""]
[null,null,null,null,null,null,null,"",null,"","",null,""]
[null,null,null,null,null,null,null,"",null,"","",null,""]
[null,null,null,null,null,null,null,"",null,"","",null,""]
[null,null,null,null,null,null,null,"",null,"","",null,""]
[null,null,null,null,null,null,null,"",null,"","",null,""]
[null,null,null,null,null,null,null,"",null,"","",null,""]
[null,null,null,null,null,null,null,"",null,"","",null,""]
[null,null,null,null,null,null,null,"",null,"","",null,""]
[null,null,null,null,null,null,null,"",null,"","",null,""]
[null,null,null,null,null,null,null,"",null,"","",null,""]
[null,null,null,null,null,null,null,"",null,"","",null,""]
[null,null,null,null,null,null,null,"",null,"","",null,""]
[null,null,null,null,null,null,null,"",null,"","",null,""]
[null,null,null,null,null,null,null,"",null,"","",null,""]
[null,null,null,null,null,null,null,"",null,"","",null,""]
[null,null,null,null,null,null,null,"",null,"","",null,""]
[null,null,null,null,null,null,null,"",null,"","",null,""]
[null,null,null,null,null,null,null,"",null,"","",null,""]
[null,null,null,null,null,null,null,"",null,"","",null,""]
[null,null,null,null,null,null,null,"",null,"","",null,""]
[null,null,null,null,null,null,null,"",null,"","",null,""]
[null,null,null,null,null,null,null,"",null,"","",null,""]
[null,null,null,null,null,null,null,"",null,"","",null,""]
[null,null,null,null,null,null,null,"",null,"","",null,""]
[null,null,null,null,null,null,null,"",null,"","",null,""]
[null,null,null,null,null,null,null,"",null,"","",null,""]
[null,null,null,null,null,null,null,"",null,"","",null,""]
[null,null,null,null,null,null,null,"",null,"","",null,""]
[null,null,null,null,null,null,null,"",null,"","",null,""]
[null,null,null,null,null,null,null,"",null,"","",null,""]
[null,null,null,null,null,null,null,"",null,"","",null,""]
[null,null,null,null,null,null,null,"",null,"","",null,""]
[null,null,null,null,null,null,null,"",null,"","",null,""]
[null,null,null,null,null,null,null,"",null,"","",null,""]
[null,null,null,null,null,null,null,"",null,"","",null,""]
[null,null,null,null,null,null,null,"",null,"","",null,""]
[null,null,null,null,null,null,null,"",null,"","",null,""]
[null,null,null,null,null,null,null,"",null,"","",null,""]
[null,null,null,null,null,null,null,"",null,"","",null,""]
[null,null,null,null,null,null,null,"",null,"","",null,""]
[null,null,null,null,null,null,null,"",null,"","",null,""]
[null,null,null,null,null,null,null,"",null,"","",null,""]
[null,null,null,null,null,null,null,"",null,"","",null,""]
[null,null,null,null,null,null,null,{"$f":"IF(G134<>\"\",G134-G134/((100+F134)/100),\"\")","v":""},null,{"$f":"IF(I134<>\"\",I134-I134/((100+F134)/100),\"\")","v":""},{"$f":"IF(C134<>0,IF(G134<>0,K133+G134,IF(I134<>0,K133-I134,\"\")),\"\")","v":""},null,""]
[null,null,null,null,null,null,null,"",null,"","",null,{"$f":"IF(K136=\"\",K135,\"0\")","v":""}]
[null,null,null,null,null,null,null,"",null,"","",null,""]
[null,null,null,null,null,null,null,"",null,"","",null,""]
[null,null,null,null,null,null,null,"",null,"","",null,""]
[null,null,null,null,null,null,null,"",null,"","",null,""]
[null,null,null,null,null,null,null,"",null,"","",null,""]
[null,null,null,null,null,null,null,"",null,"","",null,""]
[null,null,null,null,null,null,null,"",null,"","",null,""]
[null,null,null,null,null,null,null,"",null,"","",null,""]
[null,null,null,null,null,null,null,"",null,"","",null,""]
[null,null,null,null,null,null,null,"",null,"","",null,""]
[null,null,null,null,null,null,null,"",null,"","",null,""]
[null,null,null,null,null,null,null,"",null,"","",null,""]
[null,null,null,null,null,null,null,"",null,"","",null,""]
[null,null,null,null,null,null,null,"",null,"","",null,""]
[null,null,null,null,null,null,null,"",null,"","",null,""]
[null,null,null,null,null,null,null,"",null,"","",null,""]
[null,null,null,null,null,null,null,"",null,"","",null,""]
[null,null,null,null,null,null,null,"",null,"","",null,""]
[null,null,null,null,null,null,null,"",null,"","",null,""]
[null,null,null,null,null,null,null,"",null,"","",null,""]
[null,null,null,null,null,null,null,"",null,"","",null,""]
[null,null,null,null,null,null,null,"",null,"","",null,""]
[null,null,null,null,null,null,null,"",null,"","",null,""]
[null,null,null,null,null,null,null,"",null,"","",null,""]
[null,null,null,null,null,null,null,"",null,"","",null,""]
[null,null,null,null,null,null,null,"",null,"","",null,""]
[null,null,null,null,null,null,null,"",null,"","",null,""]
[null,null,null,null,null,null,null,"",null,"","",null,""]
[null,null,null,null,null,null,null,"",null,"","",null,""]
[null,null,null,null,null,null,null,"",null,"","",null,""]
[null,null,null,null,null,null,null,"",null,"","",null,""]
[null,null,null,null,null,null,null,"",null,"","",null,""]
[null,null,null,null,null,null,null,"",null,"","",null,""]
[null,null,null,null,null,null,null,"",null,"","",null,""]
[null,null,null,null,null,null,null,"",null,"","",null,""]
[null,null,null,null,null,null,null,"",null,"","",null,""]
[null,null,null,null,null,null,null,"",null,"","",null,""]
[null,null,null,null,null,null,null,"",null,"","",null,""]
[null,null,null,null,null,null,null,"",null,"","",null,""]
[null,null,null,null,null,null,null,"",null,"","",null,""]
[null,null,null,null,null,null,null,"",null,"","",null,""]
[null,null,null,null,null,null,null,"",null,"","",null,""]
[null,null,null,null,null,null,null,"",null,"","",null,""]
[null,null,null,null,null,null,null,"",null,"","",null,""]
[null,null,null,null,null,null,null,"",null,"","",null,""]
[null,null,null,null,null,null,null,"",null,"","",null,""]
[null,null,null,null,null,null,null,"",null,"","",null,""]
[null,null,null,null,null,null,null,"",null,"","",null,""]
[null,null,null,null,null,null,null,"",null,"","",null,""]
[null,null,null,null,null,null,null,"",null,"","",null,""]
[null,null,null,null,null,null,null,"",null,"","",null,""]
[null,null,null,null,null,null,null,"",null,"","",null,""]
[null,null,null,null,null,null,null,"",null,"","",null,""]
[null,null,null,null,null,null,null,"",null,"","",null,""]
[null,null,null,null,null,null,null,"",null,"","",null,""]
[null,null,null,null,null,null,null,"",null,"","",null,""]
[null,null,null,null,null,null,null,"",null,"","",null,""]
[null,null,null,null,null,null,null,"",null,"","",null,""]
[null,null,null,null,null,null,null,"",null,"","",null,""]
[null,null,null,null,null,null,null,"",null,"","",null,""]
[null,null,null,null,null,null,null,"",null,"","",null,""]
[null,null,null,null,null,null,null,"",null,"","",null,""]
[null,null,null,null,null,null,null,{"$f":"IF(G198<>\"\",G198-G198/((100+F198)/100),\"\")","v":""},null,{"$f":"IF(I198<>\"\",I198-I198/((100+F198)/100),\"\")","v":""},{"$f":"IF(C198<>0,IF(G198<>0,K197+G198,IF(I198<>0,K197-I198,\"\")),\"\")","v":""},null,""]
[null,null,null,null,null,null,null,"",null,"","",null,{"$f":"IF(K200=\"\",K199,\"0\")","v":""}]
[null,null,null,null,null,null,null,"",null,"","",null,""]
[null,null,null,null,null,null,null,"",null,"","",null,""]
[null,null,null,null,null,null,null,"",null,"","",null,""]
[null,null,null,null,null,null,null,"",null,"","",null,""]
[null,null,null,null,null,null,null,"",null,"","",null,""]
[null,null,null,null,null,null,null,"",null,"","",null,""]
[null,null,null,null,null,null,null,"",null,"","",null,""]
[null,null,null,null,null,null,null,"",null,"","",null,""]
[null,null,null,null,null,null,null,"",null,"","",null,""]
[null,null,null,null,null,null,null,"",null,"","",null,""]
[null,null,null,null,null,null,null,"",null,"","",null,""]
[null,null,null,null,null,null,null,"",null,"","",null,""]
[null,null,null,null,null,null,null,"",null,"","",null,""]
[null,null,null,null,null,null,null,"",null,"","",null,""]
[null,null,null,null,null,null,null,"",null,"","",null,""]
[null,null,null,null,null,null,null,"",null,"","",null,""]
[null,null,null,null,null,null,null,"",null,"","",null,""]
[null,null,null,null,null,null,null,"",null,"","",null,""]
[null,null,null,null,null,null,null,"",null,"","",null,""]
[null,null,null,null,null,null,null,"",null,"","",null,""]
[null,null,null,null,null,null,null,"",null,"","",null,""]
[null,null,null,null,null,null,null,"",null,"","",null,""]
[null,null,null,null,null,null,null,"",null,"","",null,""]
[null,null,null,null,null,null,null,"",null,"","",null,""]
[null,null,null,null,null,null,null,"",null,"","",null,""]
[null,null,null,null,null,null,null,"",null,"","",null,""]
[null,null,null,null,null,null,null,"",null,"","",null,""]
[null,null,null,null,null,null,null,"",null,"","",null,""]
[null,null,null,null,null,null,null,"",null,"","",null,""]
[null,null,null,null,null,null,null,"",null,"","",null,""]
[null,null,null,null,null,null,null,"",null,"","",null,""]
[null,null,null,null,null,null,null,"",null,"","",null,""]
[null,null,null,null,null,null,null,"",null,"","",null,""]
[null,null,null,null,null,null,null,"",null,"","",null,""]
[null,null,null,null,null,null,null,"",null,"","",null,""]
[null,null,null,null,null,null,null,"",null,"","",null,""]
[null,null,null,null,null,null,null,"",null,"","",null,""]
[null,null,null,null,null,null,null,"",null,"","",null,""]
[null,null,null,null,null,null,null,"",null,"","",null,""]
[null,null,null,null,null,null,null,"",null,"","",null,""]
[null,null,null,null,null,null,null,"",null,"","",null,""]
[null,null,null,null,null,null,null,"",null,"","",null,""]
[null,null,null,null,null,null,null,"",null,"","",null,""]
[null,null,null,null,null,null,null,"",null,"","",null,""]
[null,null,null,null,null,null,null,"",null,"","",null,""]
[null,null,null,null,null,null,null,"",null,"","",null,""]
[null,null,null,null,null,null,null,"",null,"","",null,""]
[null,null,null,null,null,null,null,"",null,"","",null,""]
[null,null,null,null,null,null,null,"",null,"","",null,""]
[null,null,null,null,null,null,null,"",null,"","",null,""]
[null,null,null,null,null,null,null,"",null,"","",null,""]
[null,null,null,null,null,null,null,"",null,"","",null,""]
[null,null,null,null,null,null,null,"",null,"","",null,""]
[null,null,null,null,null,null,null,"",null,"","",null,""]
[null,null,null,null,null,null,null,"",null,"","",null,""]
[null,null,null,null,null,null,null,"",null,"","",null,""]
[null,null,null,null,null,null,null,"",null,"","",null,""]
[null,null,null,null,null,null,null,"",null,"","",null,""]
[null,null,null,null,null,null,null,"",null,"","",null,""]
[null,null,null,null,null,null,null,"",null,"","",null,""]
[null,null,null,null,null,null,null,"",null,"","",null,""]
[null,null,null,null,null,null,null,"",null,"","",null,""]
[null,null,null,null,null,null,null,{"$f":"IF(G262<>\"\",G262-G262/((100+F262)/100),\"\")","v":""},null,{"$f":"IF(I262<>\"\",I262-I262/((100+F262)/100),\"\")","v":""},{"$f":"IF(C262<>0,IF(G262<>0,K261+G262,IF(I262<>0,K261-I262,\"\")),\"\")","v":""},null,""]
[null,null,null,null,null,null,null,"",null,"","",null,{"$f":"IF(K264=\"\",K263,\"0\")","v":""}]
[null,null,null,null,null,null,null,"",null,"","",null,""]
[null,null,null,null,null,null,null,"",null,"","",null,""]
[null,null,null,null,null,null,null,"",null,"","",null,""]
[null,null,null,null,null,null,null,"",null,"","",null,""]
[null,null,null,null,null,null,null,"",null,"","",null,""]
[null,null,null,null,null,null,null,"",null,"","",null,""]
[null,null,null,null,null,null,null,"",null,"","",null,""]
[null,null,null,null,null,null,null,"",null,"","",null,""]
[null,null,null,null,null,null,null,"",null,"","",null,""]
[null,null,null,null,null,null,null,"",null,"","",null,""]
[null,null,null,null,null,null,null,"",null,"","",null,""]
[null,null,null,null,null,null,null,"",null,"","",null,""]
[null,null,null,null,null,null,null,"",null,"","",null,""]
[null,null,null,null,null,null,null,"",null,"","",null,""]
[null,null,null,null,null,null,null,"",null,"","",null,""]
[null,null,null,null,null,null,null,"",null,"","",null,""]
[null,null,null,null,null,null,null,"",null,"","",null,""]
[null,null,null,null,null,null,null,"",null,"","",null,""]
[null,null,null,null,null,null,null,"",null,"","",null,""]
[null,null,null,null,null,null,null,"",null,"","",null,""]
[null,null,null,null,null,null,null,"",null,"","",null,""]
[null,null,null,null,null,null,null,"",null,"","",null,""]
[null,null,null,null,null,null,null,"",null,"","",null,""]
[null,null,null,null,null,null,null,"",null,"","",null,""]
[null,null,null,null,null,null,null,"",null,"","",null,""]
[null,null,null,null,null,null,null,"",null,"","",null,""]
[null,null,null,null,null,null,null,"",null,"","",null,""]
[null,null,null,null,null,null,null,"",null,"","",null,""]
[null,null,null,null,null,null,null,"",null,"","",null,""]
[null,null,null,null,null,null,null,"",null,"","",null,""]
[null,null,null,null,null,null,null,"",null,"","",null,""]
[null,null,null,null,null,null,null,"",null,"","",null,""]
[null,null,null,null,null,null,null,"",null,"","",null,""]
[null,null,null,null,null,null,null,"",null,"","",null,""]
[null,null,null,null,null,null,null,"",null,"","",null,""]
[null,null,null,null,null,null,null,"",null,"","",null,""]
[null,null,null,null,null,null,null,"",null,"","",null,""]
[null,null,null,null,null,null,null,"",null,"","",null,""]
[null,null,null,null,null,null,null,"",null,"","",null,""]
[null,null,null,null,null,null,null,"",null,"","",null,""]
[null,null,null,null,null,null,null,"",null,"","",null,""]
[null,null,null,null,null,null,null,"",null,"","",null,""]
[null,null,null,null,null,null,null,"",null,"","",null,""]
[null,null,null,null,null,null,null,"",null,"","",null,""]
[null,null,null,null,null,null,null,"",null,"","",null,""]
[null,null,null,null,null,null,null,"",null,"","",null,""]
[null,null,null,null,null,null,null,"",null,"","",null,""]
[null,null,null,null,null,null,null,"",null,"","",null,""]
[null,null,null,null,null,null,null,"",null,"","",null,""]
[null,null,null,null,null,null,null,"",null,"","",null,""]
[null,null,null,null,null,null,null,"",null,"","",null,""]
[null,null,null,null,null,null,null,"",null,"","",null,""]
[null,null,null,null,null,null,null,"",null,"","",null,""]
[null,null,null,null,null,null,null,"",null,"","",null,""]
[null,null,null,null,null,null,null,"",null,"","",null,""]
[null,null,null,null,null,null,null,"",null,"","",null,""]
[null,null,null,null,null,null,null,"",null,"","",null,""]
[null,null,null,null,null,null,null,"",null,"","",null,""]
[null,null,null,null,null,null,null,"",null,"","",null,""]
[null,null,null,null,null,null,null,"",null,"","",null,""]
[null,null,null,null,null,null,null,"",null,"","",null,""]
[null,null,null,null,null,null,null,"",null,"","",null,""]
[null,null,null,null,null,null,null,{"$f":"IF(G326<>\"\",G326-G326/((100+F326)/100),\"\")","v":""},null,{"$f":"IF(I326<>\"\",I326-I326/((100+F326)/100),\"\")","v":""},{"$f":"IF(C326<>0,IF(G326<>0,K325+G326,IF(I326<>0,K325-I326,\"\")),\"\")","v":""},null,""]
[null,null,null,null,null,null,null,"",null,"","",null,{"$f":"IF(K328=\"\",K327,\"0\")","v":""}]
[null,null,null,null,null,null,null,"",null,"","",null,""]
[null,null,null,null,null,null,null,"",null,"","",null,""]
[null,null,null,null,null,null,null,"",null,"","",null,""]
[null,null,null,null,null,null,null,"",null,"","",null,""]
[null,null,null,null,null,null,null,"",null,"","",null,""]
[null,null,null,null,null,null,null,"",null,"","",null,""]
[null,null,null,null,null,null,null,"",null,"","",null,""]
[null,null,null,null,null,null,null,"",null,"","",null,""]
[null,null,null,null,null,null,null,"",null,"","",null,""]
[null,null,null,null,null,null,null,"",null,"","",null,""]
[null,null,null,null,null,null,null,"",null,"","",null,""]
[null,null,null,null,null,null,null,"",null,"","",null,""]
[null,null,null,null,null,null,null,"",null,"","",null,""]
[null,null,null,null,null,null,null,"",null,"","",null,""]
[null,null,null,null,null,null,null,"",null,"","",null,""]
[null,null,null,null,null,null,null,"",null,"","",null,""]
[null,null,null,null,null,null,null,"",null,"","",null,""]
[null,null,null,null,null,null,null,"",null,"","",null,""]
[null,null,null,null,null,null,null,"",null,"","",null,""]
[null,null,null,null,null,null,null,"",null,"","",null,""]
[null,null,null,null,null,null,null,"",null,"","",null,""]
[null,null,null,null,null,null,null,"",null,"","",null,""]
[null,null,null,null,null,null,null,"",null,"","",null,""]
[null,null,null,null,null,null,null,"",null,"","",null,""]
[null,null,null,null,null,null,null,"",null,"","",null,""]
[null,null,null,null,null,null,null,"",null,"","",null,""]
[null,null,null,null,null,null,null,"",null,"","",null,""]
[null,null,null,null,null,null,null,"",null,"","",null,""]
[null,null,null,null,null,null,null,"",null,"","",null,""]
[null,null,null,null,null,null,null,"",null,"","",null,""]
[null,null,null,null,null,null,null,"",null,"","",null,""]
[null,null,null,null,null,null,null,"",null,"","",null,""]
[null,null,null,null,null,null,null,"",null,"","",null,""]
[null,null,null,null,null,null,null,"",null,"","",null,""]
[null,null,null,null,null,null,null,"",null,"","",null,""]
[null,null,null,null,null,null,null,"",null,"","",null,""]
[null,null,null,null,null,null,null,"",null,"","",null,""]
[null,null,null,null,null,null,null,"",null,"","",null,""]
[null,null,null,null,null,null,null,"",null,"","",null,""]
[null,null,null,null,null,null,null,"",null,"","",null,""]
[null,null,null,null,null,null,null,"",null,"","",null,""]
[null,null,null,null,null,null,null,"",null,"","",null,""]
[null,null,null,null,null,null,null,"",null,"","",null,""]
[null,null,null,null,null,null,null,"",null,"","",null,""]
[null,null,null,null,null,null,null,"",null,"","",null,""]
[null,null,null,null,null,null,null,"",null,"","",null,""]
[null,null,null,null,null,null,null,"",null,"","",null,""]
[null,null,null,null,null,null,null,"",null,"","",null,""]
[null,null,null,null,null,null,null,"",null,"","",null,""]
[null,null,null,null,null,null,null,"",null,"","",null,""]
[null,null,null,null,null,null,null,"",null,"","",null,""]
[null,null,null,null,null,null,null,"",null,"","",null,""]
[null,null,null,null,null,null,null,"",null,"","",null,""]
[null,null,null,null,null,null,null,"",null,"","",null,""]
[null,null,null,null,null,null,null,"",null,"","",null,""]
[null,null,null,null,null,null,null,"",null,"","",null,""]
[null,null,null,null,null,null,null,"",null,"","",null,""]
[null,null,null,null,null,null,null,"",null,"","",null,""]
[null,null,null,null,null,null,null,"",null,"","",null,""]
[null,null,null,null,null,null,null,"",null,"","",null,""]
[null,null,null,null,null,null,null,"",null,"","",null,""]
[null,null,null,null,null,null,null,"",null,"","",null,""]
[null,null,null,null,null,null,null,{"$f":"IF(G390<>\"\",G390-G390/((100+F390)/100),\"\")","v":""},null,{"$f":"IF(I390<>\"\",I390-I390/((100+F390)/100),\"\")","v":""},{"$f":"IF(C390<>0,IF(G390<>0,K389+G390,IF(I390<>0,K389-I390,\"\")),\"\")","v":""},null,""]
[null,null,null,null,null,null,null,"",null,"","",null,{"$f":"IF(K392=\"\",K391,\"0\")","v":""}]
[null,null,null,null,null,null,null,"",null,"","",null,""]
[null,null,null,null,null,null,null,"",null,"","",null,""]
[null,null,null,null,null,null,null,"",null,"","",null,""]
[null,null,null,null,null,null,null,"",null,"","",null,""]
[null,null,null,null,null,null,null,"",null,"","",null,""]
[null,null,null,null,null,null,null,"",null,"","",null,""]
[null,null,null,null,null,null,null,"",null,"","",null,""]
[null,null,null,null,null,null,null,"",null,"","",null,""]
[null,null,null,null,null,null,null,"",null,"","",null,""]
[null,null,null,null,null,null,null,"",null,"","",null,""]
[null,null,null,null,null,null,null,"",null,"","",null,""]
[null,null,null,null,null,null,null,"",null,"","",null,""]
[null,null,null,null,null,null,null,"",null,"","",null,""]
[null,null,null,null,null,null,null,"",null,"","",null,""]
[null,null,null,null,null,null,null,"",null,"","",null,""]
[null,null,null,null,null,null,null,"",null,"","",null,""]
[null,null,null,null,null,null,null,"",null,"","",null,""]
[null,null,null,null,null,null,null,"",null,"","",null,""]
[null,null,null,null,null,null,null,"",null,"","",null,""]
[null,null,null,null,null,null,null,"",null,"","",null,""]
[null,null,null,null,null,null,null,"",null,"","",null,""]
[null,null,null,null,null,null,null,"",null,"","",null,""]
[null,null,null,null,null,null,null,"",null,"","",null,""]
[null,null,null,null,null,null,null,"",null,"","",null,""]
[null,null,null,null,null,null,null,"",null,"","",null,""]
[null,null,null,null,null,null,null,"",null,"","",null,""]
[null,null,null,null,null,null,null,"",null,"","",null,""]
[null,null,null,null,null,null,null,"",null,"","",null,""]
[null,null,null,null,null,null,null,"",null,"","",null,""]
[null,null,null,null,null,null,null,"",null,"","",null,""]
[null,null,null,null,null,null,null,"",null,"","",null,""]
[null,null,null,null,null,null,null,"",null,"","",null,""]
[null,null,null,null,null,null,null,"",null,"","",null,""]
[null,null,null,null,null,null,null,"",null,"","",null,""]
[null,null,null,null,null,null,null,"",null,"","",null,""]
[null,null,null,null,null,null,null,"",null,"","",null,""]
[null,null,null,null,null,null,null,"",null,"","",null,""]
[null,null,null,null,null,null,null,"",null,"","",null,""]
[null,null,null,null,null,null,null,"",null,"","",null,""]
[null,null,null,null,null,null,null,"",null,"","",null,""]
[null,null,null,null,null,null,null,"",null,"","",null,""]
[null,null,null,null,null,null,null,"",null,"","",null,""]
[null,null,null,null,null,null,null,"",null,"","",null,""]
[null,null,null,null,null,null,null,"",null,"","",null,""]
[null,null,null,null,null,null,null,"",null,"","",null,""]
[null,null,null,null,null,null,null,"",null,"","",null,""]
[null,null,null,null,null,null,null,"",null,"","",null,""]
[null,null,null,null,null,null,null,"",null,"","",null,""]
[null,null,null,null,null,null,null,"",null,"","",null,""]
[null,null,null,null,null,null,null,"",null,"","",null,""]
[null,null,null,null,null,null,null,"",null,"","",null,""]
[null,null,null,null,null,null,null,"",null,"","",null,""]
[null,null,null,null,null,null,null,"",null,"","",null,""]
[null,null,null,null,null,null,null,"",null,"","",null,""]
[null,null,null,null,null,null,null,"",null,"","",null,""]
[null,null,null,null,null,null,null,"",null,"","",null,""]
[null,null,null,null,null,null,null,"",null,"","",null,""]
[null,null,null,null,null,null,null,"",null,"","",null,""]
[null,null,null,null,null,null,null,"",null,"","",null,""]
[null,null,null,null,null,null,null,"",null,"","",null,""]
[null,null,null,null,null,null,null,"",null,"","",null,""]
[null,null,null,null,null,null,null,"",null,"","",null,""]
[null,null,null,null,null,null,null,{"$f":"IF(G454<>\"\",G454-G454/((100+F454)/100),\"\")","v":""},null,{"$f":"IF(I454<>\"\",I454-I454/((100+F454)/100),\"\")","v":""},{"$f":"IF(C454<>0,IF(G454<>0,K453+G454,IF(I454<>0,K453-I454,\"\")),\"\")","v":""},null,""]
[null,null,null,null,null,null,null,"",null,"","",null,{"$f":"IF(K456=\"\",K455,\"0\")","v":""}]
[null,null,null,null,null,null,null,"",null,"","",null,""]
[null,null,null,null,null,null,null,"",null,"","",null,""]
[null,null,null,null,null,null,null,"",null,"","",null,""]
[null,null,null,null,null,null,null,"",null,"","",null,""]
[null,null,null,null,null,null,null,"",null,"","",null,""]
[null,null,null,null,null,null,null,"",null,"","",null,""]
[null,null,null,null,null,null,null,"",null,"","",null,""]
[null,null,null,null,null,null,null,"",null,"","",null,""]
[null,null,null,null,null,null,null,"",null,"","",null,""]
[null,null,null,null,null,null,null,"",null,"","",null,""]
[null,null,null,null,null,null,null,"",null,"","",null,""]
[null,null,null,null,null,null,null,"",null,"","",null,""]
[null,null,null,null,null,null,null,"",null,"","",null,""]
[null,null,null,null,null,null,null,"",null,"","",null,""]
[null,null,null,null,null,null,null,"",null,"","",null,""]
[null,null,null,null,null,null,null,"",null,"","",null,""]
[null,null,null,null,null,null,null,"",null,"","",null,""]
[null,null,null,null,null,null,null,"",null,"","",null,""]
[null,null,null,null,null,null,null,"",null,"","",null,""]
[null,null,null,null,null,null,null,"",null,"","",null,""]
[null,null,null,null,null,null,null,"",null,"","",null,""]
[null,null,null,null,null,null,null,"",null,"","",null,""]
[null,null,null,null,null,null,null,"",null,"","",null,""]
[null,null,null,null,null,null,null,"",null,"","",null,""]
[null,null,null,null,null,null,null,"",null,"","",null,""]
[null,null,null,null,null,null,null,"",null,"","",null,""]
[null,null,null,null,null,null,null,"",null,"","",null,""]
[null,null,null,null,null,null,null,"",null,"","",null,""]
[null,null,null,null,null,null,null,"",null,"","",null,""]
[null,null,null,null,null,null,null,"",null,"","",null,""]
[null,null,null,null,null,null,null,"",null,"","",null,""]
[null,null,null,null,null,null,null,"",null,"","",null,""]
[null,null,null,null,null,null,null,"",null,"","",null,""]
[null,null,null,null,null,null,null,"",null,"","",null,""]
[null,null,null,null,null,null,null,"",null,"","",null,""]
[null,null,null,null,null,null,null,"",null,"","",null,""]
[null,null,null,null,null,null,null,"",null,"","",null,""]
[null,null,null,null,null,null,null,"",null,"","",null,""]
[null,null,null,null,null,null,null,"",null,"","",null,""]
[null,null,null,null,null,null,null,"",null,"","",null,""]
[null,null,null,null,null,null,null,"",null,"","",null,""]
[null,null,null,null,null,null,null,"",null,"","",null,""]
[null,null,null,null,null,null,null,"",null,"","",null,""]
[null,null,null,null,null,null,null,"",null,"","",null,""]
[null,null,null,null,null,null,null,"",null,"","",null,""]
[null,null,null,null,null,null,null,null,null,null,null,null,{"$f":"SUM(M5:M500)","v":0}]

{"sheet":"Feb","index":2,"n_rows":501,"n_cols":14,"rows_kept":501,"cut":false,"hidden":false,"merged":[[4,1,4,9],[0,1,0,10],[1,1,1,10],[2,1,2,6],[2,8,2,10]]}
[null,"KASSABUCH"]
[null,null,null,null,null,null,null,null,null,null,null,null,{"$f":"DATE(Jahr,2,1)","v":"1900-02-01"},"Anfangsdatum"]
[null,{"$f":"IF(Name<>0,Name,\"\")","v":""},null,null,null,null,null,null,{"$f":"\"Februar \"&Jahr","v":"Februar "},null,null,null,{"$f":"DATE(Jahr,3,1)-1","v":60},"Enddatum"]
[null,"Datum","Beleg","Konto","Text","%","Einnahmen","USt","Ausgaben","Vorsteuer","Kassabestand",null,{"$f":"SUM(M5:M500)","v":0},{"$f":"I3 &\", \"&\"Endstand\"","v":"Februar , Endstand"}]
[null,"Übertrag Vormonat EUR:",null,null,null,null,null,null,null,null,{"$f":"Jan!M4","v":0},null,{"$f":"IF(K6=\"\",K5,\"0\")","v":0}]
[null,null,null,null,null,null,null,null,null,{"$f":"IF(I6<>\"\",I6-I6/((100+F6)/100),\"\")","v":""},{"$f":"IF(C6<>0,IF(G6<>0,K5+G6,IF(I6<>0,K5-I6,\"\")),\"\")","v":""},null,{"$f":"IF(K7=\"\",K6,\"0\")","v":""}]
[null,null,null,null,null,null,null,{"$f":"IF(G7<>\"\",G7-G7/((100+F7)/100),\"\")","v":""},null,{"$f":"IF(I7<>\"\",I7-I7/((100+F7)/100),\"\")","v":""},{"$f":"IF(C7<>0,IF(G7<>0,K6+G7,IF(I7<>0,K6-I7,\"\")),\"\")","v":""},null,{"$f":"IF(K8=\"\",K7,\"0\")","v":""}]
[null,null,null,null,null,null,null,{"$f":"IF(G8<>\"\",G8-G8/((100+F8)/100),\"\")","v":""},null,"","",null,{"$f":"IF(K9=\"\",K8,\"0\")","v":""}]
[null,null,null,null,null,null,null,"",null,"","",null,""]
[null,null,null,null,null,null,null,"",null,"","",null,""]
[null,null,null,null,null,null,null,"",null,"","",null,""]
[null,null,null,null,null,null,null,"",null,"","",null,""]
[null,null,null,null,null,null,null,"",null,"","",null,""]
[null,null,null,null,null,null,null,"",null,"","",null,""]
[null,null,null,null,null,null,null,"",null,"","",null,""]
[null,null,null,null,null,null,null,"",null,"","",null,""]
[null,null,null,null,null,null,null,"",null,"","",null,""]
[null,null,null,null,null,null,null,"",null,"","",null,""]
[null,null,null,null,null,null,null,"",null,"","",null,""]
[null,null,null,null,null,null,null,"",null,"","",null,""]
[null,null,null,null,null,null,null,"",null,"","",null,""]
[null,null,null,null,null,null,null,"",null,"","",null,""]
[null,null,null,null,null,null,null,"",null,"","",null,""]
[null,null,null,null,null,null,null,"",null,"","",null,""]
[null,null,null,null,null,null,null,"",null,"","",null,""]
[null,null,null,null,null,null,null,"",null,"","",null,""]
[null,null,null,null,null,null,null,"",null,"","",null,""]
[null,null,null,null,null,null,null,"",null,"","",null,""]
[null,null,null,null,null,null,null,"",null,"","",null,""]
[null,null,null,null,null,null,null,"",null,"","",null,""]
[null,null,null,null,null,null,null,"",null,"","",null,""]
[null,null,null,null,null,null,null,"",null,"","",null,""]
[null,null,null,null,null,null,null,"",null,"","",null,""]
[null,null,null,null,null,null,null,"",null,"","",null,""]
[null,null,null,null,null,null,null,"",null,"","",null,""]
[null,null,null,null,null,null,null,"",null,"","",null,""]
[null,null,null,null,null,null,null,"",null,"","",null,""]
[null,null,null,null,null,null,null,"",null,"","",null,""]
[null,null,null,null,null,null,null,"",null,"","",null,""]
[null,null,null,null,null,null,null,"",null,"","",null,""]
[null,null,null,null,null,null,null,"",null,"","",null,""]
[null,null,null,null,null,null,null,"",null,"","",null,""]
[null,null,null,null,null,null,null,"",null,"","",null,""]
[null,null,null,null,null,null,null,"",null,"","",null,""]
[null,null,null,null,null,null,null,"",null,"","",null,""]
[null,null,null,null,null,null,null,"",null,"","",null,""]
[null,null,null,null,null,null,null,"",null,"","",null,""]
[null,null,null,null,null,null,null,"",null,"","",null,""]
[null,null,null,null,null,null,null,"",null,"","",null,""]
[null,null,null,null,null,null,null,"",null,"","",null,""]
[null,null,null,null,null,null,null,"",null,"","",null,""]
[null,null,null,null,null,null,null,"",null,"","",null,""]
[null,null,null,null,null,null,null,"",null,"","",null,""]
[null,null,null,null,null,null,null,"",null,"","",null,""]
[null,null,null,null,null,null,null,"",null,"","",null,""]
[null,null,null,null,null,null,null,"",null,"","",null,""]
[null,null,null,null,null,null,null,"",null,"","",null,""]
[null,null,null,null,null,null,null,"",null,"","",null,""]
[null,null,null,null,null,null,null,"",null,"","",null,""]
[null,null,null,null,null,null,null,"",null,"","",null,""]
[null,null,null,null,null,null,null,"",null,"","",null,""]
[null,null,null,null,null,null,null,"",null,"","",null,""]
[null,null,null,null,null,null,null,"",null,"","",null,""]
[null,null,null,null,null,null,null,"",null,"","",null,""]
[null,null,null,null,null,null,null,"",null,"","",null,""]
[null,null,null,null,null,null,null,"",null,"","",null,""]
[null,null,null,null,null,null,null,"",null,"","",null,""]
[null,null,null,null,null,null,null,"",null,"","",null,""]
[null,null,null,null,null,null,null,"",null,"","",null,""]
[null,null,null,null,null,null,null,{"$f":"IF(G70<>\"\",G70-G70/((100+F70)/100),\"\")","v":""},null,{"$f":"IF(I70<>\"\",I70-I70/((100+F70)/100),\"\")","v":""},{"$f":"IF(C70<>0,IF(G70<>0,K69+G70,IF(I70<>0,K69-I70,\"\")),\"\")","v":""},null,""]
[null,null,null,null,null,null,null,"",null,"","",null,{"$f":"IF(K72=\"\",K71,\"0\")","v":""}]
[null,null,null,null,null,null,null,"",null,"","",null,""]
[null,null,null,null,null,null,null,"",null,"","",null,""]
[null,null,null,null,null,null,null,"",null,"","",null,""]
[null,null,null,null,null,null,null,"",null,"","",null,""]
[null,null,null,null,null,null,null,"",null,"","",null,""]
[null,null,null,null,null,null,null,"",null,"","",null,""]
[null,null,null,null,null,null,null,"",null,"","",null,""]
[null,null,null,null,null,null,null,"",null,"","",null,""]
[null,null,null,null,null,null,null,"",null,"","",null,""]
[null,null,null,null,null,null,null,"",null,"","",null,""]
[null,null,null,null,null,null,null,"",null,"","",null,""]
[null,null,null,null,null,null,null,"",null,"","",null,""]
[null,null,null,null,null,null,null,"",null,"","",null,""]
[null,null,null,null,null,null,null,"",null,"","",null,""]
[null,null,null,null,null,null,null,"",null,"","",null,""]
[null,null,null,null,null,null,null,"",null,"","",null,""]
[null,null,null,null,null,null,null,"",null,"","",null,""]
[null,null,null,null,null,null,null,"",null,"","",null,""]
[null,null,null,null,null,null,null,"",null,"","",null,""]
[null,null,null,null,null,null,null,"",null,"","",null,""]
[null,null,null,null,null,null,null,"",null,"","",null,""]
[null,null,null,null,null,null,null,"",null,"","",null,""]
[null,null,null,null,null,null,null,"",null,"","",null,""]
[null,null,null,null,null,null,null,"",null,"","",null,""]
[null,null,null,null,null,null,null,"",null,"","",null,""]
[null,null,null,null,null,null,null,"",null,"","",null,""]
[null,null,null,null,null,null,null,"",null,"","",null,""]
[null,null,null,null,null,null,null,"",null,"","",null,""]
[null,null,null,null,null,null,null,"",null,"","",null,""]
[null,null,null,null,null,null,null,"",null,"","",null,""]
[null,null,null,null,null,null,null,"",null,"","",null,""]
[null,null,null,null,null,null,null,"",null,"","",null,""]
[null,null,null,null,null,null,null,"",null,"","",null,""]
[null,null,null,null,null,null,null,"",null,"","",null,""]
[null,null,null,null,null,null,null,"",null,"","",null,""]
[null,null,null,null,null,null,null,"",null,"","",null,""]
[null,null,null,null,null,null,null,"",null,"","",null,""]
[null,null,null,null,null,null,null,"",null,"","",null,""]
[null,null,null,null,null,null,null,"",null,"","",null,""]
[null,null,null,null,null,null,null,"",null,"","",null,""]
[null,null,null,null,null,null,null,"",null,"","",null,""]
[null,null,null,null,null,null,null,"",null,"","",null,""]
[null,null,null,null,null,null,null,"",null,"","",null,""]
[null,null,null,null,null,null,null,"",null,"","",null,""]
[null,null,null,null,null,null,null,"",null,"","",null,""]
[null,null,null,null,null,null,null,"",null,"","",null,""]
[null,null,null,null,null,null,null,"",null,"","",null,""]
[null,null,null,null,null,null,null,"",null,"","",null,""]
[null,null,null,null,null,null,null,"",null,"","",null,""]
[null,null,null,null,null,null,null,"",null,"","",null,""]
[null,null,null,null,null,null,null,"",null,"","",null,""]
[null,null,null,null,null,null,null,"",null,"","",null,""]
[null,null,null,null,null,null,null,"",null,"","",null,""]
[null,null,null,null,null,null,null,"",null,"","",null,""]
[null,null,null,null,null,null,null,"",null,"","",null,""]
[null,null,null,null,null,null,null,"",null,"","",null,""]
[null,null,null,null,null,null,null,"",null,"","",null,""]
[null,null,null,null,null,null,null,"",null,"","",null,""]
[null,null,null,null,null,null,null,"",null,"","",null,""]
[null,null,null,null,null,null,null,"",null,"","",null,""]
[null,null,null,null,null,null,null,"",null,"","",null,""]
[null,null,null,null,null,null,null,"",null,"","",null,""]
[null,null,null,null,null,null,null,{"$f":"IF(G134<>\"\",G134-G134/((100+F134)/100),\"\")","v":""},null,{"$f":"IF(I134<>\"\",I134-I134/((100+F134)/100),\"\")","v":""},{"$f":"IF(C134<>0,IF(G134<>0,K133+G134,IF(I134<>0,K133-I134,\"\")),\"\")","v":""},null,""]
[null,null,null,null,null,null,null,"",null,"","",null,{"$f":"IF(K136=\"\",K135,\"0\")","v":""}]
[null,null,null,null,null,null,null,"",null,"","",null,""]
[null,null,null,null,null,null,null,"",null,"","",null,""]
[null,null,null,null,null,null,null,"",null,"","",null,""]
[null,null,null,null,null,null,null,"",null,"","",null,""]
[null,null,null,null,null,null,null,"",null,"","",null,""]
[null,null,null,null,null,null,null,"",null,"","",null,""]
[null,null,null,null,null,null,null,"",null,"","",null,""]
[null,null,null,null,null,null,null,"",null,"","",null,""]
[null,null,null,null,null,null,null,"",null,"","",null,""]
[null,null,null,null,null,null,null,"",null,"","",null,""]
[null,null,null,null,null,null,null,"",null,"","",null,""]
[null,null,null,null,null,null,null,"",null,"","",null,""]
[null,null,null,null,null,null,null,"",null,"","",null,""]
[null,null,null,null,null,null,null,"",null,"","",null,""]
[null,null,null,null,null,null,null,"",null,"","",null,""]
[null,null,null,null,null,null,null,"",null,"","",null,""]
[null,null,null,null,null,null,null,"",null,"","",null,""]
[null,null,null,null,null,null,null,"",null,"","",null,""]
[null,null,null,null,null,null,null,"",null,"","",null,""]
[null,null,null,null,null,null,null,"",null,"","",null,""]
[null,null,null,null,null,null,null,"",null,"","",null,""]
[null,null,null,null,null,null,null,"",null,"","",null,""]
[null,null,null,null,null,null,null,"",null,"","",null,""]
[null,null,null,null,null,null,null,"",null,"","",null,""]
[null,null,null,null,null,null,null,"",null,"","",null,""]
[null,null,null,null,null,null,null,"",null,"","",null,""]
[null,null,null,null,null,null,null,"",null,"","",null,""]
[null,null,null,null,null,null,null,"",null,"","",null,""]
[null,null,null,null,null,null,null,"",null,"","",null,""]
[null,null,null,null,null,null,null,"",null,"","",null,""]
[null,null,null,null,null,null,null,"",null,"","",null,""]
[null,null,null,null,null,null,null,"",null,"","",null,""]
[null,null,null,null,null,null,null,"",null,"","",null,""]
[null,null,null,null,null,null,null,"",null,"","",null,""]
[null,null,null,null,null,null,null,"",null,"","",null,""]
[null,null,null,null,null,null,null,"",null,"","",null,""]
[null,null,null,null,null,null,null,"",null,"","",null,""]
[null,null,null,null,null,null,null,"",null,"","",null,""]
[null,null,null,null,null,null,null,"",null,"","",null,""]
[null,null,null,null,null,null,null,"",null,"","",null,""]
[null,null,null,null,null,null,null,"",null,"","",null,""]
[null,null,null,null,null,null,null,"",null,"","",null,""]
[null,null,null,null,null,null,null,"",null,"","",null,""]
[null,null,null,null,null,null,null,"",null,"","",null,""]
[null,null,null,null,null,null,null,"",null,"","",null,""]
[null,null,null,null,null,null,null,"",null,"","",null,""]
[null,null,null,null,null,null,null,"",null,"","",null,""]
[null,null,null,null,null,null,null,"",null,"","",null,""]
[null,null,null,null,null,null,null,"",null,"","",null,""]
[null,null,null,null,null,null,null,"",null,"","",null,""]
[null,null,null,null,null,null,null,"",null,"","",null,""]
[null,null,null,null,null,null,null,"",null,"","",null,""]
[null,null,null,null,null,null,null,"",null,"","",null,""]
[null,null,null,null,null,null,null,"",null,"","",null,""]
[null,null,null,null,null,null,null,"",null,"","",null,""]
[null,null,null,null,null,null,null,"",null,"","",null,""]
[null,null,null,null,null,null,null,"",null,"","",null,""]
[null,null,null,null,null,null,null,"",null,"","",null,""]
[null,null,null,null,null,null,null,"",null,"","",null,""]
[null,null,null,null,null,null,null,"",null,"","",null,""]
[null,null,null,null,null,null,null,"",null,"","",null,""]
[null,null,null,null,null,null,null,"",null,"","",null,""]
[null,null,null,null,null,null,null,{"$f":"IF(G198<>\"\",G198-G198/((100+F198)/100),\"\")","v":""},null,{"$f":"IF(I198<>\"\",I198-I198/((100+F198)/100),\"\")","v":""},{"$f":"IF(C198<>0,IF(G198<>0,K197+G198,IF(I198<>0,K197-I198,\"\")),\"\")","v":""},null,""]
[null,null,null,null,null,null,null,"",null,"","",null,{"$f":"IF(K200=\"\",K199,\"0\")","v":""}]
[null,null,null,null,null,null,null,"",null,"","",null,""]
[null,null,null,null,null,null,null,"",null,"","",null,""]
[null,null,null,null,null,null,null,"",null,"","",null,""]
[null,null,null,null,null,null,null,"",null,"","",null,""]
[null,null,null,null,null,null,null,"",null,"","",null,""]
[null,null,null,null,null,null,null,"",null,"","",null,""]
[null,null,null,null,null,null,null,"",null,"","",null,""]
[null,null,null,null,null,null,null,"",null,"","",null,""]
[null,null,null,null,null,null,null,"",null,"","",null,""]
[null,null,null,null,null,null,null,"",null,"","",null,""]
[null,null,null,null,null,null,null,"",null,"","",null,""]
[null,null,null,null,null,null,null,"",null,"","",null,""]
[null,null,null,null,null,null,null,"",null,"","",null,""]
[null,null,null,null,null,null,null,"",null,"","",null,""]
[null,null,null,null,null,null,null,"",null,"","",null,""]
[null,null,null,null,null,null,null,"",null,"","",null,""]
[null,null,null,null,null,null,null,"",null,"","",null,""]
[null,null,null,null,null,null,null,"",null,"","",null,""]
[null,null,null,null,null,null,null,"",null,"","",null,""]
[null,null,null,null,null,null,null,"",null,"","",null,""]
[null,null,null,null,null,null,null,"",null,"","",null,""]
[null,null,null,null,null,null,null,"",null,"","",null,""]
[null,null,null,null,null,null,null,"",null,"","",null,""]
[null,null,null,null,null,null,null,"",null,"","",null,""]
[null,null,null,null,null,null,null,"",null,"","",null,""]
[null,null,null,null,null,null,null,"",null,"","",null,""]
[null,null,null,null,null,null,null,"",null,"","",null,""]
[null,null,null,null,null,null,null,"",null,"","",null,""]
[null,null,null,null,null,null,null,"",null,"","",null,""]
[null,null,null,null,null,null,null,"",null,"","",null,""]
[null,null,null,null,null,null,null,"",null,"","",null,""]
[null,null,null,null,null,null,null,"",null,"","",null,""]
[null,null,null,null,null,null,null,"",null,"","",null,""]
[null,null,null,null,null,null,null,"",null,"","",null,""]
[null,null,null,null,null,null,null,"",null,"","",null,""]
[null,null,null,null,null,null,null,"",null,"","",null,""]
[null,null,null,null,null,null,null,"",null,"","",null,""]
[null,null,null,null,null,null,null,"",null,"","",null,""]
[null,null,null,null,null,null,null,"",null,"","",null,""]
[null,null,null,null,null,null,null,"",null,"","",null,""]
[null,null,null,null,null,null,null,"",null,"","",null,""]
[null,null,null,null,null,null,null,"",null,"","",null,""]
[null,null,null,null,null,null,null,"",null,"","",null,""]
[null,null,null,null,null,null,null,"",null,"","",null,""]
[null,null,null,null,null,null,null,"",null,"","",null,""]
[null,null,null,null,null,null,null,"",null,"","",null,""]
[null,null,null,null,null,null,null,"",null,"","",null,""]
[null,null,null,null,null,null,null,"",null,"","",null,""]
[null,null,null,null,null,null,null,"",null,"","",null,""]
[null,null,null,null,null,null,null,"",null,"","",null,""]
[null,null,null,null,null,null,null,"",null,"","",null,""]
[null,null,null,null,null,null,null,"",null,"","",null,""]
[null,null,null,null,null,null,null,"",null,"","",null,""]
[null,null,null,null,null,null,null,"",null,"","",null,""]
[null,null,null,null,null,null,null,"",null,"","",null,""]
[null,null,null,null,null,null,null,"",null,"","",null,""]
[null,null,null,null,null,null,null,"",null,"","",null,""]
[null,null,null,null,null,null,null,"",null,"","",null,""]
[null,null,null,null,null,null,null,"",null,"","",null,""]
[null,null,null,null,null,null,null,"",null,"","",null,""]
[null,null,null,null,null,null,null,"",null,"","",null,""]
[null,null,null,null,null,null,null,"",null,"","",null,""]
[null,null,null,null,null,null,null,{"$f":"IF(G262<>\"\",G262-G262/((100+F262)/100),\"\")","v":""},null,{"$f":"IF(I262<>\"\",I262-I262/((100+F262)/100),\"\")","v":""},{"$f":"IF(C262<>0,IF(G262<>0,K261+G262,IF(I262<>0,K261-I262,\"\")),\"\")","v":""},null,""]
[null,null,null,null,null,null,null,"",null,"","",null,{"$f":"IF(K264=\"\",K263,\"0\")","v":""}]
[null,null,null,null,null,null,null,"",null,"","",null,""]
[null,null,null,null,null,null,null,"",null,"","",null,""]
[null,null,null,null,null,null,null,"",null,"","",null,""]
[null,null,null,null,null,null,null,"",null,"","",null,""]
[null,null,null,null,null,null,null,"",null,"","",null,""]
[null,null,null,null,null,null,null,"",null,"","",null,""]
[null,null,null,null,null,null,null,"",null,"","",null,""]
[null,null,null,null,null,null,null,"",null,"","",null,""]
[null,null,null,null,null,null,null,"",null,"","",null,""]
[null,null,null,null,null,null,null,"",null,"","",null,""]
[null,null,null,null,null,null,null,"",null,"","",null,""]
[null,null,null,null,null,null,null,"",null,"","",null,""]
[null,null,null,null,null,null,null,"",null,"","",null,""]
[null,null,null,null,null,null,null,"",null,"","",null,""]
[null,null,null,null,null,null,null,"",null,"","",null,""]
[null,null,null,null,null,null,null,"",null,"","",null,""]
[null,null,null,null,null,null,null,"",null,"","",null,""]
[null,null,null,null,null,null,null,"",null,"","",null,""]
[null,null,null,null,null,null,null,"",null,"","",null,""]
[null,null,null,null,null,null,null,"",null,"","",null,""]
[null,null,null,null,null,null,null,"",null,"","",null,""]
[null,null,null,null,null,null,null,"",null,"","",null,""]
[null,null,null,null,null,null,null,"",null,"","",null,""]
[null,null,null,null,null,null,null,"",null,"","",null,""]
[null,null,null,null,null,null,null,"",null,"","",null,""]
[null,null,null,null,null,null,null,"",null,"","",null,""]
[null,null,null,null,null,null,null,"",null,"","",null,""]
[null,null,null,null,null,null,null,"",null,"","",null,""]
[null,null,null,null,null,null,null,"",null,"","",null,""]
[null,null,null,null,null,null,null,"",null,"","",null,""]
[null,null,null,null,null,null,null,"",null,"","",null,""]
[null,null,null,null,null,null,null,"",null,"","",null,""]
[null,null,null,null,null,null,null,"",null,"","",null,""]
[null,null,null,null,null,null,null,"",null,"","",null,""]
[null,null,null,null,null,null,null,"",null,"","",null,""]
[null,null,null,null,null,null,null,"",null,"","",null,""]
[null,null,null,null,null,null,null,"",null,"","",null,""]
[null,null,null,null,null,null,null,"",null,"","",null,""]
[null,null,null,null,null,null,null,"",null,"","",null,""]
[null,null,null,null,null,null,null,"",null,"","",null,""]
[null,null,null,null,null,null,null,"",null,"","",null,""]
[null,null,null,null,null,null,null,"",null,"","",null,""]
[null,null,null,null,null,null,null,"",null,"","",null,""]
[null,null,null,null,null,null,null,"",null,"","",null,""]
[null,null,null,null,null,null,null,"",null,"","",null,""]
[null,null,null,null,null,null,null,"",null,"","",null,""]
[null,null,null,null,null,null,null,"",null,"","",null,""]
[null,null,null,null,null,null,null,"",null,"","",null,""]
[null,null,null,null,null,null,null,"",null,"","",null,""]
[null,null,null,null,null,null,null,"",null,"","",null,""]
[null,null,null,null,null,null,null,"",null,"","",null,""]
[null,null,null,null,null,null,null,"",null,"","",null,""]
[null,null,null,null,null,null,null,"",null,"","",null,""]
[null,null,null,null,null,null,null,"",null,"","",null,""]
[null,null,null,null,null,null,null,"",null,"","",null,""]
[null,null,null,null,null,null,null,"",null,"","",null,""]
[null,null,null,null,null,null,null,"",null,"","",null,""]
[null,null,null,null,null,null,null,"",null,"","",null,""]
[null,null,null,null,null,null,null,"",null,"","",null,""]
[null,null,null,null,null,null,null,"",null,"","",null,""]
[null,null,null,null,null,null,null,"",null,"","",null,""]
[null,null,null,null,null,null,null,"",null,"","",null,""]
[null,null,null,null,null,null,null,{"$f":"IF(G326<>\"\",G326-G326/((100+F326)/100),\"\")","v":""},null,{"$f":"IF(I326<>\"\",I326-I326/((100+F326)/100),\"\")","v":""},{"$f":"IF(C326<>0,IF(G326<>0,K325+G326,IF(I326<>0,K325-I326,\"\")),\"\")","v":""},null,""]
[null,null,null,null,null,null,null,"",null,"","",null,{"$f":"IF(K328=\"\",K327,\"0\")","v":""}]
[null,null,null,null,null,null,null,"",null,"","",null,""]
[null,null,null,null,null,null,null,"",null,"","",null,""]
[null,null,null,null,null,null,null,"",null,"","",null,""]
[null,null,null,null,null,null,null,"",null,"","",null,""]
[null,null,null,null,null,null,null,"",null,"","",null,""]
[null,null,null,null,null,null,null,"",null,"","",null,""]
[null,null,null,null,null,null,null,"",null,"","",null,""]
[null,null,null,null,null,null,null,"",null,"","",null,""]
[null,null,null,null,null,null,null,"",null,"","",null,""]
[null,null,null,null,null,null,null,"",null,"","",null,""]
[null,null,null,null,null,null,null,"",null,"","",null,""]
[null,null,null,null,null,null,null,"",null,"","",null,""]
[null,null,null,null,null,null,null,"",null,"","",null,""]
[null,null,null,null,null,null,null,"",null,"","",null,""]
[null,null,null,null,null,null,null,"",null,"","",null,""]
[null,null,null,null,null,null,null,"",null,"","",null,""]
[null,null,null,null,null,null,null,"",null,"","",null,""]
[null,null,null,null,null,null,null,"",null,"","",null,""]
[null,null,null,null,null,null,null,"",null,"","",null,""]
[null,null,null,null,null,null,null,"",null,"","",null,""]
[null,null,null,null,null,null,null,"",null,"","",null,""]
[null,null,null,null,null,null,null,"",null,"","",null,""]
[null,null,null,null,null,null,null,"",null,"","",null,""]
[null,null,null,null,null,null,null,"",null,"","",null,""]
[null,null,null,null,null,null,null,"",null,"","",null,""]
[null,null,null,null,null,null,null,"",null,"","",null,""]
[null,null,null,null,null,null,null,"",null,"","",null,""]
[null,null,null,null,null,null,null,"",null,"","",null,""]
[null,null,null,null,null,null,null,"",null,"","",null,""]
[null,null,null,null,null,null,null,"",null,"","",null,""]
[null,null,null,null,null,null,null,"",null,"","",null,""]
[null,null,null,null,null,null,null,"",null,"","",null,""]
[null,null,null,null,null,null,null,"",null,"","",null,""]
[null,null,null,null,null,null,null,"",null,"","",null,""]
[null,null,null,null,null,null,null,"",null,"","",null,""]
[null,null,null,null,null,null,null,"",null,"","",null,""]
[null,null,null,null,null,null,null,"",null,"","",null,""]
[null,null,null,null,null,null,null,"",null,"","",null,""]
[null,null,null,null,null,null,null,"",null,"","",null,""]
[null,null,null,null,null,null,null,"",null,"","",null,""]
[null,null,null,null,null,null,null,"",null,"","",null,""]
[null,null,null,null,null,null,null,"",null,"","",null,""]
[null,null,null,null,null,null,null,"",null,"","",null,""]
[null,null,null,null,null,null,null,"",null,"","",null,""]
[null,null,null,null,null,null,null,"",null,"","",null,""]
[null,null,null,null,null,null,null,"",null,"","",null,""]
[null,null,null,null,null,null,null,"",null,"","",null,""]
[null,null,null,null,null,null,null,"",null,"","",null,""]
[null,null,null,null,null,null,null,"",null,"","",null,""]
[null,null,null,null,null,null,null,"",null,"","",null,""]
[null,null,null,null,null,null,null,"",null,"","",null,""]
[null,null,null,null,null,null,null,"",null,"","",null,""]
[null,null,null,null,null,null,null,"",null,"","",null,""]
[null,null,null,null,null,null,null,"",null,"","",null,""]
[null,null,null,null,null,null,null,"",null,"","",null,""]
[null,null,null,null,null,null,null,"",null,"","",null,""]
[null,null,null,null,null,null,null,"",null,"","",null,""]
[null,null,null,null,null,null,null,"",null,"","",null,""]
[null,null,null,null,null,null,null,"",null,"","",null,""]
[null,null,null,null,null,null,null,"",null,"","",null,""]
[null,null,null,null,null,null,null,"",null,"","",null,""]
[null,null,null,null,null,null,null,"",null,"","",null,""]
[null,null,null,null,null,null,null,{"$f":"IF(G390<>\"\",G390-G390/((100+F390)/100),\"\")","v":""},null,{"$f":"IF(I390<>\"\",I390-I390/((100+F390)/100),\"\")","v":""},{"$f":"IF(C390<>0,IF(G390<>0,K389+G390,IF(I390<>0,K389-I390,\"\")),\"\")","v":""},null,""]
[null,null,null,null,null,null,null,"",null,"","",null,{"$f":"IF(K392=\"\",K391,\"0\")","v":""}]
[null,null,null,null,null,null,null,"",null,"","",null,""]
[null,null,null,null,null,null,null,"",null,"","",null,""]
[null,null,null,null,null,null,null,"",null,"","",null,""]
[null,null,null,null,null,null,null,"",null,"","",null,""]
[null,null,null,null,null,null,null,"",null,"","",null,""]
[null,null,null,null,null,null,null,"",null,"","",null,""]
[null,null,null,null,null,null,null,"",null,"","",null,""]
[null,null,null,null,null,null,null,"",null,"","",null,""]
[null,null,null,null,null,null,null,"",null,"","",null,""]
[null,null,null,null,null,null,null,"",null,"","",null,""]
[null,null,null,null,null,null,null,"",null,"","",null,""]
[null,null,null,null,null,null,null,"",null,"","",null,""]
[null,null,null,null,null,null,null,"",null,"","",null,""]
[null,null,null,null,null,null,null,"",null,"","",null,""]
[null,null,null,null,null,null,null,"",null,"","",null,""]
[null,null,null,null,null,null,null,"",null,"","",null,""]
[null,null,null,null,null,null,null,"",null,"","",null,""]
[null,null,null,null,null,null,null,"",null,"","",null,""]
[null,null,null,null,null,null,null,"",null,"","",null,""]
[null,null,null,null,null,null,null,"",null,"","",null,""]
[null,null,null,null,null,null,null,"",null,"","",null,""]
[null,null,null,null,null,null,null,"",null,"","",null,""]
[null,null,null,null,null,null,null,"",null,"","",null,""]
[null,null,null,null,null,null,null,"",null,"","",null,""]
[null,null,null,null,null,null,null,"",null,"","",null,""]
[null,null,null,null,null,null,null,"",null,"","",null,""]
[null,null,null,null,null,null,null,"",null,"","",null,""]
[null,null,null,null,null,null,null,"",null,"","",null,""]
[null,null,null,null,null,null,null,"",null,"","",null,""]
[null,null,null,null,null,null,null,"",null,"","",null,""]
[null,null,null,null,null,null,null,"",null,"","",null,""]
[null,null,null,null,null,null,null,"",null,"","",null,""]
[null,null,null,null,null,null,null,"",null,"","",null,""]
[null,null,null,null,null,null,null,"",null,"","",null,""]
[null,null,null,null,null,null,null,"",null,"","",null,""]
[null,null,null,null,null,null,null,"",null,"","",null,""]
[null,null,null,null,null,null,null,"",null,"","",null,""]
[null,null,null,null,null,null,null,"",null,"","",null,""]
[null,null,null,null,null,null,null,"",null,"","",null,""]
[null,null,null,null,null,null,null,"",null,"","",null,""]
[null,null,null,null,null,null,null,"",null,"","",null,""]
[null,null,null,null,null,null,null,"",null,"","",null,""]
[null,null,null,null,null,null,null,"",null,"","",null,""]
[null,null,null,null,null,null,null,"",null,"","",null,""]
[null,null,null,null,null,null,null,"",null,"","",null,""]
[null,null,null,null,null,null,null,"",null,"","",null,""]
[null,null,null,null,null,null,null,"",null,"","",null,""]
[null,null,null,null,null,null,null,"",null,"","",null,""]
[null,null,null,null,null,null,null,"",null,"","",null,""]
[null,null,null,null,null,null,null,"",null,"","",null,""]
[null,null,null,null,null,null,null,"",null,"","",null,""]
[null,null,null,null,null,null,null,"",null,"","",null,""]
[null,null,null,null,null,null,null,"",null,"","",null,""]
[null,null,null,null,null,null,null,"",null,"","",null,""]
[null,null,null,null,null,null,null,"",null,"","",null,""]
[null,null,null,null,null,null,null,"",null,"","",null,""]
[null,null,null,null,null,null,null,"",null,"","",null,""]
[null,null,null,null,null,null,null,"",null,"","",null,""]
[null,null,null,null,null,null,null,"",null,"","",null,""]
[null,null,null,null,null,null,null,"",null,"","",null,""]
[null,null,null,null,null,null,null,"",null,"","",null,""]
[null,null,null,null,null,null,null,"",null,"","",null,""]
[null,null,null,null,null,null,null,{"$f":"IF(G454<>\"\",G454-G454/((100+F454)/100),\"\")","v":""},null,{"$f":"IF(I454<>\"\",I454-I454/((100+F454)/100),\"\")","v":""},{"$f":"IF(C454<>0,IF(G454<>0,K453+G454,IF(I454<>0,K453-I454,\"\")),\"\")","v":""},null,""]
[null,null,null,null,null,null,null,"",null,"","",null,{"$f":"IF(K456=\"\",K455,\"0\")","v":""}]
[null,null,null,null,null,null,null,"",null,"","",null,""]
[null,null,null,null,null,null,null,"",null,"","",null,""]
[null,null,null,null,null,null,null,"",null,"","",null,""]
[null,null,null,null,null,null,null,"",null,"","",null,""]
[null,null,null,null,null,null,null,"",null,"","",null,""]
[null,null,null,null,null,null,null,"",null,"","",null,""]
[null,null,null,null,null,null,null,"",null,"","",null,""]
[null,null,null,null,null,null,null,"",null,"","",null,""]
[null,null,null,null,null,null,null,"",null,"","",null,""]
[null,null,null,null,null,null,null,"",null,"","",null,""]
[null,null,null,null,null,null,null,"",null,"","",null,""]
[null,null,null,null,null,null,null,"",null,"","",null,""]
[null,null,null,null,null,null,null,"",null,"","",null,""]
[null,null,null,null,null,null,null,"",null,"","",null,""]
[null,null,null,null,null,null,null,"",null,"","",null,""]
[null,null,null,null,null,null,null,"",null,"","",null,""]
[null,null,null,null,null,null,null,"",null,"","",null,""]
[null,null,null,null,null,null,null,"",null,"","",null,""]
[null,null,null,null,null,null,null,"",null,"","",null,""]
[null,null,null,null,null,null,null,"",null,"","",null,""]
[null,null,null,null,null,null,null,"",null,"","",null,""]
[null,null,null,null,null,null,null,"",null,"","",null,""]
[null,null,null,null,null,null,null,"",null,"","",null,""]
[null,null,null,null,null,null,null,"",null,"","",null,""]
[null,null,null,null,null,null,null,"",null,"","",null,""]
[null,null,null,null,null,null,null,"",null,"","",null,""]
[null,null,null,null,null,null,null,"",null,"","",null,""]
[null,null,null,null,null,null,null,"",null,"","",null,""]
[null,null,null,null,null,null,null,"",null,"","",null,""]
[null,null,null,null,null,null,null,"",null,"","",null,""]
[null,null,null,null,null,null,null,"",null,"","",null,""]
[null,null,null,null,null,null,null,"",null,"","",null,""]
[null,null,null,null,null,null,null,"",null,"","",null,""]
[null,null,null,null,null,null,null,"",null,"","",null,""]
[null,null,null,null,null,null,null,"",null,"","",null,""]
[null,null,null,null,null,null,null,"",null,"","",null,""]
[null,null,null,null,null,null,null,"",null,"","",null,""]
[null,null,null,null,null,null,null,"",null,"","",null,""]
[null,null,null,null,null,null,null,"",null,"","",null,""]
[null,null,null,null,null,null,null,"",null,"","",null,""]
[null,null,null,null,null,null,null,"",null,"","",null,""]
[null,null,null,null,null,null,null,"",null,"","",null,""]
[null,null,null,null,null,null,null,"",null,"","",null,""]
[null,null,null,null,null,null,null,"",null,"","",null,""]
[null,null,null,null,null,null,null,"",null,"","",null,""]
[null,null,null,null,null,null,null,null,null,null,null,null,{"$f":"SUM(M5:M500)","v":0}]

{"sheet":"Mar","index":3,"n_rows":501,"n_cols":14,"rows_kept":501,"cut":false,"hidden":false,"merged":[[0,1,0,10],[1,1,1,10],[2,1,2,6],[2,8,2,10],[4,1,4,9]]}
[null,"KASSABUCH"]
[null,null,null,null,null,null,null,null,null,null,null,null,{"$f":"DATE(Jahr,2,1)","v":"1900-02-01"},"Anfangsdatum"]
[null,{"$f":"IF(Name<>0,Name,\"\")","v":""},null,null,null,null,null,null,{"$f":"\"März \"&Jahr","v":"März "},null,null,null,{"$f":"DATE(Jahr,3,1)-1","v":60},"Enddatum"]
[null,"Datum","Beleg","Konto","Text","%","Einnahmen","USt","Ausgaben","Vorsteuer","Kassabestand",null,{"$f":"SUM(M5:M500)","v":0},{"$f":"I3 &\", \"&\"Endstand\"","v":"März , Endstand"}]
[null,"Übertrag Vormonat EUR:",null,null,null,null,null,null,null,null,{"$f":"Feb!M4","v":0},null,{"$f":"IF(K6=\"\",K5,\"0\")","v":0}]
[null,null,null,null,null,null,null,null,null,{"$f":"IF(I6<>\"\",I6-I6/((100+F6)/100),\"\")","v":""},{"$f":"IF(C6<>0,IF(G6<>0,K5+G6,IF(I6<>0,K5-I6,\"\")),\"\")","v":""},null,{"$f":"IF(K7=\"\",K6,\"0\")","v":""}]
[null,null,null,null,null,null,null,{"$f":"IF(G7<>\"\",G7-G7/((100+F7)/100),\"\")","v":""},null,{"$f":"IF(I7<>\"\",I7-I7/((100+F7)/100),\"\")","v":""},{"$f":"IF(C7<>0,IF(G7<>0,K6+G7,IF(I7<>0,K6-I7,\"\")),\"\")","v":""},null,{"$f":"IF(K8=\"\",K7,\"0\")","v":""}]
[null,null,null,null,null,null,null,{"$f":"IF(G8<>\"\",G8-G8/((100+F8)/100),\"\")","v":""},null,"","",null,{"$f":"IF(K9=\"\",K8,\"0\")","v":""}]
[null,null,null,null,null,null,null,"",null,"","",null,""]
[null,null,null,null,null,null,null,"",null,"","",null,""]
[null,null,null,null,null,null,null,"",null,"","",null,""]
[null,null,null,null,null,null,null,"",null,"","",null,""]
[null,null,null,null,null,null,null,"",null,"","",null,""]
[null,null,null,null,null,null,null,"",null,"","",null,""]
[null,null,null,null,null,null,null,"",null,"","",null,""]
[null,null,null,null,null,null,null,"",null,"","",null,""]
[null,null,null,null,null,null,null,"",null,"","",null,""]
[null,null,null,null,null,null,null,"",null,"","",null,""]
[null,null,null,null,null,null,null,"",null,"","",null,""]
[null,null,null,null,null,null,null,"",null,"","",null,""]
[null,null,null,null,null,null,null,"",null,"","",null,""]
[null,null,null,null,null,null,null,"",null,"","",null,""]
[null,null,null,null,null,null,null,"",null,"","",null,""]
[null,null,null,null,null,null,null,"",null,"","",null,""]
[null,null,null,null,null,null,null,"",null,"","",null,""]
[null,null,null,null,null,null,null,"",null,"","",null,""]
[null,null,null,null,null,null,null,"",null,"","",null,""]
[null,null,null,null,null,null,null,"",null,"","",null,""]
[null,null,null,null,null,null,null,"",null,"","",null,""]
[null,null,null,null,null,null,null,"",null,"","",null,""]
[null,null,null,null,null,null,null,"",null,"","",null,""]
[null,null,null,null,null,null,null,"",null,"","",null,""]
[null,null,null,null,null,null,null,"",null,"","",null,""]
[null,null,null,null,null,null,null,"",null,"","",null,""]
[null,null,null,null,null,null,null,"",null,"","",null,""]
[null,null,null,null,null,null,null,"",null,"","",null,""]
[null,null,null,null,null,null,null,"",null,"","",null,""]
[null,null,null,null,null,null,null,"",null,"","",null,""]
[null,null,null,null,null,null,null,"",null,"","",null,""]
[null,null,null,null,null,null,null,"",null,"","",null,""]
[null,null,null,null,null,null,null,"",null,"","",null,""]
[null,null,null,null,null,null,null,"",null,"","",null,""]
[null,null,null,null,null,null,null,"",null,"","",null,""]
[null,null,null,null,null,null,null,"",null,"","",null,""]
[null,null,null,null,null,null,null,"",null,"","",null,""]
[null,null,null,null,null,null,null,"",null,"","",null,""]
[null,null,null,null,null,null,null,"",null,"","",null,""]
[null,null,null,null,null,null,null,"",null,"","",null,""]
[null,null,null,null,null,null,null,"",null,"","",null,""]
[null,null,null,null,null,null,null,"",null,"","",null,""]
[null,null,null,null,null,null,null,"",null,"","",null,""]
[null,null,null,null,null,null,null,"",null,"","",null,""]
[null,null,null,null,null,null,null,"",null,"","",null,""]
[null,null,null,null,null,null,null,"",null,"","",null,""]
[null,null,null,null,null,null,null,"",null,"","",null,""]
[null,null,null,null,null,null,null,"",null,"","",null,""]
[null,null,null,null,null,null,null,"",null,"","",null,""]
[null,null,null,null,null,null,null,"",null,"","",null,""]
[null,null,null,null,null,null,null,"",null,"","",null,""]
[null,null,null,null,null,null,null,"",null,"","",null,""]
[null,null,null,null,null,null,null,"",null,"","",null,""]
[null,null,null,null,null,null,null,"",null,"","",null,""]
[null,null,null,null,null,null,null,"",null,"","",null,""]
[null,null,null,null,null,null,null,"",null,"","",null,""]
[null,null,null,null,null,null,null,"",null,"","",null,""]
[null,null,null,null,null,null,null,"",null,"","",null,""]
[null,null,null,null,null,null,null,"",null,"","",null,""]
[null,null,null,null,null,null,null,"",null,"","",null,""]
[null,null,null,null,null,null,null,"",null,"","",null,""]
[null,null,null,null,null,null,null,{"$f":"IF(G70<>\"\",G70-G70/((100+F70)/100),\"\")","v":""},null,{"$f":"IF(I70<>\"\",I70-I70/((100+F70)/100),\"\")","v":""},{"$f":"IF(C70<>0,IF(G70<>0,K69+G70,IF(I70<>0,K69-I70,\"\")),\"\")","v":""},null,""]
[null,null,null,null,null,null,null,"",null,"","",null,{"$f":"IF(K72=\"\",K71,\"0\")","v":""}]
[null,null,null,null,null,null,null,"",null,"","",null,""]
[null,null,null,null,null,null,null,"",null,"","",null,""]
[null,null,null,null,null,null,null,"",null,"","",null,""]
[null,null,null,null,null,null,null,"",null,"","",null,""]
[null,null,null,null,null,null,null,"",null,"","",null,""]
[null,null,null,null,null,null,null,"",null,"","",null,""]
[null,null,null,null,null,null,null,"",null,"","",null,""]
[null,null,null,null,null,null,null,"",null,"","",null,""]
[null,null,null,null,null,null,null,"",null,"","",null,""]
[null,null,null,null,null,null,null,"",null,"","",null,""]
[null,null,null,null,null,null,null,"",null,"","",null,""]
[null,null,null,null,null,null,null,"",null,"","",null,""]
[null,null,null,null,null,null,null,"",null,"","",null,""]
[null,null,null,null,null,null,null,"",null,"","",null,""]
[null,null,null,null,null,null,null,"",null,"","",null,""]
[null,null,null,null,null,null,null,"",null,"","",null,""]
[null,null,null,null,null,null,null,"",null,"","",null,""]
[null,null,null,null,null,null,null,"",null,"","",null,""]
[null,null,null,null,null,null,null,"",null,"","",null,""]
[null,null,null,null,null,null,null,"",null,"","",null,""]
[null,null,null,null,null,null,null,"",null,"","",null,""]
[null,null,null,null,null,null,null,"",null,"","",null,""]
[null,null,null,null,null,null,null,"",null,"","",null,""]
[null,null,null,null,null,null,null,"",null,"","",null,""]
[null,null,null,null,null,null,null,"",null,"","",null,""]
[null,null,null,null,null,null,null,"",null,"","",null,""]
[null,null,null,null,null,null,null,"",null,"","",null,""]
[null,null,null,null,null,null,null,"",null,"","",null,""]
[null,null,null,null,null,null,null,"",null,"","",null,""]
[null,null,null,null,null,null,null,"",null,"","",null,""]
[null,null,null,null,null,null,null,"",null,"","",null,""]
[null,null,null,null,null,null,null,"",null,"","",null,""]
[null,null,null,null,null,null,null,"",null,"","",null,""]
[null,null,null,null,null,null,null,"",null,"","",null,""]
[null,null,null,null,null,null,null,"",null,"","",null,""]
[null,null,null,null,null,null,null,"",null,"","",null,""]
[null,null,null,null,null,null,null,"",null,"","",null,""]
[null,null,null,null,null,null,null,"",null,"","",null,""]
[null,null,null,null,null,null,null,"",null,"","",null,""]
[null,null,null,null,null,null,null,"",null,"","",null,""]
[null,null,null,null,null,null,null,"",null,"","",null,""]
[null,null,null,null,null,null,null,"",null,"","",null,""]
[null,null,null,null,null,null,null,"",null,"","",null,""]
[null,null,null,null,null,null,null,"",null,"","",null,""]
[null,null,null,null,null,null,null,"",null,"","",null,""]
[null,null,null,null,null,null,null,"",null,"","",null,""]
[null,null,null,null,null,null,null,"",null,"","",null,""]
[null,null,null,null,null,null,null,"",null,"","",null,""]
[null,null,null,null,null,null,null,"",null,"","",null,""]
[null,null,null,null,null,null,null,"",null,"","",null,""]
[null,null,null,null,null,null,null,"",null,"","",null,""]
[null,null,null,null,null,null,null,"",null,"","",null,""]
[null,null,null,null,null,null,null,"",null,"","",null,""]
[null,null,null,null,null,null,null,"",null,"","",null,""]
[null,null,null,null,null,null,null,"",null,"","",null,""]
[null,null,null,null,null,null,null,"",null,"","",null,""]
[null,null,null,null,null,null,null,"",null,"","",null,""]
[null,null,null,null,null,null,null,"",null,"","",null,""]
[null,null,null,null,null,null,null,"",null,"","",null,""]
[null,null,null,null,null,null,null,"",null,"","",null,""]
[null,null,null,null,null,null,null,"",null,"","",null,""]
[null,null,null,null,null,null,null,"",null,"","",null,""]
[null,null,null,null,null,null,null,{"$f":"IF(G134<>\"\",G134-G134/((100+F134)/100),\"\")","v":""},null,{"$f":"IF(I134<>\"\",I134-I134/((100+F134)/100),\"\")","v":""},{"$f":"IF(C134<>0,IF(G134<>0,K133+G134,IF(I134<>0,K133-I134,\"\")),\"\")","v":""},null,""]
[null,null,null,null,null,null,null,"",null,"","",null,{"$f":"IF(K136=\"\",K135,\"0\")","v":""}]
[null,null,null,null,null,null,null,"",null,"","",null,""]
[null,null,null,null,null,null,null,"",null,"","",null,""]
[null,null,null,null,null,null,null,"",null,"","",null,""]
[null,null,null,null,null,null,null,"",null,"","",null,""]
[null,null,null,null,null,null,null,"",null,"","",null,""]
[null,null,null,null,null,null,null,"",null,"","",null,""]
[null,null,null,null,null,null,null,"",null,"","",null,""]
[null,null,null,null,null,null,null,"",null,"","",null,""]
[null,null,null,null,null,null,null,"",null,"","",null,""]
[null,null,null,null,null,null,null,"",null,"","",null,""]
[null,null,null,null,null,null,null,"",null,"","",null,""]
[null,null,null,null,null,null,null,"",null,"","",null,""]
[null,null,null,null,null,null,null,"",null,"","",null,""]
[null,null,null,null,null,null,null,"",null,"","",null,""]
[null,null,null,null,null,null,null,"",null,"","",null,""]
[null,null,null,null,null,null,null,"",null,"","",null,""]
[null,null,null,null,null,null,null,"",null,"","",null,""]
[null,null,null,null,null,null,null,"",null,"","",null,""]
[null,null,null,null,null,null,null,"",null,"","",null,""]
[null,null,null,null,null,null,null,"",null,"","",null,""]
[null,null,null,null,null,null,null,"",null,"","",null,""]
[null,null,null,null,null,null,null,"",null,"","",null,""]
[null,null,null,null,null,null,null,"",null,"","",null,""]
[null,null,null,null,null,null,null,"",null,"","",null,""]
[null,null,null,null,null,null,null,"",null,"","",null,""]
[null,null,null,null,null,null,null,"",null,"","",null,""]
[null,null,null,null,null,null,null,"",null,"","",null,""]
[null,null,null,null,null,null,null,"",null,"","",null,""]
[null,null,null,null,null,null,null,"",null,"","",null,""]
[null,null,null,null,null,null,null,"",null,"","",null,""]
[null,null,null,null,null,null,null,"",null,"","",null,""]
[null,null,null,null,null,null,null,"",null,"","",null,""]
[null,null,null,null,null,null,null,"",null,"","",null,""]
[null,null,null,null,null,null,null,"",null,"","",null,""]
[null,null,null,null,null,null,null,"",null,"","",null,""]
[null,null,null,null,null,null,null,"",null,"","",null,""]
[null,null,null,null,null,null,null,"",null,"","",null,""]
[null,null,null,null,null,null,null,"",null,"","",null,""]
[null,null,null,null,null,null,null,"",null,"","",null,""]
[null,null,null,null,null,null,null,"",null,"","",null,""]
[null,null,null,null,null,null,null,"",null,"","",null,""]
[null,null,null,null,null,null,null,"",null,"","",null,""]
[null,null,null,null,null,null,null,"",null,"","",null,""]
[null,null,null,null,null,null,null,"",null,"","",null,""]
[null,null,null,null,null,null,null,"",null,"","",null,""]
[null,null,null,null,null,null,null,"",null,"","",null,""]
[null,null,null,null,null,null,null,"",null,"","",null,""]
[null,null,null,null,null,null,null,"",null,"","",null,""]
[null,null,null,null,null,null,null,"",null,"","",null,""]
[null,null,null,null,null,null,null,"",null,"","",null,""]
[null,null,null,null,null,null,null,"",null,"","",null,""]
[null,null,null,null,null,null,null,"",null,"","",null,""]
[null,null,null,null,null,null,null,"",null,"","",null,""]
[null,null,null,null,null,null,null,"",null,"","",null,""]
[null,null,null,null,null,null,null,"",null,"","",null,""]
[null,null,null,null,null,null,null,"",null,"","",null,""]
[null,null,null,null,null,null,null,"",null,"","",null,""]
[null,null,null,null,null,null,null,"",null,"","",null,""]
[null,null,null,null,null,null,null,"",null,"","",null,""]
[null,null,null,null,null,null,null,"",null,"","",null,""]
[null,null,null,null,null,null,null,"",null,"","",null,""]
[null,null,null,null,null,null,null,"",null,"","",null,""]
[null,null,null,null,null,null,null,{"$f":"IF(G198<>\"\",G198-G198/((100+F198)/100),\"\")","v":""},null,{"$f":"IF(I198<>\"\",I198-I198/((100+F198)/100),\"\")","v":""},{"$f":"IF(C198<>0,IF(G198<>0,K197+G198,IF(I198<>0,K197-I198,\"\")),\"\")","v":""},null,""]
[null,null,null,null,null,null,null,"",null,"","",null,{"$f":"IF(K200=\"\",K199,\"0\")","v":""}]
[null,null,null,null,null,null,null,"",null,"","",null,""]
[null,null,null,null,null,null,null,"",null,"","",null,""]
[null,null,null,null,null,null,null,"",null,"","",null,""]
[null,null,null,null,null,null,null,"",null,"","",null,""]
[null,null,null,null,null,null,null,"",null,"","",null,""]
[null,null,null,null,null,null,null,"",null,"","",null,""]
[null,null,null,null,null,null,null,"",null,"","",null,""]
[null,null,null,null,null,null,null,"",null,"","",null,""]
[null,null,null,null,null,null,null,"",null,"","",null,""]
[null,null,null,null,null,null,null,"",null,"","",null,""]
[null,null,null,null,null,null,null,"",null,"","",null,""]
[null,null,null,null,null,null,null,"",null,"","",null,""]
[null,null,null,null,null,null,null,"",null,"","",null,""]
[null,null,null,null,null,null,null,"",null,"","",null,""]
[null,null,null,null,null,null,null,"",null,"","",null,""]
[null,null,null,null,null,null,null,"",null,"","",null,""]
[null,null,null,null,null,null,null,"",null,"","",null,""]
[null,null,null,null,null,null,null,"",null,"","",null,""]
[null,null,null,null,null,null,null,"",null,"","",null,""]
[null,null,null,null,null,null,null,"",null,"","",null,""]
[null,null,null,null,null,null,null,"",null,"","",null,""]
[null,null,null,null,null,null,null,"",null,"","",null,""]
[null,null,null,null,null,null,null,"",null,"","",null,""]
[null,null,null,null,null,null,null,"",null,"","",null,""]
[null,null,null,null,null,null,null,"",null,"","",null,""]
[null,null,null,null,null,null,null,"",null,"","",null,""]
[null,null,null,null,null,null,null,"",null,"","",null,""]
[null,null,null,null,null,null,null,"",null,"","",null,""]
[null,null,null,null,null,null,null,"",null,"","",null,""]
[null,null,null,null,null,null,null,"",null,"","",null,""]
[null,null,null,null,null,null,null,"",null,"","",null,""]
[null,null,null,null,null,null,null,"",null,"","",null,""]
[null,null,null,null,null,null,null,"",null,"","",null,""]
[null,null,null,null,null,null,null,"",null,"","",null,""]
[null,null,null,null,null,null,null,"",null,"","",null,""]
[null,null,null,null,null,null,null,"",null,"","",null,""]
[null,null,null,null,null,null,null,"",null,"","",null,""]
[null,null,null,null,null,null,null,"",null,"","",null,""]
[null,null,null,null,null,null,null,"",null,"","",null,""]
[null,null,null,null,null,null,null,"",null,"","",null,""]
[null,null,null,null,null,null,null,"",null,"","",null,""]
[null,null,null,null,null,null,null,"",null,"","",null,""]
[null,null,null,null,null,null,null,"",null,"","",null,""]
[null,null,null,null,null,null,null,"",null,"","",null,""]
[null,null,null,null,null,null,null,"",null,"","",null,""]
[null,null,null,null,null,null,null,"",null,"","",null,""]
[null,null,null,null,null,null,null,"",null,"","",null,""]
[null,null,null,null,null,null,null,"",null,"","",null,""]
[null,null,null,null,null,null,null,"",null,"","",null,""]
[null,null,null,null,null,null,null,"",null,"","",null,""]
[null,null,null,null,null,null,null,"",null,"","",null,""]
[null,null,null,null,null,null,null,"",null,"","",null,""]
[null,null,null,null,null,null,null,"",null,"","",null,""]
[null,null,null,null,null,null,null,"",null,"","",null,""]
[null,null,null,null,null,null,null,"",null,"","",null,""]
[null,null,null,null,null,null,null,"",null,"","",null,""]
[null,null,null,null,null,null,null,"",null,"","",null,""]
[null,null,null,null,null,null,null,"",null,"","",null,""]
[null,null,null,null,null,null,null,"",null,"","",null,""]
[null,null,null,null,null,null,null,"",null,"","",null,""]
[null,null,null,null,null,null,null,"",null,"","",null,""]
[null,null,null,null,null,null,null,"",null,"","",null,""]
[null,null,null,null,null,null,null,{"$f":"IF(G262<>\"\",G262-G262/((100+F262)/100),\"\")","v":""},null,{"$f":"IF(I262<>\"\",I262-I262/((100+F262)/100),\"\")","v":""},{"$f":"IF(C262<>0,IF(G262<>0,K261+G262,IF(I262<>0,K261-I262,\"\")),\"\")","v":""},null,""]
[null,null,null,null,null,null,null,"",null,"","",null,{"$f":"IF(K264=\"\",K263,\"0\")","v":""}]
[null,null,null,null,null,null,null,"",null,"","",null,""]
[null,null,null,null,null,null,null,"",null,"","",null,""]
[null,null,null,null,null,null,null,"",null,"","",null,""]
[null,null,null,null,null,null,null,"",null,"","",null,""]
[null,null,null,null,null,null,null,"",null,"","",null,""]
[null,null,null,null,null,null,null,"",null,"","",null,""]
[null,null,null,null,null,null,null,"",null,"","",null,""]
[null,null,null,null,null,null,null,"",null,"","",null,""]
[null,null,null,null,null,null,null,"",null,"","",null,""]
[null,null,null,null,null,null,null,"",null,"","",null,""]
[null,null,null,null,null,null,null,"",null,"","",null,""]
[null,null,null,null,null,null,null,"",null,"","",null,""]
[null,null,null,null,null,null,null,"",null,"","",null,""]
[null,null,null,null,null,null,null,"",null,"","",null,""]
[null,null,null,null,null,null,null,"",null,"","",null,""]
[null,null,null,null,null,null,null,"",null,"","",null,""]
[null,null,null,null,null,null,null,"",null,"","",null,""]
[null,null,null,null,null,null,null,"",null,"","",null,""]
[null,null,null,null,null,null,null,"",null,"","",null,""]
[null,null,null,null,null,null,null,"",null,"","",null,""]
[null,null,null,null,null,null,null,"",null,"","",null,""]
[null,null,null,null,null,null,null,"",null,"","",null,""]
[null,null,null,null,null,null,null,"",null,"","",null,""]
[null,null,null,null,null,null,null,"",null,"","",null,""]
[null,null,null,null,null,null,null,"",null,"","",null,""]
[null,null,null,null,null,null,null,"",null,"","",null,""]
[null,null,null,null,null,null,null,"",null,"","",null,""]
[null,null,null,null,null,null,null,"",null,"","",null,""]
[null,null,null,null,null,null,null,"",null,"","",null,""]
[null,null,null,null,null,null,null,"",null,"","",null,""]
[null,null,null,null,null,null,null,"",null,"","",null,""]
[null,null,null,null,null,null,null,"",null,"","",null,""]
[null,null,null,null,null,null,null,"",null,"","",null,""]
[null,null,null,null,null,null,null,"",null,"","",null,""]
[null,null,null,null,null,null,null,"",null,"","",null,""]
[null,null,null,null,null,null,null,"",null,"","",null,""]
[null,null,null,null,null,null,null,"",null,"","",null,""]
[null,null,null,null,null,null,null,"",null,"","",null,""]
[null,null,null,null,null,null,null,"",null,"","",null,""]
[null,null,null,null,null,null,null,"",null,"","",null,""]
[null,null,null,null,null,null,null,"",null,"","",null,""]
[null,null,null,null,null,null,null,"",null,"","",null,""]
[null,null,null,null,null,null,null,"",null,"","",null,""]
[null,null,null,null,null,null,null,"",null,"","",null,""]
[null,null,null,null,null,null,null,"",null,"","",null,""]
[null,null,null,null,null,null,null,"",null,"","",null,""]
[null,null,null,null,null,null,null,"",null,"","",null,""]
[null,null,null,null,null,null,null,"",null,"","",null,""]
[null,null,null,null,null,null,null,"",null,"","",null,""]
[null,null,null,null,null,null,null,"",null,"","",null,""]
[null,null,null,null,null,null,null,"",null,"","",null,""]
[null,null,null,null,null,null,null,"",null,"","",null,""]
[null,null,null,null,null,null,null,"",null,"","",null,""]
[null,null,null,null,null,null,null,"",null,"","",null,""]
[null,null,null,null,null,null,null,"",null,"","",null,""]
[null,null,null,null,null,null,null,"",null,"","",null,""]
[null,null,null,null,null,null,null,"",null,"","",null,""]
[null,null,null,null,null,null,null,"",null,"","",null,""]
[null,null,null,null,null,null,null,"",null,"","",null,""]
[null,null,null,null,null,null,null,"",null,"","",null,""]
[null,null,null,null,null,null,null,"",null,"","",null,""]
[null,null,null,null,null,null,null,"",null,"","",null,""]
[null,null,null,null,null,null,null,{"$f":"IF(G326<>\"\",G326-G326/((100+F326)/100),\"\")","v":""},null,{"$f":"IF(I326<>\"\",I326-I326/((100+F326)/100),\"\")","v":""},{"$f":"IF(C326<>0,IF(G326<>0,K325+G326,IF(I326<>0,K325-I326,\"\")),\"\")","v":""},null,""]
[null,null,null,null,null,null,null,"",null,"","",null,{"$f":"IF(K328=\"\",K327,\"0\")","v":""}]
[null,null,null,null,null,null,null,"",null,"","",null,""]
[null,null,null,null,null,null,null,"",null,"","",null,""]
[null,null,null,null,null,null,null,"",null,"","",null,""]
[null,null,null,null,null,null,null,"",null,"","",null,""]
[null,null,null,null,null,null,null,"",null,"","",null,""]
[null,null,null,null,null,null,null,"",null,"","",null,""]
[null,null,null,null,null,null,null,"",null,"","",null,""]
[null,null,null,null,null,null,null,"",null,"","",null,""]
[null,null,null,null,null,null,null,"",null,"","",null,""]
[null,null,null,null,null,null,null,"",null,"","",null,""]
[null,null,null,null,null,null,null,"",null,"","",null,""]
[null,null,null,null,null,null,null,"",null,"","",null,""]
[null,null,null,null,null,null,null,"",null,"","",null,""]
[null,null,null,null,null,null,null,"",null,"","",null,""]
[null,null,null,null,null,null,null,"",null,"","",null,""]
[null,null,null,null,null,null,null,"",null,"","",null,""]
[null,null,null,null,null,null,null,"",null,"","",null,""]
[null,null,null,null,null,null,null,"",null,"","",null,""]
[null,null,null,null,null,null,null,"",null,"","",null,""]
[null,null,null,null,null,null,null,"",null,"","",null,""]
[null,null,null,null,null,null,null,"",null,"","",null,""]
[null,null,null,null,null,null,null,"",null,"","",null,""]
[null,null,null,null,null,null,null,"",null,"","",null,""]
[null,null,null,null,null,null,null,"",null,"","",null,""]
[null,null,null,null,null,null,null,"",null,"","",null,""]
[null,null,null,null,null,null,null,"",null,"","",null,""]
[null,null,null,null,null,null,null,"",null,"","",null,""]
[null,null,null,null,null,null,null,"",null,"","",null,""]
[null,null,null,null,null,null,null,"",null,"","",null,""]
[null,null,null,null,null,null,null,"",null,"","",null,""]
[null,null,null,null,null,null,null,"",null,"","",null,""]
[null,null,null,null,null,null,null,"",null,"","",null,""]
[null,null,null,null,null,null,null,"",null,"","",null,""]
[null,null,null,null,null,null,null,"",null,"","",null,""]
[null,null,null,null,null,null,null,"",null,"","",null,""]
[null,null,null,null,null,null,null,"",null,"","",null,""]
[null,null,null,null,null,null,null,"",null,"","",null,""]
[null,null,null,null,null,null,null,"",null,"","",null,""]
[null,null,null,null,null,null,null,"",null,"","",null,""]
[null,null,null,null,null,null,null,"",null,"","",null,""]
[null,null,null,null,null,null,null,"",null,"","",null,""]
[null,null,null,null,null,null,null,"",null,"","",null,""]
[null,null,null,null,null,null,null,"",null,"","",null,""]
[null,null,null,null,null,null,null,"",null,"","",null,""]
[null,null,null,null,null,null,null,"",null,"","",null,""]
[null,null,null,null,null,null,null,"",null,"","",null,""]
[null,null,null,null,null,null,null,"",null,"","",null,""]
[null,null,null,null,null,null,null,"",null,"","",null,""]
[null,null,null,null,null,null,null,"",null,"","",null,""]
[null,null,null,null,null,null,null,"",null,"","",null,""]
[null,null,null,null,null,null,null,"",null,"","",null,""]
[null,null,null,null,null,null,null,"",null,"","",null,""]
[null,null,null,null,null,null,null,"",null,"","",null,""]
[null,null,null,null,null,null,null,"",null,"","",null,""]
[null,null,null,null,null,null,null,"",null,"","",null,""]
[null,null,null,null,null,null,null,"",null,"","",null,""]
[null,null,null,null,null,null,null,"",null,"","",null,""]
[null,null,null,null,null,null,null,"",null,"","",null,""]
[null,null,null,null,null,null,null,"",null,"","",null,""]
[null,null,null,null,null,null,null,"",null,"","",null,""]
[null,null,null,null,null,null,null,"",null,"","",null,""]
[null,null,null,null,null,null,null,"",null,"","",null,""]
[null,null,null,null,null,null,null,{"$f":"IF(G390<>\"\",G390-G390/((100+F390)/100),\"\")","v":""},null,{"$f":"IF(I390<>\"\",I390-I390/((100+F390)/100),\"\")","v":""},{"$f":"IF(C390<>0,IF(G390<>0,K389+G390,IF(I390<>0,K389-I390,\"\")),\"\")","v":""},null,""]
[null,null,null,null,null,null,null,"",null,"","",null,{"$f":"IF(K392=\"\",K391,\"0\")","v":""}]
[null,null,null,null,null,null,null,"",null,"","",null,""]
[null,null,null,null,null,null,null,"",null,"","",null,""]
[null,null,null,null,null,null,null,"",null,"","",null,""]
[null,null,null,null,null,null,null,"",null,"","",null,""]
[null,null,null,null,null,null,null,"",null,"","",null,""]
[null,null,null,null,null,null,null,"",null,"","",null,""]
[null,null,null,null,null,null,null,"",null,"","",null,""]
[null,null,null,null,null,null,null,"",null,"","",null,""]
[null,null,null,null,null,null,null,"",null,"","",null,""]
[null,null,null,null,null,null,null,"",null,"","",null,""]
[null,null,null,null,null,null,null,"",null,"","",null,""]
[null,null,null,null,null,null,null,"",null,"","",null,""]
[null,null,null,null,null,null,null,"",null,"","",null,""]
[null,null,null,null,null,null,null,"",null,"","",null,""]
[null,null,null,null,null,null,null,"",null,"","",null,""]
[null,null,null,null,null,null,null,"",null,"","",null,""]
[null,null,null,null,null,null,null,"",null,"","",null,""]
[null,null,null,null,null,null,null,"",null,"","",null,""]
[null,null,null,null,null,null,null,"",null,"","",null,""]
[null,null,null,null,null,null,null,"",null,"","",null,""]
[null,null,null,null,null,null,null,"",null,"","",null,""]
[null,null,null,null,null,null,null,"",null,"","",null,""]
[null,null,null,null,null,null,null,"",null,"","",null,""]
[null,null,null,null,null,null,null,"",null,"","",null,""]
[null,null,null,null,null,null,null,"",null,"","",null,""]
[null,null,null,null,null,null,null,"",null,"","",null,""]
[null,null,null,null,null,null,null,"",null,"","",null,""]
[null,null,null,null,null,null,null,"",null,"","",null,""]
[null,null,null,null,null,null,null,"",null,"","",null,""]
[null,null,null,null,null,null,null,"",null,"","",null,""]
[null,null,null,null,null,null,null,"",null,"","",null,""]
[null,null,null,null,null,null,null,"",null,"","",null,""]
[null,null,null,null,null,null,null,"",null,"","",null,""]
[null,null,null,null,null,null,null,"",null,"","",null,""]
[null,null,null,null,null,null,null,"",null,"","",null,""]
[null,null,null,null,null,null,null,"",null,"","",null,""]
[null,null,null,null,null,null,null,"",null,"","",null,""]
[null,null,null,null,null,null,null,"",null,"","",null,""]
[null,null,null,null,null,null,null,"",null,"","",null,""]
[null,null,null,null,null,null,null,"",null,"","",null,""]
[null,null,null,null,null,null,null,"",null,"","",null,""]
[null,null,null,null,null,null,null,"",null,"","",null,""]
[null,null,null,null,null,null,null,"",null,"","",null,""]
[null,null,null,null,null,null,null,"",null,"","",null,""]
[null,null,null,null,null,null,null,"",null,"","",null,""]
[null,null,null,null,null,null,null,"",null,"","",null,""]
[null,null,null,null,null,null,null,"",null,"","",null,""]
[null,null,null,null,null,null,null,"",null,"","",null,""]
[null,null,null,null,null,null,null,"",null,"","",null,""]
[null,null,null,null,null,null,null,"",null,"","",null,""]
[null,null,null,null,null,null,null,"",null,"","",null,""]
[null,null,null,null,null,null,null,"",null,"","",null,""]
[null,null,null,null,null,null,null,"",null,"","",null,""]
[null,null,null,null,null,null,null,"",null,"","",null,""]
[null,null,null,null,null,null,null,"",null,"","",null,""]
[null,null,null,null,null,null,null,"",null,"","",null,""]
[null,null,null,null,null,null,null,"",null,"","",null,""]
[null,null,null,null,null,null,null,"",null,"","",null,""]
[null,null,null,null,null,null,null,"",null,"","",null,""]
[null,null,null,null,null,null,null,"",null,"","",null,""]
[null,null,null,null,null,null,null,"",null,"","",null,""]
[null,null,null,null,null,null,null,"",null,"","",null,""]
[null,null,null,null,null,null,null,{"$f":"IF(G454<>\"\",G454-G454/((100+F454)/100),\"\")","v":""},null,{"$f":"IF(I454<>\"\",I454-I454/((100+F454)/100),\"\")","v":""},{"$f":"IF(C454<>0,IF(G454<>0,K453+G454,IF(I454<>0,K453-I454,\"\")),\"\")","v":""},null,""]
[null,null,null,null,null,null,null,"",null,"","",null,{"$f":"IF(K456=\"\",K455,\"0\")","v":""}]
[null,null,null,null,null,null,null,"",null,"","",null,""]
[null,null,null,null,null,null,null,"",null,"","",null,""]
[null,null,null,null,null,null,null,"",null,"","",null,""]
[null,null,null,null,null,null,null,"",null,"","",null,""]
[null,null,null,null,null,null,null,"",null,"","",null,""]
[null,null,null,null,null,null,null,"",null,"","",null,""]
[null,null,null,null,null,null,null,"",null,"","",null,""]
[null,null,null,null,null,null,null,"",null,"","",null,""]
[null,null,null,null,null,null,null,"",null,"","",null,""]
[null,null,null,null,null,null,null,"",null,"","",null,""]
[null,null,null,null,null,null,null,"",null,"","",null,""]
[null,null,null,null,null,null,null,"",null,"","",null,""]
[null,null,null,null,null,null,null,"",null,"","",null,""]
[null,null,null,null,null,null,null,"",null,"","",null,""]
[null,null,null,null,null,null,null,"",null,"","",null,""]
[null,null,null,null,null,null,null,"",null,"","",null,""]
[null,null,null,null,null,null,null,"",null,"","",null,""]
[null,null,null,null,null,null,null,"",null,"","",null,""]
[null,null,null,null,null,null,null,"",null,"","",null,""]
[null,null,null,null,null,null,null,"",null,"","",null,""]
[null,null,null,null,null,null,null,"",null,"","",null,""]
[null,null,null,null,null,null,null,"",null,"","",null,""]
[null,null,null,null,null,null,null,"",null,"","",null,""]
[null,null,null,null,null,null,null,"",null,"","",null,""]
[null,null,null,null,null,null,null,"",null,"","",null,""]
[null,null,null,null,null,null,null,"",null,"","",null,""]
[null,null,null,null,null,null,null,"",null,"","",null,""]
[null,null,null,null,null,null,null,"",null,"","",null,""]
[null,null,null,null,null,null,null,"",null,"","",null,""]
[null,null,null,null,null,null,null,"",null,"","",null,""]
[null,null,null,null,null,null,null,"",null,"","",null,""]
[null,null,null,null,null,null,null,"",null,"","",null,""]
[null,null,null,null,null,null,null,"",null,"","",null,""]
[null,null,null,null,null,null,null,"",null,"","",null,""]
[null,null,null,null,null,null,null,"",null,"","",null,""]
[null,null,null,null,null,null,null,"",null,"","",null,""]
[null,null,null,null,null,null,null,"",null,"","",null,""]
[null,null,null,null,null,null,null,"",null,"","",null,""]
[null,null,null,null,null,null,null,"",null,"","",null,""]
[null,null,null,null,null,null,null,"",null,"","",null,""]
[null,null,null,null,null,null,null,"",null,"","",null,""]
[null,null,null,null,null,null,null,"",null,"","",null,""]
[null,null,null,null,null,null,null,"",null,"","",null,""]
[null,null,null,null,null,null,null,"",null,"","",null,""]
[null,null,null,null,null,null,null,"",null,"","",null,""]
[null,null,null,null,null,null,null,null,null,null,null,null,{"$f":"SUM(M5:M500)","v":0}]

{"sheet":"Apr","index":4,"n_rows":501,"n_cols":14,"rows_kept":501,"cut":false,"hidden":false,"merged":[[0,1,0,10],[1,1,1,10],[2,1,2,6],[2,8,2,10],[4,1,4,9]]}
[null,"KASSABUCH"]
[null,null,null,null,null,null,null,null,null,null,null,null,{"$f":"DATE(Jahr,2,1)","v":"1900-02-01"},"Anfangsdatum"]
[null,{"$f":"IF(Name<>0,Name,\"\")","v":""},null,null,null,null,null,null,{"$f":"\"April \"&Jahr","v":"April "},null,null,null,{"$f":"DATE(Jahr,3,1)-1","v":60},"Enddatum"]
[null,"Datum","Beleg","Konto","Text","%","Einnahmen","USt","Ausgaben","Vorsteuer","Kassabestand",null,{"$f":"SUM(M5:M500)","v":0},{"$f":"I3 &\", \"&\"Endstand\"","v":"April , Endstand"}]
[null,"Übertrag Vormonat EUR:",null,null,null,null,null,null,null,null,{"$f":"Mar!M4","v":0},null,{"$f":"IF(K6=\"\",K5,\"0\")","v":0}]
[null,null,null,null,null,null,null,null,null,{"$f":"IF(I6<>\"\",I6-I6/((100+F6)/100),\"\")","v":""},{"$f":"IF(C6<>0,IF(G6<>0,K5+G6,IF(I6<>0,K5-I6,\"\")),\"\")","v":""},null,{"$f":"IF(K7=\"\",K6,\"0\")","v":""}]
[null,null,null,null,null,null,null,{"$f":"IF(G7<>\"\",G7-G7/((100+F7)/100),\"\")","v":""},null,{"$f":"IF(I7<>\"\",I7-I7/((100+F7)/100),\"\")","v":""},{"$f":"IF(C7<>0,IF(G7<>0,K6+G7,IF(I7<>0,K6-I7,\"\")),\"\")","v":""},null,{"$f":"IF(K8=\"\",K7,\"0\")","v":""}]
[null,null,null,null,null,null,null,{"$f":"IF(G8<>\"\",G8-G8/((100+F8)/100),\"\")","v":""},null,"","",null,{"$f":"IF(K9=\"\",K8,\"0\")","v":""}]
[null,null,null,null,null,null,null,"",null,"","",null,""]
[null,null,null,null,null,null,null,"",null,"","",null,""]
[null,null,null,null,null,null,null,"",null,"","",null,""]
[null,null,null,null,null,null,null,"",null,"","",null,""]
[null,null,null,null,null,null,null,"",null,"","",null,""]
[null,null,null,null,null,null,null,"",null,"","",null,""]
[null,null,null,null,null,null,null,"",null,"","",null,""]
[null,null,null,null,null,null,null,"",null,"","",null,""]
[null,null,null,null,null,null,null,"",null,"","",null,""]
[null,null,null,null,null,null,null,"",null,"","",null,""]
[null,null,null,null,null,null,null,"",null,"","",null,""]
[null,null,null,null,null,null,null,"",null,"","",null,""]
[null,null,null,null,null,null,null,"",null,"","",null,""]
[null,null,null,null,null,null,null,"",null,"","",null,""]
[null,null,null,null,null,null,null,"",null,"","",null,""]
[null,null,null,null,null,null,null,"",null,"","",null,""]
[null,null,null,null,null,null,null,"",null,"","",null,""]
[null,null,null,null,null,null,null,"",null,"","",null,""]
[null,null,null,null,null,null,null,"",null,"","",null,""]
[null,null,null,null,null,null,null,"",null,"","",null,""]
[null,null,null,null,null,null,null,"",null,"","",null,""]
[null,null,null,null,null,null,null,"",null,"","",null,""]
[null,null,null,null,null,null,null,"",null,"","",null,""]
[null,null,null,null,null,null,null,"",null,"","",null,""]
[null,null,null,null,null,null,null,"",null,"","",null,""]
[null,null,null,null,null,null,null,"",null,"","",null,""]
[null,null,null,null,null,null,null,"",null,"","",null,""]
[null,null,null,null,null,null,null,"",null,"","",null,""]
[null,null,null,null,null,null,null,"",null,"","",null,""]
[null,null,null,null,null,null,null,"",null,"","",null,""]
[null,null,null,null,null,null,null,"",null,"","",null,""]
[null,null,null,null,null,null,null,"",null,"","",null,""]
[null,null,null,null,null,null,null,"",null,"","",null,""]
[null,null,null,null,null,null,null,"",null,"","",null,""]
[null,null,null,null,null,null,null,"",null,"","",null,""]
[null,null,null,null,null,null,null,"",null,"","",null,""]
[null,null,null,null,null,null,null,"",null,"","",null,""]
[null,null,null,null,null,null,null,"",null,"","",null,""]
[null,null,null,null,null,null,null,"",null,"","",null,""]
[null,null,null,null,null,null,null,"",null,"","",null,""]
[null,null,null,null,null,null,null,"",null,"","",null,""]
[null,null,null,null,null,null,null,"",null,"","",null,""]
[null,null,null,null,null,null,null,"",null,"","",null,""]
[null,null,null,null,null,null,null,"",null,"","",null,""]
[null,null,null,null,null,null,null,"",null,"","",null,""]
[null,null,null,null,null,null,null,"",null,"","",null,""]
[null,null,null,null,null,null,null,"",null,"","",null,""]
[null,null,null,null,null,null,null,"",null,"","",null,""]
[null,null,null,null,null,null,null,"",null,"","",null,""]
[null,null,null,null,null,null,null,"",null,"","",null,""]
[null,null,null,null,null,null,null,"",null,"","",null,""]
[null,null,null,null,null,null,null,"",null,"","",null,""]
[null,null,null,null,null,null,null,"",null,"","",null,""]
[null,null,null,null,null,null,null,"",null,"","",null,""]
[null,null,null,null,null,null,null,"",null,"","",null,""]
[null,null,null,null,null,null,null,"",null,"","",null,""]
[null,null,null,null,null,null,null,"",null,"","",null,""]
[null,null,null,null,null,null,null,"",null,"","",null,""]
[null,null,null,null,null,null,null,"",null,"","",null,""]
[null,null,null,null,null,null,null,"",null,"","",null,""]
[null,null,null,null,null,null,null,"",null,"","",null,""]
[null,null,null,null,null,null,null,{"$f":"IF(G70<>\"\",G70-G70/((100+F70)/100),\"\")","v":""},null,{"$f":"IF(I70<>\"\",I70-I70/((100+F70)/100),\"\")","v":""},{"$f":"IF(C70<>0,IF(G70<>0,K69+G70,IF(I70<>0,K69-I70,\"\")),\"\")","v":""},null,""]
[null,null,null,null,null,null,null,"",null,"","",null,{"$f":"IF(K72=\"\",K71,\"0\")","v":""}]
[null,null,null,null,null,null,null,"",null,"","",null,""]
[null,null,null,null,null,null,null,"",null,"","",null,""]
[null,null,null,null,null,null,null,"",null,"","",null,""]
[null,null,null,null,null,null,null,"",null,"","",null,""]
[null,null,null,null,null,null,null,"",null,"","",null,""]
[null,null,null,null,null,null,null,"",null,"","",null,""]
[null,null,null,null,null,null,null,"",null,"","",null,""]
[null,null,null,null,null,null,null,"",null,"","",null,""]
[null,null,null,null,null,null,null,"",null,"","",null,""]
[null,null,null,null,null,null,null,"",null,"","",null,""]
[null,null,null,null,null,null,null,"",null,"","",null,""]
[null,null,null,null,null,null,null,"",null,"","",null,""]
[null,null,null,null,null,null,null,"",null,"","",null,""]
[null,null,null,null,null,null,null,"",null,"","",null,""]
[null,null,null,null,null,null,null,"",null,"","",null,""]
[null,null,null,null,null,null,null,"",null,"","",null,""]
[null,null,null,null,null,null,null,"",null,"","",null,""]
[null,null,null,null,null,null,null,"",null,"","",null,""]
[null,null,null,null,null,null,null,"",null,"","",null,""]
[null,null,null,null,null,null,null,"",null,"","",null,""]
[null,null,null,null,null,null,null,"",null,"","",null,""]
[null,null,null,null,null,null,null,"",null,"","",null,""]
[null,null,null,null,null,null,null,"",null,"","",null,""]
[null,null,null,null,null,null,null,"",null,"","",null,""]
[null,null,null,null,null,null,null,"",null,"","",null,""]
[null,null,null,null,null,null,null,"",null,"","",null,""]
[null,null,null,null,null,null,null,"",null,"","",null,""]
[null,null,null,null,null,null,null,"",null,"","",null,""]
[null,null,null,null,null,null,null,"",null,"","",null,""]
[null,null,null,null,null,null,null,"",null,"","",null,""]
[null,null,null,null,null,null,null,"",null,"","",null,""]
[null,null,null,null,null,null,null,"",null,"","",null,""]
[null,null,null,null,null,null,null,"",null,"","",null,""]
[null,null,null,null,null,null,null,"",null,"","",null,""]
[null,null,null,null,null,null,null,"",null,"","",null,""]
[null,null,null,null,null,null,null,"",null,"","",null,""]
[null,null,null,null,null,null,null,"",null,"","",null,""]
[null,null,null,null,null,null,null,"",null,"","",null,""]
[null,null,null,null,null,null,null,"",null,"","",null,""]
[null,null,null,null,null,null,null,"",null,"","",null,""]
[null,null,null,null,null,null,null,"",null,"","",null,""]
[null,null,null,null,null,null,null,"",null,"","",null,""]
[null,null,null,null,null,null,null,"",null,"","",null,""]
[null,null,null,null,null,null,null,"",null,"","",null,""]
[null,null,null,null,null,null,null,"",null,"","",null,""]
[null,null,null,null,null,null,null,"",null,"","",null,""]
[null,null,null,null,null,null,null,"",null,"","",null,""]
[null,null,null,null,null,null,null,"",null,"","",null,""]
[null,null,null,null,null,null,null,"",null,"","",null,""]
[null,null,null,null,null,null,null,"",null,"","",null,""]
[null,null,null,null,null,null,null,"",null,"","",null,""]
[null,null,null,null,null,null,null,"",null,"","",null,""]
[null,null,null,null,null,null,null,"",null,"","",null,""]
[null,null,null,null,null,null,null,"",null,"","",null,""]
[null,null,null,null,null,null,null,"",null,"","",null,""]
[null,null,null,null,null,null,null,"",null,"","",null,""]
[null,null,null,null,null,null,null,"",null,"","",null,""]
[null,null,null,null,null,null,null,"",null,"","",null,""]
[null,null,null,null,null,null,null,"",null,"","",null,""]
[null,null,null,null,null,null,null,"",null,"","",null,""]
[null,null,null,null,null,null,null,"",null,"","",null,""]
[null,null,null,null,null,null,null,"",null,"","",null,""]
[null,null,null,null,null,null,null,{"$f":"IF(G134<>\"\",G134-G134/((100+F134)/100),\"\")","v":""},null,{"$f":"IF(I134<>\"\",I134-I134/((100+F134)/100),\"\")","v":""},{"$f":"IF(C134<>0,IF(G134<>0,K133+G134,IF(I134<>0,K133-I134,\"\")),\"\")","v":""},null,""]
[null,null,null,null,null,null,null,"",null,"","",null,{"$f":"IF(K136=\"\",K135,\"0\")","v":""}]
[null,null,null,null,null,null,null,"",null,"","",null,""]
[null,null,null,null,null,null,null,"",null,"","",null,""]
[null,null,null,null,null,null,null,"",null,"","",null,""]
[null,null,null,null,null,null,null,"",null,"","",null,""]
[null,null,null,null,null,null,null,"",null,"","",null,""]
[null,null,null,null,null,null,null,"",null,"","",null,""]
[null,null,null,null,null,null,null,"",null,"","",null,""]
[null,null,null,null,null,null,null,"",null,"","",null,""]
[null,null,null,null,null,null,null,"",null,"","",null,""]
[null,null,null,null,null,null,null,"",null,"","",null,""]
[null,null,null,null,null,null,null,"",null,"","",null,""]
[null,null,null,null,null,null,null,"",null,"","",null,""]
[null,null,null,null,null,null,null,"",null,"","",null,""]
[null,null,null,null,null,null,null,"",null,"","",null,""]
[null,null,null,null,null,null,null,"",null,"","",null,""]
[null,null,null,null,null,null,null,"",null,"","",null,""]
[null,null,null,null,null,null,null,"",null,"","",null,""]
[null,null,null,null,null,null,null,"",null,"","",null,""]
[null,null,null,null,null,null,null,"",null,"","",null,""]
[null,null,null,null,null,null,null,"",null,"","",null,""]
[null,null,null,null,null,null,null,"",null,"","",null,""]
[null,null,null,null,null,null,null,"",null,"","",null,""]
[null,null,null,null,null,null,null,"",null,"","",null,""]
[null,null,null,null,null,null,null,"",null,"","",null,""]
[null,null,null,null,null,null,null,"",null,"","",null,""]
[null,null,null,null,null,null,null,"",null,"","",null,""]
[null,null,null,null,null,null,null,"",null,"","",null,""]
[null,null,null,null,null,null,null,"",null,"","",null,""]
[null,null,null,null,null,null,null,"",null,"","",null,""]
[null,null,null,null,null,null,null,"",null,"","",null,""]
[null,null,null,null,null,null,null,"",null,"","",null,""]
[null,null,null,null,null,null,null,"",null,"","",null,""]
[null,null,null,null,null,null,null,"",null,"","",null,""]
[null,null,null,null,null,null,null,"",null,"","",null,""]
[null,null,null,null,null,null,null,"",null,"","",null,""]
[null,null,null,null,null,null,null,"",null,"","",null,""]
[null,null,null,null,null,null,null,"",null,"","",null,""]
[null,null,null,null,null,null,null,"",null,"","",null,""]
[null,null,null,null,null,null,null,"",null,"","",null,""]
[null,null,null,null,null,null,null,"",null,"","",null,""]
[null,null,null,null,null,null,null,"",null,"","",null,""]
[null,null,null,null,null,null,null,"",null,"","",null,""]
[null,null,null,null,null,null,null,"",null,"","",null,""]
[null,null,null,null,null,null,null,"",null,"","",null,""]
[null,null,null,null,null,null,null,"",null,"","",null,""]
[null,null,null,null,null,null,null,"",null,"","",null,""]
[null,null,null,null,null,null,null,"",null,"","",null,""]
[null,null,null,null,null,null,null,"",null,"","",null,""]
[null,null,null,null,null,null,null,"",null,"","",null,""]
[null,null,null,null,null,null,null,"",null,"","",null,""]
[null,null,null,null,null,null,null,"",null,"","",null,""]
[null,null,null,null,null,null,null,"",null,"","",null,""]
[null,null,null,null,null,null,null,"",null,"","",null,""]
[null,null,null,null,null,null,null,"",null,"","",null,""]
[null,null,null,null,null,null,null,"",null,"","",null,""]
[null,null,null,null,null,null,null,"",null,"","",null,""]
[null,null,null,null,null,null,null,"",null,"","",null,""]
[null,null,null,null,null,null,null,"",null,"","",null,""]
[null,null,null,null,null,null,null,"",null,"","",null,""]
[null,null,null,null,null,null,null,"",null,"","",null,""]
[null,null,null,null,null,null,null,"",null,"","",null,""]
[null,null,null,null,null,null,null,"",null,"","",null,""]
[null,null,null,null,null,null,null,{"$f":"IF(G198<>\"\",G198-G198/((100+F198)/100),\"\")","v":""},null,{"$f":"IF(I198<>\"\",I198-I198/((100+F198)/100),\"\")","v":""},{"$f":"IF(C198<>0,IF(G198<>0,K197+G198,IF(I198<>0,K197-I198,\"\")),\"\")","v":""},null,""]
[null,null,null,null,null,null,null,"",null,"","",null,{"$f":"IF(K200=\"\",K199,\"0\")","v":""}]
[null,null,null,null,null,null,null,"",null,"","",null,""]
[null,null,null,null,null,null,null,"",null,"","",null,""]
[null,null,null,null,null,null,null,"",null,"","",null,""]
[null,null,null,null,null,null,null,"",null,"","",null,""]
[null,null,null,null,null,null,null,"",null,"","",null,""]
[null,null,null,null,null,null,null,"",null,"","",null,""]
[null,null,null,null,null,null,null,"",null,"","",null,""]
[null,null,null,null,null,null,null,"",null,"","",null,""]
[null,null,null,null,null,null,null,"",null,"","",null,""]
[null,null,null,null,null,null,null,"",null,"","",null,""]
[null,null,null,null,null,null,null,"",null,"","",null,""]
[null,null,null,null,null,null,null,"",null,"","",null,""]
[null,null,null,null,null,null,null,"",null,"","",null,""]
[null,null,null,null,null,null,null,"",null,"","",null,""]
[null,null,null,null,null,null,null,"",null,"","",null,""]
[null,null,null,null,null,null,null,"",null,"","",null,""]
[null,null,null,null,null,null,null,"",null,"","",null,""]
[null,null,null,null,null,null,null,"",null,"","",null,""]
[null,null,null,null,null,null,null,"",null,"","",null,""]
[null,null,null,null,null,null,null,"",null,"","",null,""]
[null,null,null,null,null,null,null,"",null,"","",null,""]
[null,null,null,null,null,null,null,"",null,"","",null,""]
[null,null,null,null,null,null,null,"",null,"","",null,""]
[null,null,null,null,null,null,null,"",null,"","",null,""]
[null,null,null,null,null,null,null,"",null,"","",null,""]
[null,null,null,null,null,null,null,"",null,"","",null,""]
[null,null,null,null,null,null,null,"",null,"","",null,""]
[null,null,null,null,null,null,null,"",null,"","",null,""]
[null,null,null,null,null,null,null,"",null,"","",null,""]
[null,null,null,null,null,null,null,"",null,"","",null,""]
[null,null,null,null,null,null,null,"",null,"","",null,""]
[null,null,null,null,null,null,null,"",null,"","",null,""]
[null,null,null,null,null,null,null,"",null,"","",null,""]
[null,null,null,null,null,null,null,"",null,"","",null,""]
[null,null,null,null,null,null,null,"",null,"","",null,""]
[null,null,null,null,null,null,null,"",null,"","",null,""]
[null,null,null,null,null,null,null,"",null,"","",null,""]
[null,null,null,null,null,null,null,"",null,"","",null,""]
[null,null,null,null,null,null,null,"",null,"","",null,""]
[null,null,null,null,null,null,null,"",null,"","",null,""]
[null,null,null,null,null,null,null,"",null,"","",null,""]
[null,null,null,null,null,null,null,"",null,"","",null,""]
[null,null,null,null,null,null,null,"",null,"","",null,""]
[null,null,null,null,null,null,null,"",null,"","",null,""]
[null,null,null,null,null,null,null,"",null,"","",null,""]
[null,null,null,null,null,null,null,"",null,"","",null,""]
[null,null,null,null,null,null,null,"",null,"","",null,""]
[null,null,null,null,null,null,null,"",null,"","",null,""]
[null,null,null,null,null,null,null,"",null,"","",null,""]
[null,null,null,null,null,null,null,"",null,"","",null,""]
[null,null,null,null,null,null,null,"",null,"","",null,""]
[null,null,null,null,null,null,null,"",null,"","",null,""]
[null,null,null,null,null,null,null,"",null,"","",null,""]
[null,null,null,null,null,null,null,"",null,"","",null,""]
[null,null,null,null,null,null,null,"",null,"","",null,""]
[null,null,null,null,null,null,null,"",null,"","",null,""]
[null,null,null,null,null,null,null,"",null,"","",null,""]
[null,null,null,null,null,null,null,"",null,"","",null,""]
[null,null,null,null,null,null,null,"",null,"","",null,""]
[null,null,null,null,null,null,null,"",null,"","",null,""]
[null,null,null,null,null,null,null,"",null,"","",null,""]
[null,null,null,null,null,null,null,"",null,"","",null,""]
[null,null,null,null,null,null,null,{"$f":"IF(G262<>\"\",G262-G262/((100+F262)/100),\"\")","v":""},null,{"$f":"IF(I262<>\"\",I262-I262/((100+F262)/100),\"\")","v":""},{"$f":"IF(C262<>0,IF(G262<>0,K261+G262,IF(I262<>0,K261-I262,\"\")),\"\")","v":""},null,""]
[null,null,null,null,null,null,null,"",null,"","",null,{"$f":"IF(K264=\"\",K263,\"0\")","v":""}]
[null,null,null,null,null,null,null,"",null,"","",null,""]
[null,null,null,null,null,null,null,"",null,"","",null,""]
[null,null,null,null,null,null,null,"",null,"","",null,""]
[null,null,null,null,null,null,null,"",null,"","",null,""]
[null,null,null,null,null,null,null,"",null,"","",null,""]
[null,null,null,null,null,null,null,"",null,"","",null,""]
[null,null,null,null,null,null,null,"",null,"","",null,""]
[null,null,null,null,null,null,null,"",null,"","",null,""]
[null,null,null,null,null,null,null,"",null,"","",null,""]
[null,null,null,null,null,null,null,"",null,"","",null,""]
[null,null,null,null,null,null,null,"",null,"","",null,""]
[null,null,null,null,null,null,null,"",null,"","",null,""]
[null,null,null,null,null,null,null,"",null,"","",null,""]
[null,null,null,null,null,null,null,"",null,"","",null,""]
[null,null,null,null,null,null,null,"",null,"","",null,""]
[null,null,null,null,null,null,null,"",null,"","",null,""]
[null,null,null,null,null,null,null,"",null,"","",null,""]
[null,null,null,null,null,null,null,"",null,"","",null,""]
[null,null,null,null,null,null,null,"",null,"","",null,""]
[null,null,null,null,null,null,null,"",null,"","",null,""]
[null,null,null,null,null,null,null,"",null,"","",null,""]
[null,null,null,null,null,null,null,"",null,"","",null,""]
[null,null,null,null,null,null,null,"",null,"","",null,""]
[null,null,null,null,null,null,null,"",null,"","",null,""]
[null,null,null,null,null,null,null,"",null,"","",null,""]
[null,null,null,null,null,null,null,"",null,"","",null,""]
[null,null,null,null,null,null,null,"",null,"","",null,""]
[null,null,null,null,null,null,null,"",null,"","",null,""]
[null,null,null,null,null,null,null,"",null,"","",null,""]
[null,null,null,null,null,null,null,"",null,"","",null,""]
[null,null,null,null,null,null,null,"",null,"","",null,""]
[null,null,null,null,null,null,null,"",null,"","",null,""]
[null,null,null,null,null,null,null,"",null,"","",null,""]
[null,null,null,null,null,null,null,"",null,"","",null,""]
[null,null,null,null,null,null,null,"",null,"","",null,""]
[null,null,null,null,null,null,null,"",null,"","",null,""]
[null,null,null,null,null,null,null,"",null,"","",null,""]
[null,null,null,null,null,null,null,"",null,"","",null,""]
[null,null,null,null,null,null,null,"",null,"","",null,""]
[null,null,null,null,null,null,null,"",null,"","",null,""]
[null,null,null,null,null,null,null,"",null,"","",null,""]
[null,null,null,null,null,null,null,"",null,"","",null,""]
[null,null,null,null,null,null,null,"",null,"","",null,""]
[null,null,null,null,null,null,null,"",null,"","",null,""]
[null,null,null,null,null,null,null,"",null,"","",null,""]
[null,null,null,null,null,null,null,"",null,"","",null,""]
[null,null,null,null,null,null,null,"",null,"","",null,""]
[null,null,null,null,null,null,null,"",null,"","",null,""]
[null,null,null,null,null,null,null,"",null,"","",null,""]
[null,null,null,null,null,null,null,"",null,"","",null,""]
[null,null,null,null,null,null,null,"",null,"","",null,""]
[null,null,null,null,null,null,null,"",null,"","",null,""]
[null,null,null,null,null,null,null,"",null,"","",null,""]
[null,null,null,null,null,null,null,"",null,"","",null,""]
[null,null,null,null,null,null,null,"",null,"","",null,""]
[null,null,null,null,null,null,null,"",null,"","",null,""]
[null,null,null,null,null,null,null,"",null,"","",null,""]
[null,null,null,null,null,null,null,"",null,"","",null,""]
[null,null,null,null,null,null,null,"",null,"","",null,""]
[null,null,null,null,null,null,null,"",null,"","",null,""]
[null,null,null,null,null,null,null,"",null,"","",null,""]
[null,null,null,null,null,null,null,"",null,"","",null,""]
[null,null,null,null,null,null,null,{"$f":"IF(G326<>\"\",G326-G326/((100+F326)/100),\"\")","v":""},null,{"$f":"IF(I326<>\"\",I326-I326/((100+F326)/100),\"\")","v":""},{"$f":"IF(C326<>0,IF(G326<>0,K325+G326,IF(I326<>0,K325-I326,\"\")),\"\")","v":""},null,""]
[null,null,null,null,null,null,null,"",null,"","",null,{"$f":"IF(K328=\"\",K327,\"0\")","v":""}]
[null,null,null,null,null,null,null,"",null,"","",null,""]
[null,null,null,null,null,null,null,"",null,"","",null,""]
[null,null,null,null,null,null,null,"",null,"","",null,""]
[null,null,null,null,null,null,null,"",null,"","",null,""]
[null,null,null,null,null,null,null,"",null,"","",null,""]
[null,null,null,null,null,null,null,"",null,"","",null,""]
[null,null,null,null,null,null,null,"",null,"","",null,""]
[null,null,null,null,null,null,null,"",null,"","",null,""]
[null,null,null,null,null,null,null,"",null,"","",null,""]
[null,null,null,null,null,null,null,"",null,"","",null,""]
[null,null,null,null,null,null,null,"",null,"","",null,""]
[null,null,null,null,null,null,null,"",null,"","",null,""]
[null,null,null,null,null,null,null,"",null,"","",null,""]
[null,null,null,null,null,null,null,"",null,"","",null,""]
[null,null,null,null,null,null,null,"",null,"","",null,""]
[null,null,null,null,null,null,null,"",null,"","",null,""]
[null,null,null,null,null,null,null,"",null,"","",null,""]
[null,null,null,null,null,null,null,"",null,"","",null,""]
[null,null,null,null,null,null,null,"",null,"","",null,""]
[null,null,null,null,null,null,null,"",null,"","",null,""]
[null,null,null,null,null,null,null,"",null,"","",null,""]
[null,null,null,null,null,null,null,"",null,"","",null,""]
[null,null,null,null,null,null,null,"",null,"","",null,""]
[null,null,null,null,null,null,null,"",null,"","",null,""]
[null,null,null,null,null,null,null,"",null,"","",null,""]
[null,null,null,null,null,null,null,"",null,"","",null,""]
[null,null,null,null,null,null,null,"",null,"","",null,""]
[null,null,null,null,null,null,null,"",null,"","",null,""]
[null,null,null,null,null,null,null,"",null,"","",null,""]
[null,null,null,null,null,null,null,"",null,"","",null,""]
[null,null,null,null,null,null,null,"",null,"","",null,""]
[null,null,null,null,null,null,null,"",null,"","",null,""]
[null,null,null,null,null,null,null,"",null,"","",null,""]
[null,null,null,null,null,null,null,"",null,"","",null,""]
[null,null,null,null,null,null,null,"",null,"","",null,""]
[null,null,null,null,null,null,null,"",null,"","",null,""]
[null,null,null,null,null,null,null,"",null,"","",null,""]
[null,null,null,null,null,null,null,"",null,"","",null,""]
[null,null,null,null,null,null,null,"",null,"","",null,""]
[null,null,null,null,null,null,null,"",null,"","",null,""]
[null,null,null,null,null,null,null,"",null,"","",null,""]
[null,null,null,null,null,null,null,"",null,"","",null,""]
[null,null,null,null,null,null,null,"",null,"","",null,""]
[null,null,null,null,null,null,null,"",null,"","",null,""]
[null,null,null,null,null,null,null,"",null,"","",null,""]
[null,null,null,null,null,null,null,"",null,"","",null,""]
[null,null,null,null,null,null,null,"",null,"","",null,""]
[null,null,null,null,null,null,null,"",null,"","",null,""]
[null,null,null,null,null,null,null,"",null,"","",null,""]
[null,null,null,null,null,null,null,"",null,"","",null,""]
[null,null,null,null,null,null,null,"",null,"","",null,""]
[null,null,null,null,null,null,null,"",null,"","",null,""]
[null,null,null,null,null,null,null,"",null,"","",null,""]
[null,null,null,null,null,null,null,"",null,"","",null,""]
[null,null,null,null,null,null,null,"",null,"","",null,""]
[null,null,null,null,null,null,null,"",null,"","",null,""]
[null,null,null,null,null,null,null,"",null,"","",null,""]
[null,null,null,null,null,null,null,"",null,"","",null,""]
[null,null,null,null,null,null,null,"",null,"","",null,""]
[null,null,null,null,null,null,null,"",null,"","",null,""]
[null,null,null,null,null,null,null,"",null,"","",null,""]
[null,null,null,null,null,null,null,"",null,"","",null,""]
[null,null,null,null,null,null,null,{"$f":"IF(G390<>\"\",G390-G390/((100+F390)/100),\"\")","v":""},null,{"$f":"IF(I390<>\"\",I390-I390/((100+F390)/100),\"\")","v":""},{"$f":"IF(C390<>0,IF(G390<>0,K389+G390,IF(I390<>0,K389-I390,\"\")),\"\")","v":""},null,""]
[null,null,null,null,null,null,null,"",null,"","",null,{"$f":"IF(K392=\"\",K391,\"0\")","v":""}]
[null,null,null,null,null,null,null,"",null,"","",null,""]
[null,null,null,null,null,null,null,"",null,"","",null,""]
[null,null,null,null,null,null,null,"",null,"","",null,""]
[null,null,null,null,null,null,null,"",null,"","",null,""]
[null,null,null,null,null,null,null,"",null,"","",null,""]
[null,null,null,null,null,null,null,"",null,"","",null,""]
[null,null,null,null,null,null,null,"",null,"","",null,""]
[null,null,null,null,null,null,null,"",null,"","",null,""]
[null,null,null,null,null,null,null,"",null,"","",null,""]
[null,null,null,null,null,null,null,"",null,"","",null,""]
[null,null,null,null,null,null,null,"",null,"","",null,""]
[null,null,null,null,null,null,null,"",null,"","",null,""]
[null,null,null,null,null,null,null,"",null,"","",null,""]
[null,null,null,null,null,null,null,"",null,"","",null,""]
[null,null,null,null,null,null,null,"",null,"","",null,""]
[null,null,null,null,null,null,null,"",null,"","",null,""]
[null,null,null,null,null,null,null,"",null,"","",null,""]
[null,null,null,null,null,null,null,"",null,"","",null,""]
[null,null,null,null,null,null,null,"",null,"","",null,""]
[null,null,null,null,null,null,null,"",null,"","",null,""]
[null,null,null,null,null,null,null,"",null,"","",null,""]
[null,null,null,null,null,null,null,"",null,"","",null,""]
[null,null,null,null,null,null,null,"",null,"","",null,""]
[null,null,null,null,null,null,null,"",null,"","",null,""]
[null,null,null,null,null,null,null,"",null,"","",null,""]
[null,null,null,null,null,null,null,"",null,"","",null,""]
[null,null,null,null,null,null,null,"",null,"","",null,""]
[null,null,null,null,null,null,null,"",null,"","",null,""]
[null,null,null,null,null,null,null,"",null,"","",null,""]
[null,null,null,null,null,null,null,"",null,"","",null,""]
[null,null,null,null,null,null,null,"",null,"","",null,""]
[null,null,null,null,null,null,null,"",null,"","",null,""]
[null,null,null,null,null,null,null,"",null,"","",null,""]
[null,null,null,null,null,null,null,"",null,"","",null,""]
[null,null,null,null,null,null,null,"",null,"","",null,""]
[null,null,null,null,null,null,null,"",null,"","",null,""]
[null,null,null,null,null,null,null,"",null,"","",null,""]
[null,null,null,null,null,null,null,"",null,"","",null,""]
[null,null,null,null,null,null,null,"",null,"","",null,""]
[null,null,null,null,null,null,null,"",null,"","",null,""]
[null,null,null,null,null,null,null,"",null,"","",null,""]
[null,null,null,null,null,null,null,"",null,"","",null,""]
[null,null,null,null,null,null,null,"",null,"","",null,""]
[null,null,null,null,null,null,null,"",null,"","",null,""]
[null,null,null,null,null,null,null,"",null,"","",null,""]
[null,null,null,null,null,null,null,"",null,"","",null,""]
[null,null,null,null,null,null,null,"",null,"","",null,""]
[null,null,null,null,null,null,null,"",null,"","",null,""]
[null,null,null,null,null,null,null,"",null,"","",null,""]
[null,null,null,null,null,null,null,"",null,"","",null,""]
[null,null,null,null,null,null,null,"",null,"","",null,""]
[null,null,null,null,null,null,null,"",null,"","",null,""]
[null,null,null,null,null,null,null,"",null,"","",null,""]
[null,null,null,null,null,null,null,"",null,"","",null,""]
[null,null,null,null,null,null,null,"",null,"","",null,""]
[null,null,null,null,null,null,null,"",null,"","",null,""]
[null,null,null,null,null,null,null,"",null,"","",null,""]
[null,null,null,null,null,null,null,"",null,"","",null,""]
[null,null,null,null,null,null,null,"",null,"","",null,""]
[null,null,null,null,null,null,null,"",null,"","",null,""]
[null,null,null,null,null,null,null,"",null,"","",null,""]
[null,null,null,null,null,null,null,"",null,"","",null,""]
[null,null,null,null,null,null,null,{"$f":"IF(G454<>\"\",G454-G454/((100+F454)/100),\"\")","v":""},null,{"$f":"IF(I454<>\"\",I454-I454/((100+F454)/100),\"\")","v":""},{"$f":"IF(C454<>0,IF(G454<>0,K453+G454,IF(I454<>0,K453-I454,\"\")),\"\")","v":""},null,""]
[null,null,null,null,null,null,null,"",null,"","",null,{"$f":"IF(K456=\"\",K455,\"0\")","v":""}]
[null,null,null,null,null,null,null,"",null,"","",null,""]
[null,null,null,null,null,null,null,"",null,"","",null,""]
[null,null,null,null,null,null,null,"",null,"","",null,""]
[null,null,null,null,null,null,null,"",null,"","",null,""]
[null,null,null,null,null,null,null,"",null,"","",null,""]
[null,null,null,null,null,null,null,"",null,"","",null,""]
[null,null,null,null,null,null,null,"",null,"","",null,""]
[null,null,null,null,null,null,null,"",null,"","",null,""]
[null,null,null,null,null,null,null,"",null,"","",null,""]
[null,null,null,null,null,null,null,"",null,"","",null,""]
[null,null,null,null,null,null,null,"",null,"","",null,""]
[null,null,null,null,null,null,null,"",null,"","",null,""]
[null,null,null,null,null,null,null,"",null,"","",null,""]
[null,null,null,null,null,null,null,"",null,"","",null,""]
[null,null,null,null,null,null,null,"",null,"","",null,""]
[null,null,null,null,null,null,null,"",null,"","",null,""]
[null,null,null,null,null,null,null,"",null,"","",null,""]
[null,null,null,null,null,null,null,"",null,"","",null,""]
[null,null,null,null,null,null,null,"",null,"","",null,""]
[null,null,null,null,null,null,null,"",null,"","",null,""]
[null,null,null,null,null,null,null,"",null,"","",null,""]
[null,null,null,null,null,null,null,"",null,"","",null,""]
[null,null,null,null,null,null,null,"",null,"","",null,""]
[null,null,null,null,null,null,null,"",null,"","",null,""]
[null,null,null,null,null,null,null,"",null,"","",null,""]
[null,null,null,null,null,null,null,"",null,"","",null,""]
[null,null,null,null,null,null,null,"",null,"","",null,""]
[null,null,null,null,null,null,null,"",null,"","",null,""]
[null,null,null,null,null,null,null,"",null,"","",null,""]
[null,null,null,null,null,null,null,"",null,"","",null,""]
[null,null,null,null,null,null,null,"",null,"","",null,""]
[null,null,null,null,null,null,null,"",null,"","",null,""]
[null,null,null,null,null,null,null,"",null,"","",null,""]
[null,null,null,null,null,null,null,"",null,"","",null,""]
[null,null,null,null,null,null,null,"",null,"","",null,""]
[null,null,null,null,null,null,null,"",null,"","",null,""]
[null,null,null,null,null,null,null,"",null,"","",null,""]
[null,null,null,null,null,null,null,"",null,"","",null,""]
[null,null,null,null,null,null,null,"",null,"","",null,""]
[null,null,null,null,null,null,null,"",null,"","",null,""]
[null,null,null,null,null,null,null,"",null,"","",null,""]
[null,null,null,null,null,null,null,"",null,"","",null,""]
[null,null,null,null,null,null,null,"",null,"","",null,""]
[null,null,null,null,null,null,null,"",null,"","",null,""]
[null,null,null,null,null,null,null,"",null,"","",null,""]
[null,null,null,null,null,null,null,null,null,null,null,null,{"$f":"SUM(M5:M500)","v":0}]

{"sheet":"Mai","index":5,"n_rows":501,"n_cols":14,"rows_kept":501,"cut":false,"hidden":false,"merged":[[0,1,0,10],[1,1,1,10],[2,1,2,6],[2,8,2,10],[4,1,4,9]]}
[null,"KASSABUCH"]
[null,null,null,null,null,null,null,null,null,null,null,null,{"$f":"DATE(Jahr,2,1)","v":"1900-02-01"},"Anfangsdatum"]
[null,{"$f":"IF(Name<>0,Name,\"\")","v":""},null,null,null,null,null,null,{"$f":"\"Mai \"&Jahr","v":"Mai "},null,null,null,{"$f":"DATE(Jahr,3,1)-1","v":60},"Enddatum"]
[null,"Datum","Beleg","Konto","Text","%","Einnahmen","USt","Ausgaben","Vorsteuer","Kassabestand",null,{"$f":"SUM(M5:M500)","v":0},{"$f":"I3 &\", \"&\"Endstand\"","v":"Mai , Endstand"}]
[null,"Übertrag Vormonat EUR:",null,null,null,null,null,null,null,null,{"$f":"Apr!M4","v":0},null,{"$f":"IF(K6=\"\",K5,\"0\")","v":0}]
[null,null,null,null,null,null,null,null,null,{"$f":"IF(I6<>\"\",I6-I6/((100+F6)/100),\"\")","v":""},{"$f":"IF(C6<>0,IF(G6<>0,K5+G6,IF(I6<>0,K5-I6,\"\")),\"\")","v":""},null,{"$f":"IF(K7=\"\",K6,\"0\")","v":""}]
[null,null,null,null,null,null,null,{"$f":"IF(G7<>\"\",G7-G7/((100+F7)/100),\"\")","v":""},null,{"$f":"IF(I7<>\"\",I7-I7/((100+F7)/100),\"\")","v":""},{"$f":"IF(C7<>0,IF(G7<>0,K6+G7,IF(I7<>0,K6-I7,\"\")),\"\")","v":""},null,{"$f":"IF(K8=\"\",K7,\"0\")","v":""}]
[null,null,null,null,null,null,null,"",null,"","",null,{"$f":"IF(K9=\"\",K8,\"0\")","v":""}]
[null,null,null,null,null,null,null,{"$f":"IF(G9<>\"\",G9-G9/((100+F9)/100),\"\")","v":""},null,"","",null,""]
[null,null,null,null,null,null,null,"",null,"","",null,""]
[null,null,null,null,null,null,null,"",null,"","",null,""]
[null,null,null,null,null,null,null,"",null,"","",null,""]
[null,null,null,null,null,null,null,"",null,"","",null,""]
[null,null,null,null,null,null,null,"",null,"","",null,""]
[null,null,null,null,null,null,null,"",null,"","",null,""]
[null,null,null,null,null,null,null,"",null,"","",null,""]
[null,null,null,null,null,null,null,"",null,"","",null,""]
[null,null,null,null,null,null,null,"",null,"","",null,""]
[null,null,null,null,null,null,null,"",null,"","",null,""]
[null,null,null,null,null,null,null,"",null,"","",null,""]
[null,null,null,null,null,null,null,"",null,"","",null,""]
[null,null,null,null,null,null,null,"",null,"","",null,""]
[null,null,null,null,null,null,null,"",null,"","",null,""]
[null,null,null,null,null,null,null,"",null,"","",null,""]
[null,null,null,null,null,null,null,"",null,"","",null,""]
[null,null,null,null,null,null,null,"",null,"","",null,""]
[null,null,null,null,null,null,null,"",null,"","",null,""]
[null,null,null,null,null,null,null,"",null,"","",null,""]
[null,null,null,null,null,null,null,"",null,"","",null,""]
[null,null,null,null,null,null,null,"",null,"","",null,""]
[null,null,null,null,null,null,null,"",null,"","",null,""]
[null,null,null,null,null,null,null,"",null,"","",null,""]
[null,null,null,null,null,null,null,"",null,"","",null,""]
[null,null,null,null,null,null,null,"",null,"","",null,""]
[null,null,null,null,null,null,null,"",null,"","",null,""]
[null,null,null,null,null,null,null,"",null,"","",null,""]
[null,null,null,null,null,null,null,"",null,"","",null,""]
[null,null,null,null,null,null,null,"",null,"","",null,""]
[null,null,null,null,null,null,null,"",null,"","",null,""]
[null,null,null,null,null,null,null,"",null,"","",null,""]
[null,null,null,null,null,null,null,"",null,"","",null,""]
[null,null,null,null,null,null,null,"",null,"","",null,""]
[null,null,null,null,null,null,null,"",null,"","",null,""]
[null,null,null,null,null,null,null,"",null,"","",null,""]
[null,null,null,null,null,null,null,"",null,"","",null,""]
[null,null,null,null,null,null,null,"",null,"","",null,""]
[null,null,null,null,null,null,null,"",null,"","",null,""]
[null,null,null,null,null,null,null,"",null,"","",null,""]
[null,null,null,null,null,null,null,"",null,"","",null,""]
[null,null,null,null,null,null,null,"",null,"","",null,""]
[null,null,null,null,null,null,null,"",null,"","",null,""]
[null,null,null,null,null,null,null,"",null,"","",null,""]
[null,null,null,null,null,null,null,"",null,"","",null,""]
[null,null,null,null,null,null,null,"",null,"","",null,""]
[null,null,null,null,null,null,null,"",null,"","",null,""]
[null,null,null,null,null,null,null,"",null,"","",null,""]
[null,null,null,null,null,null,null,"",null,"","",null,""]
[null,null,null,null,null,null,null,"",null,"","",null,""]
[null,null,null,null,null,null,null,"",null,"","",null,""]
[null,null,null,null,null,null,null,"",null,"","",null,""]
[null,null,null,null,null,null,null,"",null,"","",null,""]
[null,null,null,null,null,null,null,"",null,"","",null,""]
[null,null,null,null,null,null,null,"",null,"","",null,""]
[null,null,null,null,null,null,null,"",null,"","",null,""]
[null,null,null,null,null,null,null,"",null,"","",null,""]
[null,null,null,null,null,null,null,"",null,"","",null,""]
[null,null,null,null,null,null,null,"",null,"","",null,""]
[null,null,null,null,null,null,null,"",null,"","",null,""]
[null,null,null,null,null,null,null,"",null,"","",null,""]
[null,null,null,null,null,null,null,{"$f":"IF(G70<>\"\",G70-G70/((100+F70)/100),\"\")","v":""},null,{"$f":"IF(I70<>\"\",I70-I70/((100+F70)/100),\"\")","v":""},{"$f":"IF(C70<>0,IF(G70<>0,K69+G70,IF(I70<>0,K69-I70,\"\")),\"\")","v":""},null,""]
[null,null,null,null,null,null,null,"",null,"","",null,{"$f":"IF(K72=\"\",K71,\"0\")","v":""}]
[null,null,null,null,null,null,null,"",null,"","",null,""]
[null,null,null,null,null,null,null,"",null,"","",null,""]
[null,null,null,null,null,null,null,"",null,"","",null,""]
[null,null,null,null,null,null,null,"",null,"","",null,""]
[null,null,null,null,null,null,null,"",null,"","",null,""]
[null,null,null,null,null,null,null,"",null,"","",null,""]
[null,null,null,null,null,null,null,"",null,"","",null,""]
[null,null,null,null,null,null,null,"",null,"","",null,""]
[null,null,null,null,null,null,null,"",null,"","",null,""]
[null,null,null,null,null,null,null,"",null,"","",null,""]
[null,null,null,null,null,null,null,"",null,"","",null,""]
[null,null,null,null,null,null,null,"",null,"","",null,""]
[null,null,null,null,null,null,null,"",null,"","",null,""]
[null,null,null,null,null,null,null,"",null,"","",null,""]
[null,null,null,null,null,null,null,"",null,"","",null,""]
[null,null,null,null,null,null,null,"",null,"","",null,""]
[null,null,null,null,null,null,null,"",null,"","",null,""]
[null,null,null,null,null,null,null,"",null,"","",null,""]
[null,null,null,null,null,null,null,"",null,"","",null,""]
[null,null,null,null,null,null,null,"",null,"","",null,""]
[null,null,null,null,null,null,null,"",null,"","",null,""]
[null,null,null,null,null,null,null,"",null,"","",null,""]
[null,null,null,null,null,null,null,"",null,"","",null,""]
[null,null,null,null,null,null,null,"",null,"","",null,""]
[null,null,null,null,null,null,null,"",null,"","",null,""]
[null,null,null,null,null,null,null,"",null,"","",null,""]
[null,null,null,null,null,null,null,"",null,"","",null,""]
[null,null,null,null,null,null,null,"",null,"","",null,""]
[null,null,null,null,null,null,null,"",null,"","",null,""]
[null,null,null,null,null,null,null,"",null,"","",null,""]
[null,null,null,null,null,null,null,"",null,"","",null,""]
[null,null,null,null,null,null,null,"",null,"","",null,""]
[null,null,null,null,null,null,null,"",null,"","",null,""]
[null,null,null,null,null,null,null,"",null,"","",null,""]
[null,null,null,null,null,null,null,"",null,"","",null,""]
[null,null,null,null,null,null,null,"",null,"","",null,""]
[null,null,null,null,null,null,null,"",null,"","",null,""]
[null,null,null,null,null,null,null,"",null,"","",null,""]
[null,null,null,null,null,null,null,"",null,"","",null,""]
[null,null,null,null,null,null,null,"",null,"","",null,""]
[null,null,null,null,null,null,null,"",null,"","",null,""]
[null,null,null,null,null,null,null,"",null,"","",null,""]
[null,null,null,null,null,null,null,"",null,"","",null,""]
[null,null,null,null,null,null,null,"",null,"","",null,""]
[null,null,null,null,null,null,null,"",null,"","",null,""]
[null,null,null,null,null,null,null,"",null,"","",null,""]
[null,null,null,null,null,null,null,"",null,"","",null,""]
[null,null,null,null,null,null,null,"",null,"","",null,""]
[null,null,null,null,null,null,null,"",null,"","",null,""]
[null,null,null,null,null,null,null,"",null,"","",null,""]
[null,null,null,null,null,null,null,"",null,"","",null,""]
[null,null,null,null,null,null,null,"",null,"","",null,""]
[null,null,null,null,null,null,null,"",null,"","",null,""]
[null,null,null,null,null,null,null,"",null,"","",null,""]
[null,null,null,null,null,null,null,"",null,"","",null,""]
[null,null,null,null,null,null,null,"",null,"","",null,""]
[null,null,null,null,null,null,null,"",null,"","",null,""]
[null,null,null,null,null,null,null,"",null,"","",null,""]
[null,null,null,null,null,null,null,"",null,"","",null,""]
[null,null,null,null,null,null,null,"",null,"","",null,""]
[null,null,null,null,null,null,null,"",null,"","",null,""]
[null,null,null,null,null,null,null,"",null,"","",null,""]
[null,null,null,null,null,null,null,{"$f":"IF(G134<>\"\",G134-G134/((100+F134)/100),\"\")","v":""},null,{"$f":"IF(I134<>\"\",I134-I134/((100+F134)/100),\"\")","v":""},{"$f":"IF(C134<>0,IF(G134<>0,K133+G134,IF(I134<>0,K133-I134,\"\")),\"\")","v":""},null,""]
[null,null,null,null,null,null,null,"",null,"","",null,{"$f":"IF(K136=\"\",K135,\"0\")","v":""}]
[null,null,null,null,null,null,null,"",null,"","",null,""]
[null,null,null,null,null,null,null,"",null,"","",null,""]
[null,null,null,null,null,null,null,"",null,"","",null,""]
[null,null,null,null,null,null,null,"",null,"","",null,""]
[null,null,null,null,null,null,null,"",null,"","",null,""]
[null,null,null,null,null,null,null,"",null,"","",null,""]
[null,null,null,null,null,null,null,"",null,"","",null,""]
[null,null,null,null,null,null,null,"",null,"","",null,""]
[null,null,null,null,null,null,null,"",null,"","",null,""]
[null,null,null,null,null,null,null,"",null,"","",null,""]
[null,null,null,null,null,null,null,"",null,"","",null,""]
[null,null,null,null,null,null,null,"",null,"","",null,""]
[null,null,null,null,null,null,null,"",null,"","",null,""]
[null,null,null,null,null,null,null,"",null,"","",null,""]
[null,null,null,null,null,null,null,"",null,"","",null,""]
[null,null,null,null,null,null,null,"",null,"","",null,""]
[null,null,null,null,null,null,null,"",null,"","",null,""]
[null,null,null,null,null,null,null,"",null,"","",null,""]
[null,null,null,null,null,null,null,"",null,"","",null,""]
[null,null,null,null,null,null,null,"",null,"","",null,""]
[null,null,null,null,null,null,null,"",null,"","",null,""]
[null,null,null,null,null,null,null,"",null,"","",null,""]
[null,null,null,null,null,null,null,"",null,"","",null,""]
[null,null,null,null,null,null,null,"",null,"","",null,""]
[null,null,null,null,null,null,null,"",null,"","",null,""]
[null,null,null,null,null,null,null,"",null,"","",null,""]
[null,null,null,null,null,null,null,"",null,"","",null,""]
[null,null,null,null,null,null,null,"",null,"","",null,""]
[null,null,null,null,null,null,null,"",null,"","",null,""]
[null,null,null,null,null,null,null,"",null,"","",null,""]
[null,null,null,null,null,null,null,"",null,"","",null,""]
[null,null,null,null,null,null,null,"",null,"","",null,""]
[null,null,null,null,null,null,null,"",null,"","",null,""]
[null,null,null,null,null,null,null,"",null,"","",null,""]
[null,null,null,null,null,null,null,"",null,"","",null,""]
[null,null,null,null,null,null,null,"",null,"","",null,""]
[null,null,null,null,null,null,null,"",null,"","",null,""]
[null,null,null,null,null,null,null,"",null,"","",null,""]
[null,null,null,null,null,null,null,"",null,"","",null,""]
[null,null,null,null,null,null,null,"",null,"","",null,""]
[null,null,null,null,null,null,null,"",null,"","",null,""]
[null,null,null,null,null,null,null,"",null,"","",null,""]
[null,null,null,null,null,null,null,"",null,"","",null,""]
[null,null,null,null,null,null,null,"",null,"","",null,""]
[null,null,null,null,null,null,null,"",null,"","",null,""]
[null,null,null,null,null,null,null,"",null,"","",null,""]
[null,null,null,null,null,null,null,"",null,"","",null,""]
[null,null,null,null,null,null,null,"",null,"","",null,""]
[null,null,null,null,null,null,null,"",null,"","",null,""]
[null,null,null,null,null,null,null,"",null,"","",null,""]
[null,null,null,null,null,null,null,"",null,"","",null,""]
[null,null,null,null,null,null,null,"",null,"","",null,""]
[null,null,null,null,null,null,null,"",null,"","",null,""]
[null,null,null,null,null,null,null,"",null,"","",null,""]
[null,null,null,null,null,null,null,"",null,"","",null,""]
[null,null,null,null,null,null,null,"",null,"","",null,""]
[null,null,null,null,null,null,null,"",null,"","",null,""]
[null,null,null,null,null,null,null,"",null,"","",null,""]
[null,null,null,null,null,null,null,"",null,"","",null,""]
[null,null,null,null,null,null,null,"",null,"","",null,""]
[null,null,null,null,null,null,null,"",null,"","",null,""]
[null,null,null,null,null,null,null,"",null,"","",null,""]
[null,null,null,null,null,null,null,{"$f":"IF(G198<>\"\",G198-G198/((100+F198)/100),\"\")","v":""},null,{"$f":"IF(I198<>\"\",I198-I198/((100+F198)/100),\"\")","v":""},{"$f":"IF(C198<>0,IF(G198<>0,K197+G198,IF(I198<>0,K197-I198,\"\")),\"\")","v":""},null,""]
[null,null,null,null,null,null,null,"",null,"","",null,{"$f":"IF(K200=\"\",K199,\"0\")","v":""}]
[null,null,null,null,null,null,null,"",null,"","",null,""]
[null,null,null,null,null,null,null,"",null,"","",null,""]
[null,null,null,null,null,null,null,"",null,"","",null,""]
[null,null,null,null,null,null,null,"",null,"","",null,""]
[null,null,null,null,null,null,null,"",null,"","",null,""]
[null,null,null,null,null,null,null,"",null,"","",null,""]
[null,null,null,null,null,null,null,"",null,"","",null,""]
[null,null,null,null,null,null,null,"",null,"","",null,""]
[null,null,null,null,null,null,null,"",null,"","",null,""]
[null,null,null,null,null,null,null,"",null,"","",null,""]
[null,null,null,null,null,null,null,"",null,"","",null,""]
[null,null,null,null,null,null,null,"",null,"","",null,""]
[null,null,null,null,null,null,null,"",null,"","",null,""]
[null,null,null,null,null,null,null,"",null,"","",null,""]
[null,null,null,null,null,null,null,"",null,"","",null,""]
[null,null,null,null,null,null,null,"",null,"","",null,""]
[null,null,null,null,null,null,null,"",null,"","",null,""]
[null,null,null,null,null,null,null,"",null,"","",null,""]
[null,null,null,null,null,null,null,"",null,"","",null,""]
[null,null,null,null,null,null,null,"",null,"","",null,""]
[null,null,null,null,null,null,null,"",null,"","",null,""]
[null,null,null,null,null,null,null,"",null,"","",null,""]
[null,null,null,null,null,null,null,"",null,"","",null,""]
[null,null,null,null,null,null,null,"",null,"","",null,""]
[null,null,null,null,null,null,null,"",null,"","",null,""]
[null,null,null,null,null,null,null,"",null,"","",null,""]
[null,null,null,null,null,null,null,"",null,"","",null,""]
[null,null,null,null,null,null,null,"",null,"","",null,""]
[null,null,null,null,null,null,null,"",null,"","",null,""]
[null,null,null,null,null,null,null,"",null,"","",null,""]
[null,null,null,null,null,null,null,"",null,"","",null,""]
[null,null,null,null,null,null,null,"",null,"","",null,""]
[null,null,null,null,null,null,null,"",null,"","",null,""]
[null,null,null,null,null,null,null,"",null,"","",null,""]
[null,null,null,null,null,null,null,"",null,"","",null,""]
[null,null,null,null,null,null,null,"",null,"","",null,""]
[null,null,null,null,null,null,null,"",null,"","",null,""]
[null,null,null,null,null,null,null,"",null,"","",null,""]
[null,null,null,null,null,null,null,"",null,"","",null,""]
[null,null,null,null,null,null,null,"",null,"","",null,""]
[null,null,null,null,null,null,null,"",null,"","",null,""]
[null,null,null,null,null,null,null,"",null,"","",null,""]
[null,null,null,null,null,null,null,"",null,"","",null,""]
[null,null,null,null,null,null,null,"",null,"","",null,""]
[null,null,null,null,null,null,null,"",null,"","",null,""]
[null,null,null,null,null,null,null,"",null,"","",null,""]
[null,null,null,null,null,null,null,"",null,"","",null,""]
[null,null,null,null,null,null,null,"",null,"","",null,""]
[null,null,null,null,null,null,null,"",null,"","",null,""]
[null,null,null,null,null,null,null,"",null,"","",null,""]
[null,null,null,null,null,null,null,"",null,"","",null,""]
[null,null,null,null,null,null,null,"",null,"","",null,""]
[null,null,null,null,null,null,null,"",null,"","",null,""]
[null,null,null,null,null,null,null,"",null,"","",null,""]
[null,null,null,null,null,null,null,"",null,"","",null,""]
[null,null,null,null,null,null,null,"",null,"","",null,""]
[null,null,null,null,null,null,null,"",null,"","",null,""]
[null,null,null,null,null,null,null,"",null,"","",null,""]
[null,null,null,null,null,null,null,"",null,"","",null,""]
[null,null,null,null,null,null,null,"",null,"","",null,""]
[null,null,null,null,null,null,null,"",null,"","",null,""]
[null,null,null,null,null,null,null,"",null,"","",null,""]
[null,null,null,null,null,null,null,{"$f":"IF(G262<>\"\",G262-G262/((100+F262)/100),\"\")","v":""},null,{"$f":"IF(I262<>\"\",I262-I262/((100+F262)/100),\"\")","v":""},{"$f":"IF(C262<>0,IF(G262<>0,K261+G262,IF(I262<>0,K261-I262,\"\")),\"\")","v":""},null,""]
[null,null,null,null,null,null,null,"",null,"","",null,{"$f":"IF(K264=\"\",K263,\"0\")","v":""}]
[null,null,null,null,null,null,null,"",null,"","",null,""]
[null,null,null,null,null,null,null,"",null,"","",null,""]
[null,null,null,null,null,null,null,"",null,"","",null,""]
[null,null,null,null,null,null,null,"",null,"","",null,""]
[null,null,null,null,null,null,null,"",null,"","",null,""]
[null,null,null,null,null,null,null,"",null,"","",null,""]
[null,null,null,null,null,null,null,"",null,"","",null,""]
[null,null,null,null,null,null,null,"",null,"","",null,""]
[null,null,null,null,null,null,null,"",null,"","",null,""]
[null,null,null,null,null,null,null,"",null,"","",null,""]
[null,null,null,null,null,null,null,"",null,"","",null,""]
[null,null,null,null,null,null,null,"",null,"","",null,""]
[null,null,null,null,null,null,null,"",null,"","",null,""]
[null,null,null,null,null,null,null,"",null,"","",null,""]
[null,null,null,null,null,null,null,"",null,"","",null,""]
[null,null,null,null,null,null,null,"",null,"","",null,""]
[null,null,null,null,null,null,null,"",null,"","",null,""]
[null,null,null,null,null,null,null,"",null,"","",null,""]
[null,null,null,null,null,null,null,"",null,"","",null,""]
[null,null,null,null,null,null,null,"",null,"","",null,""]
[null,null,null,null,null,null,null,"",null,"","",null,""]
[null,null,null,null,null,null,null,"",null,"","",null,""]
[null,null,null,null,null,null,null,"",null,"","",null,""]
[null,null,null,null,null,null,null,"",null,"","",null,""]
[null,null,null,null,null,null,null,"",null,"","",null,""]
[null,null,null,null,null,null,null,"",null,"","",null,""]
[null,null,null,null,null,null,null,"",null,"","",null,""]
[null,null,null,null,null,null,null,"",null,"","",null,""]
[null,null,null,null,null,null,null,"",null,"","",null,""]
[null,null,null,null,null,null,null,"",null,"","",null,""]
[null,null,null,null,null,null,null,"",null,"","",null,""]
[null,null,null,null,null,null,null,"",null,"","",null,""]
[null,null,null,null,null,null,null,"",null,"","",null,""]
[null,null,null,null,null,null,null,"",null,"","",null,""]
[null,null,null,null,null,null,null,"",null,"","",null,""]
[null,null,null,null,null,null,null,"",null,"","",null,""]
[null,null,null,null,null,null,null,"",null,"","",null,""]
[null,null,null,null,null,null,null,"",null,"","",null,""]
[null,null,null,null,null,null,null,"",null,"","",null,""]
[null,null,null,null,null,null,null,"",null,"","",null,""]
[null,null,null,null,null,null,null,"",null,"","",null,""]
[null,null,null,null,null,null,null,"",null,"","",null,""]
[null,null,null,null,null,null,null,"",null,"","",null,""]
[null,null,null,null,null,null,null,"",null,"","",null,""]
[null,null,null,null,null,null,null,"",null,"","",null,""]
[null,null,null,null,null,null,null,"",null,"","",null,""]
[null,null,null,null,null,null,null,"",null,"","",null,""]
[null,null,null,null,null,null,null,"",null,"","",null,""]
[null,null,null,null,null,null,null,"",null,"","",null,""]
[null,null,null,null,null,null,null,"",null,"","",null,""]
[null,null,null,null,null,null,null,"",null,"","",null,""]
[null,null,null,null,null,null,null,"",null,"","",null,""]
[null,null,null,null,null,null,null,"",null,"","",null,""]
[null,null,null,null,null,null,null,"",null,"","",null,""]
[null,null,null,null,null,null,null,"",null,"","",null,""]
[null,null,null,null,null,null,null,"",null,"","",null,""]
[null,null,null,null,null,null,null,"",null,"","",null,""]
[null,null,null,null,null,null,null,"",null,"","",null,""]
[null,null,null,null,null,null,null,"",null,"","",null,""]
[null,null,null,null,null,null,null,"",null,"","",null,""]
[null,null,null,null,null,null,null,"",null,"","",null,""]
[null,null,null,null,null,null,null,"",null,"","",null,""]
[null,null,null,null,null,null,null,{"$f":"IF(G326<>\"\",G326-G326/((100+F326)/100),\"\")","v":""},null,{"$f":"IF(I326<>\"\",I326-I326/((100+F326)/100),\"\")","v":""},{"$f":"IF(C326<>0,IF(G326<>0,K325+G326,IF(I326<>0,K325-I326,\"\")),\"\")","v":""},null,""]
[null,null,null,null,null,null,null,"",null,"","",null,{"$f":"IF(K328=\"\",K327,\"0\")","v":""}]
[null,null,null,null,null,null,null,"",null,"","",null,""]
[null,null,null,null,null,null,null,"",null,"","",null,""]
[null,null,null,null,null,null,null,"",null,"","",null,""]
[null,null,null,null,null,null,null,"",null,"","",null,""]
[null,null,null,null,null,null,null,"",null,"","",null,""]
[null,null,null,null,null,null,null,"",null,"","",null,""]
[null,null,null,null,null,null,null,"",null,"","",null,""]
[null,null,null,null,null,null,null,"",null,"","",null,""]
[null,null,null,null,null,null,null,"",null,"","",null,""]
[null,null,null,null,null,null,null,"",null,"","",null,""]
[null,null,null,null,null,null,null,"",null,"","",null,""]
[null,null,null,null,null,null,null,"",null,"","",null,""]
[null,null,null,null,null,null,null,"",null,"","",null,""]
[null,null,null,null,null,null,null,"",null,"","",null,""]
[null,null,null,null,null,null,null,"",null,"","",null,""]
[null,null,null,null,null,null,null,"",null,"","",null,""]
[null,null,null,null,null,null,null,"",null,"","",null,""]
[null,null,null,null,null,null,null,"",null,"","",null,""]
[null,null,null,null,null,null,null,"",null,"","",null,""]
[null,null,null,null,null,null,null,"",null,"","",null,""]
[null,null,null,null,null,null,null,"",null,"","",null,""]
[null,null,null,null,null,null,null,"",null,"","",null,""]
[null,null,null,null,null,null,null,"",null,"","",null,""]
[null,null,null,null,null,null,null,"",null,"","",null,""]
[null,null,null,null,null,null,null,"",null,"","",null,""]
[null,null,null,null,null,null,null,"",null,"","",null,""]
[null,null,null,null,null,null,null,"",null,"","",null,""]
[null,null,null,null,null,null,null,"",null,"","",null,""]
[null,null,null,null,null,null,null,"",null,"","",null,""]
[null,null,null,null,null,null,null,"",null,"","",null,""]
[null,null,null,null,null,null,null,"",null,"","",null,""]
[null,null,null,null,null,null,null,"",null,"","",null,""]
[null,null,null,null,null,null,null,"",null,"","",null,""]
[null,null,null,null,null,null,null,"",null,"","",null,""]
[null,null,null,null,null,null,null,"",null,"","",null,""]
[null,null,null,null,null,null,null,"",null,"","",null,""]
[null,null,null,null,null,null,null,"",null,"","",null,""]
[null,null,null,null,null,null,null,"",null,"","",null,""]
[null,null,null,null,null,null,null,"",null,"","",null,""]
[null,null,null,null,null,null,null,"",null,"","",null,""]
[null,null,null,null,null,null,null,"",null,"","",null,""]
[null,null,null,null,null,null,null,"",null,"","",null,""]
[null,null,null,null,null,null,null,"",null,"","",null,""]
[null,null,null,null,null,null,null,"",null,"","",null,""]
[null,null,null,null,null,null,null,"",null,"","",null,""]
[null,null,null,null,null,null,null,"",null,"","",null,""]
[null,null,null,null,null,null,null,"",null,"","",null,""]
[null,null,null,null,null,null,null,"",null,"","",null,""]
[null,null,null,null,null,null,null,"",null,"","",null,""]
[null,null,null,null,null,null,null,"",null,"","",null,""]
[null,null,null,null,null,null,null,"",null,"","",null,""]
[null,null,null,null,null,null,null,"",null,"","",null,""]
[null,null,null,null,null,null,null,"",null,"","",null,""]
[null,null,null,null,null,null,null,"",null,"","",null,""]
[null,null,null,null,null,null,null,"",null,"","",null,""]
[null,null,null,null,null,null,null,"",null,"","",null,""]
[null,null,null,null,null,null,null,"",null,"","",null,""]
[null,null,null,null,null,null,null,"",null,"","",null,""]
[null,null,null,null,null,null,null,"",null,"","",null,""]
[null,null,null,null,null,null,null,"",null,"","",null,""]
[null,null,null,null,null,null,null,"",null,"","",null,""]
[null,null,null,null,null,null,null,"",null,"","",null,""]
[null,null,null,null,null,null,null,{"$f":"IF(G390<>\"\",G390-G390/((100+F390)/100),\"\")","v":""},null,{"$f":"IF(I390<>\"\",I390-I390/((100+F390)/100),\"\")","v":""},{"$f":"IF(C390<>0,IF(G390<>0,K389+G390,IF(I390<>0,K389-I390,\"\")),\"\")","v":""},null,""]
[null,null,null,null,null,null,null,"",null,"","",null,{"$f":"IF(K392=\"\",K391,\"0\")","v":""}]
[null,null,null,null,null,null,null,"",null,"","",null,""]
[null,null,null,null,null,null,null,"",null,"","",null,""]
[null,null,null,null,null,null,null,"",null,"","",null,""]
[null,null,null,null,null,null,null,"",null,"","",null,""]
[null,null,null,null,null,null,null,"",null,"","",null,""]
[null,null,null,null,null,null,null,"",null,"","",null,""]
[null,null,null,null,null,null,null,"",null,"","",null,""]
[null,null,null,null,null,null,null,"",null,"","",null,""]
[null,null,null,null,null,null,null,"",null,"","",null,""]
[null,null,null,null,null,null,null,"",null,"","",null,""]
[null,null,null,null,null,null,null,"",null,"","",null,""]
[null,null,null,null,null,null,null,"",null,"","",null,""]
[null,null,null,null,null,null,null,"",null,"","",null,""]
[null,null,null,null,null,null,null,"",null,"","",null,""]
[null,null,null,null,null,null,null,"",null,"","",null,""]
[null,null,null,null,null,null,null,"",null,"","",null,""]
[null,null,null,null,null,null,null,"",null,"","",null,""]
[null,null,null,null,null,null,null,"",null,"","",null,""]
[null,null,null,null,null,null,null,"",null,"","",null,""]
[null,null,null,null,null,null,null,"",null,"","",null,""]
[null,null,null,null,null,null,null,"",null,"","",null,""]
[null,null,null,null,null,null,null,"",null,"","",null,""]
[null,null,null,null,null,null,null,"",null,"","",null,""]
[null,null,null,null,null,null,null,"",null,"","",null,""]
[null,null,null,null,null,null,null,"",null,"","",null,""]
[null,null,null,null,null,null,null,"",null,"","",null,""]
[null,null,null,null,null,null,null,"",null,"","",null,""]
[null,null,null,null,null,null,null,"",null,"","",null,""]
[null,null,null,null,null,null,null,"",null,"","",null,""]
[null,null,null,null,null,null,null,"",null,"","",null,""]
[null,null,null,null,null,null,null,"",null,"","",null,""]
[null,null,null,null,null,null,null,"",null,"","",null,""]
[null,null,null,null,null,null,null,"",null,"","",null,""]
[null,null,null,null,null,null,null,"",null,"","",null,""]
[null,null,null,null,null,null,null,"",null,"","",null,""]
[null,null,null,null,null,null,null,"",null,"","",null,""]
[null,null,null,null,null,null,null,"",null,"","",null,""]
[null,null,null,null,null,null,null,"",null,"","",null,""]
[null,null,null,null,null,null,null,"",null,"","",null,""]
[null,null,null,null,null,null,null,"",null,"","",null,""]
[null,null,null,null,null,null,null,"",null,"","",null,""]
[null,null,null,null,null,null,null,"",null,"","",null,""]
[null,null,null,null,null,null,null,"",null,"","",null,""]
[null,null,null,null,null,null,null,"",null,"","",null,""]
[null,null,null,null,null,null,null,"",null,"","",null,""]
[null,null,null,null,null,null,null,"",null,"","",null,""]
[null,null,null,null,null,null,null,"",null,"","",null,""]
[null,null,null,null,null,null,null,"",null,"","",null,""]
[null,null,null,null,null,null,null,"",null,"","",null,""]
[null,null,null,null,null,null,null,"",null,"","",null,""]
[null,null,null,null,null,null,null,"",null,"","",null,""]
[null,null,null,null,null,null,null,"",null,"","",null,""]
[null,null,null,null,null,null,null,"",null,"","",null,""]
[null,null,null,null,null,null,null,"",null,"","",null,""]
[null,null,null,null,null,null,null,"",null,"","",null,""]
[null,null,null,null,null,null,null,"",null,"","",null,""]
[null,null,null,null,null,null,null,"",null,"","",null,""]
[null,null,null,null,null,null,null,"",null,"","",null,""]
[null,null,null,null,null,null,null,"",null,"","",null,""]
[null,null,null,null,null,null,null,"",null,"","",null,""]
[null,null,null,null,null,null,null,"",null,"","",null,""]
[null,null,null,null,null,null,null,"",null,"","",null,""]
[null,null,null,null,null,null,null,{"$f":"IF(G454<>\"\",G454-G454/((100+F454)/100),\"\")","v":""},null,{"$f":"IF(I454<>\"\",I454-I454/((100+F454)/100),\"\")","v":""},{"$f":"IF(C454<>0,IF(G454<>0,K453+G454,IF(I454<>0,K453-I454,\"\")),\"\")","v":""},null,""]
[null,null,null,null,null,null,null,"",null,"","",null,{"$f":"IF(K456=\"\",K455,\"0\")","v":""}]
[null,null,null,null,null,null,null,"",null,"","",null,""]
[null,null,null,null,null,null,null,"",null,"","",null,""]
[null,null,null,null,null,null,null,"",null,"","",null,""]
[null,null,null,null,null,null,null,"",null,"","",null,""]
[null,null,null,null,null,null,null,"",null,"","",null,""]
[null,null,null,null,null,null,null,"",null,"","",null,""]
[null,null,null,null,null,null,null,"",null,"","",null,""]
[null,null,null,null,null,null,null,"",null,"","",null,""]
[null,null,null,null,null,null,null,"",null,"","",null,""]
[null,null,null,null,null,null,null,"",null,"","",null,""]
[null,null,null,null,null,null,null,"",null,"","",null,""]
[null,null,null,null,null,null,null,"",null,"","",null,""]
[null,null,null,null,null,null,null,"",null,"","",null,""]
[null,null,null,null,null,null,null,"",null,"","",null,""]
[null,null,null,null,null,null,null,"",null,"","",null,""]
[null,null,null,null,null,null,null,"",null,"","",null,""]
[null,null,null,null,null,null,null,"",null,"","",null,""]
[null,null,null,null,null,null,null,"",null,"","",null,""]
[null,null,null,null,null,null,null,"",null,"","",null,""]
[null,null,null,null,null,null,null,"",null,"","",null,""]
[null,null,null,null,null,null,null,"",null,"","",null,""]
[null,null,null,null,null,null,null,"",null,"","",null,""]
[null,null,null,null,null,null,null,"",null,"","",null,""]
[null,null,null,null,null,null,null,"",null,"","",null,""]
[null,null,null,null,null,null,null,"",null,"","",null,""]
[null,null,null,null,null,null,null,"",null,"","",null,""]
[null,null,null,null,null,null,null,"",null,"","",null,""]
[null,null,null,null,null,null,null,"",null,"","",null,""]
[null,null,null,null,null,null,null,"",null,"","",null,""]
[null,null,null,null,null,null,null,"",null,"","",null,""]
[null,null,null,null,null,null,null,"",null,"","",null,""]
[null,null,null,null,null,null,null,"",null,"","",null,""]
[null,null,null,null,null,null,null,"",null,"","",null,""]
[null,null,null,null,null,null,null,"",null,"","",null,""]
[null,null,null,null,null,null,null,"",null,"","",null,""]
[null,null,null,null,null,null,null,"",null,"","",null,""]
[null,null,null,null,null,null,null,"",null,"","",null,""]
[null,null,null,null,null,null,null,"",null,"","",null,""]
[null,null,null,null,null,null,null,"",null,"","",null,""]
[null,null,null,null,null,null,null,"",null,"","",null,""]
[null,null,null,null,null,null,null,"",null,"","",null,""]
[null,null,null,null,null,null,null,"",null,"","",null,""]
[null,null,null,null,null,null,null,"",null,"","",null,""]
[null,null,null,null,null,null,null,"",null,"","",null,""]
[null,null,null,null,null,null,null,"",null,"","",null,""]
[null,null,null,null,null,null,null,null,null,null,null,null,{"$f":"SUM(M5:M500)","v":0}]

{"sheet":"Jun","index":6,"n_rows":501,"n_cols":14,"rows_kept":501,"cut":false,"hidden":false,"merged":[[0,1,0,10],[1,1,1,10],[2,1,2,6],[2,8,2,10],[4,1,4,9]]}
[null,"KASSABUCH"]
[null,null,null,null,null,null,null,null,null,null,null,null,{"$f":"DATE(Jahr,2,1)","v":"1900-02-01"},"Anfangsdatum"]
[null,{"$f":"IF(Name<>0,Name,\"\")","v":""},null,null,null,null,null,null,{"$f":"\"Juni \"&Jahr","v":"Juni "},null,null,null,{"$f":"DATE(Jahr,3,1)-1","v":60},"Enddatum"]
[null,"Datum","Beleg","Konto","Text","%","Einnahmen","USt","Ausgaben","Vorsteuer","Kassabestand",null,{"$f":"SUM(M5:M500)","v":0},{"$f":"I3 &\", \"&\"Endstand\"","v":"Juni , Endstand"}]
[null,"Übertrag Vormonat EUR:",null,null,null,null,null,null,null,null,{"$f":"Mai!M4","v":0},null,{"$f":"IF(K6=\"\",K5,\"0\")","v":0}]
[null,null,null,null,null,null,null,null,null,{"$f":"IF(I6<>\"\",I6-I6/((100+F6)/100),\"\")","v":""},{"$f":"IF(C6<>0,IF(G6<>0,K5+G6,IF(I6<>0,K5-I6,\"\")),\"\")","v":""},null,{"$f":"IF(K7=\"\",K6,\"0\")","v":""}]
[null,null,null,null,null,null,null,null,null,{"$f":"IF(I7<>\"\",I7-I7/((100+F7)/100),\"\")","v":""},{"$f":"IF(C7<>0,IF(G7<>0,K6+G7,IF(I7<>0,K6-I7,\"\")),\"\")","v":""},null,{"$f":"IF(K8=\"\",K7,\"0\")","v":""}]
[null,null,null,null,null,null,null,{"$f":"IF(G8<>\"\",G8-G8/((100+F8)/100),\"\")","v":""},null,"","",null,{"$f":"IF(K9=\"\",K8,\"0\")","v":""}]
[null,null,null,null,null,null,null,"",null,"","",null,""]
[null,null,null,null,null,null,null,"",null,"","",null,""]
[null,null,null,null,null,null,null,"",null,"","",null,""]
[null,null,null,null,null,null,null,"",null,"","",null,""]
[null,null,null,null,null,null,null,"",null,"","",null,""]
[null,null,null,null,null,null,null,"",null,"","",null,""]
[null,null,null,null,null,null,null,"",null,"","",null,""]
[null,null,null,null,null,null,null,"",null,"","",null,""]
[null,null,null,null,null,null,null,"",null,"","",null,""]
[null,null,null,null,null,null,null,"",null,"","",null,""]
[null,null,null,null,null,null,null,"",null,"","",null,""]
[null,null,null,null,null,null,null,"",null,"","",null,""]
[null,null,null,null,null,null,null,"",null,"","",null,""]
[null,null,null,null,null,null,null,"",null,"","",null,""]
[null,null,null,null,null,null,null,"",null,"","",null,""]
[null,null,null,null,null,null,null,"",null,"","",null,""]
[null,null,null,null,null,null,null,"",null,"","",null,""]
[null,null,null,null,null,null,null,"",null,"","",null,""]
[null,null,null,null,null,null,null,"",null,"","",null,""]
[null,null,null,null,null,null,null,"",null,"","",null,""]
[null,null,null,null,null,null,null,"",null,"","",null,""]
[null,null,null,null,null,null,null,"",null,"","",null,""]
[null,null,null,null,null,null,null,"",null,"","",null,""]
[null,null,null,null,null,null,null,"",null,"","",null,""]
[null,null,null,null,null,null,null,"",null,"","",null,""]
[null,null,null,null,null,null,null,"",null,"","",null,""]
[null,null,null,null,null,null,null,"",null,"","",null,""]
[null,null,null,null,null,null,null,"",null,"","",null,""]
[null,null,null,null,null,null,null,"",null,"","",null,""]
[null,null,null,null,null,null,null,"",null,"","",null,""]
[null,null,null,null,null,null,null,"",null,"","",null,""]
[null,null,null,null,null,null,null,"",null,"","",null,""]
[null,null,null,null,null,null,null,"",null,"","",null,""]
[null,null,null,null,null,null,null,"",null,"","",null,""]
[null,null,null,null,null,null,null,"",null,"","",null,""]
[null,null,null,null,null,null,null,"",null,"","",null,""]
[null,null,null,null,null,null,null,"",null,"","",null,""]
[null,null,null,null,null,null,null,"",null,"","",null,""]
[null,null,null,null,null,null,null,"",null,"","",null,""]
[null,null,null,null,null,null,null,"",null,"","",null,""]
[null,null,null,null,null,null,null,"",null,"","",null,""]
[null,null,null,null,null,null,null,"",null,"","",null,""]
[null,null,null,null,null,null,null,"",null,"","",null,""]
[null,null,null,null,null,null,null,"",null,"","",null,""]
[null,null,null,null,null,null,null,"",null,"","",null,""]
[null,null,null,null,null,null,null,"",null,"","",null,""]
[null,null,null,null,null,null,null,"",null,"","",null,""]
[null,null,null,null,null,null,null,"",null,"","",null,""]
[null,null,null,null,null,null,null,"",null,"","",null,""]
[null,null,null,null,null,null,null,"",null,"","",null,""]
[null,null,null,null,null,null,null,"",null,"","",null,""]
[null,null,null,null,null,null,null,"",null,"","",null,""]
[null,null,null,null,null,null,null,"",null,"","",null,""]
[null,null,null,null,null,null,null,"",null,"","",null,""]
[null,null,null,null,null,null,null,"",null,"","",null,""]
[null,null,null,null,null,null,null,"",null,"","",null,""]
[null,null,null,null,null,null,null,"",null,"","",null,""]
[null,null,null,null,null,null,null,"",null,"","",null,""]
[null,null,null,null,null,null,null,"",null,"","",null,""]
[null,null,null,null,null,null,null,"",null,"","",null,""]
[null,null,null,null,null,null,null,"",null,"","",null,""]
[null,null,null,null,null,null,null,{"$f":"IF(G70<>\"\",G70-G70/((100+F70)/100),\"\")","v":""},null,{"$f":"IF(I70<>\"\",I70-I70/((100+F70)/100),\"\")","v":""},{"$f":"IF(C70<>0,IF(G70<>0,K69+G70,IF(I70<>0,K69-I70,\"\")),\"\")","v":""},null,""]
[null,null,null,null,null,null,null,"",null,"","",null,{"$f":"IF(K72=\"\",K71,\"0\")","v":""}]
[null,null,null,null,null,null,null,"",null,"","",null,""]
[null,null,null,null,null,null,null,"",null,"","",null,""]
[null,null,null,null,null,null,null,"",null,"","",null,""]
[null,null,null,null,null,null,null,"",null,"","",null,""]
[null,null,null,null,null,null,null,"",null,"","",null,""]
[null,null,null,null,null,null,null,"",null,"","",null,""]
[null,null,null,null,null,null,null,"",null,"","",null,""]
[null,null,null,null,null,null,null,"",null,"","",null,""]
[null,null,null,null,null,null,null,"",null,"","",null,""]
[null,null,null,null,null,null,null,"",null,"","",null,""]
[null,null,null,null,null,null,null,"",null,"","",null,""]
[null,null,null,null,null,null,null,"",null,"","",null,""]
[null,null,null,null,null,null,null,"",null,"","",null,""]
[null,null,null,null,null,null,null,"",null,"","",null,""]
[null,null,null,null,null,null,null,"",null,"","",null,""]
[null,null,null,null,null,null,null,"",null,"","",null,""]
[null,null,null,null,null,null,null,"",null,"","",null,""]
[null,null,null,null,null,null,null,"",null,"","",null,""]
[null,null,null,null,null,null,null,"",null,"","",null,""]
[null,null,null,null,null,null,null,"",null,"","",null,""]
[null,null,null,null,null,null,null,"",null,"","",null,""]
[null,null,null,null,null,null,null,"",null,"","",null,""]
[null,null,null,null,null,null,null,"",null,"","",null,""]
[null,null,null,null,null,null,null,"",null,"","",null,""]
[null,null,null,null,null,null,null,"",null,"","",null,""]
[null,null,null,null,null,null,null,"",null,"","",null,""]
[null,null,null,null,null,null,null,"",null,"","",null,""]
[null,null,null,null,null,null,null,"",null,"","",null,""]
[null,null,null,null,null,null,null,"",null,"","",null,""]
[null,null,null,null,null,null,null,"",null,"","",null,""]
[null,null,null,null,null,null,null,"",null,"","",null,""]
[null,null,null,null,null,null,null,"",null,"","",null,""]
[null,null,null,null,null,null,null,"",null,"","",null,""]
[null,null,null,null,null,null,null,"",null,"","",null,""]
[null,null,null,null,null,null,null,"",null,"","",null,""]
[null,null,null,null,null,null,null,"",null,"","",null,""]
[null,null,null,null,null,null,null,"",null,"","",null,""]
[null,null,null,null,null,null,null,"",null,"","",null,""]
[null,null,null,null,null,null,null,"",null,"","",null,""]
[null,null,null,null,null,null,null,"",null,"","",null,""]
[null,null,null,null,null,null,null,"",null,"","",null,""]
[null,null,null,null,null,null,null,"",null,"","",null,""]
[null,null,null,null,null,null,null,"",null,"","",null,""]
[null,null,null,null,null,null,null,"",null,"","",null,""]
[null,null,null,null,null,null,null,"",null,"","",null,""]
[null,null,null,null,null,null,null,"",null,"","",null,""]
[null,null,null,null,null,null,null,"",null,"","",null,""]
[null,null,null,null,null,null,null,"",null,"","",null,""]
[null,null,null,null,null,null,null,"",null,"","",null,""]
[null,null,null,null,null,null,null,"",null,"","",null,""]
[null,null,null,null,null,null,null,"",null,"","",null,""]
[null,null,null,null,null,null,null,"",null,"","",null,""]
[null,null,null,null,null,null,null,"",null,"","",null,""]
[null,null,null,null,null,null,null,"",null,"","",null,""]
[null,null,null,null,null,null,null,"",null,"","",null,""]
[null,null,null,null,null,null,null,"",null,"","",null,""]
[null,null,null,null,null,null,null,"",null,"","",null,""]
[null,null,null,null,null,null,null,"",null,"","",null,""]
[null,null,null,null,null,null,null,"",null,"","",null,""]
[null,null,null,null,null,null,null,"",null,"","",null,""]
[null,null,null,null,null,null,null,"",null,"","",null,""]
[null,null,null,null,null,null,null,"",null,"","",null,""]
[null,null,null,null,null,null,null,{"$f":"IF(G134<>\"\",G134-G134/((100+F134)/100),\"\")","v":""},null,{"$f":"IF(I134<>\"\",I134-I134/((100+F134)/100),\"\")","v":""},{"$f":"IF(C134<>0,IF(G134<>0,K133+G134,IF(I134<>0,K133-I134,\"\")),\"\")","v":""},null,""]
[null,null,null,null,null,null,null,"",null,"","",null,{"$f":"IF(K136=\"\",K135,\"0\")","v":""}]
[null,null,null,null,null,null,null,"",null,"","",null,""]
[null,null,null,null,null,null,null,"",null,"","",null,""]
[null,null,null,null,null,null,null,"",null,"","",null,""]
[null,null,null,null,null,null,null,"",null,"","",null,""]
[null,null,null,null,null,null,null,"",null,"","",null,""]
[null,null,null,null,null,null,null,"",null,"","",null,""]
[null,null,null,null,null,null,null,"",null,"","",null,""]
[null,null,null,null,null,null,null,"",null,"","",null,""]
[null,null,null,null,null,null,null,"",null,"","",null,""]
[null,null,null,null,null,null,null,"",null,"","",null,""]
[null,null,null,null,null,null,null,"",null,"","",null,""]
[null,null,null,null,null,null,null,"",null,"","",null,""]
[null,null,null,null,null,null,null,"",null,"","",null,""]
[null,null,null,null,null,null,null,"",null,"","",null,""]
[null,null,null,null,null,null,null,"",null,"","",null,""]
[null,null,null,null,null,null,null,"",null,"","",null,""]
[null,null,null,null,null,null,null,"",null,"","",null,""]
[null,null,null,null,null,null,null,"",null,"","",null,""]
[null,null,null,null,null,null,null,"",null,"","",null,""]
[null,null,null,null,null,null,null,"",null,"","",null,""]
[null,null,null,null,null,null,null,"",null,"","",null,""]
[null,null,null,null,null,null,null,"",null,"","",null,""]
[null,null,null,null,null,null,null,"",null,"","",null,""]
[null,null,null,null,null,null,null,"",null,"","",null,""]
[null,null,null,null,null,null,null,"",null,"","",null,""]
[null,null,null,null,null,null,null,"",null,"","",null,""]
[null,null,null,null,null,null,null,"",null,"","",null,""]
[null,null,null,null,null,null,null,"",null,"","",null,""]
[null,null,null,null,null,null,null,"",null,"","",null,""]
[null,null,null,null,null,null,null,"",null,"","",null,""]
[null,null,null,null,null,null,null,"",null,"","",null,""]
[null,null,null,null,null,null,null,"",null,"","",null,""]
[null,null,null,null,null,null,null,"",null,"","",null,""]
[null,null,null,null,null,null,null,"",null,"","",null,""]
[null,null,null,null,null,null,null,"",null,"","",null,""]
[null,null,null,null,null,null,null,"",null,"","",null,""]
[null,null,null,null,null,null,null,"",null,"","",null,""]
[null,null,null,null,null,null,null,"",null,"","",null,""]
[null,null,null,null,null,null,null,"",null,"","",null,""]
[null,null,null,null,null,null,null,"",null,"","",null,""]
[null,null,null,null,null,null,null,"",null,"","",null,""]
[null,null,null,null,null,null,null,"",null,"","",null,""]
[null,null,null,null,null,null,null,"",null,"","",null,""]
[null,null,null,null,null,null,null,"",null,"","",null,""]
[null,null,null,null,null,null,null,"",null,"","",null,""]
[null,null,null,null,null,null,null,"",null,"","",null,""]
[null,null,null,null,null,null,null,"",null,"","",null,""]
[null,null,null,null,null,null,null,"",null,"","",null,""]
[null,null,null,null,null,null,null,"",null,"","",null,""]
[null,null,null,null,null,null,null,"",null,"","",null,""]
[null,null,null,null,null,null,null,"",null,"","",null,""]
[null,null,null,null,null,null,null,"",null,"","",null,""]
[null,null,null,null,null,null,null,"",null,"","",null,""]
[null,null,null,null,null,null,null,"",null,"","",null,""]
[null,null,null,null,null,null,null,"",null,"","",null,""]
[null,null,null,null,null,null,null,"",null,"","",null,""]
[null,null,null,null,null,null,null,"",null,"","",null,""]
[null,null,null,null,null,null,null,"",null,"","",null,""]
[null,null,null,null,null,null,null,"",null,"","",null,""]
[null,null,null,null,null,null,null,"",null,"","",null,""]
[null,null,null,null,null,null,null,"",null,"","",null,""]
[null,null,null,null,null,null,null,"",null,"","",null,""]
[null,null,null,null,null,null,null,{"$f":"IF(G198<>\"\",G198-G198/((100+F198)/100),\"\")","v":""},null,{"$f":"IF(I198<>\"\",I198-I198/((100+F198)/100),\"\")","v":""},{"$f":"IF(C198<>0,IF(G198<>0,K197+G198,IF(I198<>0,K197-I198,\"\")),\"\")","v":""},null,""]
[null,null,null,null,null,null,null,"",null,"","",null,{"$f":"IF(K200=\"\",K199,\"0\")","v":""}]
[null,null,null,null,null,null,null,"",null,"","",null,""]
[null,null,null,null,null,null,null,"",null,"","",null,""]
[null,null,null,null,null,null,null,"",null,"","",null,""]
[null,null,null,null,null,null,null,"",null,"","",null,""]
[null,null,null,null,null,null,null,"",null,"","",null,""]
[null,null,null,null,null,null,null,"",null,"","",null,""]
[null,null,null,null,null,null,null,"",null,"","",null,""]
[null,null,null,null,null,null,null,"",null,"","",null,""]
[null,null,null,null,null,null,null,"",null,"","",null,""]
[null,null,null,null,null,null,null,"",null,"","",null,""]
[null,null,null,null,null,null,null,"",null,"","",null,""]
[null,null,null,null,null,null,null,"",null,"","",null,""]
[null,null,null,null,null,null,null,"",null,"","",null,""]
[null,null,null,null,null,null,null,"",null,"","",null,""]
[null,null,null,null,null,null,null,"",null,"","",null,""]
[null,null,null,null,null,null,null,"",null,"","",null,""]
[null,null,null,null,null,null,null,"",null,"","",null,""]
[null,null,null,null,null,null,null,"",null,"","",null,""]
[null,null,null,null,null,null,null,"",null,"","",null,""]
[null,null,null,null,null,null,null,"",null,"","",null,""]
[null,null,null,null,null,null,null,"",null,"","",null,""]
[null,null,null,null,null,null,null,"",null,"","",null,""]
[null,null,null,null,null,null,null,"",null,"","",null,""]
[null,null,null,null,null,null,null,"",null,"","",null,""]
[null,null,null,null,null,null,null,"",null,"","",null,""]
[null,null,null,null,null,null,null,"",null,"","",null,""]
[null,null,null,null,null,null,null,"",null,"","",null,""]
[null,null,null,null,null,null,null,"",null,"","",null,""]
[null,null,null,null,null,null,null,"",null,"","",null,""]
[null,null,null,null,null,null,null,"",null,"","",null,""]
[null,null,null,null,null,null,null,"",null,"","",null,""]
[null,null,null,null,null,null,null,"",null,"","",null,""]
[null,null,null,null,null,null,null,"",null,"","",null,""]
[null,null,null,null,null,null,null,"",null,"","",null,""]
[null,null,null,null,null,null,null,"",null,"","",null,""]
[null,null,null,null,null,null,null,"",null,"","",null,""]
[null,null,null,null,null,null,null,"",null,"","",null,""]
[null,null,null,null,null,null,null,"",null,"","",null,""]
[null,null,null,null,null,null,null,"",null,"","",null,""]
[null,null,null,null,null,null,null,"",null,"","",null,""]
[null,null,null,null,null,null,null,"",null,"","",null,""]
[null,null,null,null,null,null,null,"",null,"","",null,""]
[null,null,null,null,null,null,null,"",null,"","",null,""]
[null,null,null,null,null,null,null,"",null,"","",null,""]
[null,null,null,null,null,null,null,"",null,"","",null,""]
[null,null,null,null,null,null,null,"",null,"","",null,""]
[null,null,null,null,null,null,null,"",null,"","",null,""]
[null,null,null,null,null,null,null,"",null,"","",null,""]
[null,null,null,null,null,null,null,"",null,"","",null,""]
[null,null,null,null,null,null,null,"",null,"","",null,""]
[null,null,null,null,null,null,null,"",null,"","",null,""]
[null,null,null,null,null,null,null,"",null,"","",null,""]
[null,null,null,null,null,null,null,"",null,"","",null,""]
[null,null,null,null,null,null,null,"",null,"","",null,""]
[null,null,null,null,null,null,null,"",null,"","",null,""]
[null,null,null,null,null,null,null,"",null,"","",null,""]
[null,null,null,null,null,null,null,"",null,"","",null,""]
[null,null,null,null,null,null,null,"",null,"","",null,""]
[null,null,null,null,null,null,null,"",null,"","",null,""]
[null,null,null,null,null,null,null,"",null,"","",null,""]
[null,null,null,null,null,null,null,"",null,"","",null,""]
[null,null,null,null,null,null,null,"",null,"","",null,""]
[null,null,null,null,null,null,null,{"$f":"IF(G262<>\"\",G262-G262/((100+F262)/100),\"\")","v":""},null,{"$f":"IF(I262<>\"\",I262-I262/((100+F262)/100),\"\")","v":""},{"$f":"IF(C262<>0,IF(G262<>0,K261+G262,IF(I262<>0,K261-I262,\"\")),\"\")","v":""},null,""]
[null,null,null,null,null,null,null,"",null,"","",null,{"$f":"IF(K264=\"\",K263,\"0\")","v":""}]
[null,null,null,null,null,null,null,"",null,"","",null,""]
[null,null,null,null,null,null,null,"",null,"","",null,""]
[null,null,null,null,null,null,null,"",null,"","",null,""]
[null,null,null,null,null,null,null,"",null,"","",null,""]
[null,null,null,null,null,null,null,"",null,"","",null,""]
[null,null,null,null,null,null,null,"",null,"","",null,""]
[null,null,null,null,null,null,null,"",null,"","",null,""]
[null,null,null,null,null,null,null,"",null,"","",null,""]
[null,null,null,null,null,null,null,"",null,"","",null,""]
[null,null,null,null,null,null,null,"",null,"","",null,""]
[null,null,null,null,null,null,null,"",null,"","",null,""]
[null,null,null,null,null,null,null,"",null,"","",null,""]
[null,null,null,null,null,null,null,"",null,"","",null,""]
[null,null,null,null,null,null,null,"",null,"","",null,""]
[null,null,null,null,null,null,null,"",null,"","",null,""]
[null,null,null,null,null,null,null,"",null,"","",null,""]
[null,null,null,null,null,null,null,"",null,"","",null,""]
[null,null,null,null,null,null,null,"",null,"","",null,""]
[null,null,null,null,null,null,null,"",null,"","",null,""]
[null,null,null,null,null,null,null,"",null,"","",null,""]
[null,null,null,null,null,null,null,"",null,"","",null,""]
[null,null,null,null,null,null,null,"",null,"","",null,""]
[null,null,null,null,null,null,null,"",null,"","",null,""]
[null,null,null,null,null,null,null,"",null,"","",null,""]
[null,null,null,null,null,null,null,"",null,"","",null,""]
[null,null,null,null,null,null,null,"",null,"","",null,""]
[null,null,null,null,null,null,null,"",null,"","",null,""]
[null,null,null,null,null,null,null,"",null,"","",null,""]
[null,null,null,null,null,null,null,"",null,"","",null,""]
[null,null,null,null,null,null,null,"",null,"","",null,""]
[null,null,null,null,null,null,null,"",null,"","",null,""]
[null,null,null,null,null,null,null,"",null,"","",null,""]
[null,null,null,null,null,null,null,"",null,"","",null,""]
[null,null,null,null,null,null,null,"",null,"","",null,""]
[null,null,null,null,null,null,null,"",null,"","",null,""]
[null,null,null,null,null,null,null,"",null,"","",null,""]
[null,null,null,null,null,null,null,"",null,"","",null,""]
[null,null,null,null,null,null,null,"",null,"","",null,""]
[null,null,null,null,null,null,null,"",null,"","",null,""]
[null,null,null,null,null,null,null,"",null,"","",null,""]
[null,null,null,null,null,null,null,"",null,"","",null,""]
[null,null,null,null,null,null,null,"",null,"","",null,""]
[null,null,null,null,null,null,null,"",null,"","",null,""]
[null,null,null,null,null,null,null,"",null,"","",null,""]
[null,null,null,null,null,null,null,"",null,"","",null,""]
[null,null,null,null,null,null,null,"",null,"","",null,""]
[null,null,null,null,null,null,null,"",null,"","",null,""]
[null,null,null,null,null,null,null,"",null,"","",null,""]
[null,null,null,null,null,null,null,"",null,"","",null,""]
[null,null,null,null,null,null,null,"",null,"","",null,""]
[null,null,null,null,null,null,null,"",null,"","",null,""]
[null,null,null,null,null,null,null,"",null,"","",null,""]
[null,null,null,null,null,null,null,"",null,"","",null,""]
[null,null,null,null,null,null,null,"",null,"","",null,""]
[null,null,null,null,null,null,null,"",null,"","",null,""]
[null,null,null,null,null,null,null,"",null,"","",null,""]
[null,null,null,null,null,null,null,"",null,"","",null,""]
[null,null,null,null,null,null,null,"",null,"","",null,""]
[null,null,null,null,null,null,null,"",null,"","",null,""]
[null,null,null,null,null,null,null,"",null,"","",null,""]
[null,null,null,null,null,null,null,"",null,"","",null,""]
[null,null,null,null,null,null,null,"",null,"","",null,""]
[null,null,null,null,null,null,null,{"$f":"IF(G326<>\"\",G326-G326/((100+F326)/100),\"\")","v":""},null,{"$f":"IF(I326<>\"\",I326-I326/((100+F326)/100),\"\")","v":""},{"$f":"IF(C326<>0,IF(G326<>0,K325+G326,IF(I326<>0,K325-I326,\"\")),\"\")","v":""},null,""]
[null,null,null,null,null,null,null,"",null,"","",null,{"$f":"IF(K328=\"\",K327,\"0\")","v":""}]
[null,null,null,null,null,null,null,"",null,"","",null,""]
[null,null,null,null,null,null,null,"",null,"","",null,""]
[null,null,null,null,null,null,null,"",null,"","",null,""]
[null,null,null,null,null,null,null,"",null,"","",null,""]
[null,null,null,null,null,null,null,"",null,"","",null,""]
[null,null,null,null,null,null,null,"",null,"","",null,""]
[null,null,null,null,null,null,null,"",null,"","",null,""]
[null,null,null,null,null,null,null,"",null,"","",null,""]
[null,null,null,null,null,null,null,"",null,"","",null,""]
[null,null,null,null,null,null,null,"",null,"","",null,""]
[null,null,null,null,null,null,null,"",null,"","",null,""]
[null,null,null,null,null,null,null,"",null,"","",null,""]
[null,null,null,null,null,null,null,"",null,"","",null,""]
[null,null,null,null,null,null,null,"",null,"","",null,""]
[null,null,null,null,null,null,null,"",null,"","",null,""]
[null,null,null,null,null,null,null,"",null,"","",null,""]
[null,null,null,null,null,null,null,"",null,"","",null,""]
[null,null,null,null,null,null,null,"",null,"","",null,""]
[null,null,null,null,null,null,null,"",null,"","",null,""]
[null,null,null,null,null,null,null,"",null,"","",null,""]
[null,null,null,null,null,null,null,"",null,"","",null,""]
[null,null,null,null,null,null,null,"",null,"","",null,""]
[null,null,null,null,null,null,null,"",null,"","",null,""]
[null,null,null,null,null,null,null,"",null,"","",null,""]
[null,null,null,null,null,null,null,"",null,"","",null,""]
[null,null,null,null,null,null,null,"",null,"","",null,""]
[null,null,null,null,null,null,null,"",null,"","",null,""]
[null,null,null,null,null,null,null,"",null,"","",null,""]
[null,null,null,null,null,null,null,"",null,"","",null,""]
[null,null,null,null,null,null,null,"",null,"","",null,""]
[null,null,null,null,null,null,null,"",null,"","",null,""]
[null,null,null,null,null,null,null,"",null,"","",null,""]
[null,null,null,null,null,null,null,"",null,"","",null,""]
[null,null,null,null,null,null,null,"",null,"","",null,""]
[null,null,null,null,null,null,null,"",null,"","",null,""]
[null,null,null,null,null,null,null,"",null,"","",null,""]
[null,null,null,null,null,null,null,"",null,"","",null,""]
[null,null,null,null,null,null,null,"",null,"","",null,""]
[null,null,null,null,null,null,null,"",null,"","",null,""]
[null,null,null,null,null,null,null,"",null,"","",null,""]
[null,null,null,null,null,null,null,"",null,"","",null,""]
[null,null,null,null,null,null,null,"",null,"","",null,""]
[null,null,null,null,null,null,null,"",null,"","",null,""]
[null,null,null,null,null,null,null,"",null,"","",null,""]
[null,null,null,null,null,null,null,"",null,"","",null,""]
[null,null,null,null,null,null,null,"",null,"","",null,""]
[null,null,null,null,null,null,null,"",null,"","",null,""]
[null,null,null,null,null,null,null,"",null,"","",null,""]
[null,null,null,null,null,null,null,"",null,"","",null,""]
[null,null,null,null,null,null,null,"",null,"","",null,""]
[null,null,null,null,null,null,null,"",null,"","",null,""]
[null,null,null,null,null,null,null,"",null,"","",null,""]
[null,null,null,null,null,null,null,"",null,"","",null,""]
[null,null,null,null,null,null,null,"",null,"","",null,""]
[null,null,null,null,null,null,null,"",null,"","",null,""]
[null,null,null,null,null,null,null,"",null,"","",null,""]
[null,null,null,null,null,null,null,"",null,"","",null,""]
[null,null,null,null,null,null,null,"",null,"","",null,""]
[null,null,null,null,null,null,null,"",null,"","",null,""]
[null,null,null,null,null,null,null,"",null,"","",null,""]
[null,null,null,null,null,null,null,"",null,"","",null,""]
[null,null,null,null,null,null,null,"",null,"","",null,""]
[null,null,null,null,null,null,null,{"$f":"IF(G390<>\"\",G390-G390/((100+F390)/100),\"\")","v":""},null,{"$f":"IF(I390<>\"\",I390-I390/((100+F390)/100),\"\")","v":""},{"$f":"IF(C390<>0,IF(G390<>0,K389+G390,IF(I390<>0,K389-I390,\"\")),\"\")","v":""},null,""]
[null,null,null,null,null,null,null,"",null,"","",null,{"$f":"IF(K392=\"\",K391,\"0\")","v":""}]
[null,null,null,null,null,null,null,"",null,"","",null,""]
[null,null,null,null,null,null,null,"",null,"","",null,""]
[null,null,null,null,null,null,null,"",null,"","",null,""]
[null,null,null,null,null,null,null,"",null,"","",null,""]
[null,null,null,null,null,null,null,"",null,"","",null,""]
[null,null,null,null,null,null,null,"",null,"","",null,""]
[null,null,null,null,null,null,null,"",null,"","",null,""]
[null,null,null,null,null,null,null,"",null,"","",null,""]
[null,null,null,null,null,null,null,"",null,"","",null,""]
[null,null,null,null,null,null,null,"",null,"","",null,""]
[null,null,null,null,null,null,null,"",null,"","",null,""]
[null,null,null,null,null,null,null,"",null,"","",null,""]
[null,null,null,null,null,null,null,"",null,"","",null,""]
[null,null,null,null,null,null,null,"",null,"","",null,""]
[null,null,null,null,null,null,null,"",null,"","",null,""]
[null,null,null,null,null,null,null,"",null,"","",null,""]
[null,null,null,null,null,null,null,"",null,"","",null,""]
[null,null,null,null,null,null,null,"",null,"","",null,""]
[null,null,null,null,null,null,null,"",null,"","",null,""]
[null,null,null,null,null,null,null,"",null,"","",null,""]
[null,null,null,null,null,null,null,"",null,"","",null,""]
[null,null,null,null,null,null,null,"",null,"","",null,""]
[null,null,null,null,null,null,null,"",null,"","",null,""]
[null,null,null,null,null,null,null,"",null,"","",null,""]
[null,null,null,null,null,null,null,"",null,"","",null,""]
[null,null,null,null,null,null,null,"",null,"","",null,""]
[null,null,null,null,null,null,null,"",null,"","",null,""]
[null,null,null,null,null,null,null,"",null,"","",null,""]
[null,null,null,null,null,null,null,"",null,"","",null,""]
[null,null,null,null,null,null,null,"",null,"","",null,""]
[null,null,null,null,null,null,null,"",null,"","",null,""]
[null,null,null,null,null,null,null,"",null,"","",null,""]
[null,null,null,null,null,null,null,"",null,"","",null,""]
[null,null,null,null,null,null,null,"",null,"","",null,""]
[null,null,null,null,null,null,null,"",null,"","",null,""]
[null,null,null,null,null,null,null,"",null,"","",null,""]
[null,null,null,null,null,null,null,"",null,"","",null,""]
[null,null,null,null,null,null,null,"",null,"","",null,""]
[null,null,null,null,null,null,null,"",null,"","",null,""]
[null,null,null,null,null,null,null,"",null,"","",null,""]
[null,null,null,null,null,null,null,"",null,"","",null,""]
[null,null,null,null,null,null,null,"",null,"","",null,""]
[null,null,null,null,null,null,null,"",null,"","",null,""]
[null,null,null,null,null,null,null,"",null,"","",null,""]
[null,null,null,null,null,null,null,"",null,"","",null,""]
[null,null,null,null,null,null,null,"",null,"","",null,""]
[null,null,null,null,null,null,null,"",null,"","",null,""]
[null,null,null,null,null,null,null,"",null,"","",null,""]
[null,null,null,null,null,null,null,"",null,"","",null,""]
[null,null,null,null,null,null,null,"",null,"","",null,""]
[null,null,null,null,null,null,null,"",null,"","",null,""]
[null,null,null,null,null,null,null,"",null,"","",null,""]
[null,null,null,null,null,null,null,"",null,"","",null,""]
[null,null,null,null,null,null,null,"",null,"","",null,""]
[null,null,null,null,null,null,null,"",null,"","",null,""]
[null,null,null,null,null,null,null,"",null,"","",null,""]
[null,null,null,null,null,null,null,"",null,"","",null,""]
[null,null,null,null,null,null,null,"",null,"","",null,""]
[null,null,null,null,null,null,null,"",null,"","",null,""]
[null,null,null,null,null,null,null,"",null,"","",null,""]
[null,null,null,null,null,null,null,"",null,"","",null,""]
[null,null,null,null,null,null,null,"",null,"","",null,""]
[null,null,null,null,null,null,null,{"$f":"IF(G454<>\"\",G454-G454/((100+F454)/100),\"\")","v":""},null,{"$f":"IF(I454<>\"\",I454-I454/((100+F454)/100),\"\")","v":""},{"$f":"IF(C454<>0,IF(G454<>0,K453+G454,IF(I454<>0,K453-I454,\"\")),\"\")","v":""},null,""]
[null,null,null,null,null,null,null,"",null,"","",null,{"$f":"IF(K456=\"\",K455,\"0\")","v":""}]
[null,null,null,null,null,null,null,"",null,"","",null,""]
[null,null,null,null,null,null,null,"",null,"","",null,""]
[null,null,null,null,null,null,null,"",null,"","",null,""]
[null,null,null,null,null,null,null,"",null,"","",null,""]
[null,null,null,null,null,null,null,"",null,"","",null,""]
[null,null,null,null,null,null,null,"",null,"","",null,""]
[null,null,null,null,null,null,null,"",null,"","",null,""]
[null,null,null,null,null,null,null,"",null,"","",null,""]
[null,null,null,null,null,null,null,"",null,"","",null,""]
[null,null,null,null,null,null,null,"",null,"","",null,""]
[null,null,null,null,null,null,null,"",null,"","",null,""]
[null,null,null,null,null,null,null,"",null,"","",null,""]
[null,null,null,null,null,null,null,"",null,"","",null,""]
[null,null,null,null,null,null,null,"",null,"","",null,""]
[null,null,null,null,null,null,null,"",null,"","",null,""]
[null,null,null,null,null,null,null,"",null,"","",null,""]
[null,null,null,null,null,null,null,"",null,"","",null,""]
[null,null,null,null,null,null,null,"",null,"","",null,""]
[null,null,null,null,null,null,null,"",null,"","",null,""]
[null,null,null,null,null,null,null,"",null,"","",null,""]
[null,null,null,null,null,null,null,"",null,"","",null,""]
[null,null,null,null,null,null,null,"",null,"","",null,""]
[null,null,null,null,null,null,null,"",null,"","",null,""]
[null,null,null,null,null,null,null,"",null,"","",null,""]
[null,null,null,null,null,null,null,"",null,"","",null,""]
[null,null,null,null,null,null,null,"",null,"","",null,""]
[null,null,null,null,null,null,null,"",null,"","",null,""]
[null,null,null,null,null,null,null,"",null,"","",null,""]
[null,null,null,null,null,null,null,"",null,"","",null,""]
[null,null,null,null,null,null,null,"",null,"","",null,""]
[null,null,null,null,null,null,null,"",null,"","",null,""]
[null,null,null,null,null,null,null,"",null,"","",null,""]
[null,null,null,null,null,null,null,"",null,"","",null,""]
[null,null,null,null,null,null,null,"",null,"","",null,""]
[null,null,null,null,null,null,null,"",null,"","",null,""]
[null,null,null,null,null,null,null,"",null,"","",null,""]
[null,null,null,null,null,null,null,"",null,"","",null,""]
[null,null,null,null,null,null,null,"",null,"","",null,""]
[null,null,null,null,null,null,null,"",null,"","",null,""]
[null,null,null,null,null,null,null,"",null,"","",null,""]
[null,null,null,null,null,null,null,"",null,"","",null,""]
[null,null,null,null,null,null,null,"",null,"","",null,""]
[null,null,null,null,null,null,null,"",null,"","",null,""]
[null,null,null,null,null,null,null,"",null,"","",null,""]
[null,null,null,null,null,null,null,"",null,"","",null,""]
[null,null,null,null,null,null,null,null,null,null,null,null,{"$f":"SUM(M5:M500)","v":0}]

{"sheet":"Jul","index":7,"n_rows":501,"n_cols":14,"rows_kept":501,"cut":false,"hidden":false,"merged":[[0,1,0,10],[1,1,1,10],[2,1,2,6],[2,8,2,10],[4,1,4,9]]}
[null,"KASSABUCH"]
[null,null,null,null,null,null,null,null,null,null,null,null,{"$f":"DATE(Jahr,2,1)","v":"1900-02-01"},"Anfangsdatum"]
[null,{"$f":"IF(Name<>0,Name,\"\")","v":""},null,null,null,null,null,null,{"$f":"\"Juli \"&Jahr","v":"Juli "},null,null,null,{"$f":"DATE(Jahr,3,1)-1","v":60},"Enddatum"]
[null,"Datum","Beleg","Konto","Text","%","Einnahmen","USt","Ausgaben","Vorsteuer","Kassabestand",null,{"$f":"SUM(M5:M500)","v":0},{"$f":"I3 &\", \"&\"Endstand\"","v":"Juli , Endstand"}]
[null,"Übertrag Vormonat EUR:",null,null,null,null,null,null,null,null,{"$f":"Jun!M4","v":0},null,{"$f":"IF(K6=\"\",K5,\"0\")","v":0}]
[null,null,null,null,null,null,null,null,null,{"$f":"IF(I6<>\"\",I6-I6/((100+F6)/100),\"\")","v":""},{"$f":"IF(C6<>0,IF(G6<>0,K5+G6,IF(I6<>0,K5-I6,\"\")),\"\")","v":""},null,{"$f":"IF(K7=\"\",K6,\"0\")","v":""}]
[null,null,null,null,null,null,null,null,null,{"$f":"IF(I7<>\"\",I7-I7/((100+F7)/100),\"\")","v":""},{"$f":"IF(C7<>0,IF(G7<>0,K6+G7,IF(I7<>0,K6-I7,\"\")),\"\")","v":""},null,{"$f":"IF(K8=\"\",K7,\"0\")","v":""}]
[null,null,null,null,null,null,null,{"$f":"IF(G8<>\"\",G8-G8/((100+F8)/100),\"\")","v":""},null,"","",null,{"$f":"IF(K9=\"\",K8,\"0\")","v":""}]
[null,null,null,null,null,null,null,"",null,"","",null,""]
[null,null,null,null,null,null,null,"",null,"","",null,""]
[null,null,null,null,null,null,null,"",null,"","",null,""]
[null,null,null,null,null,null,null,"",null,"","",null,""]
[null,null,null,null,null,null,null,"",null,"","",null,""]
[null,null,null,null,null,null,null,"",null,"","",null,""]
[null,null,null,null,null,null,null,"",null,"","",null,""]
[null,null,null,null,null,null,null,"",null,"","",null,""]
[null,null,null,null,null,null,null,"",null,"","",null,""]
[null,null,null,null,null,null,null,"",null,"","",null,""]
[null,null,null,null,null,null,null,"",null,"","",null,""]
[null,null,null,null,null,null,null,"",null,"","",null,""]
[null,null,null,null,null,null,null,"",null,"","",null,""]
[null,null,null,null,null,null,null,"",null,"","",null,""]
[null,null,null,null,null,null,null,"",null,"","",null,""]
[null,null,null,null,null,null,null,"",null,"","",null,""]
[null,null,null,null,null,null,null,"",null,"","",null,""]
[null,null,null,null,null,null,null,"",null,"","",null,""]
[null,null,null,null,null,null,null,"",null,"","",null,""]
[null,null,null,null,null,null,null,"",null,"","",null,""]
[null,null,null,null,null,null,null,"",null,"","",null,""]
[null,null,null,null,null,null,null,"",null,"","",null,""]
[null,null,null,null,null,null,null,"",null,"","",null,""]
[null,null,null,null,null,null,null,"",null,"","",null,""]
[null,null,null,null,null,null,null,"",null,"","",null,""]
[null,null,null,null,null,null,null,"",null,"","",null,""]
[null,null,null,null,null,null,null,"",null,"","",null,""]
[null,null,null,null,null,null,null,"",null,"","",null,""]
[null,null,null,null,null,null,null,"",null,"","",null,""]
[null,null,null,null,null,null,null,"",null,"","",null,""]
[null,null,null,null,null,null,null,"",null,"","",null,""]
[null,null,null,null,null,null,null,"",null,"","",null,""]
[null,null,null,null,null,null,null,"",null,"","",null,""]
[null,null,null,null,null,null,null,"",null,"","",null,""]
[null,null,null,null,null,null,null,"",null,"","",null,""]
[null,null,null,null,null,null,null,"",null,"","",null,""]
[null,null,null,null,null,null,null,"",null,"","",null,""]
[null,null,null,null,null,null,null,"",null,"","",null,""]
[null,null,null,null,null,null,null,"",null,"","",null,""]
[null,null,null,null,null,null,null,"",null,"","",null,""]
[null,null,null,null,null,null,null,"",null,"","",null,""]
[null,null,null,null,null,null,null,"",null,"","",null,""]
[null,null,null,null,null,null,null,"",null,"","",null,""]
[null,null,null,null,null,null,null,"",null,"","",null,""]
[null,null,null,null,null,null,null,"",null,"","",null,""]
[null,null,null,null,null,null,null,"",null,"","",null,""]
[null,null,null,null,null,null,null,"",null,"","",null,""]
[null,null,null,null,null,null,null,"",null,"","",null,""]
[null,null,null,null,null,null,null,"",null,"","",null,""]
[null,null,null,null,null,null,null,"",null,"","",null,""]
[null,null,null,null,null,null,null,"",null,"","",null,""]
[null,null,null,null,null,null,null,"",null,"","",null,""]
[null,null,null,null,null,null,null,"",null,"","",null,""]
[null,null,null,null,null,null,null,"",null,"","",null,""]
[null,null,null,null,null,null,null,"",null,"","",null,""]
[null,null,null,null,null,null,null,"",null,"","",null,""]
[null,null,null,null,null,null,null,"",null,"","",null,""]
[null,null,null,null,null,null,null,"",null,"","",null,""]
[null,null,null,null,null,null,null,"",null,"","",null,""]
[null,null,null,null,null,null,null,"",null,"","",null,""]
[null,null,null,null,null,null,null,"",null,"","",null,""]
[null,null,null,null,null,null,null,{"$f":"IF(G70<>\"\",G70-G70/((100+F70)/100),\"\")","v":""},null,{"$f":"IF(I70<>\"\",I70-I70/((100+F70)/100),\"\")","v":""},{"$f":"IF(C70<>0,IF(G70<>0,K69+G70,IF(I70<>0,K69-I70,\"\")),\"\")","v":""},null,""]
[null,null,null,null,null,null,null,"",null,"","",null,{"$f":"IF(K72=\"\",K71,\"0\")","v":""}]
[null,null,null,null,null,null,null,"",null,"","",null,""]
[null,null,null,null,null,null,null,"",null,"","",null,""]
[null,null,null,null,null,null,null,"",null,"","",null,""]
[null,null,null,null,null,null,null,"",null,"","",null,""]
[null,null,null,null,null,null,null,"",null,"","",null,""]
[null,null,null,null,null,null,null,"",null,"","",null,""]
[null,null,null,null,null,null,null,"",null,"","",null,""]
[null,null,null,null,null,null,null,"",null,"","",null,""]
[null,null,null,null,null,null,null,"",null,"","",null,""]
[null,null,null,null,null,null,null,"",null,"","",null,""]
[null,null,null,null,null,null,null,"",null,"","",null,""]
[null,null,null,null,null,null,null,"",null,"","",null,""]
[null,null,null,null,null,null,null,"",null,"","",null,""]
[null,null,null,null,null,null,null,"",null,"","",null,""]
[null,null,null,null,null,null,null,"",null,"","",null,""]
[null,null,null,null,null,null,null,"",null,"","",null,""]
[null,null,null,null,null,null,null,"",null,"","",null,""]
[null,null,null,null,null,null,null,"",null,"","",null,""]
[null,null,null,null,null,null,null,"",null,"","",null,""]
[null,null,null,null,null,null,null,"",null,"","",null,""]
[null,null,null,null,null,null,null,"",null,"","",null,""]
[null,null,null,null,null,null,null,"",null,"","",null,""]
[null,null,null,null,null,null,null,"",null,"","",null,""]
[null,null,null,null,null,null,null,"",null,"","",null,""]
[null,null,null,null,null,null,null,"",null,"","",null,""]
[null,null,null,null,null,null,null,"",null,"","",null,""]
[null,null,null,null,null,null,null,"",null,"","",null,""]
[null,null,null,null,null,null,null,"",null,"","",null,""]
[null,null,null,null,null,null,null,"",null,"","",null,""]
[null,null,null,null,null,null,null,"",null,"","",null,""]
[null,null,null,null,null,null,null,"",null,"","",null,""]
[null,null,null,null,null,null,null,"",null,"","",null,""]
[null,null,null,null,null,null,null,"",null,"","",null,""]
[null,null,null,null,null,null,null,"",null,"","",null,""]
[null,null,null,null,null,null,null,"",null,"","",null,""]
[null,null,null,null,null,null,null,"",null,"","",null,""]
[null,null,null,null,null,null,null,"",null,"","",null,""]
[null,null,null,null,null,null,null,"",null,"","",null,""]
[null,null,null,null,null,null,null,"",null,"","",null,""]
[null,null,null,null,null,null,null,"",null,"","",null,""]
[null,null,null,null,null,null,null,"",null,"","",null,""]
[null,null,null,null,null,null,null,"",null,"","",null,""]
[null,null,null,null,null,null,null,"",null,"","",null,""]
[null,null,null,null,null,null,null,"",null,"","",null,""]
[null,null,null,null,null,null,null,"",null,"","",null,""]
[null,null,null,null,null,null,null,"",null,"","",null,""]
[null,null,null,null,null,null,null,"",null,"","",null,""]
[null,null,null,null,null,null,null,"",null,"","",null,""]
[null,null,null,null,null,null,null,"",null,"","",null,""]
[null,null,null,null,null,null,null,"",null,"","",null,""]
[null,null,null,null,null,null,null,"",null,"","",null,""]
[null,null,null,null,null,null,null,"",null,"","",null,""]
[null,null,null,null,null,null,null,"",null,"","",null,""]
[null,null,null,null,null,null,null,"",null,"","",null,""]
[null,null,null,null,null,null,null,"",null,"","",null,""]
[null,null,null,null,null,null,null,"",null,"","",null,""]
[null,null,null,null,null,null,null,"",null,"","",null,""]
[null,null,null,null,null,null,null,"",null,"","",null,""]
[null,null,null,null,null,null,null,"",null,"","",null,""]
[null,null,null,null,null,null,null,"",null,"","",null,""]
[null,null,null,null,null,null,null,"",null,"","",null,""]
[null,null,null,null,null,null,null,"",null,"","",null,""]
[null,null,null,null,null,null,null,{"$f":"IF(G134<>\"\",G134-G134/((100+F134)/100),\"\")","v":""},null,{"$f":"IF(I134<>\"\",I134-I134/((100+F134)/100),\"\")","v":""},{"$f":"IF(C134<>0,IF(G134<>0,K133+G134,IF(I134<>0,K133-I134,\"\")),\"\")","v":""},null,""]
[null,null,null,null,null,null,null,"",null,"","",null,{"$f":"IF(K136=\"\",K135,\"0\")","v":""}]
[null,null,null,null,null,null,null,"",null,"","",null,""]
[null,null,null,null,null,null,null,"",null,"","",null,""]
[null,null,null,null,null,null,null,"",null,"","",null,""]
[null,null,null,null,null,null,null,"",null,"","",null,""]
[null,null,null,null,null,null,null,"",null,"","",null,""]
[null,null,null,null,null,null,null,"",null,"","",null,""]
[null,null,null,null,null,null,null,"",null,"","",null,""]
[null,null,null,null,null,null,null,"",null,"","",null,""]
[null,null,null,null,null,null,null,"",null,"","",null,""]
[null,null,null,null,null,null,null,"",null,"","",null,""]
[null,null,null,null,null,null,null,"",null,"","",null,""]
[null,null,null,null,null,null,null,"",null,"","",null,""]
[null,null,null,null,null,null,null,"",null,"","",null,""]
[null,null,null,null,null,null,null,"",null,"","",null,""]
[null,null,null,null,null,null,null,"",null,"","",null,""]
[null,null,null,null,null,null,null,"",null,"","",null,""]
[null,null,null,null,null,null,null,"",null,"","",null,""]
[null,null,null,null,null,null,null,"",null,"","",null,""]
[null,null,null,null,null,null,null,"",null,"","",null,""]
[null,null,null,null,null,null,null,"",null,"","",null,""]
[null,null,null,null,null,null,null,"",null,"","",null,""]
[null,null,null,null,null,null,null,"",null,"","",null,""]
[null,null,null,null,null,null,null,"",null,"","",null,""]
[null,null,null,null,null,null,null,"",null,"","",null,""]
[null,null,null,null,null,null,null,"",null,"","",null,""]
[null,null,null,null,null,null,null,"",null,"","",null,""]
[null,null,null,null,null,null,null,"",null,"","",null,""]
[null,null,null,null,null,null,null,"",null,"","",null,""]
[null,null,null,null,null,null,null,"",null,"","",null,""]
[null,null,null,null,null,null,null,"",null,"","",null,""]
[null,null,null,null,null,null,null,"",null,"","",null,""]
[null,null,null,null,null,null,null,"",null,"","",null,""]
[null,null,null,null,null,null,null,"",null,"","",null,""]
[null,null,null,null,null,null,null,"",null,"","",null,""]
[null,null,null,null,null,null,null,"",null,"","",null,""]
[null,null,null,null,null,null,null,"",null,"","",null,""]
[null,null,null,null,null,null,null,"",null,"","",null,""]
[null,null,null,null,null,null,null,"",null,"","",null,""]
[null,null,null,null,null,null,null,"",null,"","",null,""]
[null,null,null,null,null,null,null,"",null,"","",null,""]
[null,null,null,null,null,null,null,"",null,"","",null,""]
[null,null,null,null,null,null,null,"",null,"","",null,""]
[null,null,null,null,null,null,null,"",null,"","",null,""]
[null,null,null,null,null,null,null,"",null,"","",null,""]
[null,null,null,null,null,null,null,"",null,"","",null,""]
[null,null,null,null,null,null,null,"",null,"","",null,""]
[null,null,null,null,null,null,null,"",null,"","",null,""]
[null,null,null,null,null,null,null,"",null,"","",null,""]
[null,null,null,null,null,null,null,"",null,"","",null,""]
[null,null,null,null,null,null,null,"",null,"","",null,""]
[null,null,null,null,null,null,null,"",null,"","",null,""]
[null,null,null,null,null,null,null,"",null,"","",null,""]
[null,null,null,null,null,null,null,"",null,"","",null,""]
[null,null,null,null,null,null,null,"",null,"","",null,""]
[null,null,null,null,null,null,null,"",null,"","",null,""]
[null,null,null,null,null,null,null,"",null,"","",null,""]
[null,null,null,null,null,null,null,"",null,"","",null,""]
[null,null,null,null,null,null,null,"",null,"","",null,""]
[null,null,null,null,null,null,null,"",null,"","",null,""]
[null,null,null,null,null,null,null,"",null,"","",null,""]
[null,null,null,null,null,null,null,"",null,"","",null,""]
[null,null,null,null,null,null,null,"",null,"","",null,""]
[null,null,null,null,null,null,null,{"$f":"IF(G198<>\"\",G198-G198/((100+F198)/100),\"\")","v":""},null,{"$f":"IF(I198<>\"\",I198-I198/((100+F198)/100),\"\")","v":""},{"$f":"IF(C198<>0,IF(G198<>0,K197+G198,IF(I198<>0,K197-I198,\"\")),\"\")","v":""},null,""]
[null,null,null,null,null,null,null,"",null,"","",null,{"$f":"IF(K200=\"\",K199,\"0\")","v":""}]
[null,null,null,null,null,null,null,"",null,"","",null,""]
[null,null,null,null,null,null,null,"",null,"","",null,""]
[null,null,null,null,null,null,null,"",null,"","",null,""]
[null,null,null,null,null,null,null,"",null,"","",null,""]
[null,null,null,null,null,null,null,"",null,"","",null,""]
[null,null,null,null,null,null,null,"",null,"","",null,""]
[null,null,null,null,null,null,null,"",null,"","",null,""]
[null,null,null,null,null,null,null,"",null,"","",null,""]
[null,null,null,null,null,null,null,"",null,"","",null,""]
[null,null,null,null,null,null,null,"",null,"","",null,""]
[null,null,null,null,null,null,null,"",null,"","",null,""]
[null,null,null,null,null,null,null,"",null,"","",null,""]
[null,null,null,null,null,null,null,"",null,"","",null,""]
[null,null,null,null,null,null,null,"",null,"","",null,""]
[null,null,null,null,null,null,null,"",null,"","",null,""]
[null,null,null,null,null,null,null,"",null,"","",null,""]
[null,null,null,null,null,null,null,"",null,"","",null,""]
[null,null,null,null,null,null,null,"",null,"","",null,""]
[null,null,null,null,null,null,null,"",null,"","",null,""]
[null,null,null,null,null,null,null,"",null,"","",null,""]
[null,null,null,null,null,null,null,"",null,"","",null,""]
[null,null,null,null,null,null,null,"",null,"","",null,""]
[null,null,null,null,null,null,null,"",null,"","",null,""]
[null,null,null,null,null,null,null,"",null,"","",null,""]
[null,null,null,null,null,null,null,"",null,"","",null,""]
[null,null,null,null,null,null,null,"",null,"","",null,""]
[null,null,null,null,null,null,null,"",null,"","",null,""]
[null,null,null,null,null,null,null,"",null,"","",null,""]
[null,null,null,null,null,null,null,"",null,"","",null,""]
[null,null,null,null,null,null,null,"",null,"","",null,""]
[null,null,null,null,null,null,null,"",null,"","",null,""]
[null,null,null,null,null,null,null,"",null,"","",null,""]
[null,null,null,null,null,null,null,"",null,"","",null,""]
[null,null,null,null,null,null,null,"",null,"","",null,""]
[null,null,null,null,null,null,null,"",null,"","",null,""]
[null,null,null,null,null,null,null,"",null,"","",null,""]
[null,null,null,null,null,null,null,"",null,"","",null,""]
[null,null,null,null,null,null,null,"",null,"","",null,""]
[null,null,null,null,null,null,null,"",null,"","",null,""]
[null,null,null,null,null,null,null,"",null,"","",null,""]
[null,null,null,null,null,null,null,"",null,"","",null,""]
[null,null,null,null,null,null,null,"",null,"","",null,""]
[null,null,null,null,null,null,null,"",null,"","",null,""]
[null,null,null,null,null,null,null,"",null,"","",null,""]
[null,null,null,null,null,null,null,"",null,"","",null,""]
[null,null,null,null,null,null,null,"",null,"","",null,""]
[null,null,null,null,null,null,null,"",null,"","",null,""]
[null,null,null,null,null,null,null,"",null,"","",null,""]
[null,null,null,null,null,null,null,"",null,"","",null,""]
[null,null,null,null,null,null,null,"",null,"","",null,""]
[null,null,null,null,null,null,null,"",null,"","",null,""]
[null,null,null,null,null,null,null,"",null,"","",null,""]
[null,null,null,null,null,null,null,"",null,"","",null,""]
[null,null,null,null,null,null,null,"",null,"","",null,""]
[null,null,null,null,null,null,null,"",null,"","",null,""]
[null,null,null,null,null,null,null,"",null,"","",null,""]
[null,null,null,null,null,null,null,"",null,"","",null,""]
[null,null,null,null,null,null,null,"",null,"","",null,""]
[null,null,null,null,null,null,null,"",null,"","",null,""]
[null,null,null,null,null,null,null,"",null,"","",null,""]
[null,null,null,null,null,null,null,"",null,"","",null,""]
[null,null,null,null,null,null,null,"",null,"","",null,""]
[null,null,null,null,null,null,null,{"$f":"IF(G262<>\"\",G262-G262/((100+F262)/100),\"\")","v":""},null,{"$f":"IF(I262<>\"\",I262-I262/((100+F262)/100),\"\")","v":""},{"$f":"IF(C262<>0,IF(G262<>0,K261+G262,IF(I262<>0,K261-I262,\"\")),\"\")","v":""},null,""]
[null,null,null,null,null,null,null,"",null,"","",null,{"$f":"IF(K264=\"\",K263,\"0\")","v":""}]
[null,null,null,null,null,null,null,"",null,"","",null,""]
[null,null,null,null,null,null,null,"",null,"","",null,""]
[null,null,null,null,null,null,null,"",null,"","",null,""]
[null,null,null,null,null,null,null,"",null,"","",null,""]
[null,null,null,null,null,null,null,"",null,"","",null,""]
[null,null,null,null,null,null,null,"",null,"","",null,""]
[null,null,null,null,null,null,null,"",null,"","",null,""]
[null,null,null,null,null,null,null,"",null,"","",null,""]
[null,null,null,null,null,null,null,"",null,"","",null,""]
[null,null,null,null,null,null,null,"",null,"","",null,""]
[null,null,null,null,null,null,null,"",null,"","",null,""]
[null,null,null,null,null,null,null,"",null,"","",null,""]
[null,null,null,null,null,null,null,"",null,"","",null,""]
[null,null,null,null,null,null,null,"",null,"","",null,""]
[null,null,null,null,null,null,null,"",null,"","",null,""]
[null,null,null,null,null,null,null,"",null,"","",null,""]
[null,null,null,null,null,null,null,"",null,"","",null,""]
[null,null,null,null,null,null,null,"",null,"","",null,""]
[null,null,null,null,null,null,null,"",null,"","",null,""]
[null,null,null,null,null,null,null,"",null,"","",null,""]
[null,null,null,null,null,null,null,"",null,"","",null,""]
[null,null,null,null,null,null,null,"",null,"","",null,""]
[null,null,null,null,null,null,null,"",null,"","",null,""]
[null,null,null,null,null,null,null,"",null,"","",null,""]
[null,null,null,null,null,null,null,"",null,"","",null,""]
[null,null,null,null,null,null,null,"",null,"","",null,""]
[null,null,null,null,null,null,null,"",null,"","",null,""]
[null,null,null,null,null,null,null,"",null,"","",null,""]
[null,null,null,null,null,null,null,"",null,"","",null,""]
[null,null,null,null,null,null,null,"",null,"","",null,""]
[null,null,null,null,null,null,null,"",null,"","",null,""]
[null,null,null,null,null,null,null,"",null,"","",null,""]
[null,null,null,null,null,null,null,"",null,"","",null,""]
[null,null,null,null,null,null,null,"",null,"","",null,""]
[null,null,null,null,null,null,null,"",null,"","",null,""]
[null,null,null,null,null,null,null,"",null,"","",null,""]
[null,null,null,null,null,null,null,"",null,"","",null,""]
[null,null,null,null,null,null,null,"",null,"","",null,""]
[null,null,null,null,null,null,null,"",null,"","",null,""]
[null,null,null,null,null,null,null,"",null,"","",null,""]
[null,null,null,null,null,null,null,"",null,"","",null,""]
[null,null,null,null,null,null,null,"",null,"","",null,""]
[null,null,null,null,null,null,null,"",null,"","",null,""]
[null,null,null,null,null,null,null,"",null,"","",null,""]
[null,null,null,null,null,null,null,"",null,"","",null,""]
[null,null,null,null,null,null,null,"",null,"","",null,""]
[null,null,null,null,null,null,null,"",null,"","",null,""]
[null,null,null,null,null,null,null,"",null,"","",null,""]
[null,null,null,null,null,null,null,"",null,"","",null,""]
[null,null,null,null,null,null,null,"",null,"","",null,""]
[null,null,null,null,null,null,null,"",null,"","",null,""]
[null,null,null,null,null,null,null,"",null,"","",null,""]
[null,null,null,null,null,null,null,"",null,"","",null,""]
[null,null,null,null,null,null,null,"",null,"","",null,""]
[null,null,null,null,null,null,null,"",null,"","",null,""]
[null,null,null,null,null,null,null,"",null,"","",null,""]
[null,null,null,null,null,null,null,"",null,"","",null,""]
[null,null,null,null,null,null,null,"",null,"","",null,""]
[null,null,null,null,null,null,null,"",null,"","",null,""]
[null,null,null,null,null,null,null,"",null,"","",null,""]
[null,null,null,null,null,null,null,"",null,"","",null,""]
[null,null,null,null,null,null,null,"",null,"","",null,""]
[null,null,null,null,null,null,null,{"$f":"IF(G326<>\"\",G326-G326/((100+F326)/100),\"\")","v":""},null,{"$f":"IF(I326<>\"\",I326-I326/((100+F326)/100),\"\")","v":""},{"$f":"IF(C326<>0,IF(G326<>0,K325+G326,IF(I326<>0,K325-I326,\"\")),\"\")","v":""},null,""]
[null,null,null,null,null,null,null,"",null,"","",null,{"$f":"IF(K328=\"\",K327,\"0\")","v":""}]
[null,null,null,null,null,null,null,"",null,"","",null,""]
[null,null,null,null,null,null,null,"",null,"","",null,""]
[null,null,null,null,null,null,null,"",null,"","",null,""]
[null,null,null,null,null,null,null,"",null,"","",null,""]
[null,null,null,null,null,null,null,"",null,"","",null,""]
[null,null,null,null,null,null,null,"",null,"","",null,""]
[null,null,null,null,null,null,null,"",null,"","",null,""]
[null,null,null,null,null,null,null,"",null,"","",null,""]
[null,null,null,null,null,null,null,"",null,"","",null,""]
[null,null,null,null,null,null,null,"",null,"","",null,""]
[null,null,null,null,null,null,null,"",null,"","",null,""]
[null,null,null,null,null,null,null,"",null,"","",null,""]
[null,null,null,null,null,null,null,"",null,"","",null,""]
[null,null,null,null,null,null,null,"",null,"","",null,""]
[null,null,null,null,null,null,null,"",null,"","",null,""]
[null,null,null,null,null,null,null,"",null,"","",null,""]
[null,null,null,null,null,null,null,"",null,"","",null,""]
[null,null,null,null,null,null,null,"",null,"","",null,""]
[null,null,null,null,null,null,null,"",null,"","",null,""]
[null,null,null,null,null,null,null,"",null,"","",null,""]
[null,null,null,null,null,null,null,"",null,"","",null,""]
[null,null,null,null,null,null,null,"",null,"","",null,""]
[null,null,null,null,null,null,null,"",null,"","",null,""]
[null,null,null,null,null,null,null,"",null,"","",null,""]
[null,null,null,null,null,null,null,"",null,"","",null,""]
[null,null,null,null,null,null,null,"",null,"","",null,""]
[null,null,null,null,null,null,null,"",null,"","",null,""]
[null,null,null,null,null,null,null,"",null,"","",null,""]
[null,null,null,null,null,null,null,"",null,"","",null,""]
[null,null,null,null,null,null,null,"",null,"","",null,""]
[null,null,null,null,null,null,null,"",null,"","",null,""]
[null,null,null,null,null,null,null,"",null,"","",null,""]
[null,null,null,null,null,null,null,"",null,"","",null,""]
[null,null,null,null,null,null,null,"",null,"","",null,""]
[null,null,null,null,null,null,null,"",null,"","",null,""]
[null,null,null,null,null,null,null,"",null,"","",null,""]
[null,null,null,null,null,null,null,"",null,"","",null,""]
[null,null,null,null,null,null,null,"",null,"","",null,""]
[null,null,null,null,null,null,null,"",null,"","",null,""]
[null,null,null,null,null,null,null,"",null,"","",null,""]
[null,null,null,null,null,null,null,"",null,"","",null,""]
[null,null,null,null,null,null,null,"",null,"","",null,""]
[null,null,null,null,null,null,null,"",null,"","",null,""]
[null,null,null,null,null,null,null,"",null,"","",null,""]
[null,null,null,null,null,null,null,"",null,"","",null,""]
[null,null,null,null,null,null,null,"",null,"","",null,""]
[null,null,null,null,null,null,null,"",null,"","",null,""]
[null,null,null,null,null,null,null,"",null,"","",null,""]
[null,null,null,null,null,null,null,"",null,"","",null,""]
[null,null,null,null,null,null,null,"",null,"","",null,""]
[null,null,null,null,null,null,null,"",null,"","",null,""]
[null,null,null,null,null,null,null,"",null,"","",null,""]
[null,null,null,null,null,null,null,"",null,"","",null,""]
[null,null,null,null,null,null,null,"",null,"","",null,""]
[null,null,null,null,null,null,null,"",null,"","",null,""]
[null,null,null,null,null,null,null,"",null,"","",null,""]
[null,null,null,null,null,null,null,"",null,"","",null,""]
[null,null,null,null,null,null,null,"",null,"","",null,""]
[null,null,null,null,null,null,null,"",null,"","",null,""]
[null,null,null,null,null,null,null,"",null,"","",null,""]
[null,null,null,null,null,null,null,"",null,"","",null,""]
[null,null,null,null,null,null,null,"",null,"","",null,""]
[null,null,null,null,null,null,null,{"$f":"IF(G390<>\"\",G390-G390/((100+F390)/100),\"\")","v":""},null,{"$f":"IF(I390<>\"\",I390-I390/((100+F390)/100),\"\")","v":""},{"$f":"IF(C390<>0,IF(G390<>0,K389+G390,IF(I390<>0,K389-I390,\"\")),\"\")","v":""},null,""]
[null,null,null,null,null,null,null,"",null,"","",null,{"$f":"IF(K392=\"\",K391,\"0\")","v":""}]
[null,null,null,null,null,null,null,"",null,"","",null,""]
[null,null,null,null,null,null,null,"",null,"","",null,""]
[null,null,null,null,null,null,null,"",null,"","",null,""]
[null,null,null,null,null,null,null,"",null,"","",null,""]
[null,null,null,null,null,null,null,"",null,"","",null,""]
[null,null,null,null,null,null,null,"",null,"","",null,""]
[null,null,null,null,null,null,null,"",null,"","",null,""]
[null,null,null,null,null,null,null,"",null,"","",null,""]
[null,null,null,null,null,null,null,"",null,"","",null,""]
[null,null,null,null,null,null,null,"",null,"","",null,""]
[null,null,null,null,null,null,null,"",null,"","",null,""]
[null,null,null,null,null,null,null,"",null,"","",null,""]
[null,null,null,null,null,null,null,"",null,"","",null,""]
[null,null,null,null,null,null,null,"",null,"","",null,""]
[null,null,null,null,null,null,null,"",null,"","",null,""]
[null,null,null,null,null,null,null,"",null,"","",null,""]
[null,null,null,null,null,null,null,"",null,"","",null,""]
[null,null,null,null,null,null,null,"",null,"","",null,""]
[null,null,null,null,null,null,null,"",null,"","",null,""]
[null,null,null,null,null,null,null,"",null,"","",null,""]
[null,null,null,null,null,null,null,"",null,"","",null,""]
[null,null,null,null,null,null,null,"",null,"","",null,""]
[null,null,null,null,null,null,null,"",null,"","",null,""]
[null,null,null,null,null,null,null,"",null,"","",null,""]
[null,null,null,null,null,null,null,"",null,"","",null,""]
[null,null,null,null,null,null,null,"",null,"","",null,""]
[null,null,null,null,null,null,null,"",null,"","",null,""]
[null,null,null,null,null,null,null,"",null,"","",null,""]
[null,null,null,null,null,null,null,"",null,"","",null,""]
[null,null,null,null,null,null,null,"",null,"","",null,""]
[null,null,null,null,null,null,null,"",null,"","",null,""]
[null,null,null,null,null,null,null,"",null,"","",null,""]
[null,null,null,null,null,null,null,"",null,"","",null,""]
[null,null,null,null,null,null,null,"",null,"","",null,""]
[null,null,null,null,null,null,null,"",null,"","",null,""]
[null,null,null,null,null,null,null,"",null,"","",null,""]
[null,null,null,null,null,null,null,"",null,"","",null,""]
[null,null,null,null,null,null,null,"",null,"","",null,""]
[null,null,null,null,null,null,null,"",null,"","",null,""]
[null,null,null,null,null,null,null,"",null,"","",null,""]
[null,null,null,null,null,null,null,"",null,"","",null,""]
[null,null,null,null,null,null,null,"",null,"","",null,""]
[null,null,null,null,null,null,null,"",null,"","",null,""]
[null,null,null,null,null,null,null,"",null,"","",null,""]
[null,null,null,null,null,null,null,"",null,"","",null,""]
[null,null,null,null,null,null,null,"",null,"","",null,""]
[null,null,null,null,null,null,null,"",null,"","",null,""]
[null,null,null,null,null,null,null,"",null,"","",null,""]
[null,null,null,null,null,null,null,"",null,"","",null,""]
[null,null,null,null,null,null,null,"",null,"","",null,""]
[null,null,null,null,null,null,null,"",null,"","",null,""]
[null,null,null,null,null,null,null,"",null,"","",null,""]
[null,null,null,null,null,null,null,"",null,"","",null,""]
[null,null,null,null,null,null,null,"",null,"","",null,""]
[null,null,null,null,null,null,null,"",null,"","",null,""]
[null,null,null,null,null,null,null,"",null,"","",null,""]
[null,null,null,null,null,null,null,"",null,"","",null,""]
[null,null,null,null,null,null,null,"",null,"","",null,""]
[null,null,null,null,null,null,null,"",null,"","",null,""]
[null,null,null,null,null,null,null,"",null,"","",null,""]
[null,null,null,null,null,null,null,"",null,"","",null,""]
[null,null,null,null,null,null,null,"",null,"","",null,""]
[null,null,null,null,null,null,null,{"$f":"IF(G454<>\"\",G454-G454/((100+F454)/100),\"\")","v":""},null,{"$f":"IF(I454<>\"\",I454-I454/((100+F454)/100),\"\")","v":""},{"$f":"IF(C454<>0,IF(G454<>0,K453+G454,IF(I454<>0,K453-I454,\"\")),\"\")","v":""},null,""]
[null,null,null,null,null,null,null,"",null,"","",null,{"$f":"IF(K456=\"\",K455,\"0\")","v":""}]
[null,null,null,null,null,null,null,"",null,"","",null,""]
[null,null,null,null,null,null,null,"",null,"","",null,""]
[null,null,null,null,null,null,null,"",null,"","",null,""]
[null,null,null,null,null,null,null,"",null,"","",null,""]
[null,null,null,null,null,null,null,"",null,"","",null,""]
[null,null,null,null,null,null,null,"",null,"","",null,""]
[null,null,null,null,null,null,null,"",null,"","",null,""]
[null,null,null,null,null,null,null,"",null,"","",null,""]
[null,null,null,null,null,null,null,"",null,"","",null,""]
[null,null,null,null,null,null,null,"",null,"","",null,""]
[null,null,null,null,null,null,null,"",null,"","",null,""]
[null,null,null,null,null,null,null,"",null,"","",null,""]
[null,null,null,null,null,null,null,"",null,"","",null,""]
[null,null,null,null,null,null,null,"",null,"","",null,""]
[null,null,null,null,null,null,null,"",null,"","",null,""]
[null,null,null,null,null,null,null,"",null,"","",null,""]
[null,null,null,null,null,null,null,"",null,"","",null,""]
[null,null,null,null,null,null,null,"",null,"","",null,""]
[null,null,null,null,null,null,null,"",null,"","",null,""]
[null,null,null,null,null,null,null,"",null,"","",null,""]
[null,null,null,null,null,null,null,"",null,"","",null,""]
[null,null,null,null,null,null,null,"",null,"","",null,""]
[null,null,null,null,null,null,null,"",null,"","",null,""]
[null,null,null,null,null,null,null,"",null,"","",null,""]
[null,null,null,null,null,null,null,"",null,"","",null,""]
[null,null,null,null,null,null,null,"",null,"","",null,""]
[null,null,null,null,null,null,null,"",null,"","",null,""]
[null,null,null,null,null,null,null,"",null,"","",null,""]
[null,null,null,null,null,null,null,"",null,"","",null,""]
[null,null,null,null,null,null,null,"",null,"","",null,""]
[null,null,null,null,null,null,null,"",null,"","",null,""]
[null,null,null,null,null,null,null,"",null,"","",null,""]
[null,null,null,null,null,null,null,"",null,"","",null,""]
[null,null,null,null,null,null,null,"",null,"","",null,""]
[null,null,null,null,null,null,null,"",null,"","",null,""]
[null,null,null,null,null,null,null,"",null,"","",null,""]
[null,null,null,null,null,null,null,"",null,"","",null,""]
[null,null,null,null,null,null,null,"",null,"","",null,""]
[null,null,null,null,null,null,null,"",null,"","",null,""]
[null,null,null,null,null,null,null,"",null,"","",null,""]
[null,null,null,null,null,null,null,"",null,"","",null,""]
[null,null,null,null,null,null,null,"",null,"","",null,""]
[null,null,null,null,null,null,null,"",null,"","",null,""]
[null,null,null,null,null,null,null,"",null,"","",null,""]
[null,null,null,null,null,null,null,"",null,"","",null,""]
[null,null,null,null,null,null,null,null,null,null,null,null,{"$f":"SUM(M5:M500)","v":0}]

{"sheet":"Aug","index":8,"n_rows":501,"n_cols":14,"rows_kept":501,"cut":false,"hidden":false,"merged":[[0,1,0,10],[1,1,1,10],[2,1,2,6],[2,8,2,10],[4,1,4,9]]}
[null,"KASSABUCH"]
[null,null,null,null,null,null,null,null,null,null,null,null,{"$f":"DATE(Jahr,2,1)","v":"1900-02-01"},"Anfangsdatum"]
[null,{"$f":"IF(Name<>0,Name,\"\")","v":""},null,null,null,null,null,null,{"$f":"\"August \"&Jahr","v":"August "},null,null,null,{"$f":"DATE(Jahr,3,1)-1","v":60},"Enddatum"]
[null,"Datum","Beleg","Konto","Text","%","Einnahmen","USt","Ausgaben","Vorsteuer","Kassabestand",null,{"$f":"SUM(M5:M500)","v":0},{"$f":"I3 &\", \"&\"Endstand\"","v":"August , Endstand"}]
[null,"Übertrag Vormonat EUR:",null,null,null,null,null,null,null,null,{"$f":"Jul!M4","v":0},null,{"$f":"IF(K6=\"\",K5,\"0\")","v":0}]
[null,null,null,null,null,null,null,null,null,{"$f":"IF(I6<>\"\",I6-I6/((100+F6)/100),\"\")","v":""},{"$f":"IF(C6<>0,IF(G6<>0,K5+G6,IF(I6<>0,K5-I6,\"\")),\"\")","v":""},null,{"$f":"IF(K7=\"\",K6,\"0\")","v":""}]
[null,null,null,null,null,null,null,null,null,{"$f":"IF(I7<>\"\",I7-I7/((100+F7)/100),\"\")","v":""},{"$f":"IF(C7<>0,IF(G7<>0,K6+G7,IF(I7<>0,K6-I7,\"\")),\"\")","v":""},null,{"$f":"IF(K8=\"\",K7,\"0\")","v":""}]
[null,null,null,null,null,null,null,{"$f":"IF(G8<>\"\",G8-G8/((100+F8)/100),\"\")","v":""},null,"","",null,{"$f":"IF(K9=\"\",K8,\"0\")","v":""}]
[null,null,null,null,null,null,null,"",null,"","",null,""]
[null,null,null,null,null,null,null,"",null,"","",null,""]
[null,null,null,null,null,null,null,"",null,"","",null,""]
[null,null,null,null,null,null,null,"",null,"","",null,""]
[null,null,null,null,null,null,null,"",null,"","",null,""]
[null,null,null,null,null,null,null,"",null,"","",null,""]
[null,null,null,null,null,null,null,"",null,"","",null,""]
[null,null,null,null,null,null,null,"",null,"","",null,""]
[null,null,null,null,null,null,null,"",null,"","",null,""]
[null,null,null,null,null,null,null,"",null,"","",null,""]
[null,null,null,null,null,null,null,"",null,"","",null,""]
[null,null,null,null,null,null,null,"",null,"","",null,""]
[null,null,null,null,null,null,null,"",null,"","",null,""]
[null,null,null,null,null,null,null,"",null,"","",null,""]
[null,null,null,null,null,null,null,"",null,"","",null,""]
[null,null,null,null,null,null,null,"",null,"","",null,""]
[null,null,null,null,null,null,null,"",null,"","",null,""]
[null,null,null,null,null,null,null,"",null,"","",null,""]
[null,null,null,null,null,null,null,"",null,"","",null,""]
[null,null,null,null,null,null,null,"",null,"","",null,""]
[null,null,null,null,null,null,null,"",null,"","",null,""]
[null,null,null,null,null,null,null,"",null,"","",null,""]
[null,null,null,null,null,null,null,"",null,"","",null,""]
[null,null,null,null,null,null,null,"",null,"","",null,""]
[null,null,null,null,null,null,null,"",null,"","",null,""]
[null,null,null,null,null,null,null,"",null,"","",null,""]
[null,null,null,null,null,null,null,"",null,"","",null,""]
[null,null,null,null,null,null,null,"",null,"","",null,""]
[null,null,null,null,null,null,null,"",null,"","",null,""]
[null,null,null,null,null,null,null,"",null,"","",null,""]
[null,null,null,null,null,null,null,"",null,"","",null,""]
[null,null,null,null,null,null,null,"",null,"","",null,""]
[null,null,null,null,null,null,null,"",null,"","",null,""]
[null,null,null,null,null,null,null,"",null,"","",null,""]
[null,null,null,null,null,null,null,"",null,"","",null,""]
[null,null,null,null,null,null,null,"",null,"","",null,""]
[null,null,null,null,null,null,null,"",null,"","",null,""]
[null,null,null,null,null,null,null,"",null,"","",null,""]
[null,null,null,null,null,null,null,"",null,"","",null,""]
[null,null,null,null,null,null,null,"",null,"","",null,""]
[null,null,null,null,null,null,null,"",null,"","",null,""]
[null,null,null,null,null,null,null,"",null,"","",null,""]
[null,null,null,null,null,null,null,"",null,"","",null,""]
[null,null,null,null,null,null,null,"",null,"","",null,""]
[null,null,null,null,null,null,null,"",null,"","",null,""]
[null,null,null,null,null,null,null,"",null,"","",null,""]
[null,null,null,null,null,null,null,"",null,"","",null,""]
[null,null,null,null,null,null,null,"",null,"","",null,""]
[null,null,null,null,null,null,null,"",null,"","",null,""]
[null,null,null,null,null,null,null,"",null,"","",null,""]
[null,null,null,null,null,null,null,"",null,"","",null,""]
[null,null,null,null,null,null,null,"",null,"","",null,""]
[null,null,null,null,null,null,null,"",null,"","",null,""]
[null,null,null,null,null,null,null,"",null,"","",null,""]
[null,null,null,null,null,null,null,"",null,"","",null,""]
[null,null,null,null,null,null,null,"",null,"","",null,""]
[null,null,null,null,null,null,null,"",null,"","",null,""]
[null,null,null,null,null,null,null,"",null,"","",null,""]
[null,null,null,null,null,null,null,"",null,"","",null,""]
[null,null,null,null,null,null,null,"",null,"","",null,""]
[null,null,null,null,null,null,null,"",null,"","",null,""]
[null,null,null,null,null,null,null,{"$f":"IF(G70<>\"\",G70-G70/((100+F70)/100),\"\")","v":""},null,{"$f":"IF(I70<>\"\",I70-I70/((100+F70)/100),\"\")","v":""},{"$f":"IF(C70<>0,IF(G70<>0,K69+G70,IF(I70<>0,K69-I70,\"\")),\"\")","v":""},null,""]
[null,null,null,null,null,null,null,"",null,"","",null,{"$f":"IF(K72=\"\",K71,\"0\")","v":""}]
[null,null,null,null,null,null,null,"",null,"","",null,""]
[null,null,null,null,null,null,null,"",null,"","",null,""]
[null,null,null,null,null,null,null,"",null,"","",null,""]
[null,null,null,null,null,null,null,"",null,"","",null,""]
[null,null,null,null,null,null,null,"",null,"","",null,""]
[null,null,null,null,null,null,null,"",null,"","",null,""]
[null,null,null,null,null,null,null,"",null,"","",null,""]
[null,null,null,null,null,null,null,"",null,"","",null,""]
[null,null,null,null,null,null,null,"",null,"","",null,""]
[null,null,null,null,null,null,null,"",null,"","",null,""]
[null,null,null,null,null,null,null,"",null,"","",null,""]
[null,null,null,null,null,null,null,"",null,"","",null,""]
[null,null,null,null,null,null,null,"",null,"","",null,""]
[null,null,null,null,null,null,null,"",null,"","",null,""]
[null,null,null,null,null,null,null,"",null,"","",null,""]
[null,null,null,null,null,null,null,"",null,"","",null,""]
[null,null,null,null,null,null,null,"",null,"","",null,""]
[null,null,null,null,null,null,null,"",null,"","",null,""]
[null,null,null,null,null,null,null,"",null,"","",null,""]
[null,null,null,null,null,null,null,"",null,"","",null,""]
[null,null,null,null,null,null,null,"",null,"","",null,""]
[null,null,null,null,null,null,null,"",null,"","",null,""]
[null,null,null,null,null,null,null,"",null,"","",null,""]
[null,null,null,null,null,null,null,"",null,"","",null,""]
[null,null,null,null,null,null,null,"",null,"","",null,""]
[null,null,null,null,null,null,null,"",null,"","",null,""]
[null,null,null,null,null,null,null,"",null,"","",null,""]
[null,null,null,null,null,null,null,"",null,"","",null,""]
[null,null,null,null,null,null,null,"",null,"","",null,""]
[null,null,null,null,null,null,null,"",null,"","",null,""]
[null,null,null,null,null,null,null,"",null,"","",null,""]
[null,null,null,null,null,null,null,"",null,"","",null,""]
[null,null,null,null,null,null,null,"",null,"","",null,""]
[null,null,null,null,null,null,null,"",null,"","",null,""]
[null,null,null,null,null,null,null,"",null,"","",null,""]
[null,null,null,null,null,null,null,"",null,"","",null,""]
[null,null,null,null,null,null,null,"",null,"","",null,""]
[null,null,null,null,null,null,null,"",null,"","",null,""]
[null,null,null,null,null,null,null,"",null,"","",null,""]
[null,null,null,null,null,null,null,"",null,"","",null,""]
[null,null,null,null,null,null,null,"",null,"","",null,""]
[null,null,null,null,null,null,null,"",null,"","",null,""]
[null,null,null,null,null,null,null,"",null,"","",null,""]
[null,null,null,null,null,null,null,"",null,"","",null,""]
[null,null,null,null,null,null,null,"",null,"","",null,""]
[null,null,null,null,null,null,null,"",null,"","",null,""]
[null,null,null,null,null,null,null,"",null,"","",null,""]
[null,null,null,null,null,null,null,"",null,"","",null,""]
[null,null,null,null,null,null,null,"",null,"","",null,""]
[null,null,null,null,null,null,null,"",null,"","",null,""]
[null,null,null,null,null,null,null,"",null,"","",null,""]
[null,null,null,null,null,null,null,"",null,"","",null,""]
[null,null,null,null,null,null,null,"",null,"","",null,""]
[null,null,null,null,null,null,null,"",null,"","",null,""]
[null,null,null,null,null,null,null,"",null,"","",null,""]
[null,null,null,null,null,null,null,"",null,"","",null,""]
[null,null,null,null,null,null,null,"",null,"","",null,""]
[null,null,null,null,null,null,null,"",null,"","",null,""]
[null,null,null,null,null,null,null,"",null,"","",null,""]
[null,null,null,null,null,null,null,"",null,"","",null,""]
[null,null,null,null,null,null,null,"",null,"","",null,""]
[null,null,null,null,null,null,null,"",null,"","",null,""]
[null,null,null,null,null,null,null,{"$f":"IF(G134<>\"\",G134-G134/((100+F134)/100),\"\")","v":""},null,{"$f":"IF(I134<>\"\",I134-I134/((100+F134)/100),\"\")","v":""},{"$f":"IF(C134<>0,IF(G134<>0,K133+G134,IF(I134<>0,K133-I134,\"\")),\"\")","v":""},null,""]
[null,null,null,null,null,null,null,"",null,"","",null,{"$f":"IF(K136=\"\",K135,\"0\")","v":""}]
[null,null,null,null,null,null,null,"",null,"","",null,""]
[null,null,null,null,null,null,null,"",null,"","",null,""]
[null,null,null,null,null,null,null,"",null,"","",null,""]
[null,null,null,null,null,null,null,"",null,"","",null,""]
[null,null,null,null,null,null,null,"",null,"","",null,""]
[null,null,null,null,null,null,null,"",null,"","",null,""]
[null,null,null,null,null,null,null,"",null,"","",null,""]
[null,null,null,null,null,null,null,"",null,"","",null,""]
[null,null,null,null,null,null,null,"",null,"","",null,""]
[null,null,null,null,null,null,null,"",null,"","",null,""]
[null,null,null,null,null,null,null,"",null,"","",null,""]
[null,null,null,null,null,null,null,"",null,"","",null,""]
[null,null,null,null,null,null,null,"",null,"","",null,""]
[null,null,null,null,null,null,null,"",null,"","",null,""]
[null,null,null,null,null,null,null,"",null,"","",null,""]
[null,null,null,null,null,null,null,"",null,"","",null,""]
[null,null,null,null,null,null,null,"",null,"","",null,""]
[null,null,null,null,null,null,null,"",null,"","",null,""]
[null,null,null,null,null,null,null,"",null,"","",null,""]
[null,null,null,null,null,null,null,"",null,"","",null,""]
[null,null,null,null,null,null,null,"",null,"","",null,""]
[null,null,null,null,null,null,null,"",null,"","",null,""]
[null,null,null,null,null,null,null,"",null,"","",null,""]
[null,null,null,null,null,null,null,"",null,"","",null,""]
[null,null,null,null,null,null,null,"",null,"","",null,""]
[null,null,null,null,null,null,null,"",null,"","",null,""]
[null,null,null,null,null,null,null,"",null,"","",null,""]
[null,null,null,null,null,null,null,"",null,"","",null,""]
[null,null,null,null,null,null,null,"",null,"","",null,""]
[null,null,null,null,null,null,null,"",null,"","",null,""]
[null,null,null,null,null,null,null,"",null,"","",null,""]
[null,null,null,null,null,null,null,"",null,"","",null,""]
[null,null,null,null,null,null,null,"",null,"","",null,""]
[null,null,null,null,null,null,null,"",null,"","",null,""]
[null,null,null,null,null,null,null,"",null,"","",null,""]
[null,null,null,null,null,null,null,"",null,"","",null,""]
[null,null,null,null,null,null,null,"",null,"","",null,""]
[null,null,null,null,null,null,null,"",null,"","",null,""]
[null,null,null,null,null,null,null,"",null,"","",null,""]
[null,null,null,null,null,null,null,"",null,"","",null,""]
[null,null,null,null,null,null,null,"",null,"","",null,""]
[null,null,null,null,null,null,null,"",null,"","",null,""]
[null,null,null,null,null,null,null,"",null,"","",null,""]
[null,null,null,null,null,null,null,"",null,"","",null,""]
[null,null,null,null,null,null,null,"",null,"","",null,""]
[null,null,null,null,null,null,null,"",null,"","",null,""]
[null,null,null,null,null,null,null,"",null,"","",null,""]
[null,null,null,null,null,null,null,"",null,"","",null,""]
[null,null,null,null,null,null,null,"",null,"","",null,""]
[null,null,null,null,null,null,null,"",null,"","",null,""]
[null,null,null,null,null,null,null,"",null,"","",null,""]
[null,null,null,null,null,null,null,"",null,"","",null,""]
[null,null,null,null,null,null,null,"",null,"","",null,""]
[null,null,null,null,null,null,null,"",null,"","",null,""]
[null,null,null,null,null,null,null,"",null,"","",null,""]
[null,null,null,null,null,null,null,"",null,"","",null,""]
[null,null,null,null,null,null,null,"",null,"","",null,""]
[null,null,null,null,null,null,null,"",null,"","",null,""]
[null,null,null,null,null,null,null,"",null,"","",null,""]
[null,null,null,null,null,null,null,"",null,"","",null,""]
[null,null,null,null,null,null,null,"",null,"","",null,""]
[null,null,null,null,null,null,null,"",null,"","",null,""]
[null,null,null,null,null,null,null,{"$f":"IF(G198<>\"\",G198-G198/((100+F198)/100),\"\")","v":""},null,{"$f":"IF(I198<>\"\",I198-I198/((100+F198)/100),\"\")","v":""},{"$f":"IF(C198<>0,IF(G198<>0,K197+G198,IF(I198<>0,K197-I198,\"\")),\"\")","v":""},null,""]
[null,null,null,null,null,null,null,"",null,"","",null,{"$f":"IF(K200=\"\",K199,\"0\")","v":""}]
[null,null,null,null,null,null,null,"",null,"","",null,""]
[null,null,null,null,null,null,null,"",null,"","",null,""]
[null,null,null,null,null,null,null,"",null,"","",null,""]
[null,null,null,null,null,null,null,"",null,"","",null,""]
[null,null,null,null,null,null,null,"",null,"","",null,""]
[null,null,null,null,null,null,null,"",null,"","",null,""]
[null,null,null,null,null,null,null,"",null,"","",null,""]
[null,null,null,null,null,null,null,"",null,"","",null,""]
[null,null,null,null,null,null,null,"",null,"","",null,""]
[null,null,null,null,null,null,null,"",null,"","",null,""]
[null,null,null,null,null,null,null,"",null,"","",null,""]
[null,null,null,null,null,null,null,"",null,"","",null,""]
[null,null,null,null,null,null,null,"",null,"","",null,""]
[null,null,null,null,null,null,null,"",null,"","",null,""]
[null,null,null,null,null,null,null,"",null,"","",null,""]
[null,null,null,null,null,null,null,"",null,"","",null,""]
[null,null,null,null,null,null,null,"",null,"","",null,""]
[null,null,null,null,null,null,null,"",null,"","",null,""]
[null,null,null,null,null,null,null,"",null,"","",null,""]
[null,null,null,null,null,null,null,"",null,"","",null,""]
[null,null,null,null,null,null,null,"",null,"","",null,""]
[null,null,null,null,null,null,null,"",null,"","",null,""]
[null,null,null,null,null,null,null,"",null,"","",null,""]
[null,null,null,null,null,null,null,"",null,"","",null,""]
[null,null,null,null,null,null,null,"",null,"","",null,""]
[null,null,null,null,null,null,null,"",null,"","",null,""]
[null,null,null,null,null,null,null,"",null,"","",null,""]
[null,null,null,null,null,null,null,"",null,"","",null,""]
[null,null,null,null,null,null,null,"",null,"","",null,""]
[null,null,null,null,null,null,null,"",null,"","",null,""]
[null,null,null,null,null,null,null,"",null,"","",null,""]
[null,null,null,null,null,null,null,"",null,"","",null,""]
[null,null,null,null,null,null,null,"",null,"","",null,""]
[null,null,null,null,null,null,null,"",null,"","",null,""]
[null,null,null,null,null,null,null,"",null,"","",null,""]
[null,null,null,null,null,null,null,"",null,"","",null,""]
[null,null,null,null,null,null,null,"",null,"","",null,""]
[null,null,null,null,null,null,null,"",null,"","",null,""]
[null,null,null,null,null,null,null,"",null,"","",null,""]
[null,null,null,null,null,null,null,"",null,"","",null,""]
[null,null,null,null,null,null,null,"",null,"","",null,""]
[null,null,null,null,null,null,null,"",null,"","",null,""]
[null,null,null,null,null,null,null,"",null,"","",null,""]
[null,null,null,null,null,null,null,"",null,"","",null,""]
[null,null,null,null,null,null,null,"",null,"","",null,""]
[null,null,null,null,null,null,null,"",null,"","",null,""]
[null,null,null,null,null,null,null,"",null,"","",null,""]
[null,null,null,null,null,null,null,"",null,"","",null,""]
[null,null,null,null,null,null,null,"",null,"","",null,""]
[null,null,null,null,null,null,null,"",null,"","",null,""]
[null,null,null,null,null,null,null,"",null,"","",null,""]
[null,null,null,null,null,null,null,"",null,"","",null,""]
[null,null,null,null,null,null,null,"",null,"","",null,""]
[null,null,null,null,null,null,null,"",null,"","",null,""]
[null,null,null,null,null,null,null,"",null,"","",null,""]
[null,null,null,null,null,null,null,"",null,"","",null,""]
[null,null,null,null,null,null,null,"",null,"","",null,""]
[null,null,null,null,null,null,null,"",null,"","",null,""]
[null,null,null,null,null,null,null,"",null,"","",null,""]
[null,null,null,null,null,null,null,"",null,"","",null,""]
[null,null,null,null,null,null,null,"",null,"","",null,""]
[null,null,null,null,null,null,null,"",null,"","",null,""]
[null,null,null,null,null,null,null,{"$f":"IF(G262<>\"\",G262-G262/((100+F262)/100),\"\")","v":""},null,{"$f":"IF(I262<>\"\",I262-I262/((100+F262)/100),\"\")","v":""},{"$f":"IF(C262<>0,IF(G262<>0,K261+G262,IF(I262<>0,K261-I262,\"\")),\"\")","v":""},null,""]
[null,null,null,null,null,null,null,"",null,"","",null,{"$f":"IF(K264=\"\",K263,\"0\")","v":""}]
[null,null,null,null,null,null,null,"",null,"","",null,""]
[null,null,null,null,null,null,null,"",null,"","",null,""]
[null,null,null,null,null,null,null,"",null,"","",null,""]
[null,null,null,null,null,null,null,"",null,"","",null,""]
[null,null,null,null,null,null,null,"",null,"","",null,""]
[null,null,null,null,null,null,null,"",null,"","",null,""]
[null,null,null,null,null,null,null,"",null,"","",null,""]
[null,null,null,null,null,null,null,"",null,"","",null,""]
[null,null,null,null,null,null,null,"",null,"","",null,""]
[null,null,null,null,null,null,null,"",null,"","",null,""]
[null,null,null,null,null,null,null,"",null,"","",null,""]
[null,null,null,null,null,null,null,"",null,"","",null,""]
[null,null,null,null,null,null,null,"",null,"","",null,""]
[null,null,null,null,null,null,null,"",null,"","",null,""]
[null,null,null,null,null,null,null,"",null,"","",null,""]
[null,null,null,null,null,null,null,"",null,"","",null,""]
[null,null,null,null,null,null,null,"",null,"","",null,""]
[null,null,null,null,null,null,null,"",null,"","",null,""]
[null,null,null,null,null,null,null,"",null,"","",null,""]
[null,null,null,null,null,null,null,"",null,"","",null,""]
[null,null,null,null,null,null,null,"",null,"","",null,""]
[null,null,null,null,null,null,null,"",null,"","",null,""]
[null,null,null,null,null,null,null,"",null,"","",null,""]
[null,null,null,null,null,null,null,"",null,"","",null,""]
[null,null,null,null,null,null,null,"",null,"","",null,""]
[null,null,null,null,null,null,null,"",null,"","",null,""]
[null,null,null,null,null,null,null,"",null,"","",null,""]
[null,null,null,null,null,null,null,"",null,"","",null,""]
[null,null,null,null,null,null,null,"",null,"","",null,""]
[null,null,null,null,null,null,null,"",null,"","",null,""]
[null,null,null,null,null,null,null,"",null,"","",null,""]
[null,null,null,null,null,null,null,"",null,"","",null,""]
[null,null,null,null,null,null,null,"",null,"","",null,""]
[null,null,null,null,null,null,null,"",null,"","",null,""]
[null,null,null,null,null,null,null,"",null,"","",null,""]
[null,null,null,null,null,null,null,"",null,"","",null,""]
[null,null,null,null,null,null,null,"",null,"","",null,""]
[null,null,null,null,null,null,null,"",null,"","",null,""]
[null,null,null,null,null,null,null,"",null,"","",null,""]
[null,null,null,null,null,null,null,"",null,"","",null,""]
[null,null,null,null,null,null,null,"",null,"","",null,""]
[null,null,null,null,null,null,null,"",null,"","",null,""]
[null,null,null,null,null,null,null,"",null,"","",null,""]
[null,null,null,null,null,null,null,"",null,"","",null,""]
[null,null,null,null,null,null,null,"",null,"","",null,""]
[null,null,null,null,null,null,null,"",null,"","",null,""]
[null,null,null,null,null,null,null,"",null,"","",null,""]
[null,null,null,null,null,null,null,"",null,"","",null,""]
[null,null,null,null,null,null,null,"",null,"","",null,""]
[null,null,null,null,null,null,null,"",null,"","",null,""]
[null,null,null,null,null,null,null,"",null,"","",null,""]
[null,null,null,null,null,null,null,"",null,"","",null,""]
[null,null,null,null,null,null,null,"",null,"","",null,""]
[null,null,null,null,null,null,null,"",null,"","",null,""]
[null,null,null,null,null,null,null,"",null,"","",null,""]
[null,null,null,null,null,null,null,"",null,"","",null,""]
[null,null,null,null,null,null,null,"",null,"","",null,""]
[null,null,null,null,null,null,null,"",null,"","",null,""]
[null,null,null,null,null,null,null,"",null,"","",null,""]
[null,null,null,null,null,null,null,"",null,"","",null,""]
[null,null,null,null,null,null,null,"",null,"","",null,""]
[null,null,null,null,null,null,null,"",null,"","",null,""]
[null,null,null,null,null,null,null,{"$f":"IF(G326<>\"\",G326-G326/((100+F326)/100),\"\")","v":""},null,{"$f":"IF(I326<>\"\",I326-I326/((100+F326)/100),\"\")","v":""},{"$f":"IF(C326<>0,IF(G326<>0,K325+G326,IF(I326<>0,K325-I326,\"\")),\"\")","v":""},null,""]
[null,null,null,null,null,null,null,"",null,"","",null,{"$f":"IF(K328=\"\",K327,\"0\")","v":""}]
[null,null,null,null,null,null,null,"",null,"","",null,""]
[null,null,null,null,null,null,null,"",null,"","",null,""]
[null,null,null,null,null,null,null,"",null,"","",null,""]
[null,null,null,null,null,null,null,"",null,"","",null,""]
[null,null,null,null,null,null,null,"",null,"","",null,""]
[null,null,null,null,null,null,null,"",null,"","",null,""]
[null,null,null,null,null,null,null,"",null,"","",null,""]
[null,null,null,null,null,null,null,"",null,"","",null,""]
[null,null,null,null,null,null,null,"",null,"","",null,""]
[null,null,null,null,null,null,null,"",null,"","",null,""]
[null,null,null,null,null,null,null,"",null,"","",null,""]
[null,null,null,null,null,null,null,"",null,"","",null,""]
[null,null,null,null,null,null,null,"",null,"","",null,""]
[null,null,null,null,null,null,null,"",null,"","",null,""]
[null,null,null,null,null,null,null,"",null,"","",null,""]
[null,null,null,null,null,null,null,"",null,"","",null,""]
[null,null,null,null,null,null,null,"",null,"","",null,""]
[null,null,null,null,null,null,null,"",null,"","",null,""]
[null,null,null,null,null,null,null,"",null,"","",null,""]
[null,null,null,null,null,null,null,"",null,"","",null,""]
[null,null,null,null,null,null,null,"",null,"","",null,""]
[null,null,null,null,null,null,null,"",null,"","",null,""]
[null,null,null,null,null,null,null,"",null,"","",null,""]
[null,null,null,null,null,null,null,"",null,"","",null,""]
[null,null,null,null,null,null,null,"",null,"","",null,""]
[null,null,null,null,null,null,null,"",null,"","",null,""]
[null,null,null,null,null,null,null,"",null,"","",null,""]
[null,null,null,null,null,null,null,"",null,"","",null,""]
[null,null,null,null,null,null,null,"",null,"","",null,""]
[null,null,null,null,null,null,null,"",null,"","",null,""]
[null,null,null,null,null,null,null,"",null,"","",null,""]
[null,null,null,null,null,null,null,"",null,"","",null,""]
[null,null,null,null,null,null,null,"",null,"","",null,""]
[null,null,null,null,null,null,null,"",null,"","",null,""]
[null,null,null,null,null,null,null,"",null,"","",null,""]
[null,null,null,null,null,null,null,"",null,"","",null,""]
[null,null,null,null,null,null,null,"",null,"","",null,""]
[null,null,null,null,null,null,null,"",null,"","",null,""]
[null,null,null,null,null,null,null,"",null,"","",null,""]
[null,null,null,null,null,null,null,"",null,"","",null,""]
[null,null,null,null,null,null,null,"",null,"","",null,""]
[null,null,null,null,null,null,null,"",null,"","",null,""]
[null,null,null,null,null,null,null,"",null,"","",null,""]
[null,null,null,null,null,null,null,"",null,"","",null,""]
[null,null,null,null,null,null,null,"",null,"","",null,""]
[null,null,null,null,null,null,null,"",null,"","",null,""]
[null,null,null,null,null,null,null,"",null,"","",null,""]
[null,null,null,null,null,null,null,"",null,"","",null,""]
[null,null,null,null,null,null,null,"",null,"","",null,""]
[null,null,null,null,null,null,null,"",null,"","",null,""]
[null,null,null,null,null,null,null,"",null,"","",null,""]
[null,null,null,null,null,null,null,"",null,"","",null,""]
[null,null,null,null,null,null,null,"",null,"","",null,""]
[null,null,null,null,null,null,null,"",null,"","",null,""]
[null,null,null,null,null,null,null,"",null,"","",null,""]
[null,null,null,null,null,null,null,"",null,"","",null,""]
[null,null,null,null,null,null,null,"",null,"","",null,""]
[null,null,null,null,null,null,null,"",null,"","",null,""]
[null,null,null,null,null,null,null,"",null,"","",null,""]
[null,null,null,null,null,null,null,"",null,"","",null,""]
[null,null,null,null,null,null,null,"",null,"","",null,""]
[null,null,null,null,null,null,null,"",null,"","",null,""]
[null,null,null,null,null,null,null,{"$f":"IF(G390<>\"\",G390-G390/((100+F390)/100),\"\")","v":""},null,{"$f":"IF(I390<>\"\",I390-I390/((100+F390)/100),\"\")","v":""},{"$f":"IF(C390<>0,IF(G390<>0,K389+G390,IF(I390<>0,K389-I390,\"\")),\"\")","v":""},null,""]
[null,null,null,null,null,null,null,"",null,"","",null,{"$f":"IF(K392=\"\",K391,\"0\")","v":""}]
[null,null,null,null,null,null,null,"",null,"","",null,""]
[null,null,null,null,null,null,null,"",null,"","",null,""]
[null,null,null,null,null,null,null,"",null,"","",null,""]
[null,null,null,null,null,null,null,"",null,"","",null,""]
[null,null,null,null,null,null,null,"",null,"","",null,""]
[null,null,null,null,null,null,null,"",null,"","",null,""]
[null,null,null,null,null,null,null,"",null,"","",null,""]
[null,null,null,null,null,null,null,"",null,"","",null,""]
[null,null,null,null,null,null,null,"",null,"","",null,""]
[null,null,null,null,null,null,null,"",null,"","",null,""]
[null,null,null,null,null,null,null,"",null,"","",null,""]
[null,null,null,null,null,null,null,"",null,"","",null,""]
[null,null,null,null,null,null,null,"",null,"","",null,""]
[null,null,null,null,null,null,null,"",null,"","",null,""]
[null,null,null,null,null,null,null,"",null,"","",null,""]
[null,null,null,null,null,null,null,"",null,"","",null,""]
[null,null,null,null,null,null,null,"",null,"","",null,""]
[null,null,null,null,null,null,null,"",null,"","",null,""]
[null,null,null,null,null,null,null,"",null,"","",null,""]
[null,null,null,null,null,null,null,"",null,"","",null,""]
[null,null,null,null,null,null,null,"",null,"","",null,""]
[null,null,null,null,null,null,null,"",null,"","",null,""]
[null,null,null,null,null,null,null,"",null,"","",null,""]
[null,null,null,null,null,null,null,"",null,"","",null,""]
[null,null,null,null,null,null,null,"",null,"","",null,""]
[null,null,null,null,null,null,null,"",null,"","",null,""]
[null,null,null,null,null,null,null,"",null,"","",null,""]
[null,null,null,null,null,null,null,"",null,"","",null,""]
[null,null,null,null,null,null,null,"",null,"","",null,""]
[null,null,null,null,null,null,null,"",null,"","",null,""]
[null,null,null,null,null,null,null,"",null,"","",null,""]
[null,null,null,null,null,null,null,"",null,"","",null,""]
[null,null,null,null,null,null,null,"",null,"","",null,""]
[null,null,null,null,null,null,null,"",null,"","",null,""]
[null,null,null,null,null,null,null,"",null,"","",null,""]
[null,null,null,null,null,null,null,"",null,"","",null,""]
[null,null,null,null,null,null,null,"",null,"","",null,""]
[null,null,null,null,null,null,null,"",null,"","",null,""]
[null,null,null,null,null,null,null,"",null,"","",null,""]
[null,null,null,null,null,null,null,"",null,"","",null,""]
[null,null,null,null,null,null,null,"",null,"","",null,""]
[null,null,null,null,null,null,null,"",null,"","",null,""]
[null,null,null,null,null,null,null,"",null,"","",null,""]
[null,null,null,null,null,null,null,"",null,"","",null,""]
[null,null,null,null,null,null,null,"",null,"","",null,""]
[null,null,null,null,null,null,null,"",null,"","",null,""]
[null,null,null,null,null,null,null,"",null,"","",null,""]
[null,null,null,null,null,null,null,"",null,"","",null,""]
[null,null,null,null,null,null,null,"",null,"","",null,""]
[null,null,null,null,null,null,null,"",null,"","",null,""]
[null,null,null,null,null,null,null,"",null,"","",null,""]
[null,null,null,null,null,null,null,"",null,"","",null,""]
[null,null,null,null,null,null,null,"",null,"","",null,""]
[null,null,null,null,null,null,null,"",null,"","",null,""]
[null,null,null,null,null,null,null,"",null,"","",null,""]
[null,null,null,null,null,null,null,"",null,"","",null,""]
[null,null,null,null,null,null,null,"",null,"","",null,""]
[null,null,null,null,null,null,null,"",null,"","",null,""]
[null,null,null,null,null,null,null,"",null,"","",null,""]
[null,null,null,null,null,null,null,"",null,"","",null,""]
[null,null,null,null,null,null,null,"",null,"","",null,""]
[null,null,null,null,null,null,null,"",null,"","",null,""]
[null,null,null,null,null,null,null,{"$f":"IF(G454<>\"\",G454-G454/((100+F454)/100),\"\")","v":""},null,{"$f":"IF(I454<>\"\",I454-I454/((100+F454)/100),\"\")","v":""},{"$f":"IF(C454<>0,IF(G454<>0,K453+G454,IF(I454<>0,K453-I454,\"\")),\"\")","v":""},null,""]
[null,null,null,null,null,null,null,"",null,"","",null,{"$f":"IF(K456=\"\",K455,\"0\")","v":""}]
[null,null,null,null,null,null,null,"",null,"","",null,""]
[null,null,null,null,null,null,null,"",null,"","",null,""]
[null,null,null,null,null,null,null,"",null,"","",null,""]
[null,null,null,null,null,null,null,"",null,"","",null,""]
[null,null,null,null,null,null,null,"",null,"","",null,""]
[null,null,null,null,null,null,null,"",null,"","",null,""]
[null,null,null,null,null,null,null,"",null,"","",null,""]
[null,null,null,null,null,null,null,"",null,"","",null,""]
[null,null,null,null,null,null,null,"",null,"","",null,""]
[null,null,null,null,null,null,null,"",null,"","",null,""]
[null,null,null,null,null,null,null,"",null,"","",null,""]
[null,null,null,null,null,null,null,"",null,"","",null,""]
[null,null,null,null,null,null,null,"",null,"","",null,""]
[null,null,null,null,null,null,null,"",null,"","",null,""]
[null,null,null,null,null,null,null,"",null,"","",null,""]
[null,null,null,null,null,null,null,"",null,"","",null,""]
[null,null,null,null,null,null,null,"",null,"","",null,""]
[null,null,null,null,null,null,null,"",null,"","",null,""]
[null,null,null,null,null,null,null,"",null,"","",null,""]
[null,null,null,null,null,null,null,"",null,"","",null,""]
[null,null,null,null,null,null,null,"",null,"","",null,""]
[null,null,null,null,null,null,null,"",null,"","",null,""]
[null,null,null,null,null,null,null,"",null,"","",null,""]
[null,null,null,null,null,null,null,"",null,"","",null,""]
[null,null,null,null,null,null,null,"",null,"","",null,""]
[null,null,null,null,null,null,null,"",null,"","",null,""]
[null,null,null,null,null,null,null,"",null,"","",null,""]
[null,null,null,null,null,null,null,"",null,"","",null,""]
[null,null,null,null,null,null,null,"",null,"","",null,""]
[null,null,null,null,null,null,null,"",null,"","",null,""]
[null,null,null,null,null,null,null,"",null,"","",null,""]
[null,null,null,null,null,null,null,"",null,"","",null,""]
[null,null,null,null,null,null,null,"",null,"","",null,""]
[null,null,null,null,null,null,null,"",null,"","",null,""]
[null,null,null,null,null,null,null,"",null,"","",null,""]
[null,null,null,null,null,null,null,"",null,"","",null,""]
[null,null,null,null,null,null,null,"",null,"","",null,""]
[null,null,null,null,null,null,null,"",null,"","",null,""]
[null,null,null,null,null,null,null,"",null,"","",null,""]
[null,null,null,null,null,null,null,"",null,"","",null,""]
[null,null,null,null,null,null,null,"",null,"","",null,""]
[null,null,null,null,null,null,null,"",null,"","",null,""]
[null,null,null,null,null,null,null,"",null,"","",null,""]
[null,null,null,null,null,null,null,"",null,"","",null,""]
[null,null,null,null,null,null,null,"",null,"","",null,""]
[null,null,null,null,null,null,null,null,null,null,null,null,{"$f":"SUM(M5:M500)","v":0}]

{"sheet":"Sep","index":9,"n_rows":501,"n_cols":14,"rows_kept":501,"cut":false,"hidden":false,"merged":[[0,1,0,10],[1,1,1,10],[2,1,2,6],[2,8,2,10],[4,1,4,9]]}
[null,"KASSABUCH"]
[null,null,null,null,null,null,null,null,null,null,null,null,{"$f":"DATE(Jahr,2,1)","v":"1900-02-01"},"Anfangsdatum"]
[null,{"$f":"IF(Name<>0,Name,\"\")","v":""},null,null,null,null,null,null,{"$f":"\"September \"&Jahr","v":"September "},null,null,null,{"$f":"DATE(Jahr,3,1)-1","v":60},"Enddatum"]
[null,"Datum","Beleg","Konto","Text","%","Einnahmen","USt","Ausgaben","Vorsteuer","Kassabestand",null,{"$f":"SUM(M5:M500)","v":0},{"$f":"I3 &\", \"&\"Endstand\"","v":"September , Endstand"}]
[null,"Übertrag Vormonat EUR:",null,null,null,null,null,null,null,null,{"$f":"Aug!M4","v":0},null,{"$f":"IF(K6=\"\",K5,\"0\")","v":0}]
[null,null,null,null,null,null,null,null,null,{"$f":"IF(I6<>\"\",I6-I6/((100+F6)/100),\"\")","v":""},{"$f":"IF(C6<>0,IF(G6<>0,K5+G6,IF(I6<>0,K5-I6,\"\")),\"\")","v":""},null,{"$f":"IF(K7=\"\",K6,\"0\")","v":""}]
[null,null,null,null,null,null,null,null,null,{"$f":"IF(I7<>\"\",I7-I7/((100+F7)/100),\"\")","v":""},{"$f":"IF(C7<>0,IF(G7<>0,K6+G7,IF(I7<>0,K6-I7,\"\")),\"\")","v":""},null,{"$f":"IF(K8=\"\",K7,\"0\")","v":""}]
[null,null,null,null,null,null,null,{"$f":"IF(G8<>\"\",G8-G8/((100+F8)/100),\"\")","v":""},null,"","",null,{"$f":"IF(K9=\"\",K8,\"0\")","v":""}]
[null,null,null,null,null,null,null,"",null,"","",null,""]
[null,null,null,null,null,null,null,"",null,"","",null,""]
[null,null,null,null,null,null,null,"",null,"","",null,""]
[null,null,null,null,null,null,null,"",null,"","",null,""]
[null,null,null,null,null,null,null,"",null,"","",null,""]
[null,null,null,null,null,null,null,"",null,"","",null,""]
[null,null,null,null,null,null,null,"",null,"","",null,""]
[null,null,null,null,null,null,null,"",null,"","",null,""]
[null,null,null,null,null,null,null,"",null,"","",null,""]
[null,null,null,null,null,null,null,"",null,"","",null,""]
[null,null,null,null,null,null,null,"",null,"","",null,""]
[null,null,null,null,null,null,null,"",null,"","",null,""]
[null,null,null,null,null,null,null,"",null,"","",null,""]
[null,null,null,null,null,null,null,"",null,"","",null,""]
[null,null,null,null,null,null,null,"",null,"","",null,""]
[null,null,null,null,null,null,null,"",null,"","",null,""]
[null,null,null,null,null,null,null,"",null,"","",null,""]
[null,null,null,null,null,null,null,"",null,"","",null,""]
[null,null,null,null,null,null,null,"",null,"","",null,""]
[null,null,null,null,null,null,null,"",null,"","",null,""]
[null,null,null,null,null,null,null,"",null,"","",null,""]
[null,null,null,null,null,null,null,"",null,"","",null,""]
[null,null,null,null,null,null,null,"",null,"","",null,""]
[null,null,null,null,null,null,null,"",null,"","",null,""]
[null,null,null,null,null,null,null,"",null,"","",null,""]
[null,null,null,null,null,null,null,"",null,"","",null,""]
[null,null,null,null,null,null,null,"",null,"","",null,""]
[null,null,null,null,null,null,null,"",null,"","",null,""]
[null,null,null,null,null,null,null,"",null,"","",null,""]
[null,null,null,null,null,null,null,"",null,"","",null,""]
[null,null,null,null,null,null,null,"",null,"","",null,""]
[null,null,null,null,null,null,null,"",null,"","",null,""]
[null,null,null,null,null,null,null,"",null,"","",null,""]
[null,null,null,null,null,null,null,"",null,"","",null,""]
[null,null,null,null,null,null,null,"",null,"","",null,""]
[null,null,null,null,null,null,null,"",null,"","",null,""]
[null,null,null,null,null,null,null,"",null,"","",null,""]
[null,null,null,null,null,null,null,"",null,"","",null,""]
[null,null,null,null,null,null,null,"",null,"","",null,""]
[null,null,null,null,null,null,null,"",null,"","",null,""]
[null,null,null,null,null,null,null,"",null,"","",null,""]
[null,null,null,null,null,null,null,"",null,"","",null,""]
[null,null,null,null,null,null,null,"",null,"","",null,""]
[null,null,null,null,null,null,null,"",null,"","",null,""]
[null,null,null,null,null,null,null,"",null,"","",null,""]
[null,null,null,null,null,null,null,"",null,"","",null,""]
[null,null,null,null,null,null,null,"",null,"","",null,""]
[null,null,null,null,null,null,null,"",null,"","",null,""]
[null,null,null,null,null,null,null,"",null,"","",null,""]
[null,null,null,null,null,null,null,"",null,"","",null,""]
[null,null,null,null,null,null,null,"",null,"","",null,""]
[null,null,null,null,null,null,null,"",null,"","",null,""]
[null,null,null,null,null,null,null,"",null,"","",null,""]
[null,null,null,null,null,null,null,"",null,"","",null,""]
[null,null,null,null,null,null,null,"",null,"","",null,""]
[null,null,null,null,null,null,null,"",null,"","",null,""]
[null,null,null,null,null,null,null,"",null,"","",null,""]
[null,null,null,null,null,null,null,"",null,"","",null,""]
[null,null,null,null,null,null,null,"",null,"","",null,""]
[null,null,null,null,null,null,null,"",null,"","",null,""]
[null,null,null,null,null,null,null,"",null,"","",null,""]
[null,null,null,null,null,null,null,{"$f":"IF(G70<>\"\",G70-G70/((100+F70)/100),\"\")","v":""},null,{"$f":"IF(I70<>\"\",I70-I70/((100+F70)/100),\"\")","v":""},{"$f":"IF(C70<>0,IF(G70<>0,K69+G70,IF(I70<>0,K69-I70,\"\")),\"\")","v":""},null,""]
[null,null,null,null,null,null,null,"",null,"","",null,{"$f":"IF(K72=\"\",K71,\"0\")","v":""}]
[null,null,null,null,null,null,null,"",null,"","",null,""]
[null,null,null,null,null,null,null,"",null,"","",null,""]
[null,null,null,null,null,null,null,"",null,"","",null,""]
[null,null,null,null,null,null,null,"",null,"","",null,""]
[null,null,null,null,null,null,null,"",null,"","",null,""]
[null,null,null,null,null,null,null,"",null,"","",null,""]
[null,null,null,null,null,null,null,"",null,"","",null,""]
[null,null,null,null,null,null,null,"",null,"","",null,""]
[null,null,null,null,null,null,null,"",null,"","",null,""]
[null,null,null,null,null,null,null,"",null,"","",null,""]
[null,null,null,null,null,null,null,"",null,"","",null,""]
[null,null,null,null,null,null,null,"",null,"","",null,""]
[null,null,null,null,null,null,null,"",null,"","",null,""]
[null,null,null,null,null,null,null,"",null,"","",null,""]
[null,null,null,null,null,null,null,"",null,"","",null,""]
[null,null,null,null,null,null,null,"",null,"","",null,""]
[null,null,null,null,null,null,null,"",null,"","",null,""]
[null,null,null,null,null,null,null,"",null,"","",null,""]
[null,null,null,null,null,null,null,"",null,"","",null,""]
[null,null,null,null,null,null,null,"",null,"","",null,""]
[null,null,null,null,null,null,null,"",null,"","",null,""]
[null,null,null,null,null,null,null,"",null,"","",null,""]
[null,null,null,null,null,null,null,"",null,"","",null,""]
[null,null,null,null,null,null,null,"",null,"","",null,""]
[null,null,null,null,null,null,null,"",null,"","",null,""]
[null,null,null,null,null,null,null,"",null,"","",null,""]
[null,null,null,null,null,null,null,"",null,"","",null,""]
[null,null,null,null,null,null,null,"",null,"","",null,""]
[null,null,null,null,null,null,null,"",null,"","",null,""]
[null,null,null,null,null,null,null,"",null,"","",null,""]
[null,null,null,null,null,null,null,"",null,"","",null,""]
[null,null,null,null,null,null,null,"",null,"","",null,""]
[null,null,null,null,null,null,null,"",null,"","",null,""]
[null,null,null,null,null,null,null,"",null,"","",null,""]
[null,null,null,null,null,null,null,"",null,"","",null,""]
[null,null,null,null,null,null,null,"",null,"","",null,""]
[null,null,null,null,null,null,null,"",null,"","",null,""]
[null,null,null,null,null,null,null,"",null,"","",null,""]
[null,null,null,null,null,null,null,"",null,"","",null,""]
[null,null,null,null,null,null,null,"",null,"","",null,""]
[null,null,null,null,null,null,null,"",null,"","",null,""]
[null,null,null,null,null,null,null,"",null,"","",null,""]
[null,null,null,null,null,null,null,"",null,"","",null,""]
[null,null,null,null,null,null,null,"",null,"","",null,""]
[null,null,null,null,null,null,null,"",null,"","",null,""]
[null,null,null,null,null,null,null,"",null,"","",null,""]
[null,null,null,null,null,null,null,"",null,"","",null,""]
[null,null,null,null,null,null,null,"",null,"","",null,""]
[null,null,null,null,null,null,null,"",null,"","",null,""]
[null,null,null,null,null,null,null,"",null,"","",null,""]
[null,null,null,null,null,null,null,"",null,"","",null,""]
[null,null,null,null,null,null,null,"",null,"","",null,""]
[null,null,null,null,null,null,null,"",null,"","",null,""]
[null,null,null,null,null,null,null,"",null,"","",null,""]
[null,null,null,null,null,null,null,"",null,"","",null,""]
[null,null,null,null,null,null,null,"",null,"","",null,""]
[null,null,null,null,null,null,null,"",null,"","",null,""]
[null,null,null,null,null,null,null,"",null,"","",null,""]
[null,null,null,null,null,null,null,"",null,"","",null,""]
[null,null,null,null,null,null,null,"",null,"","",null,""]
[null,null,null,null,null,null,null,"",null,"","",null,""]
[null,null,null,null,null,null,null,"",null,"","",null,""]
[null,null,null,null,null,null,null,{"$f":"IF(G134<>\"\",G134-G134/((100+F134)/100),\"\")","v":""},null,{"$f":"IF(I134<>\"\",I134-I134/((100+F134)/100),\"\")","v":""},{"$f":"IF(C134<>0,IF(G134<>0,K133+G134,IF(I134<>0,K133-I134,\"\")),\"\")","v":""},null,""]
[null,null,null,null,null,null,null,"",null,"","",null,{"$f":"IF(K136=\"\",K135,\"0\")","v":""}]
[null,null,null,null,null,null,null,"",null,"","",null,""]
[null,null,null,null,null,null,null,"",null,"","",null,""]
[null,null,null,null,null,null,null,"",null,"","",null,""]
[null,null,null,null,null,null,null,"",null,"","",null,""]
[null,null,null,null,null,null,null,"",null,"","",null,""]
[null,null,null,null,null,null,null,"",null,"","",null,""]
[null,null,null,null,null,null,null,"",null,"","",null,""]
[null,null,null,null,null,null,null,"",null,"","",null,""]
[null,null,null,null,null,null,null,"",null,"","",null,""]
[null,null,null,null,null,null,null,"",null,"","",null,""]
[null,null,null,null,null,null,null,"",null,"","",null,""]
[null,null,null,null,null,null,null,"",null,"","",null,""]
[null,null,null,null,null,null,null,"",null,"","",null,""]
[null,null,null,null,null,null,null,"",null,"","",null,""]
[null,null,null,null,null,null,null,"",null,"","",null,""]
[null,null,null,null,null,null,null,"",null,"","",null,""]
[null,null,null,null,null,null,null,"",null,"","",null,""]
[null,null,null,null,null,null,null,"",null,"","",null,""]
[null,null,null,null,null,null,null,"",null,"","",null,""]
[null,null,null,null,null,null,null,"",null,"","",null,""]
[null,null,null,null,null,null,null,"",null,"","",null,""]
[null,null,null,null,null,null,null,"",null,"","",null,""]
[null,null,null,null,null,null,null,"",null,"","",null,""]
[null,null,null,null,null,null,null,"",null,"","",null,""]
[null,null,null,null,null,null,null,"",null,"","",null,""]
[null,null,null,null,null,null,null,"",null,"","",null,""]
[null,null,null,null,null,null,null,"",null,"","",null,""]
[null,null,null,null,null,null,null,"",null,"","",null,""]
[null,null,null,null,null,null,null,"",null,"","",null,""]
[null,null,null,null,null,null,null,"",null,"","",null,""]
[null,null,null,null,null,null,null,"",null,"","",null,""]
[null,null,null,null,null,null,null,"",null,"","",null,""]
[null,null,null,null,null,null,null,"",null,"","",null,""]
[null,null,null,null,null,null,null,"",null,"","",null,""]
[null,null,null,null,null,null,null,"",null,"","",null,""]
[null,null,null,null,null,null,null,"",null,"","",null,""]
[null,null,null,null,null,null,null,"",null,"","",null,""]
[null,null,null,null,null,null,null,"",null,"","",null,""]
[null,null,null,null,null,null,null,"",null,"","",null,""]
[null,null,null,null,null,null,null,"",null,"","",null,""]
[null,null,null,null,null,null,null,"",null,"","",null,""]
[null,null,null,null,null,null,null,"",null,"","",null,""]
[null,null,null,null,null,null,null,"",null,"","",null,""]
[null,null,null,null,null,null,null,"",null,"","",null,""]
[null,null,null,null,null,null,null,"",null,"","",null,""]
[null,null,null,null,null,null,null,"",null,"","",null,""]
[null,null,null,null,null,null,null,"",null,"","",null,""]
[null,null,null,null,null,null,null,"",null,"","",null,""]
[null,null,null,null,null,null,null,"",null,"","",null,""]
[null,null,null,null,null,null,null,"",null,"","",null,""]
[null,null,null,null,null,null,null,"",null,"","",null,""]
[null,null,null,null,null,null,null,"",null,"","",null,""]
[null,null,null,null,null,null,null,"",null,"","",null,""]
[null,null,null,null,null,null,null,"",null,"","",null,""]
[null,null,null,null,null,null,null,"",null,"","",null,""]
[null,null,null,null,null,null,null,"",null,"","",null,""]
[null,null,null,null,null,null,null,"",null,"","",null,""]
[null,null,null,null,null,null,null,"",null,"","",null,""]
[null,null,null,null,null,null,null,"",null,"","",null,""]
[null,null,null,null,null,null,null,"",null,"","",null,""]
[null,null,null,null,null,null,null,"",null,"","",null,""]
[null,null,null,null,null,null,null,"",null,"","",null,""]
[null,null,null,null,null,null,null,{"$f":"IF(G198<>\"\",G198-G198/((100+F198)/100),\"\")","v":""},null,{"$f":"IF(I198<>\"\",I198-I198/((100+F198)/100),\"\")","v":""},{"$f":"IF(C198<>0,IF(G198<>0,K197+G198,IF(I198<>0,K197-I198,\"\")),\"\")","v":""},null,""]
[null,null,null,null,null,null,null,"",null,"","",null,{"$f":"IF(K200=\"\",K199,\"0\")","v":""}]
[null,null,null,null,null,null,null,"",null,"","",null,""]
[null,null,null,null,null,null,null,"",null,"","",null,""]
[null,null,null,null,null,null,null,"",null,"","",null,""]
[null,null,null,null,null,null,null,"",null,"","",null,""]
[null,null,null,null,null,null,null,"",null,"","",null,""]
[null,null,null,null,null,null,null,"",null,"","",null,""]
[null,null,null,null,null,null,null,"",null,"","",null,""]
[null,null,null,null,null,null,null,"",null,"","",null,""]
[null,null,null,null,null,null,null,"",null,"","",null,""]
[null,null,null,null,null,null,null,"",null,"","",null,""]
[null,null,null,null,null,null,null,"",null,"","",null,""]
[null,null,null,null,null,null,null,"",null,"","",null,""]
[null,null,null,null,null,null,null,"",null,"","",null,""]
[null,null,null,null,null,null,null,"",null,"","",null,""]
[null,null,null,null,null,null,null,"",null,"","",null,""]
[null,null,null,null,null,null,null,"",null,"","",null,""]
[null,null,null,null,null,null,null,"",null,"","",null,""]
[null,null,null,null,null,null,null,"",null,"","",null,""]
[null,null,null,null,null,null,null,"",null,"","",null,""]
[null,null,null,null,null,null,null,"",null,"","",null,""]
[null,null,null,null,null,null,null,"",null,"","",null,""]
[null,null,null,null,null,null,null,"",null,"","",null,""]
[null,null,null,null,null,null,null,"",null,"","",null,""]
[null,null,null,null,null,null,null,"",null,"","",null,""]
[null,null,null,null,null,null,null,"",null,"","",null,""]
[null,null,null,null,null,null,null,"",null,"","",null,""]
[null,null,null,null,null,null,null,"",null,"","",null,""]
[null,null,null,null,null,null,null,"",null,"","",null,""]
[null,null,null,null,null,null,null,"",null,"","",null,""]
[null,null,null,null,null,null,null,"",null,"","",null,""]
[null,null,null,null,null,null,null,"",null,"","",null,""]
[null,null,null,null,null,null,null,"",null,"","",null,""]
[null,null,null,null,null,null,null,"",null,"","",null,""]
[null,null,null,null,null,null,null,"",null,"","",null,""]
[null,null,null,null,null,null,null,"",null,"","",null,""]
[null,null,null,null,null,null,null,"",null,"","",null,""]
[null,null,null,null,null,null,null,"",null,"","",null,""]
[null,null,null,null,null,null,null,"",null,"","",null,""]
[null,null,null,null,null,null,null,"",null,"","",null,""]
[null,null,null,null,null,null,null,"",null,"","",null,""]
[null,null,null,null,null,null,null,"",null,"","",null,""]
[null,null,null,null,null,null,null,"",null,"","",null,""]
[null,null,null,null,null,null,null,"",null,"","",null,""]
[null,null,null,null,null,null,null,"",null,"","",null,""]
[null,null,null,null,null,null,null,"",null,"","",null,""]
[null,null,null,null,null,null,null,"",null,"","",null,""]
[null,null,null,null,null,null,null,"",null,"","",null,""]
[null,null,null,null,null,null,null,"",null,"","",null,""]
[null,null,null,null,null,null,null,"",null,"","",null,""]
[null,null,null,null,null,null,null,"",null,"","",null,""]
[null,null,null,null,null,null,null,"",null,"","",null,""]
[null,null,null,null,null,null,null,"",null,"","",null,""]
[null,null,null,null,null,null,null,"",null,"","",null,""]
[null,null,null,null,null,null,null,"",null,"","",null,""]
[null,null,null,null,null,null,null,"",null,"","",null,""]
[null,null,null,null,null,null,null,"",null,"","",null,""]
[null,null,null,null,null,null,null,"",null,"","",null,""]
[null,null,null,null,null,null,null,"",null,"","",null,""]
[null,null,null,null,null,null,null,"",null,"","",null,""]
[null,null,null,null,null,null,null,"",null,"","",null,""]
[null,null,null,null,null,null,null,"",null,"","",null,""]
[null,null,null,null,null,null,null,"",null,"","",null,""]
[null,null,null,null,null,null,null,{"$f":"IF(G262<>\"\",G262-G262/((100+F262)/100),\"\")","v":""},null,{"$f":"IF(I262<>\"\",I262-I262/((100+F262)/100),\"\")","v":""},{"$f":"IF(C262<>0,IF(G262<>0,K261+G262,IF(I262<>0,K261-I262,\"\")),\"\")","v":""},null,""]
[null,null,null,null,null,null,null,"",null,"","",null,{"$f":"IF(K264=\"\",K263,\"0\")","v":""}]
[null,null,null,null,null,null,null,"",null,"","",null,""]
[null,null,null,null,null,null,null,"",null,"","",null,""]
[null,null,null,null,null,null,null,"",null,"","",null,""]
[null,null,null,null,null,null,null,"",null,"","",null,""]
[null,null,null,null,null,null,null,"",null,"","",null,""]
[null,null,null,null,null,null,null,"",null,"","",null,""]
[null,null,null,null,null,null,null,"",null,"","",null,""]
[null,null,null,null,null,null,null,"",null,"","",null,""]
[null,null,null,null,null,null,null,"",null,"","",null,""]
[null,null,null,null,null,null,null,"",null,"","",null,""]
[null,null,null,null,null,null,null,"",null,"","",null,""]
[null,null,null,null,null,null,null,"",null,"","",null,""]
[null,null,null,null,null,null,null,"",null,"","",null,""]
[null,null,null,null,null,null,null,"",null,"","",null,""]
[null,null,null,null,null,null,null,"",null,"","",null,""]
[null,null,null,null,null,null,null,"",null,"","",null,""]
[null,null,null,null,null,null,null,"",null,"","",null,""]
[null,null,null,null,null,null,null,"",null,"","",null,""]
[null,null,null,null,null,null,null,"",null,"","",null,""]
[null,null,null,null,null,null,null,"",null,"","",null,""]
[null,null,null,null,null,null,null,"",null,"","",null,""]
[null,null,null,null,null,null,null,"",null,"","",null,""]
[null,null,null,null,null,null,null,"",null,"","",null,""]
[null,null,null,null,null,null,null,"",null,"","",null,""]
[null,null,null,null,null,null,null,"",null,"","",null,""]
[null,null,null,null,null,null,null,"",null,"","",null,""]
[null,null,null,null,null,null,null,"",null,"","",null,""]
[null,null,null,null,null,null,null,"",null,"","",null,""]
[null,null,null,null,null,null,null,"",null,"","",null,""]
[null,null,null,null,null,null,null,"",null,"","",null,""]
[null,null,null,null,null,null,null,"",null,"","",null,""]
[null,null,null,null,null,null,null,"",null,"","",null,""]
[null,null,null,null,null,null,null,"",null,"","",null,""]
[null,null,null,null,null,null,null,"",null,"","",null,""]
[null,null,null,null,null,null,null,"",null,"","",null,""]
[null,null,null,null,null,null,null,"",null,"","",null,""]
[null,null,null,null,null,null,null,"",null,"","",null,""]
[null,null,null,null,null,null,null,"",null,"","",null,""]
[null,null,null,null,null,null,null,"",null,"","",null,""]
[null,null,null,null,null,null,null,"",null,"","",null,""]
[null,null,null,null,null,null,null,"",null,"","",null,""]
[null,null,null,null,null,null,null,"",null,"","",null,""]
[null,null,null,null,null,null,null,"",null,"","",null,""]
[null,null,null,null,null,null,null,"",null,"","",null,""]
[null,null,null,null,null,null,null,"",null,"","",null,""]
[null,null,null,null,null,null,null,"",null,"","",null,""]
[null,null,null,null,null,null,null,"",null,"","",null,""]
[null,null,null,null,null,null,null,"",null,"","",null,""]
[null,null,null,null,null,null,null,"",null,"","",null,""]
[null,null,null,null,null,null,null,"",null,"","",null,""]
[null,null,null,null,null,null,null,"",null,"","",null,""]
[null,null,null,null,null,null,null,"",null,"","",null,""]
[null,null,null,null,null,null,null,"",null,"","",null,""]
[null,null,null,null,null,null,null,"",null,"","",null,""]
[null,null,null,null,null,null,null,"",null,"","",null,""]
[null,null,null,null,null,null,null,"",null,"","",null,""]
[null,null,null,null,null,null,null,"",null,"","",null,""]
[null,null,null,null,null,null,null,"",null,"","",null,""]
[null,null,null,null,null,null,null,"",null,"","",null,""]
[null,null,null,null,null,null,null,"",null,"","",null,""]
[null,null,null,null,null,null,null,"",null,"","",null,""]
[null,null,null,null,null,null,null,"",null,"","",null,""]
[null,null,null,null,null,null,null,{"$f":"IF(G326<>\"\",G326-G326/((100+F326)/100),\"\")","v":""},null,{"$f":"IF(I326<>\"\",I326-I326/((100+F326)/100),\"\")","v":""},{"$f":"IF(C326<>0,IF(G326<>0,K325+G326,IF(I326<>0,K325-I326,\"\")),\"\")","v":""},null,""]
[null,null,null,null,null,null,null,"",null,"","",null,{"$f":"IF(K328=\"\",K327,\"0\")","v":""}]
[null,null,null,null,null,null,null,"",null,"","",null,""]
[null,null,null,null,null,null,null,"",null,"","",null,""]
[null,null,null,null,null,null,null,"",null,"","",null,""]
[null,null,null,null,null,null,null,"",null,"","",null,""]
[null,null,null,null,null,null,null,"",null,"","",null,""]
[null,null,null,null,null,null,null,"",null,"","",null,""]
[null,null,null,null,null,null,null,"",null,"","",null,""]
[null,null,null,null,null,null,null,"",null,"","",null,""]
[null,null,null,null,null,null,null,"",null,"","",null,""]
[null,null,null,null,null,null,null,"",null,"","",null,""]
[null,null,null,null,null,null,null,"",null,"","",null,""]
[null,null,null,null,null,null,null,"",null,"","",null,""]
[null,null,null,null,null,null,null,"",null,"","",null,""]
[null,null,null,null,null,null,null,"",null,"","",null,""]
[null,null,null,null,null,null,null,"",null,"","",null,""]
[null,null,null,null,null,null,null,"",null,"","",null,""]
[null,null,null,null,null,null,null,"",null,"","",null,""]
[null,null,null,null,null,null,null,"",null,"","",null,""]
[null,null,null,null,null,null,null,"",null,"","",null,""]
[null,null,null,null,null,null,null,"",null,"","",null,""]
[null,null,null,null,null,null,null,"",null,"","",null,""]
[null,null,null,null,null,null,null,"",null,"","",null,""]
[null,null,null,null,null,null,null,"",null,"","",null,""]
[null,null,null,null,null,null,null,"",null,"","",null,""]
[null,null,null,null,null,null,null,"",null,"","",null,""]
[null,null,null,null,null,null,null,"",null,"","",null,""]
[null,null,null,null,null,null,null,"",null,"","",null,""]
[null,null,null,null,null,null,null,"",null,"","",null,""]
[null,null,null,null,null,null,null,"",null,"","",null,""]
[null,null,null,null,null,null,null,"",null,"","",null,""]
[null,null,null,null,null,null,null,"",null,"","",null,""]
[null,null,null,null,null,null,null,"",null,"","",null,""]
[null,null,null,null,null,null,null,"",null,"","",null,""]
[null,null,null,null,null,null,null,"",null,"","",null,""]
[null,null,null,null,null,null,null,"",null,"","",null,""]
[null,null,null,null,null,null,null,"",null,"","",null,""]
[null,null,null,null,null,null,null,"",null,"","",null,""]
[null,null,null,null,null,null,null,"",null,"","",null,""]
[null,null,null,null,null,null,null,"",null,"","",null,""]
[null,null,null,null,null,null,null,"",null,"","",null,""]
[null,null,null,null,null,null,null,"",null,"","",null,""]
[null,null,null,null,null,null,null,"",null,"","",null,""]
[null,null,null,null,null,null,null,"",null,"","",null,""]
[null,null,null,null,null,null,null,"",null,"","",null,""]
[null,null,null,null,null,null,null,"",null,"","",null,""]
[null,null,null,null,null,null,null,"",null,"","",null,""]
[null,null,null,null,null,null,null,"",null,"","",null,""]
[null,null,null,null,null,null,null,"",null,"","",null,""]
[null,null,null,null,null,null,null,"",null,"","",null,""]
[null,null,null,null,null,null,null,"",null,"","",null,""]
[null,null,null,null,null,null,null,"",null,"","",null,""]
[null,null,null,null,null,null,null,"",null,"","",null,""]
[null,null,null,null,null,null,null,"",null,"","",null,""]
[null,null,null,null,null,null,null,"",null,"","",null,""]
[null,null,null,null,null,null,null,"",null,"","",null,""]
[null,null,null,null,null,null,null,"",null,"","",null,""]
[null,null,null,null,null,null,null,"",null,"","",null,""]
[null,null,null,null,null,null,null,"",null,"","",null,""]
[null,null,null,null,null,null,null,"",null,"","",null,""]
[null,null,null,null,null,null,null,"",null,"","",null,""]
[null,null,null,null,null,null,null,"",null,"","",null,""]
[null,null,null,null,null,null,null,"",null,"","",null,""]
[null,null,null,null,null,null,null,{"$f":"IF(G390<>\"\",G390-G390/((100+F390)/100),\"\")","v":""},null,{"$f":"IF(I390<>\"\",I390-I390/((100+F390)/100),\"\")","v":""},{"$f":"IF(C390<>0,IF(G390<>0,K389+G390,IF(I390<>0,K389-I390,\"\")),\"\")","v":""},null,""]
[null,null,null,null,null,null,null,"",null,"","",null,{"$f":"IF(K392=\"\",K391,\"0\")","v":""}]
[null,null,null,null,null,null,null,"",null,"","",null,""]
[null,null,null,null,null,null,null,"",null,"","",null,""]
[null,null,null,null,null,null,null,"",null,"","",null,""]
[null,null,null,null,null,null,null,"",null,"","",null,""]
[null,null,null,null,null,null,null,"",null,"","",null,""]
[null,null,null,null,null,null,null,"",null,"","",null,""]
[null,null,null,null,null,null,null,"",null,"","",null,""]
[null,null,null,null,null,null,null,"",null,"","",null,""]
[null,null,null,null,null,null,null,"",null,"","",null,""]
[null,null,null,null,null,null,null,"",null,"","",null,""]
[null,null,null,null,null,null,null,"",null,"","",null,""]
[null,null,null,null,null,null,null,"",null,"","",null,""]
[null,null,null,null,null,null,null,"",null,"","",null,""]
[null,null,null,null,null,null,null,"",null,"","",null,""]
[null,null,null,null,null,null,null,"",null,"","",null,""]
[null,null,null,null,null,null,null,"",null,"","",null,""]
[null,null,null,null,null,null,null,"",null,"","",null,""]
[null,null,null,null,null,null,null,"",null,"","",null,""]
[null,null,null,null,null,null,null,"",null,"","",null,""]
[null,null,null,null,null,null,null,"",null,"","",null,""]
[null,null,null,null,null,null,null,"",null,"","",null,""]
[null,null,null,null,null,null,null,"",null,"","",null,""]
[null,null,null,null,null,null,null,"",null,"","",null,""]
[null,null,null,null,null,null,null,"",null,"","",null,""]
[null,null,null,null,null,null,null,"",null,"","",null,""]
[null,null,null,null,null,null,null,"",null,"","",null,""]
[null,null,null,null,null,null,null,"",null,"","",null,""]
[null,null,null,null,null,null,null,"",null,"","",null,""]
[null,null,null,null,null,null,null,"",null,"","",null,""]
[null,null,null,null,null,null,null,"",null,"","",null,""]
[null,null,null,null,null,null,null,"",null,"","",null,""]
[null,null,null,null,null,null,null,"",null,"","",null,""]
[null,null,null,null,null,null,null,"",null,"","",null,""]
[null,null,null,null,null,null,null,"",null,"","",null,""]
[null,null,null,null,null,null,null,"",null,"","",null,""]
[null,null,null,null,null,null,null,"",null,"","",null,""]
[null,null,null,null,null,null,null,"",null,"","",null,""]
[null,null,null,null,null,null,null,"",null,"","",null,""]
[null,null,null,null,null,null,null,"",null,"","",null,""]
[null,null,null,null,null,null,null,"",null,"","",null,""]
[null,null,null,null,null,null,null,"",null,"","",null,""]
[null,null,null,null,null,null,null,"",null,"","",null,""]
[null,null,null,null,null,null,null,"",null,"","",null,""]
[null,null,null,null,null,null,null,"",null,"","",null,""]
[null,null,null,null,null,null,null,"",null,"","",null,""]
[null,null,null,null,null,null,null,"",null,"","",null,""]
[null,null,null,null,null,null,null,"",null,"","",null,""]
[null,null,null,null,null,null,null,"",null,"","",null,""]
[null,null,null,null,null,null,null,"",null,"","",null,""]
[null,null,null,null,null,null,null,"",null,"","",null,""]
[null,null,null,null,null,null,null,"",null,"","",null,""]
[null,null,null,null,null,null,null,"",null,"","",null,""]
[null,null,null,null,null,null,null,"",null,"","",null,""]
[null,null,null,null,null,null,null,"",null,"","",null,""]
[null,null,null,null,null,null,null,"",null,"","",null,""]
[null,null,null,null,null,null,null,"",null,"","",null,""]
[null,null,null,null,null,null,null,"",null,"","",null,""]
[null,null,null,null,null,null,null,"",null,"","",null,""]
[null,null,null,null,null,null,null,"",null,"","",null,""]
[null,null,null,null,null,null,null,"",null,"","",null,""]
[null,null,null,null,null,null,null,"",null,"","",null,""]
[null,null,null,null,null,null,null,"",null,"","",null,""]
[null,null,null,null,null,null,null,{"$f":"IF(G454<>\"\",G454-G454/((100+F454)/100),\"\")","v":""},null,{"$f":"IF(I454<>\"\",I454-I454/((100+F454)/100),\"\")","v":""},{"$f":"IF(C454<>0,IF(G454<>0,K453+G454,IF(I454<>0,K453-I454,\"\")),\"\")","v":""},null,""]
[null,null,null,null,null,null,null,"",null,"","",null,{"$f":"IF(K456=\"\",K455,\"0\")","v":""}]
[null,null,null,null,null,null,null,"",null,"","",null,""]
[null,null,null,null,null,null,null,"",null,"","",null,""]
[null,null,null,null,null,null,null,"",null,"","",null,""]
[null,null,null,null,null,null,null,"",null,"","",null,""]
[null,null,null,null,null,null,null,"",null,"","",null,""]
[null,null,null,null,null,null,null,"",null,"","",null,""]
[null,null,null,null,null,null,null,"",null,"","",null,""]
[null,null,null,null,null,null,null,"",null,"","",null,""]
[null,null,null,null,null,null,null,"",null,"","",null,""]
[null,null,null,null,null,null,null,"",null,"","",null,""]
[null,null,null,null,null,null,null,"",null,"","",null,""]
[null,null,null,null,null,null,null,"",null,"","",null,""]
[null,null,null,null,null,null,null,"",null,"","",null,""]
[null,null,null,null,null,null,null,"",null,"","",null,""]
[null,null,null,null,null,null,null,"",null,"","",null,""]
[null,null,null,null,null,null,null,"",null,"","",null,""]
[null,null,null,null,null,null,null,"",null,"","",null,""]
[null,null,null,null,null,null,null,"",null,"","",null,""]
[null,null,null,null,null,null,null,"",null,"","",null,""]
[null,null,null,null,null,null,null,"",null,"","",null,""]
[null,null,null,null,null,null,null,"",null,"","",null,""]
[null,null,null,null,null,null,null,"",null,"","",null,""]
[null,null,null,null,null,null,null,"",null,"","",null,""]
[null,null,null,null,null,null,null,"",null,"","",null,""]
[null,null,null,null,null,null,null,"",null,"","",null,""]
[null,null,null,null,null,null,null,"",null,"","",null,""]
[null,null,null,null,null,null,null,"",null,"","",null,""]
[null,null,null,null,null,null,null,"",null,"","",null,""]
[null,null,null,null,null,null,null,"",null,"","",null,""]
[null,null,null,null,null,null,null,"",null,"","",null,""]
[null,null,null,null,null,null,null,"",null,"","",null,""]
[null,null,null,null,null,null,null,"",null,"","",null,""]
[null,null,null,null,null,null,null,"",null,"","",null,""]
[null,null,null,null,null,null,null,"",null,"","",null,""]
[null,null,null,null,null,null,null,"",null,"","",null,""]
[null,null,null,null,null,null,null,"",null,"","",null,""]
[null,null,null,null,null,null,null,"",null,"","",null,""]
[null,null,null,null,null,null,null,"",null,"","",null,""]
[null,null,null,null,null,null,null,"",null,"","",null,""]
[null,null,null,null,null,null,null,"",null,"","",null,""]
[null,null,null,null,null,null,null,"",null,"","",null,""]
[null,null,null,null,null,null,null,"",null,"","",null,""]
[null,null,null,null,null,null,null,"",null,"","",null,""]
[null,null,null,null,null,null,null,"",null,"","",null,""]
[null,null,null,null,null,null,null,"",null,"","",null,""]
[null,null,null,null,null,null,null,null,null,null,null,null,{"$f":"SUM(M5:M500)","v":0}]

{"sheet":"Okt","index":10,"n_rows":501,"n_cols":14,"rows_kept":501,"cut":false,"hidden":false,"merged":[[0,1,0,10],[1,1,1,10],[2,1,2,6],[2,8,2,10],[4,1,4,9]]}
[null,"KASSABUCH"]
[null,null,null,null,null,null,null,null,null,null,null,null,{"$f":"DATE(Jahr,2,1)","v":"1900-02-01"},"Anfangsdatum"]
[null,{"$f":"IF(Name<>0,Name,\"\")","v":""},null,null,null,null,null,null,{"$f":"\"Oktober \"&Jahr","v":"Oktober "},null,null,null,{"$f":"DATE(Jahr,3,1)-1","v":60},"Enddatum"]
[null,"Datum","Beleg","Konto","Text","%","Einnahmen","USt","Ausgaben","Vorsteuer","Kassabestand",null,{"$f":"SUM(M5:M500)","v":0},{"$f":"I3 &\", \"&\"Endstand\"","v":"Oktober , Endstand"}]
[null,"Übertrag Vormonat EUR:",null,null,null,null,null,null,null,null,{"$f":"Sep!M4","v":0},null,{"$f":"IF(K6=\"\",K5,\"0\")","v":0}]
[null,null,null,null,null,null,null,null,null,{"$f":"IF(I6<>\"\",I6-I6/((100+F6)/100),\"\")","v":""},{"$f":"IF(C6<>0,IF(G6<>0,K5+G6,IF(I6<>0,K5-I6,\"\")),\"\")","v":""},null,{"$f":"IF(K7=\"\",K6,\"0\")","v":""}]
[null,null,null,null,null,null,null,null,null,{"$f":"IF(I7<>\"\",I7-I7/((100+F7)/100),\"\")","v":""},{"$f":"IF(C7<>0,IF(G7<>0,K6+G7,IF(I7<>0,K6-I7,\"\")),\"\")","v":""},null,{"$f":"IF(K8=\"\",K7,\"0\")","v":""}]
[null,null,null,null,null,null,null,null,null,"","",null,{"$f":"IF(K9=\"\",K8,\"0\")","v":""}]
[null,null,null,null,null,null,null,null,null,"","",null,""]
[null,null,null,null,null,null,null,null,null,"","",null,""]
[null,null,null,null,null,null,null,null,null,"","",null,""]
[null,null,null,null,null,null,null,null,null,"","",null,""]
[null,null,null,null,null,null,null,null,null,"","",null,""]
[null,null,null,null,null,null,null,null,null,"","",null,""]
[null,null,null,null,null,null,null,null,null,"","",null,""]
[null,null,null,null,null,null,null,null,null,"","",null,""]
[null,null,null,null,null,null,null,null,null,"","",null,""]
[null,null,null,null,null,null,null,null,null,"","",null,""]
[null,null,null,null,null,null,null,null,null,"","",null,""]
[null,null,null,null,null,null,null,null,null,"","",null,""]
[null,null,null,null,null,null,null,null,null,"","",null,""]
[null,null,null,null,null,null,null,null,null,"","",null,""]
[null,null,null,null,null,null,null,{"$f":"IF(G23<>\"\",G23-G23/((100+F23)/100),\"\")","v":""},null,"","",null,""]
[null,null,null,null,null,null,null,"",null,"","",null,""]
[null,null,null,null,null,null,null,"",null,"","",null,""]
[null,null,null,null,null,null,null,"",null,"","",null,""]
[null,null,null,null,null,null,null,"",null,"","",null,""]
[null,null,null,null,null,null,null,"",null,"","",null,""]
[null,null,null,null,null,null,null,"",null,"","",null,""]
[null,null,null,null,null,null,null,"",null,"","",null,""]
[null,null,null,null,null,null,null,"",null,"","",null,""]
[null,null,null,null,null,null,null,"",null,"","",null,""]
[null,null,null,null,null,null,null,"",null,"","",null,""]
[null,null,null,null,null,null,null,"",null,"","",null,""]
[null,null,null,null,null,null,null,"",null,"","",null,""]
[null,null,null,null,null,null,null,"",null,"","",null,""]
[null,null,null,null,null,null,null,"",null,"","",null,""]
[null,null,null,null,null,null,null,"",null,"","",null,""]
[null,null,null,null,null,null,null,"",null,"","",null,""]
[null,null,null,null,null,null,null,"",null,"","",null,""]
[null,null,null,null,null,null,null,"",null,"","",null,""]
[null,null,null,null,null,null,null,"",null,"","",null,""]
[null,null,null,null,null,null,null,"",null,"","",null,""]
[null,null,null,null,null,null,null,"",null,"","",null,""]
[null,null,null,null,null,null,null,"",null,"","",null,""]
[null,null,null,null,null,null,null,"",null,"","",null,""]
[null,null,null,null,null,null,null,"",null,"","",null,""]
[null,null,null,null,null,null,null,"",null,"","",null,""]
[null,null,null,null,null,null,null,"",null,"","",null,""]
[null,null,null,null,null,null,null,"",null,"","",null,""]
[null,null,null,null,null,null,null,"",null,"","",null,""]
[null,null,null,null,null,null,null,"",null,"","",null,""]
[null,null,null,null,null,null,null,"",null,"","",null,""]
[null,null,null,null,null,null,null,"",null,"","",null,""]
[null,null,null,null,null,null,null,"",null,"","",null,""]
[null,null,null,null,null,null,null,"",null,"","",null,""]
[null,null,null,null,null,null,null,"",null,"","",null,""]
[null,null,null,null,null,null,null,"",null,"","",null,""]
[null,null,null,null,null,null,null,"",null,"","",null,""]
[null,null,null,null,null,null,null,"",null,"","",null,""]
[null,null,null,null,null,null,null,"",null,"","",null,""]
[null,null,null,null,null,null,null,"",null,"","",null,""]
[null,null,null,null,null,null,null,"",null,"","",null,""]
[null,null,null,null,null,null,null,"",null,"","",null,""]
[null,null,null,null,null,null,null,"",null,"","",null,""]
[null,null,null,null,null,null,null,"",null,"","",null,""]
[null,null,null,null,null,null,null,"",null,"","",null,""]
[null,null,null,null,null,null,null,"",null,"","",null,""]
[null,null,null,null,null,null,null,"",null,"","",null,""]
[null,null,null,null,null,null,null,{"$f":"IF(G70<>\"\",G70-G70/((100+F70)/100),\"\")","v":""},null,{"$f":"IF(I70<>\"\",I70-I70/((100+F70)/100),\"\")","v":""},{"$f":"IF(C70<>0,IF(G70<>0,K69+G70,IF(I70<>0,K69-I70,\"\")),\"\")","v":""},null,""]
[null,null,null,null,null,null,null,"",null,"","",null,{"$f":"IF(K72=\"\",K71,\"0\")","v":""}]
[null,null,null,null,null,null,null,"",null,"","",null,""]
[null,null,null,null,null,null,null,"",null,"","",null,""]
[null,null,null,null,null,null,null,"",null,"","",null,""]
[null,null,null,null,null,null,null,"",null,"","",null,""]
[null,null,null,null,null,null,null,"",null,"","",null,""]
[null,null,null,null,null,null,null,"",null,"","",null,""]
[null,null,null,null,null,null,null,"",null,"","",null,""]
[null,null,null,null,null,null,null,"",null,"","",null,""]
[null,null,null,null,null,null,null,"",null,"","",null,""]
[null,null,null,null,null,null,null,"",null,"","",null,""]
[null,null,null,null,null,null,null,"",null,"","",null,""]
[null,null,null,null,null,null,null,"",null,"","",null,""]
[null,null,null,null,null,null,null,"",null,"","",null,""]
[null,null,null,null,null,null,null,"",null,"","",null,""]
[null,null,null,null,null,null,null,"",null,"","",null,""]
[null,null,null,null,null,null,null,"",null,"","",null,""]
[null,null,null,null,null,null,null,"",null,"","",null,""]
[null,null,null,null,null,null,null,"",null,"","",null,""]
[null,null,null,null,null,null,null,"",null,"","",null,""]
[null,null,null,null,null,null,null,"",null,"","",null,""]
[null,null,null,null,null,null,null,"",null,"","",null,""]
[null,null,null,null,null,null,null,"",null,"","",null,""]
[null,null,null,null,null,null,null,"",null,"","",null,""]
[null,null,null,null,null,null,null,"",null,"","",null,""]
[null,null,null,null,null,null,null,"",null,"","",null,""]
[null,null,null,null,null,null,null,"",null,"","",null,""]
[null,null,null,null,null,null,null,"",null,"","",null,""]
[null,null,null,null,null,null,null,"",null,"","",null,""]
[null,null,null,null,null,null,null,"",null,"","",null,""]
[null,null,null,null,null,null,null,"",null,"","",null,""]
[null,null,null,null,null,null,null,"",null,"","",null,""]
[null,null,null,null,null,null,null,"",null,"","",null,""]
[null,null,null,null,null,null,null,"",null,"","",null,""]
[null,null,null,null,null,null,null,"",null,"","",null,""]
[null,null,null,null,null,null,null,"",null,"","",null,""]
[null,null,null,null,null,null,null,"",null,"","",null,""]
[null,null,null,null,null,null,null,"",null,"","",null,""]
[null,null,null,null,null,null,null,"",null,"","",null,""]
[null,null,null,null,null,null,null,"",null,"","",null,""]
[null,null,null,null,null,null,null,"",null,"","",null,""]
[null,null,null,null,null,null,null,"",null,"","",null,""]
[null,null,null,null,null,null,null,"",null,"","",null,""]
[null,null,null,null,null,null,null,"",null,"","",null,""]
[null,null,null,null,null,null,null,"",null,"","",null,""]
[null,null,null,null,null,null,null,"",null,"","",null,""]
[null,null,null,null,null,null,null,"",null,"","",null,""]
[null,null,null,null,null,null,null,"",null,"","",null,""]
[null,null,null,null,null,null,null,"",null,"","",null,""]
[null,null,null,null,null,null,null,"",null,"","",null,""]
[null,null,null,null,null,null,null,"",null,"","",null,""]
[null,null,null,null,null,null,null,"",null,"","",null,""]
[null,null,null,null,null,null,null,"",null,"","",null,""]
[null,null,null,null,null,null,null,"",null,"","",null,""]
[null,null,null,null,null,null,null,"",null,"","",null,""]
[null,null,null,null,null,null,null,"",null,"","",null,""]
[null,null,null,null,null,null,null,"",null,"","",null,""]
[null,null,null,null,null,null,null,"",null,"","",null,""]
[null,null,null,null,null,null,null,"",null,"","",null,""]
[null,null,null,null,null,null,null,"",null,"","",null,""]
[null,null,null,null,null,null,null,"",null,"","",null,""]
[null,null,null,null,null,null,null,"",null,"","",null,""]
[null,null,null,null,null,null,null,"",null,"","",null,""]
[null,null,null,null,null,null,null,{"$f":"IF(G134<>\"\",G134-G134/((100+F134)/100),\"\")","v":""},null,{"$f":"IF(I134<>\"\",I134-I134/((100+F134)/100),\"\")","v":""},{"$f":"IF(C134<>0,IF(G134<>0,K133+G134,IF(I134<>0,K133-I134,\"\")),\"\")","v":""},null,""]
[null,null,null,null,null,null,null,"",null,"","",null,{"$f":"IF(K136=\"\",K135,\"0\")","v":""}]
[null,null,null,null,null,null,null,"",null,"","",null,""]
[null,null,null,null,null,null,null,"",null,"","",null,""]
[null,null,null,null,null,null,null,"",null,"","",null,""]
[null,null,null,null,null,null,null,"",null,"","",null,""]
[null,null,null,null,null,null,null,"",null,"","",null,""]
[null,null,null,null,null,null,null,"",null,"","",null,""]
[null,null,null,null,null,null,null,"",null,"","",null,""]
[null,null,null,null,null,null,null,"",null,"","",null,""]
[null,null,null,null,null,null,null,"",null,"","",null,""]
[null,null,null,null,null,null,null,"",null,"","",null,""]
[null,null,null,null,null,null,null,"",null,"","",null,""]
[null,null,null,null,null,null,null,"",null,"","",null,""]
[null,null,null,null,null,null,null,"",null,"","",null,""]
[null,null,null,null,null,null,null,"",null,"","",null,""]
[null,null,null,null,null,null,null,"",null,"","",null,""]
[null,null,null,null,null,null,null,"",null,"","",null,""]
[null,null,null,null,null,null,null,"",null,"","",null,""]
[null,null,null,null,null,null,null,"",null,"","",null,""]
[null,null,null,null,null,null,null,"",null,"","",null,""]
[null,null,null,null,null,null,null,"",null,"","",null,""]
[null,null,null,null,null,null,null,"",null,"","",null,""]
[null,null,null,null,null,null,null,"",null,"","",null,""]
[null,null,null,null,null,null,null,"",null,"","",null,""]
[null,null,null,null,null,null,null,"",null,"","",null,""]
[null,null,null,null,null,null,null,"",null,"","",null,""]
[null,null,null,null,null,null,null,"",null,"","",null,""]
[null,null,null,null,null,null,null,"",null,"","",null,""]
[null,null,null,null,null,null,null,"",null,"","",null,""]
[null,null,null,null,null,null,null,"",null,"","",null,""]
[null,null,null,null,null,null,null,"",null,"","",null,""]
[null,null,null,null,null,null,null,"",null,"","",null,""]
[null,null,null,null,null,null,null,"",null,"","",null,""]
[null,null,null,null,null,null,null,"",null,"","",null,""]
[null,null,null,null,null,null,null,"",null,"","",null,""]
[null,null,null,null,null,null,null,"",null,"","",null,""]
[null,null,null,null,null,null,null,"",null,"","",null,""]
[null,null,null,null,null,null,null,"",null,"","",null,""]
[null,null,null,null,null,null,null,"",null,"","",null,""]
[null,null,null,null,null,null,null,"",null,"","",null,""]
[null,null,null,null,null,null,null,"",null,"","",null,""]
[null,null,null,null,null,null,null,"",null,"","",null,""]
[null,null,null,null,null,null,null,"",null,"","",null,""]
[null,null,null,null,null,null,null,"",null,"","",null,""]
[null,null,null,null,null,null,null,"",null,"","",null,""]
[null,null,null,null,null,null,null,"",null,"","",null,""]
[null,null,null,null,null,null,null,"",null,"","",null,""]
[null,null,null,null,null,null,null,"",null,"","",null,""]
[null,null,null,null,null,null,null,"",null,"","",null,""]
[null,null,null,null,null,null,null,"",null,"","",null,""]
[null,null,null,null,null,null,null,"",null,"","",null,""]
[null,null,null,null,null,null,null,"",null,"","",null,""]
[null,null,null,null,null,null,null,"",null,"","",null,""]
[null,null,null,null,null,null,null,"",null,"","",null,""]
[null,null,null,null,null,null,null,"",null,"","",null,""]
[null,null,null,null,null,null,null,"",null,"","",null,""]
[null,null,null,null,null,null,null,"",null,"","",null,""]
[null,null,null,null,null,null,null,"",null,"","",null,""]
[null,null,null,null,null,null,null,"",null,"","",null,""]
[null,null,null,null,null,null,null,"",null,"","",null,""]
[null,null,null,null,null,null,null,"",null,"","",null,""]
[null,null,null,null,null,null,null,"",null,"","",null,""]
[null,null,null,null,null,null,null,"",null,"","",null,""]
[null,null,null,null,null,null,null,{"$f":"IF(G198<>\"\",G198-G198/((100+F198)/100),\"\")","v":""},null,{"$f":"IF(I198<>\"\",I198-I198/((100+F198)/100),\"\")","v":""},{"$f":"IF(C198<>0,IF(G198<>0,K197+G198,IF(I198<>0,K197-I198,\"\")),\"\")","v":""},null,""]
[null,null,null,null,null,null,null,"",null,"","",null,{"$f":"IF(K200=\"\",K199,\"0\")","v":""}]
[null,null,null,null,null,null,null,"",null,"","",null,""]
[null,null,null,null,null,null,null,"",null,"","",null,""]
[null,null,null,null,null,null,null,"",null,"","",null,""]
[null,null,null,null,null,null,null,"",null,"","",null,""]
[null,null,null,null,null,null,null,"",null,"","",null,""]
[null,null,null,null,null,null,null,"",null,"","",null,""]
[null,null,null,null,null,null,null,"",null,"","",null,""]
[null,null,null,null,null,null,null,"",null,"","",null,""]
[null,null,null,null,null,null,null,"",null,"","",null,""]
[null,null,null,null,null,null,null,"",null,"","",null,""]
[null,null,null,null,null,null,null,"",null,"","",null,""]
[null,null,null,null,null,null,null,"",null,"","",null,""]
[null,null,null,null,null,null,null,"",null,"","",null,""]
[null,null,null,null,null,null,null,"",null,"","",null,""]
[null,null,null,null,null,null,null,"",null,"","",null,""]
[null,null,null,null,null,null,null,"",null,"","",null,""]
[null,null,null,null,null,null,null,"",null,"","",null,""]
[null,null,null,null,null,null,null,"",null,"","",null,""]
[null,null,null,null,null,null,null,"",null,"","",null,""]
[null,null,null,null,null,null,null,"",null,"","",null,""]
[null,null,null,null,null,null,null,"",null,"","",null,""]
[null,null,null,null,null,null,null,"",null,"","",null,""]
[null,null,null,null,null,null,null,"",null,"","",null,""]
[null,null,null,null,null,null,null,"",null,"","",null,""]
[null,null,null,null,null,null,null,"",null,"","",null,""]
[null,null,null,null,null,null,null,"",null,"","",null,""]
[null,null,null,null,null,null,null,"",null,"","",null,""]
[null,null,null,null,null,null,null,"",null,"","",null,""]
[null,null,null,null,null,null,null,"",null,"","",null,""]
[null,null,null,null,null,null,null,"",null,"","",null,""]
[null,null,null,null,null,null,null,"",null,"","",null,""]
[null,null,null,null,null,null,null,"",null,"","",null,""]
[null,null,null,null,null,null,null,"",null,"","",null,""]
[null,null,null,null,null,null,null,"",null,"","",null,""]
[null,null,null,null,null,null,null,"",null,"","",null,""]
[null,null,null,null,null,null,null,"",null,"","",null,""]
[null,null,null,null,null,null,null,"",null,"","",null,""]
[null,null,null,null,null,null,null,"",null,"","",null,""]
[null,null,null,null,null,null,null,"",null,"","",null,""]
[null,null,null,null,null,null,null,"",null,"","",null,""]
[null,null,null,null,null,null,null,"",null,"","",null,""]
[null,null,null,null,null,null,null,"",null,"","",null,""]
[null,null,null,null,null,null,null,"",null,"","",null,""]
[null,null,null,null,null,null,null,"",null,"","",null,""]
[null,null,null,null,null,null,null,"",null,"","",null,""]
[null,null,null,null,null,null,null,"",null,"","",null,""]
[null,null,null,null,null,null,null,"",null,"","",null,""]
[null,null,null,null,null,null,null,"",null,"","",null,""]
[null,null,null,null,null,null,null,"",null,"","",null,""]
[null,null,null,null,null,null,null,"",null,"","",null,""]
[null,null,null,null,null,null,null,"",null,"","",null,""]
[null,null,null,null,null,null,null,"",null,"","",null,""]
[null,null,null,null,null,null,null,"",null,"","",null,""]
[null,null,null,null,null,null,null,"",null,"","",null,""]
[null,null,null,null,null,null,null,"",null,"","",null,""]
[null,null,null,null,null,null,null,"",null,"","",null,""]
[null,null,null,null,null,null,null,"",null,"","",null,""]
[null,null,null,null,null,null,null,"",null,"","",null,""]
[null,null,null,null,null,null,null,"",null,"","",null,""]
[null,null,null,null,null,null,null,"",null,"","",null,""]
[null,null,null,null,null,null,null,"",null,"","",null,""]
[null,null,null,null,null,null,null,"",null,"","",null,""]
[null,null,null,null,null,null,null,{"$f":"IF(G262<>\"\",G262-G262/((100+F262)/100),\"\")","v":""},null,{"$f":"IF(I262<>\"\",I262-I262/((100+F262)/100),\"\")","v":""},{"$f":"IF(C262<>0,IF(G262<>0,K261+G262,IF(I262<>0,K261-I262,\"\")),\"\")","v":""},null,""]
[null,null,null,null,null,null,null,"",null,"","",null,{"$f":"IF(K264=\"\",K263,\"0\")","v":""}]
[null,null,null,null,null,null,null,"",null,"","",null,""]
[null,null,null,null,null,null,null,"",null,"","",null,""]
[null,null,null,null,null,null,null,"",null,"","",null,""]
[null,null,null,null,null,null,null,"",null,"","",null,""]
[null,null,null,null,null,null,null,"",null,"","",null,""]
[null,null,null,null,null,null,null,"",null,"","",null,""]
[null,null,null,null,null,null,null,"",null,"","",null,""]
[null,null,null,null,null,null,null,"",null,"","",null,""]
[null,null,null,null,null,null,null,"",null,"","",null,""]
[null,null,null,null,null,null,null,"",null,"","",null,""]
[null,null,null,null,null,null,null,"",null,"","",null,""]
[null,null,null,null,null,null,null,"",null,"","",null,""]
[null,null,null,null,null,null,null,"",null,"","",null,""]
[null,null,null,null,null,null,null,"",null,"","",null,""]
[null,null,null,null,null,null,null,"",null,"","",null,""]
[null,null,null,null,null,null,null,"",null,"","",null,""]
[null,null,null,null,null,null,null,"",null,"","",null,""]
[null,null,null,null,null,null,null,"",null,"","",null,""]
[null,null,null,null,null,null,null,"",null,"","",null,""]
[null,null,null,null,null,null,null,"",null,"","",null,""]
[null,null,null,null,null,null,null,"",null,"","",null,""]
[null,null,null,null,null,null,null,"",null,"","",null,""]
[null,null,null,null,null,null,null,"",null,"","",null,""]
[null,null,null,null,null,null,null,"",null,"","",null,""]
[null,null,null,null,null,null,null,"",null,"","",null,""]
[null,null,null,null,null,null,null,"",null,"","",null,""]
[null,null,null,null,null,null,null,"",null,"","",null,""]
[null,null,null,null,null,null,null,"",null,"","",null,""]
[null,null,null,null,null,null,null,"",null,"","",null,""]
[null,null,null,null,null,null,null,"",null,"","",null,""]
[null,null,null,null,null,null,null,"",null,"","",null,""]
[null,null,null,null,null,null,null,"",null,"","",null,""]
[null,null,null,null,null,null,null,"",null,"","",null,""]
[null,null,null,null,null,null,null,"",null,"","",null,""]
[null,null,null,null,null,null,null,"",null,"","",null,""]
[null,null,null,null,null,null,null,"",null,"","",null,""]
[null,null,null,null,null,null,null,"",null,"","",null,""]
[null,null,null,null,null,null,null,"",null,"","",null,""]
[null,null,null,null,null,null,null,"",null,"","",null,""]
[null,null,null,null,null,null,null,"",null,"","",null,""]
[null,null,null,null,null,null,null,"",null,"","",null,""]
[null,null,null,null,null,null,null,"",null,"","",null,""]
[null,null,null,null,null,null,null,"",null,"","",null,""]
[null,null,null,null,null,null,null,"",null,"","",null,""]
[null,null,null,null,null,null,null,"",null,"","",null,""]
[null,null,null,null,null,null,null,"",null,"","",null,""]
[null,null,null,null,null,null,null,"",null,"","",null,""]
[null,null,null,null,null,null,null,"",null,"","",null,""]
[null,null,null,null,null,null,null,"",null,"","",null,""]
[null,null,null,null,null,null,null,"",null,"","",null,""]
[null,null,null,null,null,null,null,"",null,"","",null,""]
[null,null,null,null,null,null,null,"",null,"","",null,""]
[null,null,null,null,null,null,null,"",null,"","",null,""]
[null,null,null,null,null,null,null,"",null,"","",null,""]
[null,null,null,null,null,null,null,"",null,"","",null,""]
[null,null,null,null,null,null,null,"",null,"","",null,""]
[null,null,null,null,null,null,null,"",null,"","",null,""]
[null,null,null,null,null,null,null,"",null,"","",null,""]
[null,null,null,null,null,null,null,"",null,"","",null,""]
[null,null,null,null,null,null,null,"",null,"","",null,""]
[null,null,null,null,null,null,null,"",null,"","",null,""]
[null,null,null,null,null,null,null,"",null,"","",null,""]
[null,null,null,null,null,null,null,{"$f":"IF(G326<>\"\",G326-G326/((100+F326)/100),\"\")","v":""},null,{"$f":"IF(I326<>\"\",I326-I326/((100+F326)/100),\"\")","v":""},{"$f":"IF(C326<>0,IF(G326<>0,K325+G326,IF(I326<>0,K325-I326,\"\")),\"\")","v":""},null,""]
[null,null,null,null,null,null,null,"",null,"","",null,{"$f":"IF(K328=\"\",K327,\"0\")","v":""}]
[null,null,null,null,null,null,null,"",null,"","",null,""]
[null,null,null,null,null,null,null,"",null,"","",null,""]
[null,null,null,null,null,null,null,"",null,"","",null,""]
[null,null,null,null,null,null,null,"",null,"","",null,""]
[null,null,null,null,null,null,null,"",null,"","",null,""]
[null,null,null,null,null,null,null,"",null,"","",null,""]
[null,null,null,null,null,null,null,"",null,"","",null,""]
[null,null,null,null,null,null,null,"",null,"","",null,""]
[null,null,null,null,null,null,null,"",null,"","",null,""]
[null,null,null,null,null,null,null,"",null,"","",null,""]
[null,null,null,null,null,null,null,"",null,"","",null,""]
[null,null,null,null,null,null,null,"",null,"","",null,""]
[null,null,null,null,null,null,null,"",null,"","",null,""]
[null,null,null,null,null,null,null,"",null,"","",null,""]
[null,null,null,null,null,null,null,"",null,"","",null,""]
[null,null,null,null,null,null,null,"",null,"","",null,""]
[null,null,null,null,null,null,null,"",null,"","",null,""]
[null,null,null,null,null,null,null,"",null,"","",null,""]
[null,null,null,null,null,null,null,"",null,"","",null,""]
[null,null,null,null,null,null,null,"",null,"","",null,""]
[null,null,null,null,null,null,null,"",null,"","",null,""]
[null,null,null,null,null,null,null,"",null,"","",null,""]
[null,null,null,null,null,null,null,"",null,"","",null,""]
[null,null,null,null,null,null,null,"",null,"","",null,""]
[null,null,null,null,null,null,null,"",null,"","",null,""]
[null,null,null,null,null,null,null,"",null,"","",null,""]
[null,null,null,null,null,null,null,"",null,"","",null,""]
[null,null,null,null,null,null,null,"",null,"","",null,""]
[null,null,null,null,null,null,null,"",null,"","",null,""]
[null,null,null,null,null,null,null,"",null,"","",null,""]
[null,null,null,null,null,null,null,"",null,"","",null,""]
[null,null,null,null,null,null,null,"",null,"","",null,""]
[null,null,null,null,null,null,null,"",null,"","",null,""]
[null,null,null,null,null,null,null,"",null,"","",null,""]
[null,null,null,null,null,null,null,"",null,"","",null,""]
[null,null,null,null,null,null,null,"",null,"","",null,""]
[null,null,null,null,null,null,null,"",null,"","",null,""]
[null,null,null,null,null,null,null,"",null,"","",null,""]
[null,null,null,null,null,null,null,"",null,"","",null,""]
[null,null,null,null,null,null,null,"",null,"","",null,""]
[null,null,null,null,null,null,null,"",null,"","",null,""]
[null,null,null,null,null,null,null,"",null,"","",null,""]
[null,null,null,null,null,null,null,"",null,"","",null,""]
[null,null,null,null,null,null,null,"",null,"","",null,""]
[null,null,null,null,null,null,null,"",null,"","",null,""]
[null,null,null,null,null,null,null,"",null,"","",null,""]
[null,null,null,null,null,null,null,"",null,"","",null,""]
[null,null,null,null,null,null,null,"",null,"","",null,""]
[null,null,null,null,null,null,null,"",null,"","",null,""]
[null,null,null,null,null,null,null,"",null,"","",null,""]
[null,null,null,null,null,null,null,"",null,"","",null,""]
[null,null,null,null,null,null,null,"",null,"","",null,""]
[null,null,null,null,null,null,null,"",null,"","",null,""]
[null,null,null,null,null,null,null,"",null,"","",null,""]
[null,null,null,null,null,null,null,"",null,"","",null,""]
[null,null,null,null,null,null,null,"",null,"","",null,""]
[null,null,null,null,null,null,null,"",null,"","",null,""]
[null,null,null,null,null,null,null,"",null,"","",null,""]
[null,null,null,null,null,null,null,"",null,"","",null,""]
[null,null,null,null,null,null,null,"",null,"","",null,""]
[null,null,null,null,null,null,null,"",null,"","",null,""]
[null,null,null,null,null,null,null,"",null,"","",null,""]
[null,null,null,null,null,null,null,{"$f":"IF(G390<>\"\",G390-G390/((100+F390)/100),\"\")","v":""},null,{"$f":"IF(I390<>\"\",I390-I390/((100+F390)/100),\"\")","v":""},{"$f":"IF(C390<>0,IF(G390<>0,K389+G390,IF(I390<>0,K389-I390,\"\")),\"\")","v":""},null,""]
[null,null,null,null,null,null,null,"",null,"","",null,{"$f":"IF(K392=\"\",K391,\"0\")","v":""}]
[null,null,null,null,null,null,null,"",null,"","",null,""]
[null,null,null,null,null,null,null,"",null,"","",null,""]
[null,null,null,null,null,null,null,"",null,"","",null,""]
[null,null,null,null,null,null,null,"",null,"","",null,""]
[null,null,null,null,null,null,null,"",null,"","",null,""]
[null,null,null,null,null,null,null,"",null,"","",null,""]
[null,null,null,null,null,null,null,"",null,"","",null,""]
[null,null,null,null,null,null,null,"",null,"","",null,""]
[null,null,null,null,null,null,null,"",null,"","",null,""]
[null,null,null,null,null,null,null,"",null,"","",null,""]
[null,null,null,null,null,null,null,"",null,"","",null,""]
[null,null,null,null,null,null,null,"",null,"","",null,""]
[null,null,null,null,null,null,null,"",null,"","",null,""]
[null,null,null,null,null,null,null,"",null,"","",null,""]
[null,null,null,null,null,null,null,"",null,"","",null,""]
[null,null,null,null,null,null,null,"",null,"","",null,""]
[null,null,null,null,null,null,null,"",null,"","",null,""]
[null,null,null,null,null,null,null,"",null,"","",null,""]
[null,null,null,null,null,null,null,"",null,"","",null,""]
[null,null,null,null,null,null,null,"",null,"","",null,""]
[null,null,null,null,null,null,null,"",null,"","",null,""]
[null,null,null,null,null,null,null,"",null,"","",null,""]
[null,null,null,null,null,null,null,"",null,"","",null,""]
[null,null,null,null,null,null,null,"",null,"","",null,""]
[null,null,null,null,null,null,null,"",null,"","",null,""]
[null,null,null,null,null,null,null,"",null,"","",null,""]
[null,null,null,null,null,null,null,"",null,"","",null,""]
[null,null,null,null,null,null,null,"",null,"","",null,""]
[null,null,null,null,null,null,null,"",null,"","",null,""]
[null,null,null,null,null,null,null,"",null,"","",null,""]
[null,null,null,null,null,null,null,"",null,"","",null,""]
[null,null,null,null,null,null,null,"",null,"","",null,""]
[null,null,null,null,null,null,null,"",null,"","",null,""]
[null,null,null,null,null,null,null,"",null,"","",null,""]
[null,null,null,null,null,null,null,"",null,"","",null,""]
[null,null,null,null,null,null,null,"",null,"","",null,""]
[null,null,null,null,null,null,null,"",null,"","",null,""]
[null,null,null,null,null,null,null,"",null,"","",null,""]
[null,null,null,null,null,null,null,"",null,"","",null,""]
[null,null,null,null,null,null,null,"",null,"","",null,""]
[null,null,null,null,null,null,null,"",null,"","",null,""]
[null,null,null,null,null,null,null,"",null,"","",null,""]
[null,null,null,null,null,null,null,"",null,"","",null,""]
[null,null,null,null,null,null,null,"",null,"","",null,""]
[null,null,null,null,null,null,null,"",null,"","",null,""]
[null,null,null,null,null,null,null,"",null,"","",null,""]
[null,null,null,null,null,null,null,"",null,"","",null,""]
[null,null,null,null,null,null,null,"",null,"","",null,""]
[null,null,null,null,null,null,null,"",null,"","",null,""]
[null,null,null,null,null,null,null,"",null,"","",null,""]
[null,null,null,null,null,null,null,"",null,"","",null,""]
[null,null,null,null,null,null,null,"",null,"","",null,""]
[null,null,null,null,null,null,null,"",null,"","",null,""]
[null,null,null,null,null,null,null,"",null,"","",null,""]
[null,null,null,null,null,null,null,"",null,"","",null,""]
[null,null,null,null,null,null,null,"",null,"","",null,""]
[null,null,null,null,null,null,null,"",null,"","",null,""]
[null,null,null,null,null,null,null,"",null,"","",null,""]
[null,null,null,null,null,null,null,"",null,"","",null,""]
[null,null,null,null,null,null,null,"",null,"","",null,""]
[null,null,null,null,null,null,null,"",null,"","",null,""]
[null,null,null,null,null,null,null,"",null,"","",null,""]
[null,null,null,null,null,null,null,{"$f":"IF(G454<>\"\",G454-G454/((100+F454)/100),\"\")","v":""},null,{"$f":"IF(I454<>\"\",I454-I454/((100+F454)/100),\"\")","v":""},{"$f":"IF(C454<>0,IF(G454<>0,K453+G454,IF(I454<>0,K453-I454,\"\")),\"\")","v":""},null,""]
[null,null,null,null,null,null,null,"",null,"","",null,{"$f":"IF(K456=\"\",K455,\"0\")","v":""}]
[null,null,null,null,null,null,null,"",null,"","",null,""]
[null,null,null,null,null,null,null,"",null,"","",null,""]
[null,null,null,null,null,null,null,"",null,"","",null,""]
[null,null,null,null,null,null,null,"",null,"","",null,""]
[null,null,null,null,null,null,null,"",null,"","",null,""]
[null,null,null,null,null,null,null,"",null,"","",null,""]
[null,null,null,null,null,null,null,"",null,"","",null,""]
[null,null,null,null,null,null,null,"",null,"","",null,""]
[null,null,null,null,null,null,null,"",null,"","",null,""]
[null,null,null,null,null,null,null,"",null,"","",null,""]
[null,null,null,null,null,null,null,"",null,"","",null,""]
[null,null,null,null,null,null,null,"",null,"","",null,""]
[null,null,null,null,null,null,null,"",null,"","",null,""]
[null,null,null,null,null,null,null,"",null,"","",null,""]
[null,null,null,null,null,null,null,"",null,"","",null,""]
[null,null,null,null,null,null,null,"",null,"","",null,""]
[null,null,null,null,null,null,null,"",null,"","",null,""]
[null,null,null,null,null,null,null,"",null,"","",null,""]
[null,null,null,null,null,null,null,"",null,"","",null,""]
[null,null,null,null,null,null,null,"",null,"","",null,""]
[null,null,null,null,null,null,null,"",null,"","",null,""]
[null,null,null,null,null,null,null,"",null,"","",null,""]
[null,null,null,null,null,null,null,"",null,"","",null,""]
[null,null,null,null,null,null,null,"",null,"","",null,""]
[null,null,null,null,null,null,null,"",null,"","",null,""]
[null,null,null,null,null,null,null,"",null,"","",null,""]
[null,null,null,null,null,null,null,"",null,"","",null,""]
[null,null,null,null,null,null,null,"",null,"","",null,""]
[null,null,null,null,null,null,null,"",null,"","",null,""]
[null,null,null,null,null,null,null,"",null,"","",null,""]
[null,null,null,null,null,null,null,"",null,"","",null,""]
[null,null,null,null,null,null,null,"",null,"","",null,""]
[null,null,null,null,null,null,null,"",null,"","",null,""]
[null,null,null,null,null,null,null,"",null,"","",null,""]
[null,null,null,null,null,null,null,"",null,"","",null,""]
[null,null,null,null,null,null,null,"",null,"","",null,""]
[null,null,null,null,null,null,null,"",null,"","",null,""]
[null,null,null,null,null,null,null,"",null,"","",null,""]
[null,null,null,null,null,null,null,"",null,"","",null,""]
[null,null,null,null,null,null,null,"",null,"","",null,""]
[null,null,null,null,null,null,null,"",null,"","",null,""]
[null,null,null,null,null,null,null,"",null,"","",null,""]
[null,null,null,null,null,null,null,"",null,"","",null,""]
[null,null,null,null,null,null,null,"",null,"","",null,""]
[null,null,null,null,null,null,null,"",null,"","",null,""]
[null,null,null,null,null,null,null,null,null,null,null,null,{"$f":"SUM(M5:M500)","v":0}]

{"sheet":"Nov","index":11,"n_rows":501,"n_cols":14,"rows_kept":501,"cut":false,"hidden":false,"merged":[[0,1,0,10],[1,1,1,10],[2,1,2,6],[2,8,2,10],[4,1,4,9]]}
[null,"KASSABUCH"]
[null,null,null,null,null,null,null,null,null,null,null,null,{"$f":"DATE(Jahr,2,1)","v":"1900-02-01"},"Anfangsdatum"]
[null,{"$f":"IF(Name<>0,Name,\"\")","v":""},null,null,null,null,null,null,{"$f":"\"November\"&Jahr","v":"November"},null,null,null,{"$f":"DATE(Jahr,3,1)-1","v":60},"Enddatum"]
[null,"Datum","Beleg","Konto","Text","%","Einnahmen","USt","Ausgaben","Vorsteuer","Kassabestand",null,{"$f":"SUM(M5:M500)","v":0},{"$f":"I3 &\", \"&\"Endstand\"","v":"November, Endstand"}]
[null,"Übertrag Vormonat EUR:",null,null,null,null,null,null,null,null,{"$f":"Okt!M4","v":0},null,{"$f":"IF(K6=\"\",K5,\"0\")","v":0}]
[null,null,null,null,null,null,null,null,null,{"$f":"IF(I6<>\"\",I6-I6/((100+F6)/100),\"\")","v":""},{"$f":"IF(C6<>0,IF(G6<>0,K5+G6,IF(I6<>0,K5-I6,\"\")),\"\")","v":""},null,{"$f":"IF(K7=\"\",K6,\"0\")","v":""}]
[null,null,null,null,null,null,null,null,null,{"$f":"IF(I7<>\"\",I7-I7/((100+F7)/100),\"\")","v":""},{"$f":"IF(C7<>0,IF(G7<>0,K6+G7,IF(I7<>0,K6-I7,\"\")),\"\")","v":""},null,{"$f":"IF(K8=\"\",K7,\"0\")","v":""}]
[null,null,null,null,null,null,null,null,null,"","",null,{"$f":"IF(K9=\"\",K8,\"0\")","v":""}]
[null,null,null,null,null,null,null,null,null,"","",null,""]
[null,null,null,null,null,null,null,null,null,"","",null,""]
[null,null,null,null,null,null,null,null,null,"","",null,""]
[null,null,null,null,null,null,null,null,null,"","",null,""]
[null,null,null,null,null,null,null,null,null,"","",null,""]
[null,null,null,null,null,null,null,null,null,"","",null,""]
[null,null,null,null,null,null,null,null,null,"","",null,""]
[null,null,null,null,null,null,null,null,null,"","",null,""]
[null,null,null,null,null,null,null,null,null,"","",null,""]
[null,null,null,null,null,null,null,{"$f":"IF(G18<>\"\",G18-G18/((100+F18)/100),\"\")","v":""},null,"","",null,""]
[null,null,null,null,null,null,null,"",null,"","",null,""]
[null,null,null,null,null,null,null,"",null,"","",null,""]
[null,null,null,null,null,null,null,"",null,"","",null,""]
[null,null,null,null,null,null,null,"",null,"","",null,""]
[null,null,null,null,null,null,null,"",null,"","",null,""]
[null,null,null,null,null,null,null,"",null,"","",null,""]
[null,null,null,null,null,null,null,"",null,"","",null,""]
[null,null,null,null,null,null,null,"",null,"","",null,""]
[null,null,null,null,null,null,null,"",null,"","",null,""]
[null,null,null,null,null,null,null,"",null,"","",null,""]
[null,null,null,null,null,null,null,"",null,"","",null,""]
[null,null,null,null,null,null,null,"",null,"","",null,""]
[null,null,null,null,null,null,null,"",null,"","",null,""]
[null,null,null,null,null,null,null,"",null,"","",null,""]
[null,null,null,null,null,null,null,"",null,"","",null,""]
[null,null,null,null,null,null,null,"",null,"","",null,""]
[null,null,null,null,null,null,null,"",null,"","",null,""]
[null,null,null,null,null,null,null,"",null,"","",null,""]
[null,null,null,null,null,null,null,"",null,"","",null,""]
[null,null,null,null,null,null,null,"",null,"","",null,""]
[null,null,null,null,null,null,null,"",null,"","",null,""]
[null,null,null,null,null,null,null,"",null,"","",null,""]
[null,null,null,null,null,null,null,"",null,"","",null,""]
[null,null,null,null,null,null,null,"",null,"","",null,""]
[null,null,null,null,null,null,null,"",null,"","",null,""]
[null,null,null,null,null,null,null,"",null,"","",null,""]
[null,null,null,null,null,null,null,"",null,"","",null,""]
[null,null,null,null,null,null,null,"",null,"","",null,""]
[null,null,null,null,null,null,null,"",null,"","",null,""]
[null,null,null,null,null,null,null,"",null,"","",null,""]
[null,null,null,null,null,null,null,"",null,"","",null,""]
[null,null,null,null,null,null,null,"",null,"","",null,""]
[null,null,null,null,null,null,null,"",null,"","",null,""]
[null,null,null,null,null,null,null,"",null,"","",null,""]
[null,null,null,null,null,null,null,"",null,"","",null,""]
[null,null,null,null,null,null,null,"",null,"","",null,""]
[null,null,null,null,null,null,null,"",null,"","",null,""]
[null,null,null,null,null,null,null,"",null,"","",null,""]
[null,null,null,null,null,null,null,"",null,"","",null,""]
[null,null,null,null,null,null,null,"",null,"","",null,""]
[null,null,null,null,null,null,null,"",null,"","",null,""]
[null,null,null,null,null,null,null,"",null,"","",null,""]
[null,null,null,null,null,null,null,"",null,"","",null,""]
[null,null,null,null,null,null,null,"",null,"","",null,""]
[null,null,null,null,null,null,null,"",null,"","",null,""]
[null,null,null,null,null,null,null,"",null,"","",null,""]
[null,null,null,null,null,null,null,"",null,"","",null,""]
[null,null,null,null,null,null,null,"",null,"","",null,""]
[null,null,null,null,null,null,null,"",null,"","",null,""]
[null,null,null,null,null,null,null,"",null,"","",null,""]
[null,null,null,null,null,null,null,"",null,"","",null,""]
[null,null,null,null,null,null,null,{"$f":"IF(G70<>\"\",G70-G70/((100+F70)/100),\"\")","v":""},null,{"$f":"IF(I70<>\"\",I70-I70/((100+F70)/100),\"\")","v":""},{"$f":"IF(C70<>0,IF(G70<>0,K69+G70,IF(I70<>0,K69-I70,\"\")),\"\")","v":""},null,""]
[null,null,null,null,null,null,null,"",null,"","",null,{"$f":"IF(K72=\"\",K71,\"0\")","v":""}]
[null,null,null,null,null,null,null,"",null,"","",null,""]
[null,null,null,null,null,null,null,"",null,"","",null,""]
[null,null,null,null,null,null,null,"",null,"","",null,""]
[null,null,null,null,null,null,null,"",null,"","",null,""]
[null,null,null,null,null,null,null,"",null,"","",null,""]
[null,null,null,null,null,null,null,"",null,"","",null,""]
[null,null,null,null,null,null,null,"",null,"","",null,""]
[null,null,null,null,null,null,null,"",null,"","",null,""]
[null,null,null,null,null,null,null,"",null,"","",null,""]
[null,null,null,null,null,null,null,"",null,"","",null,""]
[null,null,null,null,null,null,null,"",null,"","",null,""]
[null,null,null,null,null,null,null,"",null,"","",null,""]
[null,null,null,null,null,null,null,"",null,"","",null,""]
[null,null,null,null,null,null,null,"",null,"","",null,""]
[null,null,null,null,null,null,null,"",null,"","",null,""]
[null,null,null,null,null,null,null,"",null,"","",null,""]
[null,null,null,null,null,null,null,"",null,"","",null,""]
[null,null,null,null,null,null,null,"",null,"","",null,""]
[null,null,null,null,null,null,null,"",null,"","",null,""]
[null,null,null,null,null,null,null,"",null,"","",null,""]
[null,null,null,null,null,null,null,"",null,"","",null,""]
[null,null,null,null,null,null,null,"",null,"","",null,""]
[null,null,null,null,null,null,null,"",null,"","",null,""]
[null,null,null,null,null,null,null,"",null,"","",null,""]
[null,null,null,null,null,null,null,"",null,"","",null,""]
[null,null,null,null,null,null,null,"",null,"","",null,""]
[null,null,null,null,null,null,null,"",null,"","",null,""]
[null,null,null,null,null,null,null,"",null,"","",null,""]
[null,null,null,null,null,null,null,"",null,"","",null,""]
[null,null,null,null,null,null,null,"",null,"","",null,""]
[null,null,null,null,null,null,null,"",null,"","",null,""]
[null,null,null,null,null,null,null,"",null,"","",null,""]
[null,null,null,null,null,null,null,"",null,"","",null,""]
[null,null,null,null,null,null,null,"",null,"","",null,""]
[null,null,null,null,null,null,null,"",null,"","",null,""]
[null,null,null,null,null,null,null,"",null,"","",null,""]
[null,null,null,null,null,null,null,"",null,"","",null,""]
[null,null,null,null,null,null,null,"",null,"","",null,""]
[null,null,null,null,null,null,null,"",null,"","",null,""]
[null,null,null,null,null,null,null,"",null,"","",null,""]
[null,null,null,null,null,null,null,"",null,"","",null,""]
[null,null,null,null,null,null,null,"",null,"","",null,""]
[null,null,null,null,null,null,null,"",null,"","",null,""]
[null,null,null,null,null,null,null,"",null,"","",null,""]
[null,null,null,null,null,null,null,"",null,"","",null,""]
[null,null,null,null,null,null,null,"",null,"","",null,""]
[null,null,null,null,null,null,null,"",null,"","",null,""]
[null,null,null,null,null,null,null,"",null,"","",null,""]
[null,null,null,null,null,null,null,"",null,"","",null,""]
[null,null,null,null,null,null,null,"",null,"","",null,""]
[null,null,null,null,null,null,null,"",null,"","",null,""]
[null,null,null,null,null,null,null,"",null,"","",null,""]
[null,null,null,null,null,null,null,"",null,"","",null,""]
[null,null,null,null,null,null,null,"",null,"","",null,""]
[null,null,null,null,null,null,null,"",null,"","",null,""]
[null,null,null,null,null,null,null,"",null,"","",null,""]
[null,null,null,null,null,null,null,"",null,"","",null,""]
[null,null,null,null,null,null,null,"",null,"","",null,""]
[null,null,null,null,null,null,null,"",null,"","",null,""]
[null,null,null,null,null,null,null,"",null,"","",null,""]
[null,null,null,null,null,null,null,"",null,"","",null,""]
[null,null,null,null,null,null,null,"",null,"","",null,""]
[null,null,null,null,null,null,null,{"$f":"IF(G134<>\"\",G134-G134/((100+F134)/100),\"\")","v":""},null,{"$f":"IF(I134<>\"\",I134-I134/((100+F134)/100),\"\")","v":""},{"$f":"IF(C134<>0,IF(G134<>0,K133+G134,IF(I134<>0,K133-I134,\"\")),\"\")","v":""},null,""]
[null,null,null,null,null,null,null,"",null,"","",null,{"$f":"IF(K136=\"\",K135,\"0\")","v":""}]
[null,null,null,null,null,null,null,"",null,"","",null,""]
[null,null,null,null,null,null,null,"",null,"","",null,""]
[null,null,null,null,null,null,null,"",null,"","",null,""]
[null,null,null,null,null,null,null,"",null,"","",null,""]
[null,null,null,null,null,null,null,"",null,"","",null,""]
[null,null,null,null,null,null,null,"",null,"","",null,""]
[null,null,null,null,null,null,null,"",null,"","",null,""]
[null,null,null,null,null,null,null,"",null,"","",null,""]
[null,null,null,null,null,null,null,"",null,"","",null,""]
[null,null,null,null,null,null,null,"",null,"","",null,""]
[null,null,null,null,null,null,null,"",null,"","",null,""]
[null,null,null,null,null,null,null,"",null,"","",null,""]
[null,null,null,null,null,null,null,"",null,"","",null,""]
[null,null,null,null,null,null,null,"",null,"","",null,""]
[null,null,null,null,null,null,null,"",null,"","",null,""]
[null,null,null,null,null,null,null,"",null,"","",null,""]
[null,null,null,null,null,null,null,"",null,"","",null,""]
[null,null,null,null,null,null,null,"",null,"","",null,""]
[null,null,null,null,null,null,null,"",null,"","",null,""]
[null,null,null,null,null,null,null,"",null,"","",null,""]
[null,null,null,null,null,null,null,"",null,"","",null,""]
[null,null,null,null,null,null,null,"",null,"","",null,""]
[null,null,null,null,null,null,null,"",null,"","",null,""]
[null,null,null,null,null,null,null,"",null,"","",null,""]
[null,null,null,null,null,null,null,"",null,"","",null,""]
[null,null,null,null,null,null,null,"",null,"","",null,""]
[null,null,null,null,null,null,null,"",null,"","",null,""]
[null,null,null,null,null,null,null,"",null,"","",null,""]
[null,null,null,null,null,null,null,"",null,"","",null,""]
[null,null,null,null,null,null,null,"",null,"","",null,""]
[null,null,null,null,null,null,null,"",null,"","",null,""]
[null,null,null,null,null,null,null,"",null,"","",null,""]
[null,null,null,null,null,null,null,"",null,"","",null,""]
[null,null,null,null,null,null,null,"",null,"","",null,""]
[null,null,null,null,null,null,null,"",null,"","",null,""]
[null,null,null,null,null,null,null,"",null,"","",null,""]
[null,null,null,null,null,null,null,"",null,"","",null,""]
[null,null,null,null,null,null,null,"",null,"","",null,""]
[null,null,null,null,null,null,null,"",null,"","",null,""]
[null,null,null,null,null,null,null,"",null,"","",null,""]
[null,null,null,null,null,null,null,"",null,"","",null,""]
[null,null,null,null,null,null,null,"",null,"","",null,""]
[null,null,null,null,null,null,null,"",null,"","",null,""]
[null,null,null,null,null,null,null,"",null,"","",null,""]
[null,null,null,null,null,null,null,"",null,"","",null,""]
[null,null,null,null,null,null,null,"",null,"","",null,""]
[null,null,null,null,null,null,null,"",null,"","",null,""]
[null,null,null,null,null,null,null,"",null,"","",null,""]
[null,null,null,null,null,null,null,"",null,"","",null,""]
[null,null,null,null,null,null,null,"",null,"","",null,""]
[null,null,null,null,null,null,null,"",null,"","",null,""]
[null,null,null,null,null,null,null,"",null,"","",null,""]
[null,null,null,null,null,null,null,"",null,"","",null,""]
[null,null,null,null,null,null,null,"",null,"","",null,""]
[null,null,null,null,null,null,null,"",null,"","",null,""]
[null,null,null,null,null,null,null,"",null,"","",null,""]
[null,null,null,null,null,null,null,"",null,"","",null,""]
[null,null,null,null,null,null,null,"",null,"","",null,""]
[null,null,null,null,null,null,null,"",null,"","",null,""]
[null,null,null,null,null,null,null,"",null,"","",null,""]
[null,null,null,null,null,null,null,"",null,"","",null,""]
[null,null,null,null,null,null,null,"",null,"","",null,""]
[null,null,null,null,null,null,null,{"$f":"IF(G198<>\"\",G198-G198/((100+F198)/100),\"\")","v":""},null,{"$f":"IF(I198<>\"\",I198-I198/((100+F198)/100),\"\")","v":""},{"$f":"IF(C198<>0,IF(G198<>0,K197+G198,IF(I198<>0,K197-I198,\"\")),\"\")","v":""},null,""]
[null,null,null,null,null,null,null,"",null,"","",null,{"$f":"IF(K200=\"\",K199,\"0\")","v":""}]
[null,null,null,null,null,null,null,"",null,"","",null,""]
[null,null,null,null,null,null,null,"",null,"","",null,""]
[null,null,null,null,null,null,null,"",null,"","",null,""]
[null,null,null,null,null,null,null,"",null,"","",null,""]
[null,null,null,null,null,null,null,"",null,"","",null,""]
[null,null,null,null,null,null,null,"",null,"","",null,""]
[null,null,null,null,null,null,null,"",null,"","",null,""]
[null,null,null,null,null,null,null,"",null,"","",null,""]
[null,null,null,null,null,null,null,"",null,"","",null,""]
[null,null,null,null,null,null,null,"",null,"","",null,""]
[null,null,null,null,null,null,null,"",null,"","",null,""]
[null,null,null,null,null,null,null,"",null,"","",null,""]
[null,null,null,null,null,null,null,"",null,"","",null,""]
[null,null,null,null,null,null,null,"",null,"","",null,""]
[null,null,null,null,null,null,null,"",null,"","",null,""]
[null,null,null,null,null,null,null,"",null,"","",null,""]
[null,null,null,null,null,null,null,"",null,"","",null,""]
[null,null,null,null,null,null,null,"",null,"","",null,""]
[null,null,null,null,null,null,null,"",null,"","",null,""]
[null,null,null,null,null,null,null,"",null,"","",null,""]
[null,null,null,null,null,null,null,"",null,"","",null,""]
[null,null,null,null,null,null,null,"",null,"","",null,""]
[null,null,null,null,null,null,null,"",null,"","",null,""]
[null,null,null,null,null,null,null,"",null,"","",null,""]
[null,null,null,null,null,null,null,"",null,"","",null,""]
[null,null,null,null,null,null,null,"",null,"","",null,""]
[null,null,null,null,null,null,null,"",null,"","",null,""]
[null,null,null,null,null,null,null,"",null,"","",null,""]
[null,null,null,null,null,null,null,"",null,"","",null,""]
[null,null,null,null,null,null,null,"",null,"","",null,""]
[null,null,null,null,null,null,null,"",null,"","",null,""]
[null,null,null,null,null,null,null,"",null,"","",null,""]
[null,null,null,null,null,null,null,"",null,"","",null,""]
[null,null,null,null,null,null,null,"",null,"","",null,""]
[null,null,null,null,null,null,null,"",null,"","",null,""]
[null,null,null,null,null,null,null,"",null,"","",null,""]
[null,null,null,null,null,null,null,"",null,"","",null,""]
[null,null,null,null,null,null,null,"",null,"","",null,""]
[null,null,null,null,null,null,null,"",null,"","",null,""]
[null,null,null,null,null,null,null,"",null,"","",null,""]
[null,null,null,null,null,null,null,"",null,"","",null,""]
[null,null,null,null,null,null,null,"",null,"","",null,""]
[null,null,null,null,null,null,null,"",null,"","",null,""]
[null,null,null,null,null,null,null,"",null,"","",null,""]
[null,null,null,null,null,null,null,"",null,"","",null,""]
[null,null,null,null,null,null,null,"",null,"","",null,""]
[null,null,null,null,null,null,null,"",null,"","",null,""]
[null,null,null,null,null,null,null,"",null,"","",null,""]
[null,null,null,null,null,null,null,"",null,"","",null,""]
[null,null,null,null,null,null,null,"",null,"","",null,""]
[null,null,null,null,null,null,null,"",null,"","",null,""]
[null,null,null,null,null,null,null,"",null,"","",null,""]
[null,null,null,null,null,null,null,"",null,"","",null,""]
[null,null,null,null,null,null,null,"",null,"","",null,""]
[null,null,null,null,null,null,null,"",null,"","",null,""]
[null,null,null,null,null,null,null,"",null,"","",null,""]
[null,null,null,null,null,null,null,"",null,"","",null,""]
[null,null,null,null,null,null,null,"",null,"","",null,""]
[null,null,null,null,null,null,null,"",null,"","",null,""]
[null,null,null,null,null,null,null,"",null,"","",null,""]
[null,null,null,null,null,null,null,"",null,"","",null,""]
[null,null,null,null,null,null,null,"",null,"","",null,""]
[null,null,null,null,null,null,null,{"$f":"IF(G262<>\"\",G262-G262/((100+F262)/100),\"\")","v":""},null,{"$f":"IF(I262<>\"\",I262-I262/((100+F262)/100),\"\")","v":""},{"$f":"IF(C262<>0,IF(G262<>0,K261+G262,IF(I262<>0,K261-I262,\"\")),\"\")","v":""},null,""]
[null,null,null,null,null,null,null,"",null,"","",null,{"$f":"IF(K264=\"\",K263,\"0\")","v":""}]
[null,null,null,null,null,null,null,"",null,"","",null,""]
[null,null,null,null,null,null,null,"",null,"","",null,""]
[null,null,null,null,null,null,null,"",null,"","",null,""]
[null,null,null,null,null,null,null,"",null,"","",null,""]
[null,null,null,null,null,null,null,"",null,"","",null,""]
[null,null,null,null,null,null,null,"",null,"","",null,""]
[null,null,null,null,null,null,null,"",null,"","",null,""]
[null,null,null,null,null,null,null,"",null,"","",null,""]
[null,null,null,null,null,null,null,"",null,"","",null,""]
[null,null,null,null,null,null,null,"",null,"","",null,""]
[null,null,null,null,null,null,null,"",null,"","",null,""]
[null,null,null,null,null,null,null,"",null,"","",null,""]
[null,null,null,null,null,null,null,"",null,"","",null,""]
[null,null,null,null,null,null,null,"",null,"","",null,""]
[null,null,null,null,null,null,null,"",null,"","",null,""]
[null,null,null,null,null,null,null,"",null,"","",null,""]
[null,null,null,null,null,null,null,"",null,"","",null,""]
[null,null,null,null,null,null,null,"",null,"","",null,""]
[null,null,null,null,null,null,null,"",null,"","",null,""]
[null,null,null,null,null,null,null,"",null,"","",null,""]
[null,null,null,null,null,null,null,"",null,"","",null,""]
[null,null,null,null,null,null,null,"",null,"","",null,""]
[null,null,null,null,null,null,null,"",null,"","",null,""]
[null,null,null,null,null,null,null,"",null,"","",null,""]
[null,null,null,null,null,null,null,"",null,"","",null,""]
[null,null,null,null,null,null,null,"",null,"","",null,""]
[null,null,null,null,null,null,null,"",null,"","",null,""]
[null,null,null,null,null,null,null,"",null,"","",null,""]
[null,null,null,null,null,null,null,"",null,"","",null,""]
[null,null,null,null,null,null,null,"",null,"","",null,""]
[null,null,null,null,null,null,null,"",null,"","",null,""]
[null,null,null,null,null,null,null,"",null,"","",null,""]
[null,null,null,null,null,null,null,"",null,"","",null,""]
[null,null,null,null,null,null,null,"",null,"","",null,""]
[null,null,null,null,null,null,null,"",null,"","",null,""]
[null,null,null,null,null,null,null,"",null,"","",null,""]
[null,null,null,null,null,null,null,"",null,"","",null,""]
[null,null,null,null,null,null,null,"",null,"","",null,""]
[null,null,null,null,null,null,null,"",null,"","",null,""]
[null,null,null,null,null,null,null,"",null,"","",null,""]
[null,null,null,null,null,null,null,"",null,"","",null,""]
[null,null,null,null,null,null,null,"",null,"","",null,""]
[null,null,null,null,null,null,null,"",null,"","",null,""]
[null,null,null,null,null,null,null,"",null,"","",null,""]
[null,null,null,null,null,null,null,"",null,"","",null,""]
[null,null,null,null,null,null,null,"",null,"","",null,""]
[null,null,null,null,null,null,null,"",null,"","",null,""]
[null,null,null,null,null,null,null,"",null,"","",null,""]
[null,null,null,null,null,null,null,"",null,"","",null,""]
[null,null,null,null,null,null,null,"",null,"","",null,""]
[null,null,null,null,null,null,null,"",null,"","",null,""]
[null,null,null,null,null,null,null,"",null,"","",null,""]
[null,null,null,null,null,null,null,"",null,"","",null,""]
[null,null,null,null,null,null,null,"",null,"","",null,""]
[null,null,null,null,null,null,null,"",null,"","",null,""]
[null,null,null,null,null,null,null,"",null,"","",null,""]
[null,null,null,null,null,null,null,"",null,"","",null,""]
[null,null,null,null,null,null,null,"",null,"","",null,""]
[null,null,null,null,null,null,null,"",null,"","",null,""]
[null,null,null,null,null,null,null,"",null,"","",null,""]
[null,null,null,null,null,null,null,"",null,"","",null,""]
[null,null,null,null,null,null,null,"",null,"","",null,""]
[null,null,null,null,null,null,null,{"$f":"IF(G326<>\"\",G326-G326/((100+F326)/100),\"\")","v":""},null,{"$f":"IF(I326<>\"\",I326-I326/((100+F326)/100),\"\")","v":""},{"$f":"IF(C326<>0,IF(G326<>0,K325+G326,IF(I326<>0,K325-I326,\"\")),\"\")","v":""},null,""]
[null,null,null,null,null,null,null,"",null,"","",null,{"$f":"IF(K328=\"\",K327,\"0\")","v":""}]
[null,null,null,null,null,null,null,"",null,"","",null,""]
[null,null,null,null,null,null,null,"",null,"","",null,""]
[null,null,null,null,null,null,null,"",null,"","",null,""]
[null,null,null,null,null,null,null,"",null,"","",null,""]
[null,null,null,null,null,null,null,"",null,"","",null,""]
[null,null,null,null,null,null,null,"",null,"","",null,""]
[null,null,null,null,null,null,null,"",null,"","",null,""]
[null,null,null,null,null,null,null,"",null,"","",null,""]
[null,null,null,null,null,null,null,"",null,"","",null,""]
[null,null,null,null,null,null,null,"",null,"","",null,""]
[null,null,null,null,null,null,null,"",null,"","",null,""]
[null,null,null,null,null,null,null,"",null,"","",null,""]
[null,null,null,null,null,null,null,"",null,"","",null,""]
[null,null,null,null,null,null,null,"",null,"","",null,""]
[null,null,null,null,null,null,null,"",null,"","",null,""]
[null,null,null,null,null,null,null,"",null,"","",null,""]
[null,null,null,null,null,null,null,"",null,"","",null,""]
[null,null,null,null,null,null,null,"",null,"","",null,""]
[null,null,null,null,null,null,null,"",null,"","",null,""]
[null,null,null,null,null,null,null,"",null,"","",null,""]
[null,null,null,null,null,null,null,"",null,"","",null,""]
[null,null,null,null,null,null,null,"",null,"","",null,""]
[null,null,null,null,null,null,null,"",null,"","",null,""]
[null,null,null,null,null,null,null,"",null,"","",null,""]
[null,null,null,null,null,null,null,"",null,"","",null,""]
[null,null,null,null,null,null,null,"",null,"","",null,""]
[null,null,null,null,null,null,null,"",null,"","",null,""]
[null,null,null,null,null,null,null,"",null,"","",null,""]
[null,null,null,null,null,null,null,"",null,"","",null,""]
[null,null,null,null,null,null,null,"",null,"","",null,""]
[null,null,null,null,null,null,null,"",null,"","",null,""]
[null,null,null,null,null,null,null,"",null,"","",null,""]
[null,null,null,null,null,null,null,"",null,"","",null,""]
[null,null,null,null,null,null,null,"",null,"","",null,""]
[null,null,null,null,null,null,null,"",null,"","",null,""]
[null,null,null,null,null,null,null,"",null,"","",null,""]
[null,null,null,null,null,null,null,"",null,"","",null,""]
[null,null,null,null,null,null,null,"",null,"","",null,""]
[null,null,null,null,null,null,null,"",null,"","",null,""]
[null,null,null,null,null,null,null,"",null,"","",null,""]
[null,null,null,null,null,null,null,"",null,"","",null,""]
[null,null,null,null,null,null,null,"",null,"","",null,""]
[null,null,null,null,null,null,null,"",null,"","",null,""]
[null,null,null,null,null,null,null,"",null,"","",null,""]
[null,null,null,null,null,null,null,"",null,"","",null,""]
[null,null,null,null,null,null,null,"",null,"","",null,""]
[null,null,null,null,null,null,null,"",null,"","",null,""]
[null,null,null,null,null,null,null,"",null,"","",null,""]
[null,null,null,null,null,null,null,"",null,"","",null,""]
[null,null,null,null,null,null,null,"",null,"","",null,""]
[null,null,null,null,null,null,null,"",null,"","",null,""]
[null,null,null,null,null,null,null,"",null,"","",null,""]
[null,null,null,null,null,null,null,"",null,"","",null,""]
[null,null,null,null,null,null,null,"",null,"","",null,""]
[null,null,null,null,null,null,null,"",null,"","",null,""]
[null,null,null,null,null,null,null,"",null,"","",null,""]
[null,null,null,null,null,null,null,"",null,"","",null,""]
[null,null,null,null,null,null,null,"",null,"","",null,""]
[null,null,null,null,null,null,null,"",null,"","",null,""]
[null,null,null,null,null,null,null,"",null,"","",null,""]
[null,null,null,null,null,null,null,"",null,"","",null,""]
[null,null,null,null,null,null,null,"",null,"","",null,""]
[null,null,null,null,null,null,null,{"$f":"IF(G390<>\"\",G390-G390/((100+F390)/100),\"\")","v":""},null,{"$f":"IF(I390<>\"\",I390-I390/((100+F390)/100),\"\")","v":""},{"$f":"IF(C390<>0,IF(G390<>0,K389+G390,IF(I390<>0,K389-I390,\"\")),\"\")","v":""},null,""]
[null,null,null,null,null,null,null,"",null,"","",null,{"$f":"IF(K392=\"\",K391,\"0\")","v":""}]
[null,null,null,null,null,null,null,"",null,"","",null,""]
[null,null,null,null,null,null,null,"",null,"","",null,""]
[null,null,null,null,null,null,null,"",null,"","",null,""]
[null,null,null,null,null,null,null,"",null,"","",null,""]
[null,null,null,null,null,null,null,"",null,"","",null,""]
[null,null,null,null,null,null,null,"",null,"","",null,""]
[null,null,null,null,null,null,null,"",null,"","",null,""]
[null,null,null,null,null,null,null,"",null,"","",null,""]
[null,null,null,null,null,null,null,"",null,"","",null,""]
[null,null,null,null,null,null,null,"",null,"","",null,""]
[null,null,null,null,null,null,null,"",null,"","",null,""]
[null,null,null,null,null,null,null,"",null,"","",null,""]
[null,null,null,null,null,null,null,"",null,"","",null,""]
[null,null,null,null,null,null,null,"",null,"","",null,""]
[null,null,null,null,null,null,null,"",null,"","",null,""]
[null,null,null,null,null,null,null,"",null,"","",null,""]
[null,null,null,null,null,null,null,"",null,"","",null,""]
[null,null,null,null,null,null,null,"",null,"","",null,""]
[null,null,null,null,null,null,null,"",null,"","",null,""]
[null,null,null,null,null,null,null,"",null,"","",null,""]
[null,null,null,null,null,null,null,"",null,"","",null,""]
[null,null,null,null,null,null,null,"",null,"","",null,""]
[null,null,null,null,null,null,null,"",null,"","",null,""]
[null,null,null,null,null,null,null,"",null,"","",null,""]
[null,null,null,null,null,null,null,"",null,"","",null,""]
[null,null,null,null,null,null,null,"",null,"","",null,""]
[null,null,null,null,null,null,null,"",null,"","",null,""]
[null,null,null,null,null,null,null,"",null,"","",null,""]
[null,null,null,null,null,null,null,"",null,"","",null,""]
[null,null,null,null,null,null,null,"",null,"","",null,""]
[null,null,null,null,null,null,null,"",null,"","",null,""]
[null,null,null,null,null,null,null,"",null,"","",null,""]
[null,null,null,null,null,null,null,"",null,"","",null,""]
[null,null,null,null,null,null,null,"",null,"","",null,""]
[null,null,null,null,null,null,null,"",null,"","",null,""]
[null,null,null,null,null,null,null,"",null,"","",null,""]
[null,null,null,null,null,null,null,"",null,"","",null,""]
[null,null,null,null,null,null,null,"",null,"","",null,""]
[null,null,null,null,null,null,null,"",null,"","",null,""]
[null,null,null,null,null,null,null,"",null,"","",null,""]
[null,null,null,null,null,null,null,"",null,"","",null,""]
[null,null,null,null,null,null,null,"",null,"","",null,""]
[null,null,null,null,null,null,null,"",null,"","",null,""]
[null,null,null,null,null,null,null,"",null,"","",null,""]
[null,null,null,null,null,null,null,"",null,"","",null,""]
[null,null,null,null,null,null,null,"",null,"","",null,""]
[null,null,null,null,null,null,null,"",null,"","",null,""]
[null,null,null,null,null,null,null,"",null,"","",null,""]
[null,null,null,null,null,null,null,"",null,"","",null,""]
[null,null,null,null,null,null,null,"",null,"","",null,""]
[null,null,null,null,null,null,null,"",null,"","",null,""]
[null,null,null,null,null,null,null,"",null,"","",null,""]
[null,null,null,null,null,null,null,"",null,"","",null,""]
[null,null,null,null,null,null,null,"",null,"","",null,""]
[null,null,null,null,null,null,null,"",null,"","",null,""]
[null,null,null,null,null,null,null,"",null,"","",null,""]
[null,null,null,null,null,null,null,"",null,"","",null,""]
[null,null,null,null,null,null,null,"",null,"","",null,""]
[null,null,null,null,null,null,null,"",null,"","",null,""]
[null,null,null,null,null,null,null,"",null,"","",null,""]
[null,null,null,null,null,null,null,"",null,"","",null,""]
[null,null,null,null,null,null,null,"",null,"","",null,""]
[null,null,null,null,null,null,null,{"$f":"IF(G454<>\"\",G454-G454/((100+F454)/100),\"\")","v":""},null,{"$f":"IF(I454<>\"\",I454-I454/((100+F454)/100),\"\")","v":""},{"$f":"IF(C454<>0,IF(G454<>0,K453+G454,IF(I454<>0,K453-I454,\"\")),\"\")","v":""},null,""]
[null,null,null,null,null,null,null,"",null,"","",null,{"$f":"IF(K456=\"\",K455,\"0\")","v":""}]
[null,null,null,null,null,null,null,"",null,"","",null,""]
[null,null,null,null,null,null,null,"",null,"","",null,""]
[null,null,null,null,null,null,null,"",null,"","",null,""]
[null,null,null,null,null,null,null,"",null,"","",null,""]
[null,null,null,null,null,null,null,"",null,"","",null,""]
[null,null,null,null,null,null,null,"",null,"","",null,""]
[null,null,null,null,null,null,null,"",null,"","",null,""]
[null,null,null,null,null,null,null,"",null,"","",null,""]
[null,null,null,null,null,null,null,"",null,"","",null,""]
[null,null,null,null,null,null,null,"",null,"","",null,""]
[null,null,null,null,null,null,null,"",null,"","",null,""]
[null,null,null,null,null,null,null,"",null,"","",null,""]
[null,null,null,null,null,null,null,"",null,"","",null,""]
[null,null,null,null,null,null,null,"",null,"","",null,""]
[null,null,null,null,null,null,null,"",null,"","",null,""]
[null,null,null,null,null,null,null,"",null,"","",null,""]
[null,null,null,null,null,null,null,"",null,"","",null,""]
[null,null,null,null,null,null,null,"",null,"","",null,""]
[null,null,null,null,null,null,null,"",null,"","",null,""]
[null,null,null,null,null,null,null,"",null,"","",null,""]
[null,null,null,null,null,null,null,"",null,"","",null,""]
[null,null,null,null,null,null,null,"",null,"","",null,""]
[null,null,null,null,null,null,null,"",null,"","",null,""]
[null,null,null,null,null,null,null,"",null,"","",null,""]
[null,null,null,null,null,null,null,"",null,"","",null,""]
[null,null,null,null,null,null,null,"",null,"","",null,""]
[null,null,null,null,null,null,null,"",null,"","",null,""]
[null,null,null,null,null,null,null,"",null,"","",null,""]
[null,null,null,null,null,null,null,"",null,"","",null,""]
[null,null,null,null,null,null,null,"",null,"","",null,""]
[null,null,null,null,null,null,null,"",null,"","",null,""]
[null,null,null,null,null,null,null,"",null,"","",null,""]
[null,null,null,null,null,null,null,"",null,"","",null,""]
[null,null,null,null,null,null,null,"",null,"","",null,""]
[null,null,null,null,null,null,null,"",null,"","",null,""]
[null,null,null,null,null,null,null,"",null,"","",null,""]
[null,null,null,null,null,null,null,"",null,"","",null,""]
[null,null,null,null,null,null,null,"",null,"","",null,""]
[null,null,null,null,null,null,null,"",null,"","",null,""]
[null,null,null,null,null,null,null,"",null,"","",null,""]
[null,null,null,null,null,null,null,"",null,"","",null,""]
[null,null,null,null,null,null,null,"",null,"","",null,""]
[null,null,null,null,null,null,null,"",null,"","",null,""]
[null,null,null,null,null,null,null,"",null,"","",null,""]
[null,null,null,null,null,null,null,"",null,"","",null,""]
[null,null,null,null,null,null,null,null,null,null,null,null,{"$f":"SUM(M5:M500)","v":0}]

{"sheet":"Dez","index":12,"n_rows":501,"n_cols":14,"rows_kept":501,"cut":false,"hidden":false,"merged":[[0,1,0,10],[1,1,1,10],[2,1,2,6],[2,8,2,10],[4,1,4,9]]}
[null,"KASSABUCH"]
[null,null,null,null,null,null,null,null,null,null,null,null,{"$f":"DATE(Jahr,2,1)","v":"1900-02-01"},"Anfangsdatum"]
[null,{"$f":"IF(Name<>0,Name,\"\")","v":""},null,null,null,null,null,null,{"$f":"\"Dezember \"&Jahr","v":"Dezember "},null,null,null,{"$f":"DATE(Jahr,3,1)-1","v":60},"Enddatum"]
[null,"Datum","Beleg","Konto","Text","%","Einnahmen","USt","Ausgaben","Vorsteuer","Kassabestand",null,{"$f":"SUM(M5:M500)","v":0},{"$f":"I3 &\", \"&\"Endstand\"","v":"Dezember , Endstand"}]
[null,"Übertrag Vormonat EUR:",null,null,null,null,null,null,null,null,{"$f":"Nov!M4","v":0},null,{"$f":"IF(K6=\"\",K5,\"0\")","v":0}]
[null,null,null,null,null,null,null,null,null,{"$f":"IF(I6<>\"\",I6-I6/((100+F6)/100),\"\")","v":""},{"$f":"IF(C6<>0,IF(G6<>0,K5+G6,IF(I6<>0,K5-I6,\"\")),\"\")","v":""},null,{"$f":"IF(K7=\"\",K6,\"0\")","v":""}]
[null,null,null,null,null,null,null,null,null,{"$f":"IF(I7<>\"\",I7-I7/((100+F7)/100),\"\")","v":""},{"$f":"IF(C7<>0,IF(G7<>0,K6+G7,IF(I7<>0,K6-I7,\"\")),\"\")","v":""},null,{"$f":"IF(K8=\"\",K7,\"0\")","v":""}]
[null,null,null,null,null,null,null,{"$f":"IF(G8<>\"\",G8-G8/((100+F8)/100),\"\")","v":""},null,"",{"$f":"IF(C8<>0,IF(G8<>0,K7+G8,IF(I8<>0,K7-I8,\"\")),\"\")","v":""},null,{"$f":"IF(K9=\"\",K8,\"0\")","v":""}]
[null,null,null,null,null,null,null,"",null,"","",null,""]
[null,null,null,null,null,null,null,"",null,"","",null,""]
[null,null,null,null,null,null,null,"",null,"","",null,""]
[null,null,null,null,null,null,null,"",null,"","",null,""]
[null,null,null,null,null,null,null,"",null,"","",null,""]
[null,null,null,null,null,null,null,"",null,"","",null,""]
[null,null,null,null,null,null,null,"",null,"","",null,""]
[null,null,null,null,null,null,null,"",null,"","",null,""]
[null,null,null,null,null,null,null,"",null,"","",null,""]
[null,null,null,null,null,null,null,"",null,"","",null,""]
[null,null,null,null,null,null,null,"",null,"","",null,""]
[null,null,null,null,null,null,null,"",null,"","",null,""]
[null,null,null,null,null,null,null,"",null,"","",null,""]
[null,null,null,null,null,null,null,"",null,"","",null,""]
[null,null,null,null,null,null,null,"",null,"","",null,""]
[null,null,null,null,null,null,null,"",null,"","",null,""]
[null,null,null,null,null,null,null,"",null,"","",null,""]
[null,null,null,null,null,null,null,"",null,"","",null,""]
[null,null,null,null,null,null,null,"",null,"","",null,""]
[null,null,null,null,null,null,null,"",null,"","",null,""]
[null,null,null,null,null,null,null,"",null,"","",null,""]
[null,null,null,null,null,null,null,"",null,"","",null,""]
[null,null,null,null,null,null,null,"",null,"","",null,""]
[null,null,null,null,null,null,null,"",null,"","",null,""]
[null,null,null,null,null,null,null,"",null,"","",null,""]
[null,null,null,null,null,null,null,"",null,"","",null,""]
[null,null,null,null,null,null,null,"",null,"","",null,""]
[null,null,null,null,null,null,null,"",null,"","",null,""]
[null,null,null,null,null,null,null,"",null,"","",null,""]
[null,null,null,null,null,null,null,"",null,"","",null,""]
[null,null,null,null,null,null,null,"",null,"","",null,""]
[null,null,null,null,null,null,null,"",null,"","",null,""]
[null,null,null,null,null,null,null,"",null,"","",null,""]
[null,null,null,null,null,null,null,"",null,"","",null,""]
[null,null,null,null,null,null,null,"",null,"","",null,""]
[null,null,null,null,null,null,null,"",null,"","",null,""]
[null,null,null,null,null,null,null,"",null,"","",null,""]
[null,null,null,null,null,null,null,"",null,"","",null,""]
[null,null,null,null,null,null,null,"",null,"","",null,""]
[null,null,null,null,null,null,null,"",null,"","",null,""]
[null,null,null,null,null,null,null,"",null,"","",null,""]
[null,null,null,null,null,null,null,"",null,"","",null,""]
[null,null,null,null,null,null,null,"",null,"","",null,""]
[null,null,null,null,null,null,null,"",null,"","",null,""]
[null,null,null,null,null,null,null,"",null,"","",null,""]
[null,null,null,null,null,null,null,"",null,"","",null,""]
[null,null,null,null,null,null,null,"",null,"","",null,""]
[null,null,null,null,null,null,null,"",null,"","",null,""]
[null,null,null,null,null,null,null,"",null,"","",null,""]
[null,null,null,null,null,null,null,"",null,"","",null,""]
[null,null,null,null,null,null,null,"",null,"","",null,""]
[null,null,null,null,null,null,null,"",null,"","",null,""]
[null,null,null,null,null,null,null,"",null,"","",null,""]
[null,null,null,null,null,null,null,"",null,"","",null,""]
[null,null,null,null,null,null,null,"",null,"","",null,""]
[null,null,null,null,null,null,null,"",null,"","",null,""]
[null,null,null,null,null,null,null,"",null,"","",null,""]
[null,null,null,null,null,null,null,"",null,"","",null,""]
[null,null,null,null,null,null,null,"",null,"","",null,""]
[null,null,null,null,null,null,null,"",null,"","",null,""]
[null,null,null,null,null,null,null,"",null,"","",null,""]
[null,null,null,null,null,null,null,{"$f":"IF(G70<>\"\",G70-G70/((100+F70)/100),\"\")","v":""},null,{"$f":"IF(I70<>\"\",I70-I70/((100+F70)/100),\"\")","v":""},{"$f":"IF(C70<>0,IF(G70<>0,K69+G70,IF(I70<>0,K69-I70,\"\")),\"\")","v":""},null,""]
[null,null,null,null,null,null,null,"",null,"","",null,{"$f":"IF(K72=\"\",K71,\"0\")","v":""}]
[null,null,null,null,null,null,null,"",null,"","",null,""]
[null,null,null,null,null,null,null,"",null,"","",null,""]
[null,null,null,null,null,null,null,"",null,"","",null,""]
[null,null,null,null,null,null,null,"",null,"","",null,""]
[null,null,null,null,null,null,null,"",null,"","",null,""]
[null,null,null,null,null,null,null,"",null,"","",null,""]
[null,null,null,null,null,null,null,"",null,"","",null,""]
[null,null,null,null,null,null,null,"",null,"","",null,""]
[null,null,null,null,null,null,null,"",null,"","",null,""]
[null,null,null,null,null,null,null,"",null,"","",null,""]
[null,null,null,null,null,null,null,"",null,"","",null,""]
[null,null,null,null,null,null,null,"",null,"","",null,""]
[null,null,null,null,null,null,null,"",null,"","",null,""]
[null,null,null,null,null,null,null,"",null,"","",null,""]
[null,null,null,null,null,null,null,"",null,"","",null,""]
[null,null,null,null,null,null,null,"",null,"","",null,""]
[null,null,null,null,null,null,null,"",null,"","",null,""]
[null,null,null,null,null,null,null,"",null,"","",null,""]
[null,null,null,null,null,null,null,"",null,"","",null,""]
[null,null,null,null,null,null,null,"",null,"","",null,""]
[null,null,null,null,null,null,null,"",null,"","",null,""]
[null,null,null,null,null,null,null,"",null,"","",null,""]
[null,null,null,null,null,null,null,"",null,"","",null,""]
[null,null,null,null,null,null,null,"",null,"","",null,""]
[null,null,null,null,null,null,null,"",null,"","",null,""]
[null,null,null,null,null,null,null,"",null,"","",null,""]
[null,null,null,null,null,null,null,"",null,"","",null,""]
[null,null,null,null,null,null,null,"",null,"","",null,""]
[null,null,null,null,null,null,null,"",null,"","",null,""]
[null,null,null,null,null,null,null,"",null,"","",null,""]
[null,null,null,null,null,null,null,"",null,"","",null,""]
[null,null,null,null,null,null,null,"",null,"","",null,""]
[null,null,null,null,null,null,null,"",null,"","",null,""]
[null,null,null,null,null,null,null,"",null,"","",null,""]
[null,null,null,null,null,null,null,"",null,"","",null,""]
[null,null,null,null,null,null,null,"",null,"","",null,""]
[null,null,null,null,null,null,null,"",null,"","",null,""]
[null,null,null,null,null,null,null,"",null,"","",null,""]
[null,null,null,null,null,null,null,"",null,"","",null,""]
[null,null,null,null,null,null,null,"",null,"","",null,""]
[null,null,null,null,null,null,null,"",null,"","",null,""]
[null,null,null,null,null,null,null,"",null,"","",null,""]
[null,null,null,null,null,null,null,"",null,"","",null,""]
[null,null,null,null,null,null,null,"",null,"","",null,""]
[null,null,null,null,null,null,null,"",null,"","",null,""]
[null,null,null,null,null,null,null,"",null,"","",null,""]
[null,null,null,null,null,null,null,"",null,"","",null,""]
[null,null,null,null,null,null,null,"",null,"","",null,""]
[null,null,null,null,null,null,null,"",null,"","",null,""]
[null,null,null,null,null,null,null,"",null,"","",null,""]
[null,null,null,null,null,null,null,"",null,"","",null,""]
[null,null,null,null,null,null,null,"",null,"","",null,""]
[null,null,null,null,null,null,null,"",null,"","",null,""]
[null,null,null,null,null,null,null,"",null,"","",null,""]
[null,null,null,null,null,null,null,"",null,"","",null,""]
[null,null,null,null,null,null,null,"",null,"","",null,""]
[null,null,null,null,null,null,null,"",null,"","",null,""]
[null,null,null,null,null,null,null,"",null,"","",null,""]
[null,null,null,null,null,null,null,"",null,"","",null,""]
[null,null,null,null,null,null,null,"",null,"","",null,""]
[null,null,null,null,null,null,null,"",null,"","",null,""]
[null,null,null,null,null,null,null,"",null,"","",null,""]
[null,null,null,null,null,null,null,{"$f":"IF(G134<>\"\",G134-G134/((100+F134)/100),\"\")","v":""},null,{"$f":"IF(I134<>\"\",I134-I134/((100+F134)/100),\"\")","v":""},{"$f":"IF(C134<>0,IF(G134<>0,K133+G134,IF(I134<>0,K133-I134,\"\")),\"\")","v":""},null,""]
[null,null,null,null,null,null,null,"",null,"","",null,{"$f":"IF(K136=\"\",K135,\"0\")","v":""}]
[null,null,null,null,null,null,null,"",null,"","",null,""]
[null,null,null,null,null,null,null,"",null,"","",null,""]
[null,null,null,null,null,null,null,"",null,"","",null,""]
[null,null,null,null,null,null,null,"",null,"","",null,""]
[null,null,null,null,null,null,null,"",null,"","",null,""]
[null,null,null,null,null,null,null,"",null,"","",null,""]
[null,null,null,null,null,null,null,"",null,"","",null,""]
[null,null,null,null,null,null,null,"",null,"","",null,""]
[null,null,null,null,null,null,null,"",null,"","",null,""]
[null,null,null,null,null,null,null,"",null,"","",null,""]
[null,null,null,null,null,null,null,"",null,"","",null,""]
[null,null,null,null,null,null,null,"",null,"","",null,""]
[null,null,null,null,null,null,null,"",null,"","",null,""]
[null,null,null,null,null,null,null,"",null,"","",null,""]
[null,null,null,null,null,null,null,"",null,"","",null,""]
[null,null,null,null,null,null,null,"",null,"","",null,""]
[null,null,null,null,null,null,null,"",null,"","",null,""]
[null,null,null,null,null,null,null,"",null,"","",null,""]
[null,null,null,null,null,null,null,"",null,"","",null,""]
[null,null,null,null,null,null,null,"",null,"","",null,""]
[null,null,null,null,null,null,null,"",null,"","",null,""]
[null,null,null,null,null,null,null,"",null,"","",null,""]
[null,null,null,null,null,null,null,"",null,"","",null,""]
[null,null,null,null,null,null,null,"",null,"","",null,""]
[null,null,null,null,null,null,null,"",null,"","",null,""]
[null,null,null,null,null,null,null,"",null,"","",null,""]
[null,null,null,null,null,null,null,"",null,"","",null,""]
[null,null,null,null,null,null,null,"",null,"","",null,""]
[null,null,null,null,null,null,null,"",null,"","",null,""]
[null,null,null,null,null,null,null,"",null,"","",null,""]
[null,null,null,null,null,null,null,"",null,"","",null,""]
[null,null,null,null,null,null,null,"",null,"","",null,""]
[null,null,null,null,null,null,null,"",null,"","",null,""]
[null,null,null,null,null,null,null,"",null,"","",null,""]
[null,null,null,null,null,null,null,"",null,"","",null,""]
[null,null,null,null,null,null,null,"",null,"","",null,""]
[null,null,null,null,null,null,null,"",null,"","",null,""]
[null,null,null,null,null,null,null,"",null,"","",null,""]
[null,null,null,null,null,null,null,"",null,"","",null,""]
[null,null,null,null,null,null,null,"",null,"","",null,""]
[null,null,null,null,null,null,null,"",null,"","",null,""]
[null,null,null,null,null,null,null,"",null,"","",null,""]
[null,null,null,null,null,null,null,"",null,"","",null,""]
[null,null,null,null,null,null,null,"",null,"","",null,""]
[null,null,null,null,null,null,null,"",null,"","",null,""]
[null,null,null,null,null,null,null,"",null,"","",null,""]
[null,null,null,null,null,null,null,"",null,"","",null,""]
[null,null,null,null,null,null,null,"",null,"","",null,""]
[null,null,null,null,null,null,null,"",null,"","",null,""]
[null,null,null,null,null,null,null,"",null,"","",null,""]
[null,null,null,null,null,null,null,"",null,"","",null,""]
[null,null,null,null,null,null,null,"",null,"","",null,""]
[null,null,null,null,null,null,null,"",null,"","",null,""]
[null,null,null,null,null,null,null,"",null,"","",null,""]
[null,null,null,null,null,null,null,"",null,"","",null,""]
[null,null,null,null,null,null,null,"",null,"","",null,""]
[null,null,null,null,null,null,null,"",null,"","",null,""]
[null,null,null,null,null,null,null,"",null,"","",null,""]
[null,null,null,null,null,null,null,"",null,"","",null,""]
[null,null,null,null,null,null,null,"",null,"","",null,""]
[null,null,null,null,null,null,null,"",null,"","",null,""]
[null,null,null,null,null,null,null,"",null,"","",null,""]
[null,null,null,null,null,null,null,{"$f":"IF(G198<>\"\",G198-G198/((100+F198)/100),\"\")","v":""},null,{"$f":"IF(I198<>\"\",I198-I198/((100+F198)/100),\"\")","v":""},{"$f":"IF(C198<>0,IF(G198<>0,K197+G198,IF(I198<>0,K197-I198,\"\")),\"\")","v":""},null,""]
[null,null,null,null,null,null,null,"",null,"","",null,{"$f":"IF(K200=\"\",K199,\"0\")","v":""}]
[null,null,null,null,null,null,null,"",null,"","",null,""]
[null,null,null,null,null,null,null,"",null,"","",null,""]
[null,null,null,null,null,null,null,"",null,"","",null,""]
[null,null,null,null,null,null,null,"",null,"","",null,""]
[null,null,null,null,null,null,null,"",null,"","",null,""]
[null,null,null,null,null,null,null,"",null,"","",null,""]
[null,null,null,null,null,null,null,"",null,"","",null,""]
[null,null,null,null,null,null,null,"",null,"","",null,""]
[null,null,null,null,null,null,null,"",null,"","",null,""]
[null,null,null,null,null,null,null,"",null,"","",null,""]
[null,null,null,null,null,null,null,"",null,"","",null,""]
[null,null,null,null,null,null,null,"",null,"","",null,""]
[null,null,null,null,null,null,null,"",null,"","",null,""]
[null,null,null,null,null,null,null,"",null,"","",null,""]
[null,null,null,null,null,null,null,"",null,"","",null,""]
[null,null,null,null,null,null,null,"",null,"","",null,""]
[null,null,null,null,null,null,null,"",null,"","",null,""]
[null,null,null,null,null,null,null,"",null,"","",null,""]
[null,null,null,null,null,null,null,"",null,"","",null,""]
[null,null,null,null,null,null,null,"",null,"","",null,""]
[null,null,null,null,null,null,null,"",null,"","",null,""]
[null,null,null,null,null,null,null,"",null,"","",null,""]
[null,null,null,null,null,null,null,"",null,"","",null,""]
[null,null,null,null,null,null,null,"",null,"","",null,""]
[null,null,null,null,null,null,null,"",null,"","",null,""]
[null,null,null,null,null,null,null,"",null,"","",null,""]
[null,null,null,null,null,null,null,"",null,"","",null,""]
[null,null,null,null,null,null,null,"",null,"","",null,""]
[null,null,null,null,null,null,null,"",null,"","",null,""]
[null,null,null,null,null,null,null,"",null,"","",null,""]
[null,null,null,null,null,null,null,"",null,"","",null,""]
[null,null,null,null,null,null,null,"",null,"","",null,""]
[null,null,null,null,null,null,null,"",null,"","",null,""]
[null,null,null,null,null,null,null,"",null,"","",null,""]
[null,null,null,null,null,null,null,"",null,"","",null,""]
[null,null,null,null,null,null,null,"",null,"","",null,""]
[null,null,null,null,null,null,null,"",null,"","",null,""]
[null,null,null,null,null,null,null,"",null,"","",null,""]
[null,null,null,null,null,null,null,"",null,"","",null,""]
[null,null,null,null,null,null,null,"",null,"","",null,""]
[null,null,null,null,null,null,null,"",null,"","",null,""]
[null,null,null,null,null,null,null,"",null,"","",null,""]
[null,null,null,null,null,null,null,"",null,"","",null,""]
[null,null,null,null,null,null,null,"",null,"","",null,""]
[null,null,null,null,null,null,null,"",null,"","",null,""]
[null,null,null,null,null,null,null,"",null,"","",null,""]
[null,null,null,null,null,null,null,"",null,"","",null,""]
[null,null,null,null,null,null,null,"",null,"","",null,""]
[null,null,null,null,null,null,null,"",null,"","",null,""]
[null,null,null,null,null,null,null,"",null,"","",null,""]
[null,null,null,null,null,null,null,"",null,"","",null,""]
[null,null,null,null,null,null,null,"",null,"","",null,""]
[null,null,null,null,null,null,null,"",null,"","",null,""]
[null,null,null,null,null,null,null,"",null,"","",null,""]
[null,null,null,null,null,null,null,"",null,"","",null,""]
[null,null,null,null,null,null,null,"",null,"","",null,""]
[null,null,null,null,null,null,null,"",null,"","",null,""]
[null,null,null,null,null,null,null,"",null,"","",null,""]
[null,null,null,null,null,null,null,"",null,"","",null,""]
[null,null,null,null,null,null,null,"",null,"","",null,""]
[null,null,null,null,null,null,null,"",null,"","",null,""]
[null,null,null,null,null,null,null,"",null,"","",null,""]
[null,null,null,null,null,null,null,{"$f":"IF(G262<>\"\",G262-G262/((100+F262)/100),\"\")","v":""},null,{"$f":"IF(I262<>\"\",I262-I262/((100+F262)/100),\"\")","v":""},{"$f":"IF(C262<>0,IF(G262<>0,K261+G262,IF(I262<>0,K261-I262,\"\")),\"\")","v":""},null,""]
[null,null,null,null,null,null,null,"",null,"","",null,{"$f":"IF(K264=\"\",K263,\"0\")","v":""}]
[null,null,null,null,null,null,null,"",null,"","",null,""]
[null,null,null,null,null,null,null,"",null,"","",null,""]
[null,null,null,null,null,null,null,"",null,"","",null,""]
[null,null,null,null,null,null,null,"",null,"","",null,""]
[null,null,null,null,null,null,null,"",null,"","",null,""]
[null,null,null,null,null,null,null,"",null,"","",null,""]
[null,null,null,null,null,null,null,"",null,"","",null,""]
[null,null,null,null,null,null,null,"",null,"","",null,""]
[null,null,null,null,null,null,null,"",null,"","",null,""]
[null,null,null,null,null,null,null,"",null,"","",null,""]
[null,null,null,null,null,null,null,"",null,"","",null,""]
[null,null,null,null,null,null,null,"",null,"","",null,""]
[null,null,null,null,null,null,null,"",null,"","",null,""]
[null,null,null,null,null,null,null,"",null,"","",null,""]
[null,null,null,null,null,null,null,"",null,"","",null,""]
[null,null,null,null,null,null,null,"",null,"","",null,""]
[null,null,null,null,null,null,null,"",null,"","",null,""]
[null,null,null,null,null,null,null,"",null,"","",null,""]
[null,null,null,null,null,null,null,"",null,"","",null,""]
[null,null,null,null,null,null,null,"",null,"","",null,""]
[null,null,null,null,null,null,null,"",null,"","",null,""]
[null,null,null,null,null,null,null,"",null,"","",null,""]
[null,null,null,null,null,null,null,"",null,"","",null,""]
[null,null,null,null,null,null,null,"",null,"","",null,""]
[null,null,null,null,null,null,null,"",null,"","",null,""]
[null,null,null,null,null,null,null,"",null,"","",null,""]
[null,null,null,null,null,null,null,"",null,"","",null,""]
[null,null,null,null,null,null,null,"",null,"","",null,""]
[null,null,null,null,null,null,null,"",null,"","",null,""]
[null,null,null,null,null,null,null,"",null,"","",null,""]
[null,null,null,null,null,null,null,"",null,"","",null,""]
[null,null,null,null,null,null,null,"",null,"","",null,""]
[null,null,null,null,null,null,null,"",null,"","",null,""]
[null,null,null,null,null,null,null,"",null,"","",null,""]
[null,null,null,null,null,null,null,"",null,"","",null,""]
[null,null,null,null,null,null,null,"",null,"","",null,""]
[null,null,null,null,null,null,null,"",null,"","",null,""]
[null,null,null,null,null,null,null,"",null,"","",null,""]
[null,null,null,null,null,null,null,"",null,"","",null,""]
[null,null,null,null,null,null,null,"",null,"","",null,""]
[null,null,null,null,null,null,null,"",null,"","",null,""]
[null,null,null,null,null,null,null,"",null,"","",null,""]
[null,null,null,null,null,null,null,"",null,"","",null,""]
[null,null,null,null,null,null,null,"",null,"","",null,""]
[null,null,null,null,null,null,null,"",null,"","",null,""]
[null,null,null,null,null,null,null,"",null,"","",null,""]
[null,null,null,null,null,null,null,"",null,"","",null,""]
[null,null,null,null,null,null,null,"",null,"","",null,""]
[null,null,null,null,null,null,null,"",null,"","",null,""]
[null,null,null,null,null,null,null,"",null,"","",null,""]
[null,null,null,null,null,null,null,"",null,"","",null,""]
[null,null,null,null,null,null,null,"",null,"","",null,""]
[null,null,null,null,null,null,null,"",null,"","",null,""]
[null,null,null,null,null,null,null,"",null,"","",null,""]
[null,null,null,null,null,null,null,"",null,"","",null,""]
[null,null,null,null,null,null,null,"",null,"","",null,""]
[null,null,null,null,null,null,null,"",null,"","",null,""]
[null,null,null,null,null,null,null,"",null,"","",null,""]
[null,null,null,null,null,null,null,"",null,"","",null,""]
[null,null,null,null,null,null,null,"",null,"","",null,""]
[null,null,null,null,null,null,null,"",null,"","",null,""]
[null,null,null,null,null,null,null,"",null,"","",null,""]
[null,null,null,null,null,null,null,{"$f":"IF(G326<>\"\",G326-G326/((100+F326)/100),\"\")","v":""},null,{"$f":"IF(I326<>\"\",I326-I326/((100+F326)/100),\"\")","v":""},{"$f":"IF(C326<>0,IF(G326<>0,K325+G326,IF(I326<>0,K325-I326,\"\")),\"\")","v":""},null,""]
[null,null,null,null,null,null,null,"",null,"","",null,{"$f":"IF(K328=\"\",K327,\"0\")","v":""}]
[null,null,null,null,null,null,null,"",null,"","",null,""]
[null,null,null,null,null,null,null,"",null,"","",null,""]
[null,null,null,null,null,null,null,"",null,"","",null,""]
[null,null,null,null,null,null,null,"",null,"","",null,""]
[null,null,null,null,null,null,null,"",null,"","",null,""]
[null,null,null,null,null,null,null,"",null,"","",null,""]
[null,null,null,null,null,null,null,"",null,"","",null,""]
[null,null,null,null,null,null,null,"",null,"","",null,""]
[null,null,null,null,null,null,null,"",null,"","",null,""]
[null,null,null,null,null,null,null,"",null,"","",null,""]
[null,null,null,null,null,null,null,"",null,"","",null,""]
[null,null,null,null,null,null,null,"",null,"","",null,""]
[null,null,null,null,null,null,null,"",null,"","",null,""]
[null,null,null,null,null,null,null,"",null,"","",null,""]
[null,null,null,null,null,null,null,"",null,"","",null,""]
[null,null,null,null,null,null,null,"",null,"","",null,""]
[null,null,null,null,null,null,null,"",null,"","",null,""]
[null,null,null,null,null,null,null,"",null,"","",null,""]
[null,null,null,null,null,null,null,"",null,"","",null,""]
[null,null,null,null,null,null,null,"",null,"","",null,""]
[null,null,null,null,null,null,null,"",null,"","",null,""]
[null,null,null,null,null,null,null,"",null,"","",null,""]
[null,null,null,null,null,null,null,"",null,"","",null,""]
[null,null,null,null,null,null,null,"",null,"","",null,""]
[null,null,null,null,null,null,null,"",null,"","",null,""]
[null,null,null,null,null,null,null,"",null,"","",null,""]
[null,null,null,null,null,null,null,"",null,"","",null,""]
[null,null,null,null,null,null,null,"",null,"","",null,""]
[null,null,null,null,null,null,null,"",null,"","",null,""]
[null,null,null,null,null,null,null,"",null,"","",null,""]
[null,null,null,null,null,null,null,"",null,"","",null,""]
[null,null,null,null,null,null,null,"",null,"","",null,""]
[null,null,null,null,null,null,null,"",null,"","",null,""]
[null,null,null,null,null,null,null,"",null,"","",null,""]
[null,null,null,null,null,null,null,"",null,"","",null,""]
[null,null,null,null,null,null,null,"",null,"","",null,""]
[null,null,null,null,null,null,null,"",null,"","",null,""]
[null,null,null,null,null,null,null,"",null,"","",null,""]
[null,null,null,null,null,null,null,"",null,"","",null,""]
[null,null,null,null,null,null,null,"",null,"","",null,""]
[null,null,null,null,null,null,null,"",null,"","",null,""]
[null,null,null,null,null,null,null,"",null,"","",null,""]
[null,null,null,null,null,null,null,"",null,"","",null,""]
[null,null,null,null,null,null,null,"",null,"","",null,""]
[null,null,null,null,null,null,null,"",null,"","",null,""]
[null,null,null,null,null,null,null,"",null,"","",null,""]
[null,null,null,null,null,null,null,"",null,"","",null,""]
[null,null,null,null,null,null,null,"",null,"","",null,""]
[null,null,null,null,null,null,null,"",null,"","",null,""]
[null,null,null,null,null,null,null,"",null,"","",null,""]
[null,null,null,null,null,null,null,"",null,"","",null,""]
[null,null,null,null,null,null,null,"",null,"","",null,""]
[null,null,null,null,null,null,null,"",null,"","",null,""]
[null,null,null,null,null,null,null,"",null,"","",null,""]
[null,null,null,null,null,null,null,"",null,"","",null,""]
[null,null,null,null,null,null,null,"",null,"","",null,""]
[null,null,null,null,null,null,null,"",null,"","",null,""]
[null,null,null,null,null,null,null,"",null,"","",null,""]
[null,null,null,null,null,null,null,"",null,"","",null,""]
[null,null,null,null,null,null,null,"",null,"","",null,""]
[null,null,null,null,null,null,null,"",null,"","",null,""]
[null,null,null,null,null,null,null,"",null,"","",null,""]
[null,null,null,null,null,null,null,{"$f":"IF(G390<>\"\",G390-G390/((100+F390)/100),\"\")","v":""},null,{"$f":"IF(I390<>\"\",I390-I390/((100+F390)/100),\"\")","v":""},{"$f":"IF(C390<>0,IF(G390<>0,K389+G390,IF(I390<>0,K389-I390,\"\")),\"\")","v":""},null,""]
[null,null,null,null,null,null,null,"",null,"","",null,{"$f":"IF(K392=\"\",K391,\"0\")","v":""}]
[null,null,null,null,null,null,null,"",null,"","",null,""]
[null,null,null,null,null,null,null,"",null,"","",null,""]
[null,null,null,null,null,null,null,"",null,"","",null,""]
[null,null,null,null,null,null,null,"",null,"","",null,""]
[null,null,null,null,null,null,null,"",null,"","",null,""]
[null,null,null,null,null,null,null,"",null,"","",null,""]
[null,null,null,null,null,null,null,"",null,"","",null,""]
[null,null,null,null,null,null,null,"",null,"","",null,""]
[null,null,null,null,null,null,null,"",null,"","",null,""]
[null,null,null,null,null,null,null,"",null,"","",null,""]
[null,null,null,null,null,null,null,"",null,"","",null,""]
[null,null,null,null,null,null,null,"",null,"","",null,""]
[null,null,null,null,null,null,null,"",null,"","",null,""]
[null,null,null,null,null,null,null,"",null,"","",null,""]
[null,null,null,null,null,null,null,"",null,"","",null,""]
[null,null,null,null,null,null,null,"",null,"","",null,""]
[null,null,null,null,null,null,null,"",null,"","",null,""]
[null,null,null,null,null,null,null,"",null,"","",null,""]
[null,null,null,null,null,null,null,"",null,"","",null,""]
[null,null,null,null,null,null,null,"",null,"","",null,""]
[null,null,null,null,null,null,null,"",null,"","",null,""]
[null,null,null,null,null,null,null,"",null,"","",null,""]
[null,null,null,null,null,null,null,"",null,"","",null,""]
[null,null,null,null,null,null,null,"",null,"","",null,""]
[null,null,null,null,null,null,null,"",null,"","",null,""]
[null,null,null,null,null,null,null,"",null,"","",null,""]
[null,null,null,null,null,null,null,"",null,"","",null,""]
[null,null,null,null,null,null,null,"",null,"","",null,""]
[null,null,null,null,null,null,null,"",null,"","",null,""]
[null,null,null,null,null,null,null,"",null,"","",null,""]
[null,null,null,null,null,null,null,"",null,"","",null,""]
[null,null,null,null,null,null,null,"",null,"","",null,""]
[null,null,null,null,null,null,null,"",null,"","",null,""]
[null,null,null,null,null,null,null,"",null,"","",null,""]
[null,null,null,null,null,null,null,"",null,"","",null,""]
[null,null,null,null,null,null,null,"",null,"","",null,""]
[null,null,null,null,null,null,null,"",null,"","",null,""]
[null,null,null,null,null,null,null,"",null,"","",null,""]
[null,null,null,null,null,null,null,"",null,"","",null,""]
[null,null,null,null,null,null,null,"",null,"","",null,""]
[null,null,null,null,null,null,null,"",null,"","",null,""]
[null,null,null,null,null,null,null,"",null,"","",null,""]
[null,null,null,null,null,null,null,"",null,"","",null,""]
[null,null,null,null,null,null,null,"",null,"","",null,""]
[null,null,null,null,null,null,null,"",null,"","",null,""]
[null,null,null,null,null,null,null,"",null,"","",null,""]
[null,null,null,null,null,null,null,"",null,"","",null,""]
[null,null,null,null,null,null,null,"",null,"","",null,""]
[null,null,null,null,null,null,null,"",null,"","",null,""]
[null,null,null,null,null,null,null,"",null,"","",null,""]
[null,null,null,null,null,null,null,"",null,"","",null,""]
[null,null,null,null,null,null,null,"",null,"","",null,""]
[null,null,null,null,null,null,null,"",null,"","",null,""]
[null,null,null,null,null,null,null,"",null,"","",null,""]
[null,null,null,null,null,null,null,"",null,"","",null,""]
[null,null,null,null,null,null,null,"",null,"","",null,""]
[null,null,null,null,null,null,null,"",null,"","",null,""]
[null,null,null,null,null,null,null,"",null,"","",null,""]
[null,null,null,null,null,null,null,"",null,"","",null,""]
[null,null,null,null,null,null,null,"",null,"","",null,""]
[null,null,null,null,null,null,null,"",null,"","",null,""]
[null,null,null,null,null,null,null,"",null,"","",null,""]
[null,null,null,null,null,null,null,{"$f":"IF(G454<>\"\",G454-G454/((100+F454)/100),\"\")","v":""},null,{"$f":"IF(I454<>\"\",I454-I454/((100+F454)/100),\"\")","v":""},{"$f":"IF(C454<>0,IF(G454<>0,K453+G454,IF(I454<>0,K453-I454,\"\")),\"\")","v":""},null,""]
[null,null,null,null,null,null,null,"",null,"","",null,{"$f":"IF(K456=\"\",K455,\"0\")","v":""}]
[null,null,null,null,null,null,null,"",null,"","",null,""]
[null,null,null,null,null,null,null,"",null,"","",null,""]
[null,null,null,null,null,null,null,"",null,"","",null,""]
[null,null,null,null,null,null,null,"",null,"","",null,""]
[null,null,null,null,null,null,null,"",null,"","",null,""]
[null,null,null,null,null,null,null,"",null,"","",null,""]
[null,null,null,null,null,null,null,"",null,"","",null,""]
[null,null,null,null,null,null,null,"",null,"","",null,""]
[null,null,null,null,null,null,null,"",null,"","",null,""]
[null,null,null,null,null,null,null,"",null,"","",null,""]
[null,null,null,null,null,null,null,"",null,"","",null,""]
[null,null,null,null,null,null,null,"",null,"","",null,""]
[null,null,null,null,null,null,null,"",null,"","",null,""]
[null,null,null,null,null,null,null,"",null,"","",null,""]
[null,null,null,null,null,null,null,"",null,"","",null,""]
[null,null,null,null,null,null,null,"",null,"","",null,""]
[null,null,null,null,null,null,null,"",null,"","",null,""]
[null,null,null,null,null,null,null,"",null,"","",null,""]
[null,null,null,null,null,null,null,"",null,"","",null,""]
[null,null,null,null,null,null,null,"",null,"","",null,""]
[null,null,null,null,null,null,null,"",null,"","",null,""]
[null,null,null,null,null,null,null,"",null,"","",null,""]
[null,null,null,null,null,null,null,"",null,"","",null,""]
[null,null,null,null,null,null,null,"",null,"","",null,""]
[null,null,null,null,null,null,null,"",null,"","",null,""]
[null,null,null,null,null,null,null,"",null,"","",null,""]
[null,null,null,null,null,null,null,"",null,"","",null,""]
[null,null,null,null,null,null,null,"",null,"","",null,""]
[null,null,null,null,null,null,null,"",null,"","",null,""]
[null,null,null,null,null,null,null,"",null,"","",null,""]
[null,null,null,null,null,null,null,"",null,"","",null,""]
[null,null,null,null,null,null,null,"",null,"","",null,""]
[null,null,null,null,null,null,null,"",null,"","",null,""]
[null,null,null,null,null,null,null,"",null,"","",null,""]
[null,null,null,null,null,null,null,"",null,"","",null,""]
[null,null,null,null,null,null,null,"",null,"","",null,""]
[null,null,null,null,null,null,null,"",null,"","",null,""]
[null,null,null,null,null,null,null,"",null,"","",null,""]
[null,null,null,null,null,null,null,"",null,"","",null,""]
[null,null,null,null,null,null,null,"",null,"","",null,""]
[null,null,null,null,null,null,null,"",null,"","",null,""]
[null,null,null,null,null,null,null,"",null,"","",null,""]
[null,null,null,null,null,null,null,"",null,"","",null,""]
[null,null,null,null,null,null,null,"",null,"","",null,""]
[null,null,null,null,null,null,null,"",null,"","",null,""]
[null,null,null,null,null,null,null,null,null,null,null,null,{"$f":"SUM(M5:M500)","v":0}]

{"sheet":"Druckvorlage","index":13,"n_rows":23,"n_cols":14,"rows_kept":23,"cut":false,"hidden":false,"merged":[[0,1,0,10],[1,1,1,10],[2,1,2,6],[2,8,2,10],[4,1,4,9]]}
[null,"KASSABUCH"]
[null,null,null,null,null,null,null,null,null,null,null,null,{"$f":"DATE(Jahr,12,1)","v":"1900-12-01"},"Anfangsdatum"]
[null,{"$f":"IF(Name<>0,Name,\"\")","v":""},null,null,null,null,null,null,"Monat:",null,null,null,{"$f":"DATE(Jahr,12,31)","v":"1900-12-31"},"Enddatum"]
[null,"Datum","Beleg","Konto","Text","%","Einnahmen","USt","Ausgaben","Vorsteuer","Kassabestand",null,{"$f":"SUM(M5:M22)","v":{"$error":"#REF!"}},{"$f":"I3 &\", \"&\"Endstand\"","v":"Monat:, Endstand"}]
[null,"Übertrag EUR:",null,null,null,null,null,null,null,null,null,null,{"$f":"IF(K6=\"\",K5,\"0\")","v":0}]
[null,null,null,null,null,null,null,{"$f":"IF(G6<>\"\",G6-G6/((100+F6)/100),\"\")","v":""},null,{"$f":"IF(I6<>\"\",I6-I6/((100+F6)/100),\"\")","v":""},{"$f":"IF(C6<>0,IF(G6<>0,K5+G6,IF(I6<>0,K5-I6,\"\")),\"\")","v":""},null,{"$f":"IF(K7=\"\",K6,\"0\")","v":""}]
[null,null,null,null,null,null,null,"",null,"","",null,{"$f":"IF(K8=\"\",K7,\"0\")","v":""}]
[null,null,null,null,null,null,null,"",null,"","",null,{"$f":"IF(K9=\"\",K8,\"0\")","v":""}]
[null,null,null,null,null,null,null,"",null,"","",null,""]
[null,null,null,null,null,null,null,"",null,"","",null,""]
[null,null,null,null,null,null,null,"",null,"","",null,""]
[null,null,null,null,null,null,null,"",null,"","",null,""]
[null,null,null,null,null,null,null,"",null,"","",null,""]
[null,null,null,null,null,null,null,"",null,"","",null,""]
[null,null,null,null,null,null,null,"",null,"","",null,""]
[null,null,null,null,null,null,null,"",null,"","",null,""]
[null,null,null,null,null,null,null,"",null,"","",null,""]
[null,null,null,null,null,null,null,"",null,"","",null,""]
[null,null,null,null,null,null,null,"",null,"","",null,""]
[null,null,null,null,null,null,null,"",null,"","",null,""]
[null,null,null,null,null,null,null,"",null,"","",null,""]
[null,null,null,null,null,"Summe:",null,"",null,"","",null,{"$f":"IF(#REF!=\"\",K22,\"0\")","v":{"$error":"#REF!"}}]
[null,null,null,null,null,null,null,null,null,null,null,null,{"$f":"SUM(M5:M22)","v":{"$error":"#REF!"}}]